Workbook

Sheet Introduction
B1: Life Cycle Costing Tool Overview
B2: This set of tools is developed to support local government authorities in planning and budgeting for sustainable water services for the entire population in the district. Achieving this, requires that all costs related to service delivery are taken into account. This includes costs for implementation of infrastructure, costs for operation and maintenance, costs related to administration and support and costs to replace the infrastructure. These tools help you to analyze costs related to each category and can be used to generate an analysis of the gap between ideal and available finance. Before you start using the tools, you should: 1) Enable macro’s in this file to enjoy all calculations. Note – this does not work in online Excel 2) Read through this instructions tab, and read through the instructions for each tool 3) Complete the assumptions tab, with costing information for your context This Introduction provides you the full overview of the Life Cycle Costing Tool and provides you guidance for navigating the tool. At the side of the text of this introduction, you have an overview pane with of buttons you can click on. When you click on a button, you are taken to another sheet. In this new sheet you will always see a first Tab “Introduction” that will bring you back to this Introduction and overview. | C2: Navigation buttons
C3: Instructions | D3: Data entry | E3: Results | F3: Calculations
B6: The Assumptions sheet defines several important starting points for the cost calculations. These include assumptions on the average lifespan of infrastructure, a definition of daily O&M costs and the unit costs of different water services systems and individual components of the systems.
A7: 1 | B7: The Asset Analysis Tool is a supporting tool that helps with the Infrastructure Costing Tool. The Asset Analysis Tool must be completed for the Infrastructure Costing Tool to function. The Asset Analysis Tool is based on monitoring data and identifies the state of infrastructure in the district. The output provides information WHAT needs to be done in maintaince.
A8: 2 | B8: The Infrastructure Costing Tool helps planning for new infrastructure investments, major repairs (rehabilitation) and replacement of infrastructure, based on the data entered on the state of infrastructure. This output provides information about WHEN and at WHAT Cost maintenance needs to be done. The Infrastructure Costing Tool will only provide results once the Asset Analysis Tool has been completed.
A9: 3 | B9: The Direct Support Cost Tool helps calculate the actual costs related to WASH activities completed by the government, and the costs to perform all ideal functions in the ideal way. It identifies the gap between what is actually financed and what should be financed.The output provides information about WHO supports maintenance and HOW much is needed to do that properly.
A10: 4 | B10: The Gap Analysis Tool compiles information from all costing tools and asks for information about sources of finance. From there, it calculates the financial gap analysis. The output informs WHO finances (pays) and where the biggest gaps are. This output is intended to feed into district finance planning about HOW to secure funds to keep services running.
B11: The Configuration Tool and Advanced settings enable this workbook to be tailored to your requirements. Please review the instructions and table contents to ensure they meet your needs. In most cases there is no need to make any changes here.
B12: The tools have been designed in such a way that they can be used separately. Each tool has an instruction page. The tools are developed in Excel, as it is software that is most commonly understood and in use among WASH officers. Only cells in bright yellow should be edited.
B13: NOTE: Certain tabs are protected. To unprotect the tab, the password is "water"
B14: Data should only be entered in the following tabs, the remaining tabs can be used for instructions or data analysis: Asset assesment data entry Infrastructure Results Direct Support data entry Gap analysis data entry Assumptions
B16: This tool is made possible by the generous support of the American people through USAID. The contents are the responsibility of the PRO-WASH Award and do not necessarily reflect the views of USAID or the US Government.

Sheet Assumptions
B1: Assumptions
B3: This sheet allows you to specify the expected useful life of an asset, and to assign an Opex Percentage and fill in costs of asset components. In principle only change the yellow fields. If you need to change others, unlock the sheet first | L3: You can add more rules to this table
B4: Water systems | E4: Useful Life | H4: Opex Percentage | L4: Unit costs
B5: Water systems options | C5: Maintenance costs | E5: Asset component | F5: Useful Life (Years) | H5: Expenditure | I5: Whole Life % | J5: Annual % | L5: Asset Type | M5: Alert Level | N5: Index | O5: Cost | P5: Cost Type
B6: Borehole with handpump | C6: =SUMIF(tblAssets_Results[What Type Of Water Point Is This?],lstAssets[[#This Row],[Water systems options]],tblAssets_Results[Total cost for action]) -> 21605 | E6: Borehole | F6: 20 | H6: Opex | I6: 0.4 | J6: =tblOpex[[#This Row],[Whole Life %]]/15 -> 0.02666666667 | L6: =tblAssetTypes[[#This Row],[Asset component]] -> Borehole | M6: New Construction Needed | N6: =CONCATENATE(tblInterventions[[#This Row],[Asset Type]],"|",tblInterventions[[#This Row],[Alert Level]]) -> Borehole|New Construction Needed | O6: 5000 | P6: CapEx
B7: Borehole with motorised pump | C7: =SUMIF(tblAssets_Results[What Type Of Water Point Is This?],lstAssets[[#This Row],[Water systems options]],tblAssets_Results[Total cost for action]) -> 515 | E7: Pump | F7: 5 | H7: Do not add/delete rows from this table | L7: =L6 -> Borehole | M7: Major Repairs or Replace System | N7: =CONCATENATE(tblInterventions[[#This Row],[Asset Type]],"|",tblInterventions[[#This Row],[Alert Level]]) -> Borehole|Major Repairs or Replace System | O7: 2000 | P7: CapManEx
B8: Spring protection | C8: =SUMIF(tblAssets_Results[What Type Of Water Point Is This?],lstAssets[[#This Row],[Water systems options]],tblAssets_Results[Total cost for action]) -> 3805 | E8: Concrete works | F8: 25 | H8: Opex Expenditure is assumed to be a fixed fraction of Capital Expenditure, spread over an assumed 15 year lifespan of the Asset | L8: =L7 -> Borehole | M8: Consider Replacing Aging Components | N8: =CONCATENATE(tblInterventions[[#This Row],[Asset Type]],"|",tblInterventions[[#This Row],[Alert Level]]) -> Borehole|Consider Replacing Aging Components | O8: 500 | P8: CapManEx
B9: Gravity fed piped scheme | C9: =SUMIF(tblAssets_Results[What Type Of Water Point Is This?],lstAssets[[#This Row],[Water systems options]],tblAssets_Results[Total cost for action]) -> 11170 | E9: Spring Protection | F9: 15 | L9: Borehole | M9: Repair or Replace Components | N9: =CONCATENATE(tblInterventions[[#This Row],[Asset Type]],"|",tblInterventions[[#This Row],[Alert Level]]) -> Borehole|Repair or Replace Components | O9: 200 | P9: CapManEx
B10: Borehole piped scheme | C10: =SUMIF(tblAssets_Results[What Type Of Water Point Is This?],lstAssets[[#This Row],[Water systems options]],tblAssets_Results[Total cost for action]) -> 15 | E10: Taps | F10: 5 | L10: Borehole | M10: Perform Routine Preventative Maintenance | N10: =CONCATENATE(tblInterventions[[#This Row],[Asset Type]],"|",tblInterventions[[#This Row],[Alert Level]]) -> Borehole|Perform Routine Preventative Maintenance | O10: 100 | P10: Opex
B11: Surface water piped scheme | C11: =SUMIF(tblAssets_Results[What Type Of Water Point Is This?],lstAssets[[#This Row],[Water systems options]],tblAssets_Results[Total cost for action]) -> 0 | E11: Pipes | F11: 20 | L11: =E7 -> Pump | M11: New Construction Needed | N11: =CONCATENATE(tblInterventions[[#This Row],[Asset Type]],"|",tblInterventions[[#This Row],[Alert Level]]) -> Pump|New Construction Needed | O11: 1000 | P11: CapEx
B12: Other | C12: =SUMIF(tblAssets_Results[What Type Of Water Point Is This?],lstAssets[[#This Row],[Water systems options]],tblAssets_Results[Total cost for action]) -> 0 | E12: Do not add/delete rows from this table | L12: =L11 -> Pump | M12: Major Repairs or Replace System | N12: =CONCATENATE(tblInterventions[[#This Row],[Asset Type]],"|",tblInterventions[[#This Row],[Alert Level]]) -> Pump|Major Repairs or Replace System | O12: 500 | P12: CapManEx
C13: do not change this column | L13: =L12 -> Pump | M13: Consider Replacing Aging Components | N13: =CONCATENATE(tblInterventions[[#This Row],[Asset Type]],"|",tblInterventions[[#This Row],[Alert Level]]) -> Pump|Consider Replacing Aging Components | O13: 200 | P13: CapManEx
C14: Costs per water system type | L14: Pump | M14: Repair or Replace Components | N14: =CONCATENATE(tblInterventions[[#This Row],[Asset Type]],"|",tblInterventions[[#This Row],[Alert Level]]) -> Pump|Repair or Replace Components | O14: 100 | P14: CapManEx
E15: Useful Life of Pipe Materials | L15: Pump | M15: Perform Routine Preventative Maintenance | N15: =CONCATENATE(tblInterventions[[#This Row],[Asset Type]],"|",tblInterventions[[#This Row],[Alert Level]]) -> Pump|Perform Routine Preventative Maintenance | O15: 50 | P15: Opex
E16: Pipe Material | F16: Useful Life | L16: =E8 -> Concrete works | M16: New Construction Needed | N16: =CONCATENATE(tblInterventions[[#This Row],[Asset Type]],"|",tblInterventions[[#This Row],[Alert Level]]) -> Concrete works|New Construction Needed | O16: 500 | P16: CapEx
E17: Galvanised Iron Pipe | F17: 20 | L17: =L16 -> Concrete works | M17: Major Repairs or Replace System | N17: =CONCATENATE(tblInterventions[[#This Row],[Asset Type]],"|",tblInterventions[[#This Row],[Alert Level]]) -> Concrete works|Major Repairs or Replace System | O17: 200 | P17: CapManEx
E18: HDPE Pipe | F18: 15 | L18: =L17 -> Concrete works | M18: Consider Replacing Aging Components | N18: =CONCATENATE(tblInterventions[[#This Row],[Asset Type]],"|",tblInterventions[[#This Row],[Alert Level]]) -> Concrete works|Consider Replacing Aging Components | O18: 50 | P18: CapManEx
E19: Cast Iron Pipe | F19: 20 | L19: Concrete works | M19: Repair or Replace Components | N19: =CONCATENATE(tblInterventions[[#This Row],[Asset Type]],"|",tblInterventions[[#This Row],[Alert Level]]) -> Concrete works|Repair or Replace Components | O19: 10 | P19: CapManEx
E20: Do not add/delete rows from this table | L20: Concrete works | M20: Perform Routine Preventative Maintenance | N20: =CONCATENATE(tblInterventions[[#This Row],[Asset Type]],"|",tblInterventions[[#This Row],[Alert Level]]) -> Concrete works|Perform Routine Preventative Maintenance | O20: 5 | P20: Opex
L21: =E9 -> Spring Protection | M21: New Construction Needed | N21: =CONCATENATE(tblInterventions[[#This Row],[Asset Type]],"|",tblInterventions[[#This Row],[Alert Level]]) -> Spring Protection|New Construction Needed | O21: 2000 | P21: CapEx
L22: =L21 -> Spring Protection | M22: Major Repairs or Replace System | N22: =CONCATENATE(tblInterventions[[#This Row],[Asset Type]],"|",tblInterventions[[#This Row],[Alert Level]]) -> Spring Protection|Major Repairs or Replace System | O22: 1000 | P22: CapManEx
E23: Trigger age | F23: 2 | L23: =L22 -> Spring Protection | M23: Consider Replacing Aging Components | N23: =CONCATENATE(tblInterventions[[#This Row],[Asset Type]],"|",tblInterventions[[#This Row],[Alert Level]]) -> Spring Protection|Consider Replacing Aging Components | O23: 500 | P23: CapManEx
E24: If remaining years of an asset is less than this, aging components needs replacement | L24: Spring Protection | M24: Repair or Replace Components | N24: =CONCATENATE(tblInterventions[[#This Row],[Asset Type]],"|",tblInterventions[[#This Row],[Alert Level]]) -> Spring Protection|Repair or Replace Components | O24: 40 | P24: CapManEx
L25: Spring Protection | M25: Perform Routine Preventative Maintenance | N25: =CONCATENATE(tblInterventions[[#This Row],[Asset Type]],"|",tblInterventions[[#This Row],[Alert Level]]) -> Spring Protection|Perform Routine Preventative Maintenance | O25: 100 | P25: Opex
L26: =E10 -> Taps | M26: New Construction Needed | N26: =CONCATENATE(tblInterventions[[#This Row],[Asset Type]],"|",tblInterventions[[#This Row],[Alert Level]]) -> Taps|New Construction Needed | O26: 10 | P26: CapEx
L27: =L26 -> Taps | M27: Major Repairs or Replace System | N27: =CONCATENATE(tblInterventions[[#This Row],[Asset Type]],"|",tblInterventions[[#This Row],[Alert Level]]) -> Taps|Major Repairs or Replace System | O27: 5 | P27: CapManEx
L28: =L27 -> Taps | M28: Consider Replacing Aging Components | N28: =CONCATENATE(tblInterventions[[#This Row],[Asset Type]],"|",tblInterventions[[#This Row],[Alert Level]]) -> Taps|Consider Replacing Aging Components | O28: 5 | P28: CapManEx
L29: Taps | M29: Repair or Replace Components | N29: =CONCATENATE(tblInterventions[[#This Row],[Asset Type]],"|",tblInterventions[[#This Row],[Alert Level]]) -> Taps|Repair or Replace Components | O29: 5 | P29: CapManEx
L30: Taps | M30: Perform Routine Preventative Maintenance | N30: =CONCATENATE(tblInterventions[[#This Row],[Asset Type]],"|",tblInterventions[[#This Row],[Alert Level]]) -> Taps|Perform Routine Preventative Maintenance | O30: 2 | P30: Opex
L31: =E11 -> Pipes | M31: New Construction Needed | N31: =CONCATENATE(tblInterventions[[#This Row],[Asset Type]],"|",tblInterventions[[#This Row],[Alert Level]]) -> Pipes|New Construction Needed | O31: 15 | P31: CapEx
L32: =L31 -> Pipes | M32: Major Repairs or Replace System | N32: =CONCATENATE(tblInterventions[[#This Row],[Asset Type]],"|",tblInterventions[[#This Row],[Alert Level]]) -> Pipes|Major Repairs or Replace System | O32: 10 | P32: CapManEx
L33: =L32 -> Pipes | M33: Consider Replacing Aging Components | N33: =CONCATENATE(tblInterventions[[#This Row],[Asset Type]],"|",tblInterventions[[#This Row],[Alert Level]]) -> Pipes|Consider Replacing Aging Components | O33: 10 | P33: CapManEx
L34: Pipes | M34: Repair or Replace Components | N34: =CONCATENATE(tblInterventions[[#This Row],[Asset Type]],"|",tblInterventions[[#This Row],[Alert Level]]) -> Pipes|Repair or Replace Components | O34: 5 | P34: CapManEx
L35: Pipes | M35: Perform Routine Preventative Maintenance | N35: =CONCATENATE(tblInterventions[[#This Row],[Asset Type]],"|",tblInterventions[[#This Row],[Alert Level]]) -> Pipes|Perform Routine Preventative Maintenance | O35: 1 | P35: Opex

Sheet Configuration
B1: Configuration
B3: The tables on this page define and standardise important values used throughout the workbook.
B4: You may edit the column names and the values in the cells of these tables (for language translation) but do not add/delete rows | N4: You can add to this table | Q4: You can add to this table | S4: You can add to this table
B6: Standard terms used for Yes and No | D6: Standard Terms used for Risk Ratings | G6: Standard Terms used for Priorities | I6: Standard Terms for Alert Levels | L6: Standard Terms for Recommended Activities | Q6: Standard Terms for Government / NGO Status | S6: Translation from Functional Status to Condition | V6: Cost Types
B7: Yes/No | D7: Risk Rating | E7: Recommendation | G7: Priority Level | I7: Alert Levels | J7: cost category | L7: Recommended Activities | N7: Offset | O7: Year | Q7: Government / NGO | S7: Functional Status | T7: Equivalent Condition | V7: Cost Type
B8: Yes | D8: Low Risk | E8: Perform preventative maintenance | G8: High Priority | I8: New Construction Needed | J8: CapEx | L8: Plan For Investment and Construction | N8: -10 | O8: =YEAR(NOW())+tblYears[[#This Row],[Offset]] -> 2012 | Q8: Government | S8: Fully Functional | T8: Excellent | V8: Opex
B9: No | D9: Medium Risk | E9: Consider replacing aging components | G9: Medium Priority | I9: Major Repairs or Replace System | J9: CapManEx | L9: Further Technical Diagnostic Needed | N9: -9 | O9: =YEAR(NOW())+tblYears[[#This Row],[Offset]] -> 2013 | Q9: NGO | S9: Partially Functional | T9: Fair | V9: CapEx
B10: Do not add/delete rows from this table | D10: High Risk | E10: Do major repairs or replace system | G10: Low Priority | I10: Consider Replacing Aging Components | J10: CapManEx | L10: Create Plan To Repair or Replace Components | N10: -8 | O10: =YEAR(NOW())+tblYears[[#This Row],[Offset]] -> 2014 | Q10: Private sector | S10: Non-Functional | T10: Very Poor | V10: CapManEx
D11: No Improved Water Point/System | E11: No Improved Water Point/System | G11: New Construction Needed | I11: Repair or Replace Components | J11: CapManEx | L11: Maintain O&M and Routine Monitoring | N11: -7 | O11: =YEAR(NOW())+tblYears[[#This Row],[Offset]] -> 2015 | S11: Decommissioned | T11: Very Poor | V11: Direct Support
D12: Do not add/delete rows from this table | G12: Do not add/delete rows from this table | I12: Perform Routine Preventative Maintenance | J12: OpEx | L12: Do not add/delete rows from this table | N12: -6 | O12: =YEAR(NOW())+tblYears[[#This Row],[Offset]] -> 2016 | V12: Do not add/delete rows from this table
I13: Do not add/delete rows from this table | N13: -5 | O13: =YEAR(NOW())+tblYears[[#This Row],[Offset]] -> 2017
N14: -4 | O14: =YEAR(NOW())+tblYears[[#This Row],[Offset]] -> 2018
N15: -3 | O15: =YEAR(NOW())+tblYears[[#This Row],[Offset]] -> 2019
N16: -2 | O16: =YEAR(NOW())+tblYears[[#This Row],[Offset]] -> 2020
N17: -1 | O17: =YEAR(NOW())+tblYears[[#This Row],[Offset]] -> 2021
N18: 0 | O18: =YEAR(NOW())+tblYears[[#This Row],[Offset]] -> 2022
N19: 1 | O19: =YEAR(NOW())+tblYears[[#This Row],[Offset]] -> 2023

Sheet Advanced
B1: Advanced Settings
B3: The tables in this sheet provide some control over the analysis performed on the data entered into this workbook. Please note it is protected by default.
B5: Conditions to Risk | E5: Enter how many components in each condition, are ideal to trip the risk category | H5: Priority Rules | N5: Current year
B6: Condition | C6: Value | D6: Meaning | E6: Medium Risk | F6: High Risk | H6: Age Based Risk | I6: Current Condition Risk | J6: Index | K6: Level of Priority
B7: Excellent | C7: 5 | D7: Designed to current standards, operable and well-maintained | E7: 999 | F7: 999 | H7: High Risk | I7: High Risk | J7: =CONCATENATE(tblRiskToPriority[[#This Row],[Age Based Risk]],"|",tblRiskToPriority[[#This Row],[Current Condition Risk]]) -> High Risk|High Risk | K7: High Priority | N7: =YEAR(NOW()) -> 2022
B8: Good | C8: 4 | D8: Showing some signs of minor wear and tear, with minimal impact on performance; or, operable and well-maintained but not designed to current standards | E8: 999 | F8: 999 | H8: High Risk | I8: Medium Risk | J8: =CONCATENATE(tblRiskToPriority[[#This Row],[Age Based Risk]],"|",tblRiskToPriority[[#This Row],[Current Condition Risk]]) -> High Risk|Medium Risk | K8: Medium Priority
B9: Fair | C9: 3 | D9: Structurally sound but some deterioration or damage that is beginning to impact performance or require more frequent maintenance | E9: 3 | F9: 4 | H9: High Risk | I9: Low Risk | J9: =CONCATENATE(tblRiskToPriority[[#This Row],[Age Based Risk]],"|",tblRiskToPriority[[#This Row],[Current Condition Risk]]) -> High Risk|Low Risk | K9: Medium Priority
B10: Poor | C10: 2 | D10: Functional but requires a high level of maintenance to continue operating or requires major rehabilitation or replacement | E10: 2 | F10: 3 | H10: Medium Risk | I10: High Risk | J10: =CONCATENATE(tblRiskToPriority[[#This Row],[Age Based Risk]],"|",tblRiskToPriority[[#This Row],[Current Condition Risk]]) -> Medium Risk|High Risk | K10: High Priority
B11: Very Poor | C11: 1 | D11: Serious problems that impact performance or safety; major rehabilitation or replacement ideal in the short term | E11: 1 | F11: 2 | H11: Medium Risk | I11: Medium Risk | J11: =CONCATENATE(tblRiskToPriority[[#This Row],[Age Based Risk]],"|",tblRiskToPriority[[#This Row],[Current Condition Risk]]) -> Medium Risk|Medium Risk | K11: Medium Priority
B12: Do not add/delete rows from this table | H12: Medium Risk | I12: Low Risk | J12: =CONCATENATE(tblRiskToPriority[[#This Row],[Age Based Risk]],"|",tblRiskToPriority[[#This Row],[Current Condition Risk]]) -> Medium Risk|Low Risk | K12: Low Priority
H13: Low Risk | I13: High Risk | J13: =CONCATENATE(tblRiskToPriority[[#This Row],[Age Based Risk]],"|",tblRiskToPriority[[#This Row],[Current Condition Risk]]) -> Low Risk|High Risk | K13: High Priority
H14: Low Risk | I14: Medium Risk | J14: =CONCATENATE(tblRiskToPriority[[#This Row],[Age Based Risk]],"|",tblRiskToPriority[[#This Row],[Current Condition Risk]]) -> Low Risk|Medium Risk | K14: Low Priority
H15: Low Risk | I15: Low Risk | J15: =CONCATENATE(tblRiskToPriority[[#This Row],[Age Based Risk]],"|",tblRiskToPriority[[#This Row],[Current Condition Risk]]) -> Low Risk|Low Risk | K15: Low Priority
H16: No Improved Water Point/System | I16: No Improved Water Point/System | J16: =CONCATENATE(tblRiskToPriority[[#This Row],[Age Based Risk]],"|",tblRiskToPriority[[#This Row],[Current Condition Risk]]) -> No Improved Water Point/System|No Improved Water Point/System | K16: New Construction Needed
H17: Do not add/delete rows from this table

Sheet Protection
B1: Protection
B3: Reset Protection: Regenerates the list of sheets below, and sets (but does not apply) protected status = TRUE to every listed sheet.
B5: Apply Protection: Applies the protection status specified in the table
B7: Do not translate this table!
B8: Sheet CodeName | C8: Protected
B9: shtIntroduction | C9: TRUE
B10: shtAssumptions | C10: TRUE
B11: shtConfiguration | C11: TRUE
B12: shtAnalysisRules | C12: TRUE
B13: shtProtection | C13: TRUE
B14: shtAssetAnalysis_Instructions | C14: TRUE
B15: shtAssetAnalysis_DataEntry | C15: FALSE
B16: shtAssetAnalysis_Results | C16: FALSE
B17: shtInfrastructure_Instructions | C17: TRUE
B18: shtInfrastructure_Results | C18: FALSE
B19: shtDirectSupport_Instructions | C19: TRUE
B20: shtDirectSupport_DataEntry | C20: FALSE
B21: shtDirectSupport_Graphs | C21: TRUE
B22: shtGapAnalysis_Instructions | C22: TRUE
B23: shtGapAnalysis_SourcesFunding | C23: FALSE
B24: shtGapAnalysis_EstimatedCosts | C24: TRUE
B25: shtGapAnalysis_Results | C25: TRUE
B26: shtGapAnalysis_Graphs | C26: FALSE
B27: ArjensGraphicSheet | C27: FALSE

Sheet Asset Analysis Instructions
B1: Asset Analysis - Instructions
B2: Purpose: The purpose of this tool is to help prioritise the systems for repair depending on the age of the system and the risk of breaking down based on the current condition. This will help cost the systems based on their level of priority and will generate an alert for the system based on the information provided.
B4: Structure: This tool consists of 3 sheets of which the Data Entry and the Analysis results sheets will feed into the Infrastructure Results sheet which calculates the costs.
B5: The 3 sheets are:
B7: Asset Analysis Instructions – that is this sheet
B9: Asset Analysis Data Entry sheet – This is the only sheet that needs editing and entering of monitoring data. Any monitoring data from the field will be entered into this tab according to the headings in the top row.
B11: Asset Analysis Results sheet - Calculates the data of the Data Entry sheet and presents them in simpler terms. This sheet is populated automatically once the Data Entry sheet is filled.
B13: Do Not Edit any of the other sheets except the Data Entry sheet.
B15: 1) Collect data from the field. Data should be collected to complete all cells in the Asset Analysis Data Entry sheet.
B16: The dark blue columns all need to be filled (if relevant) as they are used in calculations. The grey columns are recommended and provide substantial information but are not necessary for the calculations.
B18: If data is collected on the physical state of each of the components such as the physical state of the pump, the number of pipes in the system, the material of the pipes, or the physical state of the spouts of the spring protection then these shall be specifically included in the Asset Analysis Data Entry sheet according to the headers in each column.
B20: 2) Once data has been entered, go to Asset Analysis. This contains detailed breakdown and categorisation of the asset data. Columns L through Q provide information on the interpreted risks for each asset. It also provides the alert (action) that needs to take place for which components.
B21: The columns A through to AU are for information and calculation only.
B23: Review your data to make sure that there are not gaps in your raw data, especially the overall functioning of the system, as this will give incomplete results.

Sheet Asset Analysis Data Entry
B1: Asset Analysis - Data Entry | C1: Asset Analysis - Data Entry
G2: optional | H2: optional | I2: optional | J2: optional | K2: optional | L2: optional | M2: optional | N2: optional | O2: optional | P2: optional | Q2: optional | U2: optional | V2: optional | AD2: optional | AE2: optional | AO2: optional | AT2: optional | AV2: optional
A3: Row used for vlookup into analysis | B3: =COLUMN()-1 -> 1 | C3: =COLUMN()-1 -> 2 | D3: 3 | E3: 4 | F3: 5 | G3: 6 | H3: 7 | I3: 8 | J3: 9 | K3: 10 | L3: 11 | M3: 12 | N3: 13 | O3: 14 | P3: 15 | Q3: 16 | R3: 17 | S3: 18 | T3: 19 | U3: 20 | V3: 21 | W3: 22 | X3: 23 | Y3: 24 | Z3: 25 | AA3: 26 | AB3: 27 | AC3: 28 | AD3: 29 | AE3: 30 | AF3: 31 | AG3: 32 | AH3: 33 | AI3: 34 | AJ3: 35 | AK3: 36 | AL3: 37 | AM3: 38 | AN3: 39 | AO3: 40 | AP3: 41 | AQ3: 42 | AR3: 43 | AS3: 44 | AT3: 45 | AU3: 46 | AV3: 47
B4: Asset Analysis ID | C4: Year data collection | D4: Name of water system | E4: What Type Of Water Point Is This? | F4: What Year Was The Water Point First Constructed? | G4: Geo Level 1 | H4: Geo Level 2 | I4: Geo Level 3 | J4: Geo Level 4 | K4: Geo Level 5 | L4: Geo Level 6 | M4: Latitude | N4: Longitude | O4: Total Number Of Households Within The Village | P4: Total Number of Households that are accessing or using the water point | Q4: Total number of Households without access to this water point | R4: Is this an Improved Water Point/System? | S4: Is this a piped water system? | T4: Is The Water Point Source Protected? | U4: What Type Of Unimproved Water Source Is This? | V4: Who Funded The Construction of This Water Point? | W4: Does this water point have a protected Spring? | X4: What Year Was The Spring Protection Constructed? | Y4: Condition of Spring Protection? | Z4: Are There taps/Spouts? | AA4: How Many taps/Spouts Are There? | AB4: Year The taps/spouts Were Constructed? | AC4: Condition of Spouts | AD4: How Long In Seconds Does It Take To Fill A 20 Liter Container? | AE4: How Many Hours A Day Is Water Available From This Spring? | AF4: Does This Water Point Have A Borehole? | AG4: What Year Was The Borehole Constructed? | AH4: Condition of Borehole | AI4: Does The Water Point/System Have A Pump? | AJ4: Year The Pump Was Installed or Last Replaced? | AK4: Condition of Pump | AL4: How many metres of pipe are in the system? | AM4: What material are the pipes made of? | AN4: Does The Water Point have concrete works? | AO4: Photo Of concrete works | AP4: Year concrete works was Constructed (or Date Of Last Reconstruction) | AQ4: Condition of Concrete works | AR4: Estimated amount of m3 concrete works | AS4: Is Water Available From The Water Point Today? | AT4: Why Isn't Water Available? | AU4: Overall Functioning Of The Water Point | AV4: Original Data Source
B5: 1 | C5: 2022 | D5: Pura Village BH | E5: Borehole with handpump | F5: 2018 | G5: Kenya | H5: Rift Valley | I5: Samburu | J5: Samburu North | K5: Samburu | L5: Samburu North | M5: 1.170667 | N5: 36.666667 | O5: 100 | P5: 50 | Q5: 12 | R5: Yes | S5: No | T5: Yes | V5: National Government | W5: No | AA5: 2 | AB5: 2020 | AC5: Good | AD5: 12 | AE5: 12 | AF5: Yes | AG5: 2020 | AH5: Fair | AI5: Yes | AJ5: 2019 | AK5: Poor | AL5: 100 | AM5: Galvanised Iron Pipe | AN5: No | AP5: 2021 | AQ5: Very Poor | AR5: 1 | AS5: No | AU5: Fully Functional
B6: 2 | C6: 2022 | D6: Barsaloi BH | E6: Borehole with motorised pump | F6: 2020 | G6: Kenya | H6: Rift Valley | I6: Samburu | J6: Samburu East | K6: Samburu | L6: Samburu East | M6: 1.167067 | N6: 36.670667 | O6: 200 | P6: 100 | Q6: 17 | R6: Yes | S6: Yes | T6: Yes | V6: World bank | W6: Yes | X6: 2008 | Y6: Fair | Z6: Yes | AA6: 3 | AB6: 2010 | AC6: Good | AD6: 15 | AE6: 12 | AF6: Yes | AG6: 2020 | AH6: Good | AI6: Yes | AJ6: 2020 | AK6: Fair | AL6: 10 | AM6: HDPE Pipe | AN6: No | AP6: 2021 | AQ6: Excellent | AR6: 2 | AS6: Yes | AU6: Fully Functional | AV6: 4b8c69b9c742abc621d82742f5f76ba0
B7: 3 | C7: 2022 | D7: Suiyen BH | E7: Spring protection | F7: 2019 | G7: Kenya | H7: Rift Valley | I7: Samburu | J7: Samburu South | K7: Samburu | L7: Samburu South | M7: 1.169467 | N7: 36.667467 | O7: 300 | P7: 150 | Q7: 20 | R7: Yes | S7: No | T7: Yes | V7: Child fund | W7: No | X7: 2020 | AA7: 1 | AB7: 2020 | AC7: Poor | AD7: 17 | AE7: 5 | AF7: Yes | AG7: 2020 | AH7: Very Poor | AI7: Yes | AJ7: 2020 | AK7: Excellent | AL7: 10 | AM7: HDPE Pipe | AN7: Yes | AP7: 2022 | AQ7: Good | AR7: 1 | AS7: Yes | AU7: Non-Functional
B8: 4 | C8: 2022 | D8: Piped water system | E8: Gravity fed piped scheme | F8: 2005 | G8: Kenya | H8: Rift Valley | I8: Samburu | J8: Samburu West | K8: Samburu | L8: Samburu West | M8: 1.167867 | N8: 36.669467 | O8: 400 | P8: 200 | Q8: 20 | R8: No | S8: No | T8: Yes | V8: Water for people | W8: No | Z8: Yes | AA8: 2 | AB8: 2021 | AC8: Very Poor | AD8: 21 | AE8: 3 | AF8: No | AG8: 2021 | AH8: Excellent | AI8: Yes | AJ8: 2021 | AK8: Good | AL8: 10 | AM8: Galvanised Iron Pipe | AN8: No | AP8: 2021 | AQ8: Fair | AR8: 3 | AS8: No | AU8: Decommissioned
B9: 5 | C9: 2022 | D9: Piped water system | E9: Gravity fed piped scheme | F9: 2000 | G9: Kenya | H9: Rift Valley | I9: Samburu | J9: Samburu Central | K9: Samburu | L9: Samburu Central | M9: 1.168267 | N9: 36.668267 | O9: 500 | P9: 250 | Q9: 200 | R9: Yes | S9: No | T9: Yes | V9: Water for people | W9: No | AA9: 3 | AB9: 2022 | AC9: Excellent | AD9: 22 | AE9: 0 | AF9: Yes | AG9: 2022 | AH9: Good | AI9: Yes | AJ9: 2022 | AK9: Fair | AL9: 150 | AM9: HDPE Pipe | AN9: Yes | AP9: 2022 | AQ9: Poor | AR9: 3 | AS9: No | AU9: Fully Functional
B10: 6 | C10: 2022 | D10: Piped water system | E10: Borehole piped scheme | F10: 2010 | G10: Kenya | H10: Rift Valley | I10: Samburu | J10: Samburu Central | K10: Samburu | L10: Samburu Central | M10: 1.168667 | N10: 36.668667 | O10: 500 | P10: 250 | Q10: 200 | R10: Yes | S10: No | T10: Yes | V10: Water for people | W10: No | Z10: Yes | AA10: 3 | AB10: 2010 | AC10: Poor | AD10: 22 | AE10: 0 | AF10: Yes | AG10: 2022 | AH10: Good | AI10: Yes | AJ10: 2022 | AK10: Fair | AL10: 10 | AM10: Galvanised Iron Pipe | AN10: Yes | AP10: 2022 | AQ10: Poor | AR10: 1 | AS10: No | AU10: Fully Functional
B11: 7 | C11: 2022 | D11: Pura Village BH | E11: Borehole with handpump | F11: 2018 | G11: Kenya | H11: Rift Valley | I11: Samburu | J11: Samburu North | K11: Samburu | L11: Samburu North | M11: 1.169067 | N11: 36.669067 | O11: 100 | P11: 50 | Q11: 12 | R11: Yes | S11: No | T11: Yes | V11: National Government | W11: No | X11: 2018 | Y11: Excellent | Z11: Yes | AA11: 2 | AB11: 2020 | AC11: Good | AD11: 12 | AE11: 12 | AF11: Yes | AG11: 2020 | AH11: Fair | AI11: Yes | AJ11: 2019 | AK11: Poor | AL11: 10 | AM11: Galvanised Iron Pipe | AN11: No | AP11: 2021 | AQ11: Very Poor | AR11: 1 | AS11: No | AU11: Fully Functional
B12: 8 | C12: 2022 | D12: Barsaloi BH | E12: Borehole with handpump | F12: 2019 | G12: Kenya | H12: Rift Valley | I12: Samburu | J12: Samburu East | K12: Samburu | L12: Samburu East | M12: 1.167067 | N12: 36.669467 | O12: 200 | P12: 100 | Q12: 17 | R12: No | S12: No | T12: No | V12: World bank | W12: No | X12: 2019 | Y12: Good | Z12: No | AA12: 3 | AB12: 2020 | AC12: Fair | AD12: 15 | AE12: 12 | AF12: Yes | AG12: 2020 | AH12: Poor | AI12: Yes | AJ12: 2020 | AK12: Very Poor | AL12: 10 | AM12: Galvanised Iron Pipe | AN12: No | AP12: 2021 | AQ12: Excellent | AR12: 1 | AS12: Yes | AU12: Partially Functional | AV12: 4b8c69b9c742abc621d82742f5f76ba0
B13: 9 | C13: 2022 | D13: Suiyen BH | E13: Borehole with handpump | F13: 2020 | G13: Kenya | H13: Rift Valley | I13: Samburu | J13: Samburu South | K13: Samburu | L13: Samburu South | M13: 1.168267 | N13: 36.669867 | O13: 300 | P13: 150 | Q13: 20 | R13: Yes | S13: No | T13: No | V13: Child fund | W13: Yes | X13: 2020 | Y13: Fair | Z13: Yes | AA13: 1 | AB13: 2020 | AC13: Poor | AD13: 17 | AE13: 5 | AF13: Yes | AG13: 2020 | AH13: Very Poor | AI13: Yes | AJ13: 2020 | AK13: Excellent | AL13: 10 | AM13: Galvanised Iron Pipe | AN13: Yes | AP13: 2022 | AQ13: Good | AR13: 1 | AS13: Yes | AU13: Non-Functional
B14: 10 | C14: 2022 | D14: Piped water system | E14: Borehole with handpump | F14: 2021 | G14: Kenya | H14: Rift Valley | I14: Samburu | J14: Samburu West | K14: Samburu | L14: Samburu West | M14: 1.170267 | N14: 36.670267 | O14: 400 | P14: 200 | Q14: 20 | R14: No | S14: Yes | T14: No | V14: Water for people | W14: No | X14: 2021 | Y14: Good | Z14: Yes | AA14: 2 | AB14: 2021 | AC14: Very Poor | AD14: 21 | AE14: 3 | AF14: No | AG14: 2021 | AH14: Excellent | AI14: Yes | AJ14: 2021 | AK14: Good | AL14: 10 | AM14: Galvanised Iron Pipe | AN14: No | AP14: 2021 | AQ14: Fair | AR14: 1 | AS14: No | AU14: Decommissioned
B15: 11 | C15: 2022 | D15: Piped water system | E15: Borehole with handpump | F15: 2022 | G15: Kenya | H15: Rift Valley | I15: Samburu | J15: Samburu Central | K15: Samburu | L15: Samburu Central | M15: 1.170667 | N15: 36.670667 | O15: 500 | P15: 250 | Q15: 200 | R15: Yes | S15: Yes | T15: No | V15: Water for people | W15: No | X15: 2022 | Y15: Very Poor | Z15: Yes | AA15: 3 | AB15: 2022 | AC15: Excellent | AD15: 22 | AE15: 0 | AF15: Yes | AG15: 2022 | AH15: Good | AI15: Yes | AJ15: 2022 | AK15: Fair | AL15: 10 | AM15: Galvanised Iron Pipe | AN15: Yes | AP15: 2022 | AQ15: Poor | AR15: 1 | AS15: No | AU15: Fully Functional

Sheet Asset Analysis results
B1: Asset Analysis - Results
A3: Row used for vlookup towards inf Results | B3: 1 | C3: 2 | D3: 3 | E3: 4 | F3: 5 | G3: 6 | H3: 7 | I3: 8 | J3: 9 | K3: 10 | L3: 11 | M3: 12 | N3: 13 | O3: 14 | P3: 15 | Q3: 16 | R3: 17 | S3: 18 | T3: 19 | U3: 20 | V3: 21 | W3: 22 | X3: 23 | Y3: 24 | Z3: 25 | AA3: 26 | AB3: 27 | AC3: 28 | AD3: 29 | AE3: 30 | AF3: 31 | AG3: 32 | AH3: 33 | AI3: 34 | AJ3: 35 | AK3: 36 | AL3: 37 | AM3: 38 | AN3: 39 | AO3: 40 | AP3: 41 | AQ3: 42 | AR3: 43 | AS3: 44 | AT3: 45 | AU3: 46 | AV3: 47 | AW3: 48 | AX3: 49 | AY3: 50 | AZ3: 51 | BA3: 52 | BB3: 53 | BC3: 54 | BD3: 55 | BE3: 56 | BF3: 57 | BG3: 58 | BH3: 59 | BI3: 60 | BJ3: 61 | BK3: 62 | BL3: 63 | BM3: 64 | BN3: 65 | BO3: 66 | BP3: 67 | BQ3: 68 | BR3: 69 | BS3: 70 | BT3: 71 | BU3: 72 | BV3: 73
A4: Row used for vlookup from data entry--> | C4: 3 | D4: 4 | E4: 5 | X4: 24 | Y4: 26 | Z4: 33 | AA4: 36 | AB4: 42 | AC4: 46 | AE4: 17 | AF4: 19 | AG4: 44 | AI4: 22 | AJ4: 23 | AK4: 25 | AL4: 26 | AM4: 27 | AN4: 31 | AO4: 32 | AP4: 34 | AQ4: 37 | AR4: 38 | AS4: 35 | AT4: 39 | AU4: 41 | AV4: 43
B5: =COUNT(tblAssets_Results[Asset Analysis ID]) -> 11 | C5: Currenty entered | R5: Remaining LifeSpans (Years) | X5: Condition | AW5: Cost Consider Replacing Aging Components | BC5: Cost Consider Replacing Aging Components or repair replacement | BI5: Cost of major repairs or new construction | BP5: Full Capex cost
F6: 6 | G6: 7 | H6: 8 | I6: 9 | J6: 10 | K6: 2 | R6: =Assumptions!$E$9 -> Spring Protection | S6: =Assumptions!$E$10 -> Taps | T6: =Assumptions!$E$6 -> Borehole | U6: =Assumptions!$E$7 -> Pump | V6: =Assumptions!$E$8 -> Concrete works | W6: =Assumptions!$E$11 -> Pipes | X6: =Assumptions!$E$9 -> Spring Protection | Y6: =Assumptions!$E$10 -> Taps | Z6: =Assumptions!$E$6 -> Borehole | AA6: =Assumptions!$E$7 -> Pump | AB6: =Assumptions!$E$8 -> Concrete works | AC6: System | AW6: =Assumptions!$E$9 -> Spring Protection | AX6: =Assumptions!$E$10 -> Taps | AY6: =Assumptions!$E$6 -> Borehole | AZ6: =Assumptions!$E$7 -> Pump | BA6: =Assumptions!$E$8 -> Concrete works | BB6: =Assumptions!$E$11 -> Pipes | BC6: =Assumptions!$E$9 -> Spring Protection | BD6: =Assumptions!$E$10 -> Taps | BE6: =Assumptions!$E$6 -> Borehole | BF6: =Assumptions!$E$7 -> Pump | BG6: =Assumptions!$E$8 -> Concrete works | BH6: =Assumptions!$E$11 -> Pipes | BI6: =Assumptions!$E$9 -> Spring Protection | BJ6: =Assumptions!$E$10 -> Taps | BK6: =Assumptions!$E$6 -> Borehole | BL6: =Assumptions!$E$7 -> Pump | BM6: =Assumptions!$E$8 -> Concrete works | BN6: =Assumptions!$E$11 -> Pipes | BP6: =Assumptions!$E$9 -> Spring Protection | BQ6: =Assumptions!$E$10 -> Taps | BR6: =Assumptions!$E$6 -> Borehole | BS6: =Assumptions!$E$7 -> Pump | BT6: =Assumptions!$E$8 -> Concrete works | BU6: =Assumptions!$E$11 -> Pipes
B7: Asset Analysis ID | C7: Name of water system | D7: What Type Of Water Point Is This? | E7: Year Of Construction | F7: Geo Level 1 | G7: Geo Level 2 | H7: Geo Level 3 | I7: Geo Level 4 | J7: Geo Level 5 | K7: Year Data Was Collected | L7: Risk Based On Age | M7: Risk Based On Current Condition | N7: Level Of Priority To Replace/Repair | O7: Alert | P7: Component(s) | Q7: Recommended Activity | R7: Remaining Lifespan of Spring Protection | S7: Remaining Lifespan of taps/Spouts | T7: Remaining Lifespan of Borehole | U7: Remaining Lifespan of Pump | V7: Remaining Lifespan of Concrete works | W7: Remaining LifeSpan of Pipes | X7: Condition of Spring Protection | Y7: Condition Of Taps | Z7: Condition of borehole | AA7: Condition of Pump | AB7: Condition of concrete works | AC7: Condition Of The Water Point/System Overall | AD7: Worst Condition | AE7: Water Point/System Improved | AF7: Is The Source Protected? | AG7: Is Water Available From The Water Point/System On The Day Of The Visit? | AH7: Water Point/System In Good Overall Condition and Functioning | AI7: Presence Of Spring Protection? | AJ7: Year Source Protection Was Constructed or Replaced | AK7: Presence Of Tap(s)? | AL7: Number of Spouts | AM7: Year Taps were Constructed or Replaced | AN7: Presence Of Well? | AO7: Year Well Was Constructed or Replaced | AP7: Presence Of Pump? | AQ7: Number of Pipes (m) | AR7: Material of the Pipes | AS7: Year Pump Was Installed or Replaced | AT7: Presence Of An concrete works? | AU7: Year concrete work was Constructed or Replaced | AV7: Estimated amount of m3 concrete works | AW7: Cost asset 1 | AX7: Cost asset 2 | AY7: Cost asset 3 | AZ7: Cost asset 4 | BA7: Cost asset 5 | BB7: Cost asset 6 | BC7: Capmanex component 1 | BD7: Capmanex component 2 | BE7: Capmanex component 3 | BF7: Capmanex component 4 | BG7: Capmanex component 5 | BH7: Capmanex component 6 | BI7: Capex Cost component 1 | BJ7: Capex Cost component 2 | BK7: Capex Cost component 3 | BL7: Capex Cost component 4 | BM7: Capex Cost component 5 | BN7: Capex Cost component 6 | BO7: Total cost for action | BP7: Full Capex Cost component 1 | BQ7: Capex Cost component 22 | BR7: Capex Cost component 32 | BS7: Capex Cost component 42 | BT7: Capex Cost component 52 | BU7: Capex Cost component 62 | BV7: Estimated costs of all sub-components
B8: 1 | C8: =VLOOKUP(tblAssets_Results[[#This Row],[Asset Analysis ID]:[Asset Analysis ID]],tblAssets_Raw[],C$4,FALSE) -> Pura Village BH | D8: =VLOOKUP(tblAssets_Results[[#This Row],[Asset Analysis ID]:[Asset Analysis ID]],tblAssets_Raw[],D$4,FALSE) -> Borehole with handpump | E8: =VLOOKUP(tblAssets_Results[[#This Row],[Asset Analysis ID]:[Asset Analysis ID]],tblAssets_Raw[],E$4,FALSE) -> 2018 | F8: =VLOOKUP(tblAssets_Results[[#This Row],[Asset Analysis ID]:[Asset Analysis ID]],tblAssets_Raw[],F$6,FALSE) -> Kenya | G8: =VLOOKUP(tblAssets_Results[[#This Row],[Asset Analysis ID]:[Asset Analysis ID]],tblAssets_Raw[],G$6,FALSE) -> Rift Valley | H8: =VLOOKUP(tblAssets_Results[[#This Row],[Asset Analysis ID]:[Asset Analysis ID]],tblAssets_Raw[],H$6,FALSE) -> Samburu | I8: =VLOOKUP(tblAssets_Results[[#This Row],[Asset Analysis ID]:[Asset Analysis ID]],tblAssets_Raw[],I$6,FALSE) -> Samburu North | J8: =VLOOKUP(tblAssets_Results[[#This Row],[Asset Analysis ID]:[Asset Analysis ID]],tblAssets_Raw[],J$6,FALSE) -> Samburu | K8: =VLOOKUP(tblAssets_Results[[#This Row],[Asset Analysis ID]:[Asset Analysis ID]],tblAssets_Raw[],K$6,FALSE) -> 2022 | L8: =IFERROR(IF(tblAssets_Results[[#This Row],[Water Point/System Improved]]=stdNo,stdRisk_NoImprovedWPS,CHOOSE(COUNTIF(tblAssets_Results[[#This Row],[Remaining Lifespan of Spring Protection]:[Remaining LifeSpan of Pipes]],"<=" & YearsRemainingThreshold)+1,stdRisk_Low,stdRisk_Medium,stdRisk_High,stdRisk_High,stdRisk_High,stdRisk_High,stdRisk_High)),"") -> Medium Risk | M8: =IFERROR(IF(tblAssets_Results[[#This Row],[Water Point/System Improved]]=stdNo,stdRisk_NoImprovedWPS,Conditions2Risk(tblAssets_Results[[#This Row],[Condition of Spring Protection]:[Condition Of The Water Point/System Overall]])),"") -> Medium Risk | N8: =IFERROR(VLOOKUP(CONCATENATE(tblAssets_Results[[#This Row],[Risk Based On Age]],"|",tblAssets_Results[[#This Row],[Risk Based On Current Condition]]),tblRiskToPriority[[Index]:[Level of Priority]],2,FALSE),"") -> Medium Priority | O8: =IFERROR(IF(tblAssets_Results[[#This Row],[Level Of Priority To Replace/Repair]]=stdPriority_NewConstruction,stdAlert_NewConstruction,IF(OR(tblAssets_Results[[#This Row],[Level Of Priority To Replace/Repair]]=stdPriority_High,tblAssets_Results[[#This Row],[Condition Of The Water Point/System Overall]]=stdCondition_VeryPoor),stdAlert_MajorRepairs,IF(OR(tblAssets_Results[[#This Row],[Risk Based On Age]]=stdRisk_High,tblAssets_Results[[#This Row],[Risk Based On Age]]=stdRisk_Medium),stdAlert_ConsiderReplacement,IF(OR(tblAssets_Results[[#This Row],[Worst Condition]]=stdCondition_Poor,tblAssets_Results[[#This Row],[Worst Condition]]=stdCondition_VeryPoor),stdAlert_RepairReplace,stdAlert_RoutineMaintenance)))),"") -> Consider Replacing Aging Components | P8: =IF(tblAssets_Results[[#This Row],[Alert]]=stdAlert_ConsiderReplacement,shortlifetime_components(tblAssets_Results[[#This Row],[Remaining Lifespan of Spring Protection]:[Remaining LifeSpan of Pipes]],YearsRemainingThreshold),IF(tblAssets_Results[[#This Row],[Alert]]=stdAlert_RepairReplace,PoorCondition_Components(tblAssets_Results[[#This Row],[Condition of Spring Protection]:[Condition Of The Water Point/System Overall]]),"")) -> Pump | Q8: =IF(tblAssets_Results[[#This Row],[Alert]]=stdPriority_NewConstruction,stdRecommend_InvestmentPlan,IF(tblAssets_Results[[#This Row],[Alert]]=stdAlert_MajorRepairs,stdRecommend_FurtherDiagnostics,IF(tblAssets_Results[[#This Row],[Alert]]=stdAlert_ConsiderReplacement,stdRecommend_FurtherDiagnostics,IF(tblAssets_Results[[#This Row],[Alert]]=stdAlert_RepairReplace,stdRecommend_PlanRepairReplace,IF(tblAssets_Results[[#This Row],[Alert]]=stdAlert_RoutineMaintenance,stdRecommend_MaintainOM,""))))) -> Further Technical Diagnostic Needed | R8: =IF(tblAssets_Results[[#This Row],[Presence Of Spring Protection?]]=stdYes,stdLife_SpringProtection-(tblAssets_Results[[#This Row],[Year Data Was Collected]]-tblAssets_Results[[#This Row],[Year Source Protection Was Constructed or Replaced]])," ") ->  | S8: =IF(tblAssets_Results[[#This Row],[Presence Of Tap(s)?]]=stdYes,stdLife_Taps-(tblAssets_Results[[#This Row],[Year Data Was Collected]]-tblAssets_Results[[#This Row],[Year Taps were Constructed or Replaced]])," ") ->  | T8: =IF(tblAssets_Results[[#This Row],[Presence Of Well?]]=stdYes,stdLife_Well-(tblAssets_Results[[#This Row],[Year Data Was Collected]]-tblAssets_Results[[#This Row],[Year Well Was Constructed or Replaced]])," ") -> 18 | U8: =IF(tblAssets_Results[[#This Row],[Presence Of Pump?]]=stdYes,stdLife_Pump-(tblAssets_Results[[#This Row],[Year Data Was Collected]]-tblAssets_Results[[#This Row],[Year Pump Was Installed or Replaced]])," ") -> 2 | V8: =IF(tblAssets_Results[[#This Row],[Presence Of An concrete works?]]=stdYes,stdLife_Apron-(tblAssets_Results[[#This Row],[Year Data Was Collected]]-tblAssets_Results[[#This Row],[Year concrete work was Constructed or Replaced]])," ") ->  | W8: =IFERROR(VLOOKUP(tblAssets_Results[[#This Row],[Material of the Pipes]],tblPipeMaterials[],2,FALSE)-(tblAssets_Results[[#This Row],[Year Data Was Collected]]-tblAssets_Results[[#This Row],[Year Of Construction]]),"") -> 16 | X8: =IFERROR(VLOOKUP(tblAssets_Results[[#This Row],[Asset Analysis ID]],tblAssets_Raw[],$X$4,FALSE),"") -> 0 | Y8: =VLOOKUP(tblAssets_Results[[#This Row],[Asset Analysis ID]],tblAssets_Raw[],$Y$4,FALSE) -> 2 | Z8: =VLOOKUP(tblAssets_Results[[#This Row],[Asset Analysis ID]],tblAssets_Raw[],$Z$4,FALSE) -> Fair | AA8: =VLOOKUP(tblAssets_Results[[#This Row],[Asset Analysis ID]],tblAssets_Raw[],$AA$4,FALSE) -> Poor | AB8: =VLOOKUP(tblAssets_Results[[#This Row],[Asset Analysis ID]],tblAssets_Raw[],$AB$4,FALSE) -> Very Poor | AC8: =IFERROR(VLOOKUP(VLOOKUP(tblAssets_Results[[#This Row],[Asset Analysis ID]],tblAssets_Raw[],$AC$4,FALSE),tblFunctionalStatus[],2,FALSE),"") -> Excellent | AD8: =WorstCondition(tblAssets_Results[[#This Row],[Condition of Spring Protection]:[Condition Of The Water Point/System Overall]]) -> Very Poor | AE8: =VLOOKUP(tblAssets_Results[[#This Row],[Asset Analysis ID]:[Asset Analysis ID]],tblAssets_Raw[],AE$4,FALSE) -> Yes | AF8: =VLOOKUP(tblAssets_Results[[#This Row],[Asset Analysis ID]:[Asset Analysis ID]],tblAssets_Raw[],AF$4,FALSE) -> Yes | AG8: =VLOOKUP(tblAssets_Results[[#This Row],[Asset Analysis ID]:[Asset Analysis ID]],tblAssets_Raw[],AG$4,FALSE) -> No | AH8: =IF(OR(tblAssets_Results[[#This Row],[Condition Of The Water Point/System Overall]]=stdCondition_Excellent,tblAssets_Results[[#This Row],[Condition Of The Water Point/System Overall]]=stdCondition_Good),stdYes,stdNo) -> Yes | AI8: =VLOOKUP(tblAssets_Results[[#This Row],[Asset Analysis ID]],tblAssets_Raw[],$AI$4,FALSE) -> No | AJ8: =VLOOKUP(tblAssets_Results[[#This Row],[Asset Analysis ID]],tblAssets_Raw[],$AJ$4,FALSE) -> 0 | AK8: =VLOOKUP(tblAssets_Results[[#This Row],[Asset Analysis ID]],tblAssets_Raw[],$AK$4,FALSE) -> 0 | AL8: =VLOOKUP(tblAssets_Results[[#This Row],[Asset Analysis ID]],tblAssets_Raw[],$AL$4,FALSE) -> 2 | AM8: =VLOOKUP(tblAssets_Results[[#This Row],[Asset Analysis ID]],tblAssets_Raw[],$AM$4,FALSE) -> 2020 | AN8: =VLOOKUP(tblAssets_Results[[#This Row],[Asset Analysis ID]],tblAssets_Raw[],$AN$4,FALSE) -> Yes | AO8: =VLOOKUP(tblAssets_Results[[#This Row],[Asset Analysis ID]],tblAssets_Raw[],$AO$4,FALSE) -> 2020 | AP8: =VLOOKUP(tblAssets_Results[[#This Row],[Asset Analysis ID]],tblAssets_Raw[],$AP$4,FALSE) -> Yes | AQ8: =VLOOKUP(tblAssets_Results[[#This Row],[Asset Analysis ID]],tblAssets_Raw[],$AQ$4,FALSE) -> 100 | AR8: =VLOOKUP(tblAssets_Results[[#This Row],[Asset Analysis ID]],tblAssets_Raw[],$AR$4,FALSE) -> Galvanised Iron Pipe | AS8: =VLOOKUP(tblAssets_Results[[#This Row],[Asset Analysis ID]],tblAssets_Raw[],$AS$4,FALSE) -> 2019 | AT8: =VLOOKUP(tblAssets_Results[[#This Row],[Asset Analysis ID]],tblAssets_Raw[],$AT$4,FALSE) -> No | AU8: =VLOOKUP(tblAssets_Results[[#This Row],[Asset Analysis ID]],tblAssets_Raw[],$AU$4,FALSE) -> 2021 | AV8: =VLOOKUP(tblAssets_Results[[#This Row],[Asset Analysis ID]],tblAssets_Raw[],$AV$4,FALSE) -> 1 | AW8: =IF(tblAssets_Results[[#This Row],[Remaining Lifespan of Spring Protection]]<YearsRemainingThreshold,VLOOKUP(CONCATENATE($AW$6,"|",tblAssets_Results[[#This Row],[Alert]]),tblInterventions[[Index]:[Cost Type]],2,FALSE),"") ->  | AX8: =IF(tblAssets_Results[[#This Row],[Remaining Lifespan of taps/Spouts]]<YearsRemainingThreshold,VLOOKUP(CONCATENATE(Assumptions!$E$10,"|",tblAssets_Results[[#This Row],[Alert]]),tblInterventions[[Index]:[Cost Type]],2,FALSE)*tblAssets_Results[[#This Row],[Number of Spouts]],"") ->  | AY8: =IF(tblAssets_Results[[#This Row],[Remaining Lifespan of Borehole]]<YearsRemainingThreshold,VLOOKUP(CONCATENATE(tblAssetTypes[[#This Row],[Asset component]],"|",tblAssets_Results[[#This Row],[Alert]]),tblInterventions[[Index]:[Cost Type]],2,FALSE),"") ->  | AZ8: =IF(tblAssets_Results[[#This Row],[Remaining Lifespan of Pump]]<YearsRemainingThreshold,VLOOKUP(CONCATENATE(Assumptions!$E$7,"|",tblAssets_Results[[#This Row],[Alert]]),tblInterventions[[Index]:[Cost Type]],2,FALSE),"") ->  | BA8: =IF(tblAssets_Results[[#This Row],[Remaining Lifespan of Concrete works]]<YearsRemainingThreshold,VLOOKUP(CONCATENATE(Assumptions!$E$8,"|",tblAssets_Results[[#This Row],[Alert]]),tblInterventions[[Index]:[Cost Type]]*tblAssets_Results[[#This Row],[Estimated amount of m3 concrete works]],2,FALSE),"") ->  | BB8: =IFERROR(IF(tblAssets_Results[[#This Row],[Remaining LifeSpan of Pipes]]<YearsRemainingThreshold,VLOOKUP(CONCATENATE($BB$6,"|",tblAssets_Results[[#This Row],[Alert]]),tblInterventions[[Index]:[Cost Type]],2,FALSE)*tblAssets_Results[[#This Row],[Number of Pipes (m)]],""),"") ->  | BC8: =IF(ISNUMBER(SEARCH(BC$6,tblAssets_Results[[#This Row],[Component(s)]:[Component(s)]])),VLOOKUP(CONCATENATE($BC$6,"|",tblAssets_Results[[#This Row],[Alert]]),tblInterventions[[Index]:[Cost Type]],2,FALSE),"") ->  | BD8: =IF(ISNUMBER(SEARCH(BD$6,tblAssets_Results[[#This Row],[Component(s)]:[Component(s)]])),VLOOKUP(CONCATENATE($BD$6,"|",tblAssets_Results[[#This Row],[Alert]]),tblInterventions[[Index]:[Cost Type]],2,FALSE)*tblAssets_Results[[#This Row],[Number of Spouts]],"") ->  | BE8: =IF(ISNUMBER(SEARCH(BE$6,tblAssets_Results[[#This Row],[Component(s)]:[Component(s)]])),VLOOKUP(CONCATENATE($BE$6,"|",tblAssets_Results[[#This Row],[Alert]]),tblInterventions[[Index]:[Cost Type]],2,FALSE),"") ->  | BF8: =IF(ISNUMBER(SEARCH(BF$6,tblAssets_Results[[#This Row],[Component(s)]:[Component(s)]])),VLOOKUP(CONCATENATE($BF$6,"|",tblAssets_Results[[#This Row],[Alert]]),tblInterventions[[Index]:[Cost Type]],2,FALSE),"") -> 200 | BG8: =IF(ISNUMBER(SEARCH(BG$6,tblAssets_Results[[#This Row],[Component(s)]:[Component(s)]])),VLOOKUP(CONCATENATE($BG$6,"|",tblAssets_Results[[#This Row],[Alert]]),tblInterventions[[Index]:[Cost Type]],2,FALSE)*tblAssets_Results[[#This Row],[Estimated amount of m3 concrete works]],"") ->  | BH8: =IF(ISNUMBER(SEARCH(BH$6,tblAssets_Results[[#This Row],[Component(s)]:[Component(s)]])),VLOOKUP(CONCATENATE($BH$6,"|",tblAssets_Results[[#This Row],[Alert]]),tblInterventions[[Index]:[Cost Type]],2,FALSE)*tblAssets_Results[[#This Row],[Number of Pipes (m)]],"") ->  | BI8: =IF(OR(tblAssets_Results[[#This Row],[Alert]]=stdAlert_MajorRepairs,tblAssets_Results[[#This Row],[Alert]]=stdAlert_NewConstruction),VLOOKUP(CONCATENATE(BI$6,"|",tblAssets_Results[[#This Row],[Alert]]),tblInterventions[[Index]:[Cost Type]],2,FALSE),"") ->  | BJ8: =IF(OR(tblAssets_Results[[#This Row],[Alert]]=stdAlert_MajorRepairs,tblAssets_Results[[#This Row],[Alert]]=stdAlert_NewConstruction),VLOOKUP(CONCATENATE(BJ$6,"|",tblAssets_Results[[#This Row],[Alert]]),tblInterventions[[Index]:[Cost Type]],2,FALSE)*tblAssets_Results[[#This Row],[Number of Spouts]],"") ->  | BK8: =IF(OR(tblAssets_Results[[#This Row],[Alert]]=stdAlert_MajorRepairs,tblAssets_Results[[#This Row],[Alert]]=stdAlert_NewConstruction),VLOOKUP(CONCATENATE(BK$6,"|",tblAssets_Results[[#This Row],[Alert]]),tblInterventions[[Index]:[Cost Type]],2,FALSE),"") ->  | BL8: =IF(OR(tblAssets_Results[[#This Row],[Alert]]=stdAlert_MajorRepairs,tblAssets_Results[[#This Row],[Alert]]=stdAlert_NewConstruction),VLOOKUP(CONCATENATE(BL$6,"|",tblAssets_Results[[#This Row],[Alert]]),tblInterventions[[Index]:[Cost Type]],2,FALSE),"") ->  | BM8: =IF(OR(tblAssets_Results[[#This Row],[Alert]]=stdAlert_MajorRepairs,tblAssets_Results[[#This Row],[Alert]]=stdAlert_NewConstruction),VLOOKUP(CONCATENATE(BM$6,"|",tblAssets_Results[[#This Row],[Alert]]),tblInterventions[[Index]:[Cost Type]],2,FALSE)*tblAssets_Results[[#This Row],[Estimated amount of m3 concrete works]],"") ->  | BN8: =IF(OR(tblAssets_Results[[#This Row],[Alert]]=stdAlert_MajorRepairs,tblAssets_Results[[#This Row],[Alert]]=stdAlert_NewConstruction),VLOOKUP(CONCATENATE(BN$6,"|",tblAssets_Results[[#This Row],[Alert]]),tblInterventions[[Index]:[Cost Type]],2,FALSE)*tblAssets_Results[[#This Row],[Number of Pipes (m)]],"") ->  | BO8: =SUM(tblAssets_Results[[#This Row],[Capmanex component 1]:[Capex Cost component 6]]) -> 200 | BP8: =VLOOKUP(CONCATENATE(BP$6,"|",stdAlert_NewConstruction),tblInterventions[[Index]:[Cost Type]],2,FALSE) -> 2000 | BQ8: =VLOOKUP(CONCATENATE(BQ$6,"|",stdAlert_NewConstruction),tblInterventions[[Index]:[Cost Type]],2,FALSE)*tblAssets_Results[[#This Row],[Number of Spouts]] -> 20 | BR8: =VLOOKUP(CONCATENATE(BR$6,"|",stdAlert_NewConstruction),tblInterventions[[Index]:[Cost Type]],2,FALSE) -> 5000 | BS8: =VLOOKUP(CONCATENATE(BS$6,"|",stdAlert_NewConstruction),tblInterventions[[Index]:[Cost Type]],2,FALSE) -> 1000 | BT8: =VLOOKUP(CONCATENATE(BT$6,"|",stdAlert_NewConstruction),tblInterventions[[Index]:[Cost Type]],2,FALSE)*tblAssets_Results[[#This Row],[Estimated amount of m3 concrete works]] -> 500 | BU8: =VLOOKUP(CONCATENATE(BU$6,"|",stdAlert_NewConstruction),tblInterventions[[Index]:[Cost Type]],2,FALSE)*tblAssets_Results[[#This Row],[Number of Pipes (m)]] -> 1500 | BV8: =SUM(tblAssets_Results[[#This Row],[Full Capex Cost component 1]:[Capex Cost component 62]]) -> 10020
B9: 2 | C9: =VLOOKUP(tblAssets_Results[[#This Row],[Asset Analysis ID]:[Asset Analysis ID]],tblAssets_Raw[],C$4,FALSE) -> Barsaloi BH | D9: =VLOOKUP(tblAssets_Results[[#This Row],[Asset Analysis ID]:[Asset Analysis ID]],tblAssets_Raw[],D$4,FALSE) -> Borehole with motorised pump | E9: =VLOOKUP(tblAssets_Results[[#This Row],[Asset Analysis ID]:[Asset Analysis ID]],tblAssets_Raw[],E$4,FALSE) -> 2020 | F9: =VLOOKUP(tblAssets_Results[[#This Row],[Asset Analysis ID]:[Asset Analysis ID]],tblAssets_Raw[],F$6,FALSE) -> Kenya | G9: =VLOOKUP(tblAssets_Results[[#This Row],[Asset Analysis ID]:[Asset Analysis ID]],tblAssets_Raw[],G$6,FALSE) -> Rift Valley | H9: =VLOOKUP(tblAssets_Results[[#This Row],[Asset Analysis ID]:[Asset Analysis ID]],tblAssets_Raw[],H$6,FALSE) -> Samburu | I9: =VLOOKUP(tblAssets_Results[[#This Row],[Asset Analysis ID]:[Asset Analysis ID]],tblAssets_Raw[],I$6,FALSE) -> Samburu East | J9: =VLOOKUP(tblAssets_Results[[#This Row],[Asset Analysis ID]:[Asset Analysis ID]],tblAssets_Raw[],J$6,FALSE) -> Samburu | K9: =VLOOKUP(tblAssets_Results[[#This Row],[Asset Analysis ID]:[Asset Analysis ID]],tblAssets_Raw[],K$6,FALSE) -> 2022 | L9: =IFERROR(IF(tblAssets_Results[[#This Row],[Water Point/System Improved]]=stdNo,stdRisk_NoImprovedWPS,CHOOSE(COUNTIF(tblAssets_Results[[#This Row],[Remaining Lifespan of Spring Protection]:[Remaining LifeSpan of Pipes]],"<=" & YearsRemainingThreshold)+1,stdRisk_Low,stdRisk_Medium,stdRisk_High,stdRisk_High,stdRisk_High,stdRisk_High,stdRisk_High)),"") -> High Risk | M9: =IFERROR(IF(tblAssets_Results[[#This Row],[Water Point/System Improved]]=stdNo,stdRisk_NoImprovedWPS,Conditions2Risk(tblAssets_Results[[#This Row],[Condition of Spring Protection]:[Condition Of The Water Point/System Overall]])),"") -> Low Risk | N9: =IFERROR(VLOOKUP(CONCATENATE(tblAssets_Results[[#This Row],[Risk Based On Age]],"|",tblAssets_Results[[#This Row],[Risk Based On Current Condition]]),tblRiskToPriority[[Index]:[Level of Priority]],2,FALSE),"") -> Medium Priority | O9: =IFERROR(IF(tblAssets_Results[[#This Row],[Level Of Priority To Replace/Repair]]=stdPriority_NewConstruction,stdAlert_NewConstruction,IF(OR(tblAssets_Results[[#This Row],[Level Of Priority To Replace/Repair]]=stdPriority_High,tblAssets_Results[[#This Row],[Condition Of The Water Point/System Overall]]=stdCondition_VeryPoor),stdAlert_MajorRepairs,IF(OR(tblAssets_Results[[#This Row],[Risk Based On Age]]=stdRisk_High,tblAssets_Results[[#This Row],[Risk Based On Age]]=stdRisk_Medium),stdAlert_ConsiderReplacement,IF(OR(tblAssets_Results[[#This Row],[Worst Condition]]=stdCondition_Poor,tblAssets_Results[[#This Row],[Worst Condition]]=stdCondition_VeryPoor),stdAlert_RepairReplace,stdAlert_RoutineMaintenance)))),"") -> Consider Replacing Aging Components | P9: =IF(tblAssets_Results[[#This Row],[Alert]]=stdAlert_ConsiderReplacement,shortlifetime_components(tblAssets_Results[[#This Row],[Remaining Lifespan of Spring Protection]:[Remaining LifeSpan of Pipes]],YearsRemainingThreshold),IF(tblAssets_Results[[#This Row],[Alert]]=stdAlert_RepairReplace,PoorCondition_Components(tblAssets_Results[[#This Row],[Condition of Spring Protection]:[Condition Of The Water Point/System Overall]]),"")) -> Spring Protection, Taps | Q9: =IF(tblAssets_Results[[#This Row],[Alert]]=stdPriority_NewConstruction,stdRecommend_InvestmentPlan,IF(tblAssets_Results[[#This Row],[Alert]]=stdAlert_MajorRepairs,stdRecommend_FurtherDiagnostics,IF(tblAssets_Results[[#This Row],[Alert]]=stdAlert_ConsiderReplacement,stdRecommend_FurtherDiagnostics,IF(tblAssets_Results[[#This Row],[Alert]]=stdAlert_RepairReplace,stdRecommend_PlanRepairReplace,IF(tblAssets_Results[[#This Row],[Alert]]=stdAlert_RoutineMaintenance,stdRecommend_MaintainOM,""))))) -> Further Technical Diagnostic Needed | R9: =IF(tblAssets_Results[[#This Row],[Presence Of Spring Protection?]]=stdYes,stdLife_SpringProtection-(tblAssets_Results[[#This Row],[Year Data Was Collected]]-tblAssets_Results[[#This Row],[Year Source Protection Was Constructed or Replaced]])," ") -> 1 | S9: =IF(tblAssets_Results[[#This Row],[Presence Of Tap(s)?]]=stdYes,stdLife_Taps-(tblAssets_Results[[#This Row],[Year Data Was Collected]]-tblAssets_Results[[#This Row],[Year Taps were Constructed or Replaced]])," ") -> -7 | T9: =IF(tblAssets_Results[[#This Row],[Presence Of Well?]]=stdYes,stdLife_Well-(tblAssets_Results[[#This Row],[Year Data Was Collected]]-tblAssets_Results[[#This Row],[Year Well Was Constructed or Replaced]])," ") -> 18 | U9: =IF(tblAssets_Results[[#This Row],[Presence Of Pump?]]=stdYes,stdLife_Pump-(tblAssets_Results[[#This Row],[Year Data Was Collected]]-tblAssets_Results[[#This Row],[Year Pump Was Installed or Replaced]])," ") -> 3 | V9: =IF(tblAssets_Results[[#This Row],[Presence Of An concrete works?]]=stdYes,stdLife_Apron-(tblAssets_Results[[#This Row],[Year Data Was Collected]]-tblAssets_Results[[#This Row],[Year concrete work was Constructed or Replaced]])," ") ->  | W9: =IFERROR(VLOOKUP(tblAssets_Results[[#This Row],[Material of the Pipes]],tblPipeMaterials[],2,FALSE)-(tblAssets_Results[[#This Row],[Year Data Was Collected]]-tblAssets_Results[[#This Row],[Year Of Construction]]),"") -> 13 | X9: =IFERROR(VLOOKUP(tblAssets_Results[[#This Row],[Asset Analysis ID]],tblAssets_Raw[],$X$4,FALSE),"") -> Fair | Y9: =VLOOKUP(tblAssets_Results[[#This Row],[Asset Analysis ID]],tblAssets_Raw[],$Y$4,FALSE) -> 3 | Z9: =VLOOKUP(tblAssets_Results[[#This Row],[Asset Analysis ID]],tblAssets_Raw[],$Z$4,FALSE) -> Good | AA9: =VLOOKUP(tblAssets_Results[[#This Row],[Asset Analysis ID]],tblAssets_Raw[],$AA$4,FALSE) -> Fair | AB9: =VLOOKUP(tblAssets_Results[[#This Row],[Asset Analysis ID]],tblAssets_Raw[],$AB$4,FALSE) -> Excellent | AC9: =IFERROR(VLOOKUP(VLOOKUP(tblAssets_Results[[#This Row],[Asset Analysis ID]],tblAssets_Raw[],$AC$4,FALSE),tblFunctionalStatus[],2,FALSE),"") -> Excellent | AD9: =WorstCondition(tblAssets_Results[[#This Row],[Condition of Spring Protection]:[Condition Of The Water Point/System Overall]]) -> Fair | AE9: =VLOOKUP(tblAssets_Results[[#This Row],[Asset Analysis ID]:[Asset Analysis ID]],tblAssets_Raw[],AE$4,FALSE) -> Yes | AF9: =VLOOKUP(tblAssets_Results[[#This Row],[Asset Analysis ID]:[Asset Analysis ID]],tblAssets_Raw[],AF$4,FALSE) -> Yes | AG9: =VLOOKUP(tblAssets_Results[[#This Row],[Asset Analysis ID]:[Asset Analysis ID]],tblAssets_Raw[],AG$4,FALSE) -> Yes | AH9: =IF(OR(tblAssets_Results[[#This Row],[Condition Of The Water Point/System Overall]]=stdCondition_Excellent,tblAssets_Results[[#This Row],[Condition Of The Water Point/System Overall]]=stdCondition_Good),stdYes,stdNo) -> Yes | AI9: =VLOOKUP(tblAssets_Results[[#This Row],[Asset Analysis ID]],tblAssets_Raw[],$AI$4,FALSE) -> Yes | AJ9: =VLOOKUP(tblAssets_Results[[#This Row],[Asset Analysis ID]],tblAssets_Raw[],$AJ$4,FALSE) -> 2008 | AK9: =VLOOKUP(tblAssets_Results[[#This Row],[Asset Analysis ID]],tblAssets_Raw[],$AK$4,FALSE) -> Yes | AL9: =VLOOKUP(tblAssets_Results[[#This Row],[Asset Analysis ID]],tblAssets_Raw[],$AL$4,FALSE) -> 3 | AM9: =VLOOKUP(tblAssets_Results[[#This Row],[Asset Analysis ID]],tblAssets_Raw[],$AM$4,FALSE) -> 2010 | AN9: =VLOOKUP(tblAssets_Results[[#This Row],[Asset Analysis ID]],tblAssets_Raw[],$AN$4,FALSE) -> Yes | AO9: =VLOOKUP(tblAssets_Results[[#This Row],[Asset Analysis ID]],tblAssets_Raw[],$AO$4,FALSE) -> 2020 | AP9: =VLOOKUP(tblAssets_Results[[#This Row],[Asset Analysis ID]],tblAssets_Raw[],$AP$4,FALSE) -> Yes | AQ9: =VLOOKUP(tblAssets_Results[[#This Row],[Asset Analysis ID]],tblAssets_Raw[],$AQ$4,FALSE) -> 10 | AR9: =VLOOKUP(tblAssets_Results[[#This Row],[Asset Analysis ID]],tblAssets_Raw[],$AR$4,FALSE) -> HDPE Pipe | AS9: =VLOOKUP(tblAssets_Results[[#This Row],[Asset Analysis ID]],tblAssets_Raw[],$AS$4,FALSE) -> 2020 | AT9: =VLOOKUP(tblAssets_Results[[#This Row],[Asset Analysis ID]],tblAssets_Raw[],$AT$4,FALSE) -> No | AU9: =VLOOKUP(tblAssets_Results[[#This Row],[Asset Analysis ID]],tblAssets_Raw[],$AU$4,FALSE) -> 2021 | AV9: =VLOOKUP(tblAssets_Results[[#This Row],[Asset Analysis ID]],tblAssets_Raw[],$AV$4,FALSE) -> 2 | AW9: =IF(tblAssets_Results[[#This Row],[Remaining Lifespan of Spring Protection]]<YearsRemainingThreshold,VLOOKUP(CONCATENATE($AW$6,"|",tblAssets_Results[[#This Row],[Alert]]),tblInterventions[[Index]:[Cost Type]],2,FALSE),"") -> 500 | AX9: =IF(tblAssets_Results[[#This Row],[Remaining Lifespan of taps/Spouts]]<YearsRemainingThreshold,VLOOKUP(CONCATENATE(Assumptions!$E$10,"|",tblAssets_Results[[#This Row],[Alert]]),tblInterventions[[Index]:[Cost Type]],2,FALSE)*tblAssets_Results[[#This Row],[Number of Spouts]],"") -> 15 | AY9: =IF(tblAssets_Results[[#This Row],[Remaining Lifespan of Borehole]]<YearsRemainingThreshold,VLOOKUP(CONCATENATE(tblAssetTypes[[#This Row],[Asset component]],"|",tblAssets_Results[[#This Row],[Alert]]),tblInterventions[[Index]:[Cost Type]],2,FALSE),"") ->  | AZ9: =IF(tblAssets_Results[[#This Row],[Remaining Lifespan of Pump]]<YearsRemainingThreshold,VLOOKUP(CONCATENATE(Assumptions!$E$7,"|",tblAssets_Results[[#This Row],[Alert]]),tblInterventions[[Index]:[Cost Type]],2,FALSE),"") ->  | BA9: =IF(tblAssets_Results[[#This Row],[Remaining Lifespan of Concrete works]]<YearsRemainingThreshold,VLOOKUP(CONCATENATE(Assumptions!$E$8,"|",tblAssets_Results[[#This Row],[Alert]]),tblInterventions[[Index]:[Cost Type]]*tblAssets_Results[[#This Row],[Estimated amount of m3 concrete works]],2,FALSE),"") ->  | BB9: =IFERROR(IF(tblAssets_Results[[#This Row],[Remaining LifeSpan of Pipes]]<YearsRemainingThreshold,VLOOKUP(CONCATENATE($BB$6,"|",tblAssets_Results[[#This Row],[Alert]]),tblInterventions[[Index]:[Cost Type]],2,FALSE)*tblAssets_Results[[#This Row],[Number of Pipes (m)]],""),"") ->  | BC9: =IF(ISNUMBER(SEARCH(BC$6,tblAssets_Results[[#This Row],[Component(s)]:[Component(s)]])),VLOOKUP(CONCATENATE($BC$6,"|",tblAssets_Results[[#This Row],[Alert]]),tblInterventions[[Index]:[Cost Type]],2,FALSE),"") -> 500 | BD9: =IF(ISNUMBER(SEARCH(BD$6,tblAssets_Results[[#This Row],[Component(s)]:[Component(s)]])),VLOOKUP(CONCATENATE($BD$6,"|",tblAssets_Results[[#This Row],[Alert]]),tblInterventions[[Index]:[Cost Type]],2,FALSE)*tblAssets_Results[[#This Row],[Number of Spouts]],"") -> 15 | BE9: =IF(ISNUMBER(SEARCH(BE$6,tblAssets_Results[[#This Row],[Component(s)]:[Component(s)]])),VLOOKUP(CONCATENATE($BE$6,"|",tblAssets_Results[[#This Row],[Alert]]),tblInterventions[[Index]:[Cost Type]],2,FALSE),"") ->  | BF9: =IF(ISNUMBER(SEARCH(BF$6,tblAssets_Results[[#This Row],[Component(s)]:[Component(s)]])),VLOOKUP(CONCATENATE($BF$6,"|",tblAssets_Results[[#This Row],[Alert]]),tblInterventions[[Index]:[Cost Type]],2,FALSE),"") ->  | BG9: =IF(ISNUMBER(SEARCH(BG$6,tblAssets_Results[[#This Row],[Component(s)]:[Component(s)]])),VLOOKUP(CONCATENATE($BG$6,"|",tblAssets_Results[[#This Row],[Alert]]),tblInterventions[[Index]:[Cost Type]],2,FALSE)*tblAssets_Results[[#This Row],[Estimated amount of m3 concrete works]],"") ->  | BH9: =IF(ISNUMBER(SEARCH(BH$6,tblAssets_Results[[#This Row],[Component(s)]:[Component(s)]])),VLOOKUP(CONCATENATE($BH$6,"|",tblAssets_Results[[#This Row],[Alert]]),tblInterventions[[Index]:[Cost Type]],2,FALSE)*tblAssets_Results[[#This Row],[Number of Pipes (m)]],"") ->  | BI9: =IF(OR(tblAssets_Results[[#This Row],[Alert]]=stdAlert_MajorRepairs,tblAssets_Results[[#This Row],[Alert]]=stdAlert_NewConstruction),VLOOKUP(CONCATENATE(BI$6,"|",tblAssets_Results[[#This Row],[Alert]]),tblInterventions[[Index]:[Cost Type]],2,FALSE),"") ->  | BJ9: =IF(OR(tblAssets_Results[[#This Row],[Alert]]=stdAlert_MajorRepairs,tblAssets_Results[[#This Row],[Alert]]=stdAlert_NewConstruction),VLOOKUP(CONCATENATE(BJ$6,"|",tblAssets_Results[[#This Row],[Alert]]),tblInterventions[[Index]:[Cost Type]],2,FALSE)*tblAssets_Results[[#This Row],[Number of Spouts]],"") ->  | BK9: =IF(OR(tblAssets_Results[[#This Row],[Alert]]=stdAlert_MajorRepairs,tblAssets_Results[[#This Row],[Alert]]=stdAlert_NewConstruction),VLOOKUP(CONCATENATE(BK$6,"|",tblAssets_Results[[#This Row],[Alert]]),tblInterventions[[Index]:[Cost Type]],2,FALSE),"") ->  | BL9: =IF(OR(tblAssets_Results[[#This Row],[Alert]]=stdAlert_MajorRepairs,tblAssets_Results[[#This Row],[Alert]]=stdAlert_NewConstruction),VLOOKUP(CONCATENATE(BL$6,"|",tblAssets_Results[[#This Row],[Alert]]),tblInterventions[[Index]:[Cost Type]],2,FALSE),"") ->  | BM9: =IF(OR(tblAssets_Results[[#This Row],[Alert]]=stdAlert_MajorRepairs,tblAssets_Results[[#This Row],[Alert]]=stdAlert_NewConstruction),VLOOKUP(CONCATENATE(BM$6,"|",tblAssets_Results[[#This Row],[Alert]]),tblInterventions[[Index]:[Cost Type]],2,FALSE)*tblAssets_Results[[#This Row],[Estimated amount of m3 concrete works]],"") ->  | BN9: =IF(OR(tblAssets_Results[[#This Row],[Alert]]=stdAlert_MajorRepairs,tblAssets_Results[[#This Row],[Alert]]=stdAlert_NewConstruction),VLOOKUP(CONCATENATE(BN$6,"|",tblAssets_Results[[#This Row],[Alert]]),tblInterventions[[Index]:[Cost Type]],2,FALSE)*tblAssets_Results[[#This Row],[Number of Pipes (m)]],"") ->  | BO9: =SUM(tblAssets_Results[[#This Row],[Capmanex component 1]:[Capex Cost component 6]]) -> 515 | BP9: =VLOOKUP(CONCATENATE(BP$6,"|",stdAlert_NewConstruction),tblInterventions[[Index]:[Cost Type]],2,FALSE) -> 2000 | BQ9: =VLOOKUP(CONCATENATE(BQ$6,"|",stdAlert_NewConstruction),tblInterventions[[Index]:[Cost Type]],2,FALSE)*tblAssets_Results[[#This Row],[Number of Spouts]] -> 30 | BR9: =VLOOKUP(CONCATENATE(BR$6,"|",stdAlert_NewConstruction),tblInterventions[[Index]:[Cost Type]],2,FALSE) -> 5000 | BS9: =VLOOKUP(CONCATENATE(BS$6,"|",stdAlert_NewConstruction),tblInterventions[[Index]:[Cost Type]],2,FALSE) -> 1000 | BT9: =VLOOKUP(CONCATENATE(BT$6,"|",stdAlert_NewConstruction),tblInterventions[[Index]:[Cost Type]],2,FALSE)*tblAssets_Results[[#This Row],[Estimated amount of m3 concrete works]] -> 1000 | BU9: =VLOOKUP(CONCATENATE(BU$6,"|",stdAlert_NewConstruction),tblInterventions[[Index]:[Cost Type]],2,FALSE)*tblAssets_Results[[#This Row],[Number of Pipes (m)]] -> 150 | BV9: =SUM(tblAssets_Results[[#This Row],[Full Capex Cost component 1]:[Capex Cost component 62]]) -> 9180
B10: 3 | C10: =VLOOKUP(tblAssets_Results[[#This Row],[Asset Analysis ID]:[Asset Analysis ID]],tblAssets_Raw[],C$4,FALSE) -> Suiyen BH | D10: =VLOOKUP(tblAssets_Results[[#This Row],[Asset Analysis ID]:[Asset Analysis ID]],tblAssets_Raw[],D$4,FALSE) -> Spring protection | E10: =VLOOKUP(tblAssets_Results[[#This Row],[Asset Analysis ID]:[Asset Analysis ID]],tblAssets_Raw[],E$4,FALSE) -> 2019 | F10: =VLOOKUP(tblAssets_Results[[#This Row],[Asset Analysis ID]:[Asset Analysis ID]],tblAssets_Raw[],F$6,FALSE) -> Kenya | G10: =VLOOKUP(tblAssets_Results[[#This Row],[Asset Analysis ID]:[Asset Analysis ID]],tblAssets_Raw[],G$6,FALSE) -> Rift Valley | H10: =VLOOKUP(tblAssets_Results[[#This Row],[Asset Analysis ID]:[Asset Analysis ID]],tblAssets_Raw[],H$6,FALSE) -> Samburu | I10: =VLOOKUP(tblAssets_Results[[#This Row],[Asset Analysis ID]:[Asset Analysis ID]],tblAssets_Raw[],I$6,FALSE) -> Samburu South | J10: =VLOOKUP(tblAssets_Results[[#This Row],[Asset Analysis ID]:[Asset Analysis ID]],tblAssets_Raw[],J$6,FALSE) -> Samburu | K10: =VLOOKUP(tblAssets_Results[[#This Row],[Asset Analysis ID]:[Asset Analysis ID]],tblAssets_Raw[],K$6,FALSE) -> 2022 | L10: =IFERROR(IF(tblAssets_Results[[#This Row],[Water Point/System Improved]]=stdNo,stdRisk_NoImprovedWPS,CHOOSE(COUNTIF(tblAssets_Results[[#This Row],[Remaining Lifespan of Spring Protection]:[Remaining LifeSpan of Pipes]],"<=" & YearsRemainingThreshold)+1,stdRisk_Low,stdRisk_Medium,stdRisk_High,stdRisk_High,stdRisk_High,stdRisk_High,stdRisk_High)),"") -> Low Risk | M10: =IFERROR(IF(tblAssets_Results[[#This Row],[Water Point/System Improved]]=stdNo,stdRisk_NoImprovedWPS,Conditions2Risk(tblAssets_Results[[#This Row],[Condition of Spring Protection]:[Condition Of The Water Point/System Overall]])),"") -> High Risk | N10: =IFERROR(VLOOKUP(CONCATENATE(tblAssets_Results[[#This Row],[Risk Based On Age]],"|",tblAssets_Results[[#This Row],[Risk Based On Current Condition]]),tblRiskToPriority[[Index]:[Level of Priority]],2,FALSE),"") -> High Priority | O10: =IFERROR(IF(tblAssets_Results[[#This Row],[Level Of Priority To Replace/Repair]]=stdPriority_NewConstruction,stdAlert_NewConstruction,IF(OR(tblAssets_Results[[#This Row],[Level Of Priority To Replace/Repair]]=stdPriority_High,tblAssets_Results[[#This Row],[Condition Of The Water Point/System Overall]]=stdCondition_VeryPoor),stdAlert_MajorRepairs,IF(OR(tblAssets_Results[[#This Row],[Risk Based On Age]]=stdRisk_High,tblAssets_Results[[#This Row],[Risk Based On Age]]=stdRisk_Medium),stdAlert_ConsiderReplacement,IF(OR(tblAssets_Results[[#This Row],[Worst Condition]]=stdCondition_Poor,tblAssets_Results[[#This Row],[Worst Condition]]=stdCondition_VeryPoor),stdAlert_RepairReplace,stdAlert_RoutineMaintenance)))),"") -> Major Repairs or Replace System | P10: =IF(tblAssets_Results[[#This Row],[Alert]]=stdAlert_ConsiderReplacement,shortlifetime_components(tblAssets_Results[[#This Row],[Remaining Lifespan of Spring Protection]:[Remaining LifeSpan of Pipes]],YearsRemainingThreshold),IF(tblAssets_Results[[#This Row],[Alert]]=stdAlert_RepairReplace,PoorCondition_Components(tblAssets_Results[[#This Row],[Condition of Spring Protection]:[Condition Of The Water Point/System Overall]]),"")) ->  | Q10: =IF(tblAssets_Results[[#This Row],[Alert]]=stdPriority_NewConstruction,stdRecommend_InvestmentPlan,IF(tblAssets_Results[[#This Row],[Alert]]=stdAlert_MajorRepairs,stdRecommend_FurtherDiagnostics,IF(tblAssets_Results[[#This Row],[Alert]]=stdAlert_ConsiderReplacement,stdRecommend_FurtherDiagnostics,IF(tblAssets_Results[[#This Row],[Alert]]=stdAlert_RepairReplace,stdRecommend_PlanRepairReplace,IF(tblAssets_Results[[#This Row],[Alert]]=stdAlert_RoutineMaintenance,stdRecommend_MaintainOM,""))))) -> Further Technical Diagnostic Needed | R10: =IF(tblAssets_Results[[#This Row],[Presence Of Spring Protection?]]=stdYes,stdLife_SpringProtection-(tblAssets_Results[[#This Row],[Year Data Was Collected]]-tblAssets_Results[[#This Row],[Year Source Protection Was Constructed or Replaced]])," ") ->  | S10: =IF(tblAssets_Results[[#This Row],[Presence Of Tap(s)?]]=stdYes,stdLife_Taps-(tblAssets_Results[[#This Row],[Year Data Was Collected]]-tblAssets_Results[[#This Row],[Year Taps were Constructed or Replaced]])," ") ->  | T10: =IF(tblAssets_Results[[#This Row],[Presence Of Well?]]=stdYes,stdLife_Well-(tblAssets_Results[[#This Row],[Year Data Was Collected]]-tblAssets_Results[[#This Row],[Year Well Was Constructed or Replaced]])," ") -> 18 | U10: =IF(tblAssets_Results[[#This Row],[Presence Of Pump?]]=stdYes,stdLife_Pump-(tblAssets_Results[[#This Row],[Year Data Was Collected]]-tblAssets_Results[[#This Row],[Year Pump Was Installed or Replaced]])," ") -> 3 | V10: =IF(tblAssets_Results[[#This Row],[Presence Of An concrete works?]]=stdYes,stdLife_Apron-(tblAssets_Results[[#This Row],[Year Data Was Collected]]-tblAssets_Results[[#This Row],[Year concrete work was Constructed or Replaced]])," ") -> 25 | W10: =IFERROR(VLOOKUP(tblAssets_Results[[#This Row],[Material of the Pipes]],tblPipeMaterials[],2,FALSE)-(tblAssets_Results[[#This Row],[Year Data Was Collected]]-tblAssets_Results[[#This Row],[Year Of Construction]]),"") -> 12 | X10: =IFERROR(VLOOKUP(tblAssets_Results[[#This Row],[Asset Analysis ID]],tblAssets_Raw[],$X$4,FALSE),"") -> 0 | Y10: =VLOOKUP(tblAssets_Results[[#This Row],[Asset Analysis ID]],tblAssets_Raw[],$Y$4,FALSE) -> 1 | Z10: =VLOOKUP(tblAssets_Results[[#This Row],[Asset Analysis ID]],tblAssets_Raw[],$Z$4,FALSE) -> Very Poor | AA10: =VLOOKUP(tblAssets_Results[[#This Row],[Asset Analysis ID]],tblAssets_Raw[],$AA$4,FALSE) -> Excellent | AB10: =VLOOKUP(tblAssets_Results[[#This Row],[Asset Analysis ID]],tblAssets_Raw[],$AB$4,FALSE) -> Good | AC10: =IFERROR(VLOOKUP(VLOOKUP(tblAssets_Results[[#This Row],[Asset Analysis ID]],tblAssets_Raw[],$AC$4,FALSE),tblFunctionalStatus[],2,FALSE),"") -> Very Poor | AD10: =WorstCondition(tblAssets_Results[[#This Row],[Condition of Spring Protection]:[Condition Of The Water Point/System Overall]]) -> Very Poor | AE10: =VLOOKUP(tblAssets_Results[[#This Row],[Asset Analysis ID]:[Asset Analysis ID]],tblAssets_Raw[],AE$4,FALSE) -> Yes | AF10: =VLOOKUP(tblAssets_Results[[#This Row],[Asset Analysis ID]:[Asset Analysis ID]],tblAssets_Raw[],AF$4,FALSE) -> Yes | AG10: =VLOOKUP(tblAssets_Results[[#This Row],[Asset Analysis ID]:[Asset Analysis ID]],tblAssets_Raw[],AG$4,FALSE) -> Yes | AH10: =IF(OR(tblAssets_Results[[#This Row],[Condition Of The Water Point/System Overall]]=stdCondition_Excellent,tblAssets_Results[[#This Row],[Condition Of The Water Point/System Overall]]=stdCondition_Good),stdYes,stdNo) -> No | AI10: =VLOOKUP(tblAssets_Results[[#This Row],[Asset Analysis ID]],tblAssets_Raw[],$AI$4,FALSE) -> No | AJ10: =VLOOKUP(tblAssets_Results[[#This Row],[Asset Analysis ID]],tblAssets_Raw[],$AJ$4,FALSE) -> 2020 | AK10: =VLOOKUP(tblAssets_Results[[#This Row],[Asset Analysis ID]],tblAssets_Raw[],$AK$4,FALSE) -> 0 | AL10: =VLOOKUP(tblAssets_Results[[#This Row],[Asset Analysis ID]],tblAssets_Raw[],$AL$4,FALSE) -> 1 | AM10: =VLOOKUP(tblAssets_Results[[#This Row],[Asset Analysis ID]],tblAssets_Raw[],$AM$4,FALSE) -> 2020 | AN10: =VLOOKUP(tblAssets_Results[[#This Row],[Asset Analysis ID]],tblAssets_Raw[],$AN$4,FALSE) -> Yes | AO10: =VLOOKUP(tblAssets_Results[[#This Row],[Asset Analysis ID]],tblAssets_Raw[],$AO$4,FALSE) -> 2020 | AP10: =VLOOKUP(tblAssets_Results[[#This Row],[Asset Analysis ID]],tblAssets_Raw[],$AP$4,FALSE) -> Yes | AQ10: =VLOOKUP(tblAssets_Results[[#This Row],[Asset Analysis ID]],tblAssets_Raw[],$AQ$4,FALSE) -> 10 | AR10: =VLOOKUP(tblAssets_Results[[#This Row],[Asset Analysis ID]],tblAssets_Raw[],$AR$4,FALSE) -> HDPE Pipe | AS10: =VLOOKUP(tblAssets_Results[[#This Row],[Asset Analysis ID]],tblAssets_Raw[],$AS$4,FALSE) -> 2020 | AT10: =VLOOKUP(tblAssets_Results[[#This Row],[Asset Analysis ID]],tblAssets_Raw[],$AT$4,FALSE) -> Yes | AU10: =VLOOKUP(tblAssets_Results[[#This Row],[Asset Analysis ID]],tblAssets_Raw[],$AU$4,FALSE) -> 2022 | AV10: =VLOOKUP(tblAssets_Results[[#This Row],[Asset Analysis ID]],tblAssets_Raw[],$AV$4,FALSE) -> 1 | AW10: =IF(tblAssets_Results[[#This Row],[Remaining Lifespan of Spring Protection]]<YearsRemainingThreshold,VLOOKUP(CONCATENATE($AW$6,"|",tblAssets_Results[[#This Row],[Alert]]),tblInterventions[[Index]:[Cost Type]],2,FALSE),"") ->  | AX10: =IF(tblAssets_Results[[#This Row],[Remaining Lifespan of taps/Spouts]]<YearsRemainingThreshold,VLOOKUP(CONCATENATE(Assumptions!$E$10,"|",tblAssets_Results[[#This Row],[Alert]]),tblInterventions[[Index]:[Cost Type]],2,FALSE)*tblAssets_Results[[#This Row],[Number of Spouts]],"") ->  | AY10: =IF(tblAssets_Results[[#This Row],[Remaining Lifespan of Borehole]]<YearsRemainingThreshold,VLOOKUP(CONCATENATE(tblAssetTypes[[#This Row],[Asset component]],"|",tblAssets_Results[[#This Row],[Alert]]),tblInterventions[[Index]:[Cost Type]],2,FALSE),"") ->  | AZ10: =IF(tblAssets_Results[[#This Row],[Remaining Lifespan of Pump]]<YearsRemainingThreshold,VLOOKUP(CONCATENATE(Assumptions!$E$7,"|",tblAssets_Results[[#This Row],[Alert]]),tblInterventions[[Index]:[Cost Type]],2,FALSE),"") ->  | BA10: =IF(tblAssets_Results[[#This Row],[Remaining Lifespan of Concrete works]]<YearsRemainingThreshold,VLOOKUP(CONCATENATE(Assumptions!$E$8,"|",tblAssets_Results[[#This Row],[Alert]]),tblInterventions[[Index]:[Cost Type]]*tblAssets_Results[[#This Row],[Estimated amount of m3 concrete works]],2,FALSE),"") ->  | BB10: =IFERROR(IF(tblAssets_Results[[#This Row],[Remaining LifeSpan of Pipes]]<YearsRemainingThreshold,VLOOKUP(CONCATENATE($BB$6,"|",tblAssets_Results[[#This Row],[Alert]]),tblInterventions[[Index]:[Cost Type]],2,FALSE)*tblAssets_Results[[#This Row],[Number of Pipes (m)]],""),"") ->  | BC10: =IF(ISNUMBER(SEARCH(BC$6,tblAssets_Results[[#This Row],[Component(s)]:[Component(s)]])),VLOOKUP(CONCATENATE($BC$6,"|",tblAssets_Results[[#This Row],[Alert]]),tblInterventions[[Index]:[Cost Type]],2,FALSE),"") ->  | BD10: =IF(ISNUMBER(SEARCH(BD$6,tblAssets_Results[[#This Row],[Component(s)]:[Component(s)]])),VLOOKUP(CONCATENATE($BD$6,"|",tblAssets_Results[[#This Row],[Alert]]),tblInterventions[[Index]:[Cost Type]],2,FALSE)*tblAssets_Results[[#This Row],[Number of Spouts]],"") ->  | BE10: =IF(ISNUMBER(SEARCH(BE$6,tblAssets_Results[[#This Row],[Component(s)]:[Component(s)]])),VLOOKUP(CONCATENATE($BE$6,"|",tblAssets_Results[[#This Row],[Alert]]),tblInterventions[[Index]:[Cost Type]],2,FALSE),"") ->  | BF10: =IF(ISNUMBER(SEARCH(BF$6,tblAssets_Results[[#This Row],[Component(s)]:[Component(s)]])),VLOOKUP(CONCATENATE($BF$6,"|",tblAssets_Results[[#This Row],[Alert]]),tblInterventions[[Index]:[Cost Type]],2,FALSE),"") ->  | BG10: =IF(ISNUMBER(SEARCH(BG$6,tblAssets_Results[[#This Row],[Component(s)]:[Component(s)]])),VLOOKUP(CONCATENATE($BG$6,"|",tblAssets_Results[[#This Row],[Alert]]),tblInterventions[[Index]:[Cost Type]],2,FALSE)*tblAssets_Results[[#This Row],[Estimated amount of m3 concrete works]],"") ->  | BH10: =IF(ISNUMBER(SEARCH(BH$6,tblAssets_Results[[#This Row],[Component(s)]:[Component(s)]])),VLOOKUP(CONCATENATE($BH$6,"|",tblAssets_Results[[#This Row],[Alert]]),tblInterventions[[Index]:[Cost Type]],2,FALSE)*tblAssets_Results[[#This Row],[Number of Pipes (m)]],"") ->  | BI10: =IF(OR(tblAssets_Results[[#This Row],[Alert]]=stdAlert_MajorRepairs,tblAssets_Results[[#This Row],[Alert]]=stdAlert_NewConstruction),VLOOKUP(CONCATENATE(BI$6,"|",tblAssets_Results[[#This Row],[Alert]]),tblInterventions[[Index]:[Cost Type]],2,FALSE),"") -> 1000 | BJ10: =IF(OR(tblAssets_Results[[#This Row],[Alert]]=stdAlert_MajorRepairs,tblAssets_Results[[#This Row],[Alert]]=stdAlert_NewConstruction),VLOOKUP(CONCATENATE(BJ$6,"|",tblAssets_Results[[#This Row],[Alert]]),tblInterventions[[Index]:[Cost Type]],2,FALSE)*tblAssets_Results[[#This Row],[Number of Spouts]],"") -> 5 | BK10: =IF(OR(tblAssets_Results[[#This Row],[Alert]]=stdAlert_MajorRepairs,tblAssets_Results[[#This Row],[Alert]]=stdAlert_NewConstruction),VLOOKUP(CONCATENATE(BK$6,"|",tblAssets_Results[[#This Row],[Alert]]),tblInterventions[[Index]:[Cost Type]],2,FALSE),"") -> 2000 | BL10: =IF(OR(tblAssets_Results[[#This Row],[Alert]]=stdAlert_MajorRepairs,tblAssets_Results[[#This Row],[Alert]]=stdAlert_NewConstruction),VLOOKUP(CONCATENATE(BL$6,"|",tblAssets_Results[[#This Row],[Alert]]),tblInterventions[[Index]:[Cost Type]],2,FALSE),"") -> 500 | BM10: =IF(OR(tblAssets_Results[[#This Row],[Alert]]=stdAlert_MajorRepairs,tblAssets_Results[[#This Row],[Alert]]=stdAlert_NewConstruction),VLOOKUP(CONCATENATE(BM$6,"|",tblAssets_Results[[#This Row],[Alert]]),tblInterventions[[Index]:[Cost Type]],2,FALSE)*tblAssets_Results[[#This Row],[Estimated amount of m3 concrete works]],"") -> 200 | BN10: =IF(OR(tblAssets_Results[[#This Row],[Alert]]=stdAlert_MajorRepairs,tblAssets_Results[[#This Row],[Alert]]=stdAlert_NewConstruction),VLOOKUP(CONCATENATE(BN$6,"|",tblAssets_Results[[#This Row],[Alert]]),tblInterventions[[Index]:[Cost Type]],2,FALSE)*tblAssets_Results[[#This Row],[Number of Pipes (m)]],"") -> 100 | BO10: =SUM(tblAssets_Results[[#This Row],[Capmanex component 1]:[Capex Cost component 6]]) -> 3805 | BP10: =VLOOKUP(CONCATENATE(BP$6,"|",stdAlert_NewConstruction),tblInterventions[[Index]:[Cost Type]],2,FALSE) -> 2000 | BQ10: =VLOOKUP(CONCATENATE(BQ$6,"|",stdAlert_NewConstruction),tblInterventions[[Index]:[Cost Type]],2,FALSE)*tblAssets_Results[[#This Row],[Number of Spouts]] -> 10 | BR10: =VLOOKUP(CONCATENATE(BR$6,"|",stdAlert_NewConstruction),tblInterventions[[Index]:[Cost Type]],2,FALSE) -> 5000 | BS10: =VLOOKUP(CONCATENATE(BS$6,"|",stdAlert_NewConstruction),tblInterventions[[Index]:[Cost Type]],2,FALSE) -> 1000 | BT10: =VLOOKUP(CONCATENATE(BT$6,"|",stdAlert_NewConstruction),tblInterventions[[Index]:[Cost Type]],2,FALSE)*tblAssets_Results[[#This Row],[Estimated amount of m3 concrete works]] -> 500 | BU10: =VLOOKUP(CONCATENATE(BU$6,"|",stdAlert_NewConstruction),tblInterventions[[Index]:[Cost Type]],2,FALSE)*tblAssets_Results[[#This Row],[Number of Pipes (m)]] -> 150 | BV10: =SUM(tblAssets_Results[[#This Row],[Full Capex Cost component 1]:[Capex Cost component 62]]) -> 8660
B11: 4 | C11: =VLOOKUP(tblAssets_Results[[#This Row],[Asset Analysis ID]:[Asset Analysis ID]],tblAssets_Raw[],C$4,FALSE) -> Piped water system | D11: =VLOOKUP(tblAssets_Results[[#This Row],[Asset Analysis ID]:[Asset Analysis ID]],tblAssets_Raw[],D$4,FALSE) -> Gravity fed piped scheme | E11: =VLOOKUP(tblAssets_Results[[#This Row],[Asset Analysis ID]:[Asset Analysis ID]],tblAssets_Raw[],E$4,FALSE) -> 2005 | F11: =VLOOKUP(tblAssets_Results[[#This Row],[Asset Analysis ID]:[Asset Analysis ID]],tblAssets_Raw[],F$6,FALSE) -> Kenya | G11: =VLOOKUP(tblAssets_Results[[#This Row],[Asset Analysis ID]:[Asset Analysis ID]],tblAssets_Raw[],G$6,FALSE) -> Rift Valley | H11: =VLOOKUP(tblAssets_Results[[#This Row],[Asset Analysis ID]:[Asset Analysis ID]],tblAssets_Raw[],H$6,FALSE) -> Samburu | I11: =VLOOKUP(tblAssets_Results[[#This Row],[Asset Analysis ID]:[Asset Analysis ID]],tblAssets_Raw[],I$6,FALSE) -> Samburu West | J11: =VLOOKUP(tblAssets_Results[[#This Row],[Asset Analysis ID]:[Asset Analysis ID]],tblAssets_Raw[],J$6,FALSE) -> Samburu | K11: =VLOOKUP(tblAssets_Results[[#This Row],[Asset Analysis ID]:[Asset Analysis ID]],tblAssets_Raw[],K$6,FALSE) -> 2022 | L11: =IFERROR(IF(tblAssets_Results[[#This Row],[Water Point/System Improved]]=stdNo,stdRisk_NoImprovedWPS,CHOOSE(COUNTIF(tblAssets_Results[[#This Row],[Remaining Lifespan of Spring Protection]:[Remaining LifeSpan of Pipes]],"<=" & YearsRemainingThreshold)+1,stdRisk_Low,stdRisk_Medium,stdRisk_High,stdRisk_High,stdRisk_High,stdRisk_High,stdRisk_High)),"") -> No Improved Water Point/System | M11: =IFERROR(IF(tblAssets_Results[[#This Row],[Water Point/System Improved]]=stdNo,stdRisk_NoImprovedWPS,Conditions2Risk(tblAssets_Results[[#This Row],[Condition of Spring Protection]:[Condition Of The Water Point/System Overall]])),"") -> No Improved Water Point/System | N11: =IFERROR(VLOOKUP(CONCATENATE(tblAssets_Results[[#This Row],[Risk Based On Age]],"|",tblAssets_Results[[#This Row],[Risk Based On Current Condition]]),tblRiskToPriority[[Index]:[Level of Priority]],2,FALSE),"") -> New Construction Needed | O11: =IFERROR(IF(tblAssets_Results[[#This Row],[Level Of Priority To Replace/Repair]]=stdPriority_NewConstruction,stdAlert_NewConstruction,IF(OR(tblAssets_Results[[#This Row],[Level Of Priority To Replace/Repair]]=stdPriority_High,tblAssets_Results[[#This Row],[Condition Of The Water Point/System Overall]]=stdCondition_VeryPoor),stdAlert_MajorRepairs,IF(OR(tblAssets_Results[[#This Row],[Risk Based On Age]]=stdRisk_High,tblAssets_Results[[#This Row],[Risk Based On Age]]=stdRisk_Medium),stdAlert_ConsiderReplacement,IF(OR(tblAssets_Results[[#This Row],[Worst Condition]]=stdCondition_Poor,tblAssets_Results[[#This Row],[Worst Condition]]=stdCondition_VeryPoor),stdAlert_RepairReplace,stdAlert_RoutineMaintenance)))),"") -> New Construction Needed | P11: =IF(tblAssets_Results[[#This Row],[Alert]]=stdAlert_ConsiderReplacement,shortlifetime_components(tblAssets_Results[[#This Row],[Remaining Lifespan of Spring Protection]:[Remaining LifeSpan of Pipes]],YearsRemainingThreshold),IF(tblAssets_Results[[#This Row],[Alert]]=stdAlert_RepairReplace,PoorCondition_Components(tblAssets_Results[[#This Row],[Condition of Spring Protection]:[Condition Of The Water Point/System Overall]]),"")) ->  | Q11: =IF(tblAssets_Results[[#This Row],[Alert]]=stdPriority_NewConstruction,stdRecommend_InvestmentPlan,IF(tblAssets_Results[[#This Row],[Alert]]=stdAlert_MajorRepairs,stdRecommend_FurtherDiagnostics,IF(tblAssets_Results[[#This Row],[Alert]]=stdAlert_ConsiderReplacement,stdRecommend_FurtherDiagnostics,IF(tblAssets_Results[[#This Row],[Alert]]=stdAlert_RepairReplace,stdRecommend_PlanRepairReplace,IF(tblAssets_Results[[#This Row],[Alert]]=stdAlert_RoutineMaintenance,stdRecommend_MaintainOM,""))))) -> Plan For Investment and Construction | R11: =IF(tblAssets_Results[[#This Row],[Presence Of Spring Protection?]]=stdYes,stdLife_SpringProtection-(tblAssets_Results[[#This Row],[Year Data Was Collected]]-tblAssets_Results[[#This Row],[Year Source Protection Was Constructed or Replaced]])," ") ->  | S11: =IF(tblAssets_Results[[#This Row],[Presence Of Tap(s)?]]=stdYes,stdLife_Taps-(tblAssets_Results[[#This Row],[Year Data Was Collected]]-tblAssets_Results[[#This Row],[Year Taps were Constructed or Replaced]])," ") -> 4 | T11: =IF(tblAssets_Results[[#This Row],[Presence Of Well?]]=stdYes,stdLife_Well-(tblAssets_Results[[#This Row],[Year Data Was Collected]]-tblAssets_Results[[#This Row],[Year Well Was Constructed or Replaced]])," ") ->  | U11: =IF(tblAssets_Results[[#This Row],[Presence Of Pump?]]=stdYes,stdLife_Pump-(tblAssets_Results[[#This Row],[Year Data Was Collected]]-tblAssets_Results[[#This Row],[Year Pump Was Installed or Replaced]])," ") -> 4 | V11: =IF(tblAssets_Results[[#This Row],[Presence Of An concrete works?]]=stdYes,stdLife_Apron-(tblAssets_Results[[#This Row],[Year Data Was Collected]]-tblAssets_Results[[#This Row],[Year concrete work was Constructed or Replaced]])," ") ->  | W11: =IFERROR(VLOOKUP(tblAssets_Results[[#This Row],[Material of the Pipes]],tblPipeMaterials[],2,FALSE)-(tblAssets_Results[[#This Row],[Year Data Was Collected]]-tblAssets_Results[[#This Row],[Year Of Construction]]),"") -> 3 | X11: =IFERROR(VLOOKUP(tblAssets_Results[[#This Row],[Asset Analysis ID]],tblAssets_Raw[],$X$4,FALSE),"") -> 0 | Y11: =VLOOKUP(tblAssets_Results[[#This Row],[Asset Analysis ID]],tblAssets_Raw[],$Y$4,FALSE) -> 2 | Z11: =VLOOKUP(tblAssets_Results[[#This Row],[Asset Analysis ID]],tblAssets_Raw[],$Z$4,FALSE) -> Excellent | AA11: =VLOOKUP(tblAssets_Results[[#This Row],[Asset Analysis ID]],tblAssets_Raw[],$AA$4,FALSE) -> Good | AB11: =VLOOKUP(tblAssets_Results[[#This Row],[Asset Analysis ID]],tblAssets_Raw[],$AB$4,FALSE) -> Fair | AC11: =IFERROR(VLOOKUP(VLOOKUP(tblAssets_Results[[#This Row],[Asset Analysis ID]],tblAssets_Raw[],$AC$4,FALSE),tblFunctionalStatus[],2,FALSE),"") -> Very Poor | AD11: =WorstCondition(tblAssets_Results[[#This Row],[Condition of Spring Protection]:[Condition Of The Water Point/System Overall]]) -> Very Poor | AE11: =VLOOKUP(tblAssets_Results[[#This Row],[Asset Analysis ID]:[Asset Analysis ID]],tblAssets_Raw[],AE$4,FALSE) -> No | AF11: =VLOOKUP(tblAssets_Results[[#This Row],[Asset Analysis ID]:[Asset Analysis ID]],tblAssets_Raw[],AF$4,FALSE) -> Yes | AG11: =VLOOKUP(tblAssets_Results[[#This Row],[Asset Analysis ID]:[Asset Analysis ID]],tblAssets_Raw[],AG$4,FALSE) -> No | AH11: =IF(OR(tblAssets_Results[[#This Row],[Condition Of The Water Point/System Overall]]=stdCondition_Excellent,tblAssets_Results[[#This Row],[Condition Of The Water Point/System Overall]]=stdCondition_Good),stdYes,stdNo) -> No | AI11: =VLOOKUP(tblAssets_Results[[#This Row],[Asset Analysis ID]],tblAssets_Raw[],$AI$4,FALSE) -> No | AJ11: =VLOOKUP(tblAssets_Results[[#This Row],[Asset Analysis ID]],tblAssets_Raw[],$AJ$4,FALSE) -> 0 | AK11: =VLOOKUP(tblAssets_Results[[#This Row],[Asset Analysis ID]],tblAssets_Raw[],$AK$4,FALSE) -> Yes | AL11: =VLOOKUP(tblAssets_Results[[#This Row],[Asset Analysis ID]],tblAssets_Raw[],$AL$4,FALSE) -> 2 | AM11: =VLOOKUP(tblAssets_Results[[#This Row],[Asset Analysis ID]],tblAssets_Raw[],$AM$4,FALSE) -> 2021 | AN11: =VLOOKUP(tblAssets_Results[[#This Row],[Asset Analysis ID]],tblAssets_Raw[],$AN$4,FALSE) -> No | AO11: =VLOOKUP(tblAssets_Results[[#This Row],[Asset Analysis ID]],tblAssets_Raw[],$AO$4,FALSE) -> 2021 | AP11: =VLOOKUP(tblAssets_Results[[#This Row],[Asset Analysis ID]],tblAssets_Raw[],$AP$4,FALSE) -> Yes | AQ11: =VLOOKUP(tblAssets_Results[[#This Row],[Asset Analysis ID]],tblAssets_Raw[],$AQ$4,FALSE) -> 10 | AR11: =VLOOKUP(tblAssets_Results[[#This Row],[Asset Analysis ID]],tblAssets_Raw[],$AR$4,FALSE) -> Galvanised Iron Pipe | AS11: =VLOOKUP(tblAssets_Results[[#This Row],[Asset Analysis ID]],tblAssets_Raw[],$AS$4,FALSE) -> 2021 | AT11: =VLOOKUP(tblAssets_Results[[#This Row],[Asset Analysis ID]],tblAssets_Raw[],$AT$4,FALSE) -> No | AU11: =VLOOKUP(tblAssets_Results[[#This Row],[Asset Analysis ID]],tblAssets_Raw[],$AU$4,FALSE) -> 2021 | AV11: =VLOOKUP(tblAssets_Results[[#This Row],[Asset Analysis ID]],tblAssets_Raw[],$AV$4,FALSE) -> 3 | AW11: =IF(tblAssets_Results[[#This Row],[Remaining Lifespan of Spring Protection]]<YearsRemainingThreshold,VLOOKUP(CONCATENATE($AW$6,"|",tblAssets_Results[[#This Row],[Alert]]),tblInterventions[[Index]:[Cost Type]],2,FALSE),"") ->  | AX11: =IF(tblAssets_Results[[#This Row],[Remaining Lifespan of taps/Spouts]]<YearsRemainingThreshold,VLOOKUP(CONCATENATE(Assumptions!$E$10,"|",tblAssets_Results[[#This Row],[Alert]]),tblInterventions[[Index]:[Cost Type]],2,FALSE)*tblAssets_Results[[#This Row],[Number of Spouts]],"") ->  | AY11: =IF(tblAssets_Results[[#This Row],[Remaining Lifespan of Borehole]]<YearsRemainingThreshold,VLOOKUP(CONCATENATE(tblAssetTypes[[#This Row],[Asset component]],"|",tblAssets_Results[[#This Row],[Alert]]),tblInterventions[[Index]:[Cost Type]],2,FALSE),"") ->  | AZ11: =IF(tblAssets_Results[[#This Row],[Remaining Lifespan of Pump]]<YearsRemainingThreshold,VLOOKUP(CONCATENATE(Assumptions!$E$7,"|",tblAssets_Results[[#This Row],[Alert]]),tblInterventions[[Index]:[Cost Type]],2,FALSE),"") ->  | BA11: =IF(tblAssets_Results[[#This Row],[Remaining Lifespan of Concrete works]]<YearsRemainingThreshold,VLOOKUP(CONCATENATE(Assumptions!$E$8,"|",tblAssets_Results[[#This Row],[Alert]]),tblInterventions[[Index]:[Cost Type]]*tblAssets_Results[[#This Row],[Estimated amount of m3 concrete works]],2,FALSE),"") ->  | BB11: =IFERROR(IF(tblAssets_Results[[#This Row],[Remaining LifeSpan of Pipes]]<YearsRemainingThreshold,VLOOKUP(CONCATENATE($BB$6,"|",tblAssets_Results[[#This Row],[Alert]]),tblInterventions[[Index]:[Cost Type]],2,FALSE)*tblAssets_Results[[#This Row],[Number of Pipes (m)]],""),"") ->  | BC11: =IF(ISNUMBER(SEARCH(BC$6,tblAssets_Results[[#This Row],[Component(s)]:[Component(s)]])),VLOOKUP(CONCATENATE($BC$6,"|",tblAssets_Results[[#This Row],[Alert]]),tblInterventions[[Index]:[Cost Type]],2,FALSE),"") ->  | BD11: =IF(ISNUMBER(SEARCH(BD$6,tblAssets_Results[[#This Row],[Component(s)]:[Component(s)]])),VLOOKUP(CONCATENATE($BD$6,"|",tblAssets_Results[[#This Row],[Alert]]),tblInterventions[[Index]:[Cost Type]],2,FALSE)*tblAssets_Results[[#This Row],[Number of Spouts]],"") ->  | BE11: =IF(ISNUMBER(SEARCH(BE$6,tblAssets_Results[[#This Row],[Component(s)]:[Component(s)]])),VLOOKUP(CONCATENATE($BE$6,"|",tblAssets_Results[[#This Row],[Alert]]),tblInterventions[[Index]:[Cost Type]],2,FALSE),"") ->  | BF11: =IF(ISNUMBER(SEARCH(BF$6,tblAssets_Results[[#This Row],[Component(s)]:[Component(s)]])),VLOOKUP(CONCATENATE($BF$6,"|",tblAssets_Results[[#This Row],[Alert]]),tblInterventions[[Index]:[Cost Type]],2,FALSE),"") ->  | BG11: =IF(ISNUMBER(SEARCH(BG$6,tblAssets_Results[[#This Row],[Component(s)]:[Component(s)]])),VLOOKUP(CONCATENATE($BG$6,"|",tblAssets_Results[[#This Row],[Alert]]),tblInterventions[[Index]:[Cost Type]],2,FALSE)*tblAssets_Results[[#This Row],[Estimated amount of m3 concrete works]],"") ->  | BH11: =IF(ISNUMBER(SEARCH(BH$6,tblAssets_Results[[#This Row],[Component(s)]:[Component(s)]])),VLOOKUP(CONCATENATE($BH$6,"|",tblAssets_Results[[#This Row],[Alert]]),tblInterventions[[Index]:[Cost Type]],2,FALSE)*tblAssets_Results[[#This Row],[Number of Pipes (m)]],"") ->  | BI11: =IF(OR(tblAssets_Results[[#This Row],[Alert]]=stdAlert_MajorRepairs,tblAssets_Results[[#This Row],[Alert]]=stdAlert_NewConstruction),VLOOKUP(CONCATENATE(BI$6,"|",tblAssets_Results[[#This Row],[Alert]]),tblInterventions[[Index]:[Cost Type]],2,FALSE),"") -> 2000 | BJ11: =IF(OR(tblAssets_Results[[#This Row],[Alert]]=stdAlert_MajorRepairs,tblAssets_Results[[#This Row],[Alert]]=stdAlert_NewConstruction),VLOOKUP(CONCATENATE(BJ$6,"|",tblAssets_Results[[#This Row],[Alert]]),tblInterventions[[Index]:[Cost Type]],2,FALSE)*tblAssets_Results[[#This Row],[Number of Spouts]],"") -> 20 | BK11: =IF(OR(tblAssets_Results[[#This Row],[Alert]]=stdAlert_MajorRepairs,tblAssets_Results[[#This Row],[Alert]]=stdAlert_NewConstruction),VLOOKUP(CONCATENATE(BK$6,"|",tblAssets_Results[[#This Row],[Alert]]),tblInterventions[[Index]:[Cost Type]],2,FALSE),"") -> 5000 | BL11: =IF(OR(tblAssets_Results[[#This Row],[Alert]]=stdAlert_MajorRepairs,tblAssets_Results[[#This Row],[Alert]]=stdAlert_NewConstruction),VLOOKUP(CONCATENATE(BL$6,"|",tblAssets_Results[[#This Row],[Alert]]),tblInterventions[[Index]:[Cost Type]],2,FALSE),"") -> 1000 | BM11: =IF(OR(tblAssets_Results[[#This Row],[Alert]]=stdAlert_MajorRepairs,tblAssets_Results[[#This Row],[Alert]]=stdAlert_NewConstruction),VLOOKUP(CONCATENATE(BM$6,"|",tblAssets_Results[[#This Row],[Alert]]),tblInterventions[[Index]:[Cost Type]],2,FALSE)*tblAssets_Results[[#This Row],[Estimated amount of m3 concrete works]],"") -> 1500 | BN11: =IF(OR(tblAssets_Results[[#This Row],[Alert]]=stdAlert_MajorRepairs,tblAssets_Results[[#This Row],[Alert]]=stdAlert_NewConstruction),VLOOKUP(CONCATENATE(BN$6,"|",tblAssets_Results[[#This Row],[Alert]]),tblInterventions[[Index]:[Cost Type]],2,FALSE)*tblAssets_Results[[#This Row],[Number of Pipes (m)]],"") -> 150 | BO11: =SUM(tblAssets_Results[[#This Row],[Capmanex component 1]:[Capex Cost component 6]]) -> 9670 | BP11: =VLOOKUP(CONCATENATE(BP$6,"|",stdAlert_NewConstruction),tblInterventions[[Index]:[Cost Type]],2,FALSE) -> 2000 | BQ11: =VLOOKUP(CONCATENATE(BQ$6,"|",stdAlert_NewConstruction),tblInterventions[[Index]:[Cost Type]],2,FALSE)*tblAssets_Results[[#This Row],[Number of Spouts]] -> 20 | BR11: =VLOOKUP(CONCATENATE(BR$6,"|",stdAlert_NewConstruction),tblInterventions[[Index]:[Cost Type]],2,FALSE) -> 5000 | BS11: =VLOOKUP(CONCATENATE(BS$6,"|",stdAlert_NewConstruction),tblInterventions[[Index]:[Cost Type]],2,FALSE) -> 1000 | BT11: =VLOOKUP(CONCATENATE(BT$6,"|",stdAlert_NewConstruction),tblInterventions[[Index]:[Cost Type]],2,FALSE)*tblAssets_Results[[#This Row],[Estimated amount of m3 concrete works]] -> 1500 | BU11: =VLOOKUP(CONCATENATE(BU$6,"|",stdAlert_NewConstruction),tblInterventions[[Index]:[Cost Type]],2,FALSE)*tblAssets_Results[[#This Row],[Number of Pipes (m)]] -> 150 | BV11: =SUM(tblAssets_Results[[#This Row],[Full Capex Cost component 1]:[Capex Cost component 62]]) -> 9670
B12: 5 | C12: =VLOOKUP(tblAssets_Results[[#This Row],[Asset Analysis ID]:[Asset Analysis ID]],tblAssets_Raw[],C$4,FALSE) -> Piped water system | D12: =VLOOKUP(tblAssets_Results[[#This Row],[Asset Analysis ID]:[Asset Analysis ID]],tblAssets_Raw[],D$4,FALSE) -> Gravity fed piped scheme | E12: =VLOOKUP(tblAssets_Results[[#This Row],[Asset Analysis ID]:[Asset Analysis ID]],tblAssets_Raw[],E$4,FALSE) -> 2000 | F12: =VLOOKUP(tblAssets_Results[[#This Row],[Asset Analysis ID]:[Asset Analysis ID]],tblAssets_Raw[],F$6,FALSE) -> Kenya | G12: =VLOOKUP(tblAssets_Results[[#This Row],[Asset Analysis ID]:[Asset Analysis ID]],tblAssets_Raw[],G$6,FALSE) -> Rift Valley | H12: =VLOOKUP(tblAssets_Results[[#This Row],[Asset Analysis ID]:[Asset Analysis ID]],tblAssets_Raw[],H$6,FALSE) -> Samburu | I12: =VLOOKUP(tblAssets_Results[[#This Row],[Asset Analysis ID]:[Asset Analysis ID]],tblAssets_Raw[],I$6,FALSE) -> Samburu Central | J12: =VLOOKUP(tblAssets_Results[[#This Row],[Asset Analysis ID]:[Asset Analysis ID]],tblAssets_Raw[],J$6,FALSE) -> Samburu | K12: =VLOOKUP(tblAssets_Results[[#This Row],[Asset Analysis ID]:[Asset Analysis ID]],tblAssets_Raw[],K$6,FALSE) -> 2022 | L12: =IFERROR(IF(tblAssets_Results[[#This Row],[Water Point/System Improved]]=stdNo,stdRisk_NoImprovedWPS,CHOOSE(COUNTIF(tblAssets_Results[[#This Row],[Remaining Lifespan of Spring Protection]:[Remaining LifeSpan of Pipes]],"<=" & YearsRemainingThreshold)+1,stdRisk_Low,stdRisk_Medium,stdRisk_High,stdRisk_High,stdRisk_High,stdRisk_High,stdRisk_High)),"") -> Medium Risk | M12: =IFERROR(IF(tblAssets_Results[[#This Row],[Water Point/System Improved]]=stdNo,stdRisk_NoImprovedWPS,Conditions2Risk(tblAssets_Results[[#This Row],[Condition of Spring Protection]:[Condition Of The Water Point/System Overall]])),"") -> Low Risk | N12: =IFERROR(VLOOKUP(CONCATENATE(tblAssets_Results[[#This Row],[Risk Based On Age]],"|",tblAssets_Results[[#This Row],[Risk Based On Current Condition]]),tblRiskToPriority[[Index]:[Level of Priority]],2,FALSE),"") -> Low Priority | O12: =IFERROR(IF(tblAssets_Results[[#This Row],[Level Of Priority To Replace/Repair]]=stdPriority_NewConstruction,stdAlert_NewConstruction,IF(OR(tblAssets_Results[[#This Row],[Level Of Priority To Replace/Repair]]=stdPriority_High,tblAssets_Results[[#This Row],[Condition Of The Water Point/System Overall]]=stdCondition_VeryPoor),stdAlert_MajorRepairs,IF(OR(tblAssets_Results[[#This Row],[Risk Based On Age]]=stdRisk_High,tblAssets_Results[[#This Row],[Risk Based On Age]]=stdRisk_Medium),stdAlert_ConsiderReplacement,IF(OR(tblAssets_Results[[#This Row],[Worst Condition]]=stdCondition_Poor,tblAssets_Results[[#This Row],[Worst Condition]]=stdCondition_VeryPoor),stdAlert_RepairReplace,stdAlert_RoutineMaintenance)))),"") -> Consider Replacing Aging Components | P12: =IF(tblAssets_Results[[#This Row],[Alert]]=stdAlert_ConsiderReplacement,shortlifetime_components(tblAssets_Results[[#This Row],[Remaining Lifespan of Spring Protection]:[Remaining LifeSpan of Pipes]],YearsRemainingThreshold),IF(tblAssets_Results[[#This Row],[Alert]]=stdAlert_RepairReplace,PoorCondition_Components(tblAssets_Results[[#This Row],[Condition of Spring Protection]:[Condition Of The Water Point/System Overall]]),"")) -> Pipes | Q12: =IF(tblAssets_Results[[#This Row],[Alert]]=stdPriority_NewConstruction,stdRecommend_InvestmentPlan,IF(tblAssets_Results[[#This Row],[Alert]]=stdAlert_MajorRepairs,stdRecommend_FurtherDiagnostics,IF(tblAssets_Results[[#This Row],[Alert]]=stdAlert_ConsiderReplacement,stdRecommend_FurtherDiagnostics,IF(tblAssets_Results[[#This Row],[Alert]]=stdAlert_RepairReplace,stdRecommend_PlanRepairReplace,IF(tblAssets_Results[[#This Row],[Alert]]=stdAlert_RoutineMaintenance,stdRecommend_MaintainOM,""))))) -> Further Technical Diagnostic Needed | R12: =IF(tblAssets_Results[[#This Row],[Presence Of Spring Protection?]]=stdYes,stdLife_SpringProtection-(tblAssets_Results[[#This Row],[Year Data Was Collected]]-tblAssets_Results[[#This Row],[Year Source Protection Was Constructed or Replaced]])," ") ->  | S12: =IF(tblAssets_Results[[#This Row],[Presence Of Tap(s)?]]=stdYes,stdLife_Taps-(tblAssets_Results[[#This Row],[Year Data Was Collected]]-tblAssets_Results[[#This Row],[Year Taps were Constructed or Replaced]])," ") ->  | T12: =IF(tblAssets_Results[[#This Row],[Presence Of Well?]]=stdYes,stdLife_Well-(tblAssets_Results[[#This Row],[Year Data Was Collected]]-tblAssets_Results[[#This Row],[Year Well Was Constructed or Replaced]])," ") -> 20 | U12: =IF(tblAssets_Results[[#This Row],[Presence Of Pump?]]=stdYes,stdLife_Pump-(tblAssets_Results[[#This Row],[Year Data Was Collected]]-tblAssets_Results[[#This Row],[Year Pump Was Installed or Replaced]])," ") -> 5 | V12: =IF(tblAssets_Results[[#This Row],[Presence Of An concrete works?]]=stdYes,stdLife_Apron-(tblAssets_Results[[#This Row],[Year Data Was Collected]]-tblAssets_Results[[#This Row],[Year concrete work was Constructed or Replaced]])," ") -> 25 | W12: =IFERROR(VLOOKUP(tblAssets_Results[[#This Row],[Material of the Pipes]],tblPipeMaterials[],2,FALSE)-(tblAssets_Results[[#This Row],[Year Data Was Collected]]-tblAssets_Results[[#This Row],[Year Of Construction]]),"") -> -7 | X12: =IFERROR(VLOOKUP(tblAssets_Results[[#This Row],[Asset Analysis ID]],tblAssets_Raw[],$X$4,FALSE),"") -> 0 | Y12: =VLOOKUP(tblAssets_Results[[#This Row],[Asset Analysis ID]],tblAssets_Raw[],$Y$4,FALSE) -> 3 | Z12: =VLOOKUP(tblAssets_Results[[#This Row],[Asset Analysis ID]],tblAssets_Raw[],$Z$4,FALSE) -> Good | AA12: =VLOOKUP(tblAssets_Results[[#This Row],[Asset Analysis ID]],tblAssets_Raw[],$AA$4,FALSE) -> Fair | AB12: =VLOOKUP(tblAssets_Results[[#This Row],[Asset Analysis ID]],tblAssets_Raw[],$AB$4,FALSE) -> Poor | AC12: =IFERROR(VLOOKUP(VLOOKUP(tblAssets_Results[[#This Row],[Asset Analysis ID]],tblAssets_Raw[],$AC$4,FALSE),tblFunctionalStatus[],2,FALSE),"") -> Excellent | AD12: =WorstCondition(tblAssets_Results[[#This Row],[Condition of Spring Protection]:[Condition Of The Water Point/System Overall]]) -> Poor | AE12: =VLOOKUP(tblAssets_Results[[#This Row],[Asset Analysis ID]:[Asset Analysis ID]],tblAssets_Raw[],AE$4,FALSE) -> Yes | AF12: =VLOOKUP(tblAssets_Results[[#This Row],[Asset Analysis ID]:[Asset Analysis ID]],tblAssets_Raw[],AF$4,FALSE) -> Yes | AG12: =VLOOKUP(tblAssets_Results[[#This Row],[Asset Analysis ID]:[Asset Analysis ID]],tblAssets_Raw[],AG$4,FALSE) -> No | AH12: =IF(OR(tblAssets_Results[[#This Row],[Condition Of The Water Point/System Overall]]=stdCondition_Excellent,tblAssets_Results[[#This Row],[Condition Of The Water Point/System Overall]]=stdCondition_Good),stdYes,stdNo) -> Yes | AI12: =VLOOKUP(tblAssets_Results[[#This Row],[Asset Analysis ID]],tblAssets_Raw[],$AI$4,FALSE) -> No | AJ12: =VLOOKUP(tblAssets_Results[[#This Row],[Asset Analysis ID]],tblAssets_Raw[],$AJ$4,FALSE) -> 0 | AK12: =VLOOKUP(tblAssets_Results[[#This Row],[Asset Analysis ID]],tblAssets_Raw[],$AK$4,FALSE) -> 0 | AL12: =VLOOKUP(tblAssets_Results[[#This Row],[Asset Analysis ID]],tblAssets_Raw[],$AL$4,FALSE) -> 3 | AM12: =VLOOKUP(tblAssets_Results[[#This Row],[Asset Analysis ID]],tblAssets_Raw[],$AM$4,FALSE) -> 2022 | AN12: =VLOOKUP(tblAssets_Results[[#This Row],[Asset Analysis ID]],tblAssets_Raw[],$AN$4,FALSE) -> Yes | AO12: =VLOOKUP(tblAssets_Results[[#This Row],[Asset Analysis ID]],tblAssets_Raw[],$AO$4,FALSE) -> 2022 | AP12: =VLOOKUP(tblAssets_Results[[#This Row],[Asset Analysis ID]],tblAssets_Raw[],$AP$4,FALSE) -> Yes | AQ12: =VLOOKUP(tblAssets_Results[[#This Row],[Asset Analysis ID]],tblAssets_Raw[],$AQ$4,FALSE) -> 150 | AR12: =VLOOKUP(tblAssets_Results[[#This Row],[Asset Analysis ID]],tblAssets_Raw[],$AR$4,FALSE) -> HDPE Pipe | AS12: =VLOOKUP(tblAssets_Results[[#This Row],[Asset Analysis ID]],tblAssets_Raw[],$AS$4,FALSE) -> 2022 | AT12: =VLOOKUP(tblAssets_Results[[#This Row],[Asset Analysis ID]],tblAssets_Raw[],$AT$4,FALSE) -> Yes | AU12: =VLOOKUP(tblAssets_Results[[#This Row],[Asset Analysis ID]],tblAssets_Raw[],$AU$4,FALSE) -> 2022 | AV12: =VLOOKUP(tblAssets_Results[[#This Row],[Asset Analysis ID]],tblAssets_Raw[],$AV$4,FALSE) -> 3 | AW12: =IF(tblAssets_Results[[#This Row],[Remaining Lifespan of Spring Protection]]<YearsRemainingThreshold,VLOOKUP(CONCATENATE($AW$6,"|",tblAssets_Results[[#This Row],[Alert]]),tblInterventions[[Index]:[Cost Type]],2,FALSE),"") ->  | AX12: =IF(tblAssets_Results[[#This Row],[Remaining Lifespan of taps/Spouts]]<YearsRemainingThreshold,VLOOKUP(CONCATENATE(Assumptions!$E$10,"|",tblAssets_Results[[#This Row],[Alert]]),tblInterventions[[Index]:[Cost Type]],2,FALSE)*tblAssets_Results[[#This Row],[Number of Spouts]],"") ->  | AY12: =IF(tblAssets_Results[[#This Row],[Remaining Lifespan of Borehole]]<YearsRemainingThreshold,VLOOKUP(CONCATENATE(tblAssetTypes[[#This Row],[Asset component]],"|",tblAssets_Results[[#This Row],[Alert]]),tblInterventions[[Index]:[Cost Type]],2,FALSE),"") ->  | AZ12: =IF(tblAssets_Results[[#This Row],[Remaining Lifespan of Pump]]<YearsRemainingThreshold,VLOOKUP(CONCATENATE(Assumptions!$E$7,"|",tblAssets_Results[[#This Row],[Alert]]),tblInterventions[[Index]:[Cost Type]],2,FALSE),"") ->  | BA12: =IF(tblAssets_Results[[#This Row],[Remaining Lifespan of Concrete works]]<YearsRemainingThreshold,VLOOKUP(CONCATENATE(Assumptions!$E$8,"|",tblAssets_Results[[#This Row],[Alert]]),tblInterventions[[Index]:[Cost Type]]*tblAssets_Results[[#This Row],[Estimated amount of m3 concrete works]],2,FALSE),"") ->  | BB12: =IFERROR(IF(tblAssets_Results[[#This Row],[Remaining LifeSpan of Pipes]]<YearsRemainingThreshold,VLOOKUP(CONCATENATE($BB$6,"|",tblAssets_Results[[#This Row],[Alert]]),tblInterventions[[Index]:[Cost Type]],2,FALSE)*tblAssets_Results[[#This Row],[Number of Pipes (m)]],""),"") -> 1500 | BC12: =IF(ISNUMBER(SEARCH(BC$6,tblAssets_Results[[#This Row],[Component(s)]:[Component(s)]])),VLOOKUP(CONCATENATE($BC$6,"|",tblAssets_Results[[#This Row],[Alert]]),tblInterventions[[Index]:[Cost Type]],2,FALSE),"") ->  | BD12: =IF(ISNUMBER(SEARCH(BD$6,tblAssets_Results[[#This Row],[Component(s)]:[Component(s)]])),VLOOKUP(CONCATENATE($BD$6,"|",tblAssets_Results[[#This Row],[Alert]]),tblInterventions[[Index]:[Cost Type]],2,FALSE)*tblAssets_Results[[#This Row],[Number of Spouts]],"") ->  | BE12: =IF(ISNUMBER(SEARCH(BE$6,tblAssets_Results[[#This Row],[Component(s)]:[Component(s)]])),VLOOKUP(CONCATENATE($BE$6,"|",tblAssets_Results[[#This Row],[Alert]]),tblInterventions[[Index]:[Cost Type]],2,FALSE),"") ->  | BF12: =IF(ISNUMBER(SEARCH(BF$6,tblAssets_Results[[#This Row],[Component(s)]:[Component(s)]])),VLOOKUP(CONCATENATE($BF$6,"|",tblAssets_Results[[#This Row],[Alert]]),tblInterventions[[Index]:[Cost Type]],2,FALSE),"") ->  | BG12: =IF(ISNUMBER(SEARCH(BG$6,tblAssets_Results[[#This Row],[Component(s)]:[Component(s)]])),VLOOKUP(CONCATENATE($BG$6,"|",tblAssets_Results[[#This Row],[Alert]]),tblInterventions[[Index]:[Cost Type]],2,FALSE)*tblAssets_Results[[#This Row],[Estimated amount of m3 concrete works]],"") ->  | BH12: =IF(ISNUMBER(SEARCH(BH$6,tblAssets_Results[[#This Row],[Component(s)]:[Component(s)]])),VLOOKUP(CONCATENATE($BH$6,"|",tblAssets_Results[[#This Row],[Alert]]),tblInterventions[[Index]:[Cost Type]],2,FALSE)*tblAssets_Results[[#This Row],[Number of Pipes (m)]],"") -> 1500 | BI12: =IF(OR(tblAssets_Results[[#This Row],[Alert]]=stdAlert_MajorRepairs,tblAssets_Results[[#This Row],[Alert]]=stdAlert_NewConstruction),VLOOKUP(CONCATENATE(BI$6,"|",tblAssets_Results[[#This Row],[Alert]]),tblInterventions[[Index]:[Cost Type]],2,FALSE),"") ->  | BJ12: =IF(OR(tblAssets_Results[[#This Row],[Alert]]=stdAlert_MajorRepairs,tblAssets_Results[[#This Row],[Alert]]=stdAlert_NewConstruction),VLOOKUP(CONCATENATE(BJ$6,"|",tblAssets_Results[[#This Row],[Alert]]),tblInterventions[[Index]:[Cost Type]],2,FALSE)*tblAssets_Results[[#This Row],[Number of Spouts]],"") ->  | BK12: =IF(OR(tblAssets_Results[[#This Row],[Alert]]=stdAlert_MajorRepairs,tblAssets_Results[[#This Row],[Alert]]=stdAlert_NewConstruction),VLOOKUP(CONCATENATE(BK$6,"|",tblAssets_Results[[#This Row],[Alert]]),tblInterventions[[Index]:[Cost Type]],2,FALSE),"") ->  | BL12: =IF(OR(tblAssets_Results[[#This Row],[Alert]]=stdAlert_MajorRepairs,tblAssets_Results[[#This Row],[Alert]]=stdAlert_NewConstruction),VLOOKUP(CONCATENATE(BL$6,"|",tblAssets_Results[[#This Row],[Alert]]),tblInterventions[[Index]:[Cost Type]],2,FALSE),"") ->  | BM12: =IF(OR(tblAssets_Results[[#This Row],[Alert]]=stdAlert_MajorRepairs,tblAssets_Results[[#This Row],[Alert]]=stdAlert_NewConstruction),VLOOKUP(CONCATENATE(BM$6,"|",tblAssets_Results[[#This Row],[Alert]]),tblInterventions[[Index]:[Cost Type]],2,FALSE)*tblAssets_Results[[#This Row],[Estimated amount of m3 concrete works]],"") ->  | BN12: =IF(OR(tblAssets_Results[[#This Row],[Alert]]=stdAlert_MajorRepairs,tblAssets_Results[[#This Row],[Alert]]=stdAlert_NewConstruction),VLOOKUP(CONCATENATE(BN$6,"|",tblAssets_Results[[#This Row],[Alert]]),tblInterventions[[Index]:[Cost Type]],2,FALSE)*tblAssets_Results[[#This Row],[Number of Pipes (m)]],"") ->  | BO12: =SUM(tblAssets_Results[[#This Row],[Capmanex component 1]:[Capex Cost component 6]]) -> 1500 | BP12: =VLOOKUP(CONCATENATE(BP$6,"|",stdAlert_NewConstruction),tblInterventions[[Index]:[Cost Type]],2,FALSE) -> 2000 | BQ12: =VLOOKUP(CONCATENATE(BQ$6,"|",stdAlert_NewConstruction),tblInterventions[[Index]:[Cost Type]],2,FALSE)*tblAssets_Results[[#This Row],[Number of Spouts]] -> 30 | BR12: =VLOOKUP(CONCATENATE(BR$6,"|",stdAlert_NewConstruction),tblInterventions[[Index]:[Cost Type]],2,FALSE) -> 5000 | BS12: =VLOOKUP(CONCATENATE(BS$6,"|",stdAlert_NewConstruction),tblInterventions[[Index]:[Cost Type]],2,FALSE) -> 1000 | BT12: =VLOOKUP(CONCATENATE(BT$6,"|",stdAlert_NewConstruction),tblInterventions[[Index]:[Cost Type]],2,FALSE)*tblAssets_Results[[#This Row],[Estimated amount of m3 concrete works]] -> 1500 | BU12: =VLOOKUP(CONCATENATE(BU$6,"|",stdAlert_NewConstruction),tblInterventions[[Index]:[Cost Type]],2,FALSE)*tblAssets_Results[[#This Row],[Number of Pipes (m)]] -> 2250 | BV12: =SUM(tblAssets_Results[[#This Row],[Full Capex Cost component 1]:[Capex Cost component 62]]) -> 11780
B13: 6 | C13: =VLOOKUP(tblAssets_Results[[#This Row],[Asset Analysis ID]:[Asset Analysis ID]],tblAssets_Raw[],C$4,FALSE) -> Piped water system | D13: =VLOOKUP(tblAssets_Results[[#This Row],[Asset Analysis ID]:[Asset Analysis ID]],tblAssets_Raw[],D$4,FALSE) -> Borehole piped scheme | E13: =VLOOKUP(tblAssets_Results[[#This Row],[Asset Analysis ID]:[Asset Analysis ID]],tblAssets_Raw[],E$4,FALSE) -> 2010 | F13: =VLOOKUP(tblAssets_Results[[#This Row],[Asset Analysis ID]:[Asset Analysis ID]],tblAssets_Raw[],F$6,FALSE) -> Kenya | G13: =VLOOKUP(tblAssets_Results[[#This Row],[Asset Analysis ID]:[Asset Analysis ID]],tblAssets_Raw[],G$6,FALSE) -> Rift Valley | H13: =VLOOKUP(tblAssets_Results[[#This Row],[Asset Analysis ID]:[Asset Analysis ID]],tblAssets_Raw[],H$6,FALSE) -> Samburu | I13: =VLOOKUP(tblAssets_Results[[#This Row],[Asset Analysis ID]:[Asset Analysis ID]],tblAssets_Raw[],I$6,FALSE) -> Samburu Central | J13: =VLOOKUP(tblAssets_Results[[#This Row],[Asset Analysis ID]:[Asset Analysis ID]],tblAssets_Raw[],J$6,FALSE) -> Samburu | K13: =VLOOKUP(tblAssets_Results[[#This Row],[Asset Analysis ID]:[Asset Analysis ID]],tblAssets_Raw[],K$6,FALSE) -> 2022 | L13: =IFERROR(IF(tblAssets_Results[[#This Row],[Water Point/System Improved]]=stdNo,stdRisk_NoImprovedWPS,CHOOSE(COUNTIF(tblAssets_Results[[#This Row],[Remaining Lifespan of Spring Protection]:[Remaining LifeSpan of Pipes]],"<=" & YearsRemainingThreshold)+1,stdRisk_Low,stdRisk_Medium,stdRisk_High,stdRisk_High,stdRisk_High,stdRisk_High,stdRisk_High)),"") -> Medium Risk | M13: =IFERROR(IF(tblAssets_Results[[#This Row],[Water Point/System Improved]]=stdNo,stdRisk_NoImprovedWPS,Conditions2Risk(tblAssets_Results[[#This Row],[Condition of Spring Protection]:[Condition Of The Water Point/System Overall]])),"") -> Low Risk | N13: =IFERROR(VLOOKUP(CONCATENATE(tblAssets_Results[[#This Row],[Risk Based On Age]],"|",tblAssets_Results[[#This Row],[Risk Based On Current Condition]]),tblRiskToPriority[[Index]:[Level of Priority]],2,FALSE),"") -> Low Priority | O13: =IFERROR(IF(tblAssets_Results[[#This Row],[Level Of Priority To Replace/Repair]]=stdPriority_NewConstruction,stdAlert_NewConstruction,IF(OR(tblAssets_Results[[#This Row],[Level Of Priority To Replace/Repair]]=stdPriority_High,tblAssets_Results[[#This Row],[Condition Of The Water Point/System Overall]]=stdCondition_VeryPoor),stdAlert_MajorRepairs,IF(OR(tblAssets_Results[[#This Row],[Risk Based On Age]]=stdRisk_High,tblAssets_Results[[#This Row],[Risk Based On Age]]=stdRisk_Medium),stdAlert_ConsiderReplacement,IF(OR(tblAssets_Results[[#This Row],[Worst Condition]]=stdCondition_Poor,tblAssets_Results[[#This Row],[Worst Condition]]=stdCondition_VeryPoor),stdAlert_RepairReplace,stdAlert_RoutineMaintenance)))),"") -> Consider Replacing Aging Components | P13: =IF(tblAssets_Results[[#This Row],[Alert]]=stdAlert_ConsiderReplacement,shortlifetime_components(tblAssets_Results[[#This Row],[Remaining Lifespan of Spring Protection]:[Remaining LifeSpan of Pipes]],YearsRemainingThreshold),IF(tblAssets_Results[[#This Row],[Alert]]=stdAlert_RepairReplace,PoorCondition_Components(tblAssets_Results[[#This Row],[Condition of Spring Protection]:[Condition Of The Water Point/System Overall]]),"")) -> Taps | Q13: =IF(tblAssets_Results[[#This Row],[Alert]]=stdPriority_NewConstruction,stdRecommend_InvestmentPlan,IF(tblAssets_Results[[#This Row],[Alert]]=stdAlert_MajorRepairs,stdRecommend_FurtherDiagnostics,IF(tblAssets_Results[[#This Row],[Alert]]=stdAlert_ConsiderReplacement,stdRecommend_FurtherDiagnostics,IF(tblAssets_Results[[#This Row],[Alert]]=stdAlert_RepairReplace,stdRecommend_PlanRepairReplace,IF(tblAssets_Results[[#This Row],[Alert]]=stdAlert_RoutineMaintenance,stdRecommend_MaintainOM,""))))) -> Further Technical Diagnostic Needed | R13: =IF(tblAssets_Results[[#This Row],[Presence Of Spring Protection?]]=stdYes,stdLife_SpringProtection-(tblAssets_Results[[#This Row],[Year Data Was Collected]]-tblAssets_Results[[#This Row],[Year Source Protection Was Constructed or Replaced]])," ") ->  | S13: =IF(tblAssets_Results[[#This Row],[Presence Of Tap(s)?]]=stdYes,stdLife_Taps-(tblAssets_Results[[#This Row],[Year Data Was Collected]]-tblAssets_Results[[#This Row],[Year Taps were Constructed or Replaced]])," ") -> -7 | T13: =IF(tblAssets_Results[[#This Row],[Presence Of Well?]]=stdYes,stdLife_Well-(tblAssets_Results[[#This Row],[Year Data Was Collected]]-tblAssets_Results[[#This Row],[Year Well Was Constructed or Replaced]])," ") -> 20 | U13: =IF(tblAssets_Results[[#This Row],[Presence Of Pump?]]=stdYes,stdLife_Pump-(tblAssets_Results[[#This Row],[Year Data Was Collected]]-tblAssets_Results[[#This Row],[Year Pump Was Installed or Replaced]])," ") -> 5 | V13: =IF(tblAssets_Results[[#This Row],[Presence Of An concrete works?]]=stdYes,stdLife_Apron-(tblAssets_Results[[#This Row],[Year Data Was Collected]]-tblAssets_Results[[#This Row],[Year concrete work was Constructed or Replaced]])," ") -> 25 | W13: =IFERROR(VLOOKUP(tblAssets_Results[[#This Row],[Material of the Pipes]],tblPipeMaterials[],2,FALSE)-(tblAssets_Results[[#This Row],[Year Data Was Collected]]-tblAssets_Results[[#This Row],[Year Of Construction]]),"") -> 8 | X13: =IFERROR(VLOOKUP(tblAssets_Results[[#This Row],[Asset Analysis ID]],tblAssets_Raw[],$X$4,FALSE),"") -> 0 | Y13: =VLOOKUP(tblAssets_Results[[#This Row],[Asset Analysis ID]],tblAssets_Raw[],$Y$4,FALSE) -> 3 | Z13: =VLOOKUP(tblAssets_Results[[#This Row],[Asset Analysis ID]],tblAssets_Raw[],$Z$4,FALSE) -> Good | AA13: =VLOOKUP(tblAssets_Results[[#This Row],[Asset Analysis ID]],tblAssets_Raw[],$AA$4,FALSE) -> Fair | AB13: =VLOOKUP(tblAssets_Results[[#This Row],[Asset Analysis ID]],tblAssets_Raw[],$AB$4,FALSE) -> Poor | AC13: =IFERROR(VLOOKUP(VLOOKUP(tblAssets_Results[[#This Row],[Asset Analysis ID]],tblAssets_Raw[],$AC$4,FALSE),tblFunctionalStatus[],2,FALSE),"") -> Excellent | AD13: =WorstCondition(tblAssets_Results[[#This Row],[Condition of Spring Protection]:[Condition Of The Water Point/System Overall]]) -> Poor | AE13: =VLOOKUP(tblAssets_Results[[#This Row],[Asset Analysis ID]:[Asset Analysis ID]],tblAssets_Raw[],AE$4,FALSE) -> Yes | AF13: =VLOOKUP(tblAssets_Results[[#This Row],[Asset Analysis ID]:[Asset Analysis ID]],tblAssets_Raw[],AF$4,FALSE) -> Yes | AG13: =VLOOKUP(tblAssets_Results[[#This Row],[Asset Analysis ID]:[Asset Analysis ID]],tblAssets_Raw[],AG$4,FALSE) -> No | AH13: =IF(OR(tblAssets_Results[[#This Row],[Condition Of The Water Point/System Overall]]=stdCondition_Excellent,tblAssets_Results[[#This Row],[Condition Of The Water Point/System Overall]]=stdCondition_Good),stdYes,stdNo) -> Yes | AI13: =VLOOKUP(tblAssets_Results[[#This Row],[Asset Analysis ID]],tblAssets_Raw[],$AI$4,FALSE) -> No | AJ13: =VLOOKUP(tblAssets_Results[[#This Row],[Asset Analysis ID]],tblAssets_Raw[],$AJ$4,FALSE) -> 0 | AK13: =VLOOKUP(tblAssets_Results[[#This Row],[Asset Analysis ID]],tblAssets_Raw[],$AK$4,FALSE) -> Yes | AL13: =VLOOKUP(tblAssets_Results[[#This Row],[Asset Analysis ID]],tblAssets_Raw[],$AL$4,FALSE) -> 3 | AM13: =VLOOKUP(tblAssets_Results[[#This Row],[Asset Analysis ID]],tblAssets_Raw[],$AM$4,FALSE) -> 2010 | AN13: =VLOOKUP(tblAssets_Results[[#This Row],[Asset Analysis ID]],tblAssets_Raw[],$AN$4,FALSE) -> Yes | AO13: =VLOOKUP(tblAssets_Results[[#This Row],[Asset Analysis ID]],tblAssets_Raw[],$AO$4,FALSE) -> 2022 | AP13: =VLOOKUP(tblAssets_Results[[#This Row],[Asset Analysis ID]],tblAssets_Raw[],$AP$4,FALSE) -> Yes | AQ13: =VLOOKUP(tblAssets_Results[[#This Row],[Asset Analysis ID]],tblAssets_Raw[],$AQ$4,FALSE) -> 10 | AR13: =VLOOKUP(tblAssets_Results[[#This Row],[Asset Analysis ID]],tblAssets_Raw[],$AR$4,FALSE) -> Galvanised Iron Pipe | AS13: =VLOOKUP(tblAssets_Results[[#This Row],[Asset Analysis ID]],tblAssets_Raw[],$AS$4,FALSE) -> 2022 | AT13: =VLOOKUP(tblAssets_Results[[#This Row],[Asset Analysis ID]],tblAssets_Raw[],$AT$4,FALSE) -> Yes | AU13: =VLOOKUP(tblAssets_Results[[#This Row],[Asset Analysis ID]],tblAssets_Raw[],$AU$4,FALSE) -> 2022 | AV13: =VLOOKUP(tblAssets_Results[[#This Row],[Asset Analysis ID]],tblAssets_Raw[],$AV$4,FALSE) -> 1 | AW13: =IF(tblAssets_Results[[#This Row],[Remaining Lifespan of Spring Protection]]<YearsRemainingThreshold,VLOOKUP(CONCATENATE($AW$6,"|",tblAssets_Results[[#This Row],[Alert]]),tblInterventions[[Index]:[Cost Type]],2,FALSE),"") ->  | AX13: =IF(tblAssets_Results[[#This Row],[Remaining Lifespan of taps/Spouts]]<YearsRemainingThreshold,VLOOKUP(CONCATENATE(Assumptions!$E$10,"|",tblAssets_Results[[#This Row],[Alert]]),tblInterventions[[Index]:[Cost Type]],2,FALSE)*tblAssets_Results[[#This Row],[Number of Spouts]],"") -> 15 | AY13: =IF(tblAssets_Results[[#This Row],[Remaining Lifespan of Borehole]]<YearsRemainingThreshold,VLOOKUP(CONCATENATE(tblAssetTypes[[#This Row],[Asset component]],"|",tblAssets_Results[[#This Row],[Alert]]),tblInterventions[[Index]:[Cost Type]],2,FALSE),"") ->  | AZ13: =IF(tblAssets_Results[[#This Row],[Remaining Lifespan of Pump]]<YearsRemainingThreshold,VLOOKUP(CONCATENATE(Assumptions!$E$7,"|",tblAssets_Results[[#This Row],[Alert]]),tblInterventions[[Index]:[Cost Type]],2,FALSE),"") ->  | BA13: =IF(tblAssets_Results[[#This Row],[Remaining Lifespan of Concrete works]]<YearsRemainingThreshold,VLOOKUP(CONCATENATE(Assumptions!$E$8,"|",tblAssets_Results[[#This Row],[Alert]]),tblInterventions[[Index]:[Cost Type]]*tblAssets_Results[[#This Row],[Estimated amount of m3 concrete works]],2,FALSE),"") ->  | BB13: =IFERROR(IF(tblAssets_Results[[#This Row],[Remaining LifeSpan of Pipes]]<YearsRemainingThreshold,VLOOKUP(CONCATENATE($BB$6,"|",tblAssets_Results[[#This Row],[Alert]]),tblInterventions[[Index]:[Cost Type]],2,FALSE)*tblAssets_Results[[#This Row],[Number of Pipes (m)]],""),"") ->  | BC13: =IF(ISNUMBER(SEARCH(BC$6,tblAssets_Results[[#This Row],[Component(s)]:[Component(s)]])),VLOOKUP(CONCATENATE($BC$6,"|",tblAssets_Results[[#This Row],[Alert]]),tblInterventions[[Index]:[Cost Type]],2,FALSE),"") ->  | BD13: =IF(ISNUMBER(SEARCH(BD$6,tblAssets_Results[[#This Row],[Component(s)]:[Component(s)]])),VLOOKUP(CONCATENATE($BD$6,"|",tblAssets_Results[[#This Row],[Alert]]),tblInterventions[[Index]:[Cost Type]],2,FALSE)*tblAssets_Results[[#This Row],[Number of Spouts]],"") -> 15 | BE13: =IF(ISNUMBER(SEARCH(BE$6,tblAssets_Results[[#This Row],[Component(s)]:[Component(s)]])),VLOOKUP(CONCATENATE($BE$6,"|",tblAssets_Results[[#This Row],[Alert]]),tblInterventions[[Index]:[Cost Type]],2,FALSE),"") ->  | BF13: =IF(ISNUMBER(SEARCH(BF$6,tblAssets_Results[[#This Row],[Component(s)]:[Component(s)]])),VLOOKUP(CONCATENATE($BF$6,"|",tblAssets_Results[[#This Row],[Alert]]),tblInterventions[[Index]:[Cost Type]],2,FALSE),"") ->  | BG13: =IF(ISNUMBER(SEARCH(BG$6,tblAssets_Results[[#This Row],[Component(s)]:[Component(s)]])),VLOOKUP(CONCATENATE($BG$6,"|",tblAssets_Results[[#This Row],[Alert]]),tblInterventions[[Index]:[Cost Type]],2,FALSE)*tblAssets_Results[[#This Row],[Estimated amount of m3 concrete works]],"") ->  | BH13: =IF(ISNUMBER(SEARCH(BH$6,tblAssets_Results[[#This Row],[Component(s)]:[Component(s)]])),VLOOKUP(CONCATENATE($BH$6,"|",tblAssets_Results[[#This Row],[Alert]]),tblInterventions[[Index]:[Cost Type]],2,FALSE)*tblAssets_Results[[#This Row],[Number of Pipes (m)]],"") ->  | BI13: =IF(OR(tblAssets_Results[[#This Row],[Alert]]=stdAlert_MajorRepairs,tblAssets_Results[[#This Row],[Alert]]=stdAlert_NewConstruction),VLOOKUP(CONCATENATE(BI$6,"|",tblAssets_Results[[#This Row],[Alert]]),tblInterventions[[Index]:[Cost Type]],2,FALSE),"") ->  | BJ13: =IF(OR(tblAssets_Results[[#This Row],[Alert]]=stdAlert_MajorRepairs,tblAssets_Results[[#This Row],[Alert]]=stdAlert_NewConstruction),VLOOKUP(CONCATENATE(BJ$6,"|",tblAssets_Results[[#This Row],[Alert]]),tblInterventions[[Index]:[Cost Type]],2,FALSE)*tblAssets_Results[[#This Row],[Number of Spouts]],"") ->  | BK13: =IF(OR(tblAssets_Results[[#This Row],[Alert]]=stdAlert_MajorRepairs,tblAssets_Results[[#This Row],[Alert]]=stdAlert_NewConstruction),VLOOKUP(CONCATENATE(BK$6,"|",tblAssets_Results[[#This Row],[Alert]]),tblInterventions[[Index]:[Cost Type]],2,FALSE),"") ->  | BL13: =IF(OR(tblAssets_Results[[#This Row],[Alert]]=stdAlert_MajorRepairs,tblAssets_Results[[#This Row],[Alert]]=stdAlert_NewConstruction),VLOOKUP(CONCATENATE(BL$6,"|",tblAssets_Results[[#This Row],[Alert]]),tblInterventions[[Index]:[Cost Type]],2,FALSE),"") ->  | BM13: =IF(OR(tblAssets_Results[[#This Row],[Alert]]=stdAlert_MajorRepairs,tblAssets_Results[[#This Row],[Alert]]=stdAlert_NewConstruction),VLOOKUP(CONCATENATE(BM$6,"|",tblAssets_Results[[#This Row],[Alert]]),tblInterventions[[Index]:[Cost Type]],2,FALSE)*tblAssets_Results[[#This Row],[Estimated amount of m3 concrete works]],"") ->  | BN13: =IF(OR(tblAssets_Results[[#This Row],[Alert]]=stdAlert_MajorRepairs,tblAssets_Results[[#This Row],[Alert]]=stdAlert_NewConstruction),VLOOKUP(CONCATENATE(BN$6,"|",tblAssets_Results[[#This Row],[Alert]]),tblInterventions[[Index]:[Cost Type]],2,FALSE)*tblAssets_Results[[#This Row],[Number of Pipes (m)]],"") ->  | BO13: =SUM(tblAssets_Results[[#This Row],[Capmanex component 1]:[Capex Cost component 6]]) -> 15 | BP13: =VLOOKUP(CONCATENATE(BP$6,"|",stdAlert_NewConstruction),tblInterventions[[Index]:[Cost Type]],2,FALSE) -> 2000 | BQ13: =VLOOKUP(CONCATENATE(BQ$6,"|",stdAlert_NewConstruction),tblInterventions[[Index]:[Cost Type]],2,FALSE)*tblAssets_Results[[#This Row],[Number of Spouts]] -> 30 | BR13: =VLOOKUP(CONCATENATE(BR$6,"|",stdAlert_NewConstruction),tblInterventions[[Index]:[Cost Type]],2,FALSE) -> 5000 | BS13: =VLOOKUP(CONCATENATE(BS$6,"|",stdAlert_NewConstruction),tblInterventions[[Index]:[Cost Type]],2,FALSE) -> 1000 | BT13: =VLOOKUP(CONCATENATE(BT$6,"|",stdAlert_NewConstruction),tblInterventions[[Index]:[Cost Type]],2,FALSE)*tblAssets_Results[[#This Row],[Estimated amount of m3 concrete works]] -> 500 | BU13: =VLOOKUP(CONCATENATE(BU$6,"|",stdAlert_NewConstruction),tblInterventions[[Index]:[Cost Type]],2,FALSE)*tblAssets_Results[[#This Row],[Number of Pipes (m)]] -> 150 | BV13: =SUM(tblAssets_Results[[#This Row],[Full Capex Cost component 1]:[Capex Cost component 62]]) -> 8680
B14: 7 | C14: =VLOOKUP(tblAssets_Results[[#This Row],[Asset Analysis ID]:[Asset Analysis ID]],tblAssets_Raw[],C$4,FALSE) -> Pura Village BH | D14: =VLOOKUP(tblAssets_Results[[#This Row],[Asset Analysis ID]:[Asset Analysis ID]],tblAssets_Raw[],D$4,FALSE) -> Borehole with handpump | E14: =VLOOKUP(tblAssets_Results[[#This Row],[Asset Analysis ID]:[Asset Analysis ID]],tblAssets_Raw[],E$4,FALSE) -> 2018 | F14: =VLOOKUP(tblAssets_Results[[#This Row],[Asset Analysis ID]:[Asset Analysis ID]],tblAssets_Raw[],F$6,FALSE) -> Kenya | G14: =VLOOKUP(tblAssets_Results[[#This Row],[Asset Analysis ID]:[Asset Analysis ID]],tblAssets_Raw[],G$6,FALSE) -> Rift Valley | H14: =VLOOKUP(tblAssets_Results[[#This Row],[Asset Analysis ID]:[Asset Analysis ID]],tblAssets_Raw[],H$6,FALSE) -> Samburu | I14: =VLOOKUP(tblAssets_Results[[#This Row],[Asset Analysis ID]:[Asset Analysis ID]],tblAssets_Raw[],I$6,FALSE) -> Samburu North | J14: =VLOOKUP(tblAssets_Results[[#This Row],[Asset Analysis ID]:[Asset Analysis ID]],tblAssets_Raw[],J$6,FALSE) -> Samburu | K14: =VLOOKUP(tblAssets_Results[[#This Row],[Asset Analysis ID]:[Asset Analysis ID]],tblAssets_Raw[],K$6,FALSE) -> 2022 | L14: =IFERROR(IF(tblAssets_Results[[#This Row],[Water Point/System Improved]]=stdNo,stdRisk_NoImprovedWPS,CHOOSE(COUNTIF(tblAssets_Results[[#This Row],[Remaining Lifespan of Spring Protection]:[Remaining LifeSpan of Pipes]],"<=" & YearsRemainingThreshold)+1,stdRisk_Low,stdRisk_Medium,stdRisk_High,stdRisk_High,stdRisk_High,stdRisk_High,stdRisk_High)),"") -> Medium Risk | M14: =IFERROR(IF(tblAssets_Results[[#This Row],[Water Point/System Improved]]=stdNo,stdRisk_NoImprovedWPS,Conditions2Risk(tblAssets_Results[[#This Row],[Condition of Spring Protection]:[Condition Of The Water Point/System Overall]])),"") -> Medium Risk | N14: =IFERROR(VLOOKUP(CONCATENATE(tblAssets_Results[[#This Row],[Risk Based On Age]],"|",tblAssets_Results[[#This Row],[Risk Based On Current Condition]]),tblRiskToPriority[[Index]:[Level of Priority]],2,FALSE),"") -> Medium Priority | O14: =IFERROR(IF(tblAssets_Results[[#This Row],[Level Of Priority To Replace/Repair]]=stdPriority_NewConstruction,stdAlert_NewConstruction,IF(OR(tblAssets_Results[[#This Row],[Level Of Priority To Replace/Repair]]=stdPriority_High,tblAssets_Results[[#This Row],[Condition Of The Water Point/System Overall]]=stdCondition_VeryPoor),stdAlert_MajorRepairs,IF(OR(tblAssets_Results[[#This Row],[Risk Based On Age]]=stdRisk_High,tblAssets_Results[[#This Row],[Risk Based On Age]]=stdRisk_Medium),stdAlert_ConsiderReplacement,IF(OR(tblAssets_Results[[#This Row],[Worst Condition]]=stdCondition_Poor,tblAssets_Results[[#This Row],[Worst Condition]]=stdCondition_VeryPoor),stdAlert_RepairReplace,stdAlert_RoutineMaintenance)))),"") -> Consider Replacing Aging Components | P14: =IF(tblAssets_Results[[#This Row],[Alert]]=stdAlert_ConsiderReplacement,shortlifetime_components(tblAssets_Results[[#This Row],[Remaining Lifespan of Spring Protection]:[Remaining LifeSpan of Pipes]],YearsRemainingThreshold),IF(tblAssets_Results[[#This Row],[Alert]]=stdAlert_RepairReplace,PoorCondition_Components(tblAssets_Results[[#This Row],[Condition of Spring Protection]:[Condition Of The Water Point/System Overall]]),"")) -> Pump | Q14: =IF(tblAssets_Results[[#This Row],[Alert]]=stdPriority_NewConstruction,stdRecommend_InvestmentPlan,IF(tblAssets_Results[[#This Row],[Alert]]=stdAlert_MajorRepairs,stdRecommend_FurtherDiagnostics,IF(tblAssets_Results[[#This Row],[Alert]]=stdAlert_ConsiderReplacement,stdRecommend_FurtherDiagnostics,IF(tblAssets_Results[[#This Row],[Alert]]=stdAlert_RepairReplace,stdRecommend_PlanRepairReplace,IF(tblAssets_Results[[#This Row],[Alert]]=stdAlert_RoutineMaintenance,stdRecommend_MaintainOM,""))))) -> Further Technical Diagnostic Needed | R14: =IF(tblAssets_Results[[#This Row],[Presence Of Spring Protection?]]=stdYes,stdLife_SpringProtection-(tblAssets_Results[[#This Row],[Year Data Was Collected]]-tblAssets_Results[[#This Row],[Year Source Protection Was Constructed or Replaced]])," ") ->  | S14: =IF(tblAssets_Results[[#This Row],[Presence Of Tap(s)?]]=stdYes,stdLife_Taps-(tblAssets_Results[[#This Row],[Year Data Was Collected]]-tblAssets_Results[[#This Row],[Year Taps were Constructed or Replaced]])," ") -> 3 | T14: =IF(tblAssets_Results[[#This Row],[Presence Of Well?]]=stdYes,stdLife_Well-(tblAssets_Results[[#This Row],[Year Data Was Collected]]-tblAssets_Results[[#This Row],[Year Well Was Constructed or Replaced]])," ") -> 18 | U14: =IF(tblAssets_Results[[#This Row],[Presence Of Pump?]]=stdYes,stdLife_Pump-(tblAssets_Results[[#This Row],[Year Data Was Collected]]-tblAssets_Results[[#This Row],[Year Pump Was Installed or Replaced]])," ") -> 2 | V14: =IF(tblAssets_Results[[#This Row],[Presence Of An concrete works?]]=stdYes,stdLife_Apron-(tblAssets_Results[[#This Row],[Year Data Was Collected]]-tblAssets_Results[[#This Row],[Year concrete work was Constructed or Replaced]])," ") ->  | W14: =IFERROR(VLOOKUP(tblAssets_Results[[#This Row],[Material of the Pipes]],tblPipeMaterials[],2,FALSE)-(tblAssets_Results[[#This Row],[Year Data Was Collected]]-tblAssets_Results[[#This Row],[Year Of Construction]]),"") -> 16 | X14: =IFERROR(VLOOKUP(tblAssets_Results[[#This Row],[Asset Analysis ID]],tblAssets_Raw[],$X$4,FALSE),"") -> Excellent | Y14: =VLOOKUP(tblAssets_Results[[#This Row],[Asset Analysis ID]],tblAssets_Raw[],$Y$4,FALSE) -> 2 | Z14: =VLOOKUP(tblAssets_Results[[#This Row],[Asset Analysis ID]],tblAssets_Raw[],$Z$4,FALSE) -> Fair | AA14: =VLOOKUP(tblAssets_Results[[#This Row],[Asset Analysis ID]],tblAssets_Raw[],$AA$4,FALSE) -> Poor | AB14: =VLOOKUP(tblAssets_Results[[#This Row],[Asset Analysis ID]],tblAssets_Raw[],$AB$4,FALSE) -> Very Poor | AC14: =IFERROR(VLOOKUP(VLOOKUP(tblAssets_Results[[#This Row],[Asset Analysis ID]],tblAssets_Raw[],$AC$4,FALSE),tblFunctionalStatus[],2,FALSE),"") -> Excellent | AD14: =WorstCondition(tblAssets_Results[[#This Row],[Condition of Spring Protection]:[Condition Of The Water Point/System Overall]]) -> Very Poor | AE14: =VLOOKUP(tblAssets_Results[[#This Row],[Asset Analysis ID]:[Asset Analysis ID]],tblAssets_Raw[],AE$4,FALSE) -> Yes | AF14: =VLOOKUP(tblAssets_Results[[#This Row],[Asset Analysis ID]:[Asset Analysis ID]],tblAssets_Raw[],AF$4,FALSE) -> Yes | AG14: =VLOOKUP(tblAssets_Results[[#This Row],[Asset Analysis ID]:[Asset Analysis ID]],tblAssets_Raw[],AG$4,FALSE) -> No | AH14: =IF(OR(tblAssets_Results[[#This Row],[Condition Of The Water Point/System Overall]]=stdCondition_Excellent,tblAssets_Results[[#This Row],[Condition Of The Water Point/System Overall]]=stdCondition_Good),stdYes,stdNo) -> Yes | AI14: =VLOOKUP(tblAssets_Results[[#This Row],[Asset Analysis ID]],tblAssets_Raw[],$AI$4,FALSE) -> No | AJ14: =VLOOKUP(tblAssets_Results[[#This Row],[Asset Analysis ID]],tblAssets_Raw[],$AJ$4,FALSE) -> 2018 | AK14: =VLOOKUP(tblAssets_Results[[#This Row],[Asset Analysis ID]],tblAssets_Raw[],$AK$4,FALSE) -> Yes | AL14: =VLOOKUP(tblAssets_Results[[#This Row],[Asset Analysis ID]],tblAssets_Raw[],$AL$4,FALSE) -> 2 | AM14: =VLOOKUP(tblAssets_Results[[#This Row],[Asset Analysis ID]],tblAssets_Raw[],$AM$4,FALSE) -> 2020 | AN14: =VLOOKUP(tblAssets_Results[[#This Row],[Asset Analysis ID]],tblAssets_Raw[],$AN$4,FALSE) -> Yes | AO14: =VLOOKUP(tblAssets_Results[[#This Row],[Asset Analysis ID]],tblAssets_Raw[],$AO$4,FALSE) -> 2020 | AP14: =VLOOKUP(tblAssets_Results[[#This Row],[Asset Analysis ID]],tblAssets_Raw[],$AP$4,FALSE) -> Yes | AQ14: =VLOOKUP(tblAssets_Results[[#This Row],[Asset Analysis ID]],tblAssets_Raw[],$AQ$4,FALSE) -> 10 | AR14: =VLOOKUP(tblAssets_Results[[#This Row],[Asset Analysis ID]],tblAssets_Raw[],$AR$4,FALSE) -> Galvanised Iron Pipe | AS14: =VLOOKUP(tblAssets_Results[[#This Row],[Asset Analysis ID]],tblAssets_Raw[],$AS$4,FALSE) -> 2019 | AT14: =VLOOKUP(tblAssets_Results[[#This Row],[Asset Analysis ID]],tblAssets_Raw[],$AT$4,FALSE) -> No | AU14: =VLOOKUP(tblAssets_Results[[#This Row],[Asset Analysis ID]],tblAssets_Raw[],$AU$4,FALSE) -> 2021 | AV14: =VLOOKUP(tblAssets_Results[[#This Row],[Asset Analysis ID]],tblAssets_Raw[],$AV$4,FALSE) -> 1 | AW14: =IF(tblAssets_Results[[#This Row],[Remaining Lifespan of Spring Protection]]<YearsRemainingThreshold,VLOOKUP(CONCATENATE($AW$6,"|",tblAssets_Results[[#This Row],[Alert]]),tblInterventions[[Index]:[Cost Type]],2,FALSE),"") ->  | AX14: =IF(tblAssets_Results[[#This Row],[Remaining Lifespan of taps/Spouts]]<YearsRemainingThreshold,VLOOKUP(CONCATENATE(Assumptions!$E$10,"|",tblAssets_Results[[#This Row],[Alert]]),tblInterventions[[Index]:[Cost Type]],2,FALSE)*tblAssets_Results[[#This Row],[Number of Spouts]],"") ->  | AY14: =IF(tblAssets_Results[[#This Row],[Remaining Lifespan of Borehole]]<YearsRemainingThreshold,VLOOKUP(CONCATENATE(tblAssetTypes[[#This Row],[Asset component]],"|",tblAssets_Results[[#This Row],[Alert]]),tblInterventions[[Index]:[Cost Type]],2,FALSE),"") ->  | AZ14: =IF(tblAssets_Results[[#This Row],[Remaining Lifespan of Pump]]<YearsRemainingThreshold,VLOOKUP(CONCATENATE(Assumptions!$E$7,"|",tblAssets_Results[[#This Row],[Alert]]),tblInterventions[[Index]:[Cost Type]],2,FALSE),"") ->  | BA14: =IF(tblAssets_Results[[#This Row],[Remaining Lifespan of Concrete works]]<YearsRemainingThreshold,VLOOKUP(CONCATENATE(Assumptions!$E$8,"|",tblAssets_Results[[#This Row],[Alert]]),tblInterventions[[Index]:[Cost Type]]*tblAssets_Results[[#This Row],[Estimated amount of m3 concrete works]],2,FALSE),"") ->  | BB14: =IFERROR(IF(tblAssets_Results[[#This Row],[Remaining LifeSpan of Pipes]]<YearsRemainingThreshold,VLOOKUP(CONCATENATE($BB$6,"|",tblAssets_Results[[#This Row],[Alert]]),tblInterventions[[Index]:[Cost Type]],2,FALSE)*tblAssets_Results[[#This Row],[Number of Pipes (m)]],""),"") ->  | BC14: =IF(ISNUMBER(SEARCH(BC$6,tblAssets_Results[[#This Row],[Component(s)]:[Component(s)]])),VLOOKUP(CONCATENATE($BC$6,"|",tblAssets_Results[[#This Row],[Alert]]),tblInterventions[[Index]:[Cost Type]],2,FALSE),"") ->  | BD14: =IF(ISNUMBER(SEARCH(BD$6,tblAssets_Results[[#This Row],[Component(s)]:[Component(s)]])),VLOOKUP(CONCATENATE($BD$6,"|",tblAssets_Results[[#This Row],[Alert]]),tblInterventions[[Index]:[Cost Type]],2,FALSE)*tblAssets_Results[[#This Row],[Number of Spouts]],"") ->  | BE14: =IF(ISNUMBER(SEARCH(BE$6,tblAssets_Results[[#This Row],[Component(s)]:[Component(s)]])),VLOOKUP(CONCATENATE($BE$6,"|",tblAssets_Results[[#This Row],[Alert]]),tblInterventions[[Index]:[Cost Type]],2,FALSE),"") ->  | BF14: =IF(ISNUMBER(SEARCH(BF$6,tblAssets_Results[[#This Row],[Component(s)]:[Component(s)]])),VLOOKUP(CONCATENATE($BF$6,"|",tblAssets_Results[[#This Row],[Alert]]),tblInterventions[[Index]:[Cost Type]],2,FALSE),"") -> 200 | BG14: =IF(ISNUMBER(SEARCH(BG$6,tblAssets_Results[[#This Row],[Component(s)]:[Component(s)]])),VLOOKUP(CONCATENATE($BG$6,"|",tblAssets_Results[[#This Row],[Alert]]),tblInterventions[[Index]:[Cost Type]],2,FALSE)*tblAssets_Results[[#This Row],[Estimated amount of m3 concrete works]],"") ->  | BH14: =IF(ISNUMBER(SEARCH(BH$6,tblAssets_Results[[#This Row],[Component(s)]:[Component(s)]])),VLOOKUP(CONCATENATE($BH$6,"|",tblAssets_Results[[#This Row],[Alert]]),tblInterventions[[Index]:[Cost Type]],2,FALSE)*tblAssets_Results[[#This Row],[Number of Pipes (m)]],"") ->  | BI14: =IF(OR(tblAssets_Results[[#This Row],[Alert]]=stdAlert_MajorRepairs,tblAssets_Results[[#This Row],[Alert]]=stdAlert_NewConstruction),VLOOKUP(CONCATENATE(BI$6,"|",tblAssets_Results[[#This Row],[Alert]]),tblInterventions[[Index]:[Cost Type]],2,FALSE),"") ->  | BJ14: =IF(OR(tblAssets_Results[[#This Row],[Alert]]=stdAlert_MajorRepairs,tblAssets_Results[[#This Row],[Alert]]=stdAlert_NewConstruction),VLOOKUP(CONCATENATE(BJ$6,"|",tblAssets_Results[[#This Row],[Alert]]),tblInterventions[[Index]:[Cost Type]],2,FALSE)*tblAssets_Results[[#This Row],[Number of Spouts]],"") ->  | BK14: =IF(OR(tblAssets_Results[[#This Row],[Alert]]=stdAlert_MajorRepairs,tblAssets_Results[[#This Row],[Alert]]=stdAlert_NewConstruction),VLOOKUP(CONCATENATE(BK$6,"|",tblAssets_Results[[#This Row],[Alert]]),tblInterventions[[Index]:[Cost Type]],2,FALSE),"") ->  | BL14: =IF(OR(tblAssets_Results[[#This Row],[Alert]]=stdAlert_MajorRepairs,tblAssets_Results[[#This Row],[Alert]]=stdAlert_NewConstruction),VLOOKUP(CONCATENATE(BL$6,"|",tblAssets_Results[[#This Row],[Alert]]),tblInterventions[[Index]:[Cost Type]],2,FALSE),"") ->  | BM14: =IF(OR(tblAssets_Results[[#This Row],[Alert]]=stdAlert_MajorRepairs,tblAssets_Results[[#This Row],[Alert]]=stdAlert_NewConstruction),VLOOKUP(CONCATENATE(BM$6,"|",tblAssets_Results[[#This Row],[Alert]]),tblInterventions[[Index]:[Cost Type]],2,FALSE)*tblAssets_Results[[#This Row],[Estimated amount of m3 concrete works]],"") ->  | BN14: =IF(OR(tblAssets_Results[[#This Row],[Alert]]=stdAlert_MajorRepairs,tblAssets_Results[[#This Row],[Alert]]=stdAlert_NewConstruction),VLOOKUP(CONCATENATE(BN$6,"|",tblAssets_Results[[#This Row],[Alert]]),tblInterventions[[Index]:[Cost Type]],2,FALSE)*tblAssets_Results[[#This Row],[Number of Pipes (m)]],"") ->  | BO14: =SUM(tblAssets_Results[[#This Row],[Capmanex component 1]:[Capex Cost component 6]]) -> 200 | BP14: =VLOOKUP(CONCATENATE(BP$6,"|",stdAlert_NewConstruction),tblInterventions[[Index]:[Cost Type]],2,FALSE) -> 2000 | BQ14: =VLOOKUP(CONCATENATE(BQ$6,"|",stdAlert_NewConstruction),tblInterventions[[Index]:[Cost Type]],2,FALSE)*tblAssets_Results[[#This Row],[Number of Spouts]] -> 20 | BR14: =VLOOKUP(CONCATENATE(BR$6,"|",stdAlert_NewConstruction),tblInterventions[[Index]:[Cost Type]],2,FALSE) -> 5000 | BS14: =VLOOKUP(CONCATENATE(BS$6,"|",stdAlert_NewConstruction),tblInterventions[[Index]:[Cost Type]],2,FALSE) -> 1000 | BT14: =VLOOKUP(CONCATENATE(BT$6,"|",stdAlert_NewConstruction),tblInterventions[[Index]:[Cost Type]],2,FALSE)*tblAssets_Results[[#This Row],[Estimated amount of m3 concrete works]] -> 500 | BU14: =VLOOKUP(CONCATENATE(BU$6,"|",stdAlert_NewConstruction),tblInterventions[[Index]:[Cost Type]],2,FALSE)*tblAssets_Results[[#This Row],[Number of Pipes (m)]] -> 150 | BV14: =SUM(tblAssets_Results[[#This Row],[Full Capex Cost component 1]:[Capex Cost component 62]]) -> 8670
B15: 8 | C15: =VLOOKUP(tblAssets_Results[[#This Row],[Asset Analysis ID]:[Asset Analysis ID]],tblAssets_Raw[],C$4,FALSE) -> Barsaloi BH | D15: =VLOOKUP(tblAssets_Results[[#This Row],[Asset Analysis ID]:[Asset Analysis ID]],tblAssets_Raw[],D$4,FALSE) -> Borehole with handpump | E15: =VLOOKUP(tblAssets_Results[[#This Row],[Asset Analysis ID]:[Asset Analysis ID]],tblAssets_Raw[],E$4,FALSE) -> 2019 | F15: =VLOOKUP(tblAssets_Results[[#This Row],[Asset Analysis ID]:[Asset Analysis ID]],tblAssets_Raw[],F$6,FALSE) -> Kenya | G15: =VLOOKUP(tblAssets_Results[[#This Row],[Asset Analysis ID]:[Asset Analysis ID]],tblAssets_Raw[],G$6,FALSE) -> Rift Valley | H15: =VLOOKUP(tblAssets_Results[[#This Row],[Asset Analysis ID]:[Asset Analysis ID]],tblAssets_Raw[],H$6,FALSE) -> Samburu | I15: =VLOOKUP(tblAssets_Results[[#This Row],[Asset Analysis ID]:[Asset Analysis ID]],tblAssets_Raw[],I$6,FALSE) -> Samburu East | J15: =VLOOKUP(tblAssets_Results[[#This Row],[Asset Analysis ID]:[Asset Analysis ID]],tblAssets_Raw[],J$6,FALSE) -> Samburu | K15: =VLOOKUP(tblAssets_Results[[#This Row],[Asset Analysis ID]:[Asset Analysis ID]],tblAssets_Raw[],K$6,FALSE) -> 2022 | L15: =IFERROR(IF(tblAssets_Results[[#This Row],[Water Point/System Improved]]=stdNo,stdRisk_NoImprovedWPS,CHOOSE(COUNTIF(tblAssets_Results[[#This Row],[Remaining Lifespan of Spring Protection]:[Remaining LifeSpan of Pipes]],"<=" & YearsRemainingThreshold)+1,stdRisk_Low,stdRisk_Medium,stdRisk_High,stdRisk_High,stdRisk_High,stdRisk_High,stdRisk_High)),"") -> No Improved Water Point/System | M15: =IFERROR(IF(tblAssets_Results[[#This Row],[Water Point/System Improved]]=stdNo,stdRisk_NoImprovedWPS,Conditions2Risk(tblAssets_Results[[#This Row],[Condition of Spring Protection]:[Condition Of The Water Point/System Overall]])),"") -> No Improved Water Point/System | N15: =IFERROR(VLOOKUP(CONCATENATE(tblAssets_Results[[#This Row],[Risk Based On Age]],"|",tblAssets_Results[[#This Row],[Risk Based On Current Condition]]),tblRiskToPriority[[Index]:[Level of Priority]],2,FALSE),"") -> New Construction Needed | O15: =IFERROR(IF(tblAssets_Results[[#This Row],[Level Of Priority To Replace/Repair]]=stdPriority_NewConstruction,stdAlert_NewConstruction,IF(OR(tblAssets_Results[[#This Row],[Level Of Priority To Replace/Repair]]=stdPriority_High,tblAssets_Results[[#This Row],[Condition Of The Water Point/System Overall]]=stdCondition_VeryPoor),stdAlert_MajorRepairs,IF(OR(tblAssets_Results[[#This Row],[Risk Based On Age]]=stdRisk_High,tblAssets_Results[[#This Row],[Risk Based On Age]]=stdRisk_Medium),stdAlert_ConsiderReplacement,IF(OR(tblAssets_Results[[#This Row],[Worst Condition]]=stdCondition_Poor,tblAssets_Results[[#This Row],[Worst Condition]]=stdCondition_VeryPoor),stdAlert_RepairReplace,stdAlert_RoutineMaintenance)))),"") -> New Construction Needed | P15: =IF(tblAssets_Results[[#This Row],[Alert]]=stdAlert_ConsiderReplacement,shortlifetime_components(tblAssets_Results[[#This Row],[Remaining Lifespan of Spring Protection]:[Remaining LifeSpan of Pipes]],YearsRemainingThreshold),IF(tblAssets_Results[[#This Row],[Alert]]=stdAlert_RepairReplace,PoorCondition_Components(tblAssets_Results[[#This Row],[Condition of Spring Protection]:[Condition Of The Water Point/System Overall]]),"")) ->  | Q15: =IF(tblAssets_Results[[#This Row],[Alert]]=stdPriority_NewConstruction,stdRecommend_InvestmentPlan,IF(tblAssets_Results[[#This Row],[Alert]]=stdAlert_MajorRepairs,stdRecommend_FurtherDiagnostics,IF(tblAssets_Results[[#This Row],[Alert]]=stdAlert_ConsiderReplacement,stdRecommend_FurtherDiagnostics,IF(tblAssets_Results[[#This Row],[Alert]]=stdAlert_RepairReplace,stdRecommend_PlanRepairReplace,IF(tblAssets_Results[[#This Row],[Alert]]=stdAlert_RoutineMaintenance,stdRecommend_MaintainOM,""))))) -> Plan For Investment and Construction | R15: =IF(tblAssets_Results[[#This Row],[Presence Of Spring Protection?]]=stdYes,stdLife_SpringProtection-(tblAssets_Results[[#This Row],[Year Data Was Collected]]-tblAssets_Results[[#This Row],[Year Source Protection Was Constructed or Replaced]])," ") ->  | S15: =IF(tblAssets_Results[[#This Row],[Presence Of Tap(s)?]]=stdYes,stdLife_Taps-(tblAssets_Results[[#This Row],[Year Data Was Collected]]-tblAssets_Results[[#This Row],[Year Taps were Constructed or Replaced]])," ") ->  | T15: =IF(tblAssets_Results[[#This Row],[Presence Of Well?]]=stdYes,stdLife_Well-(tblAssets_Results[[#This Row],[Year Data Was Collected]]-tblAssets_Results[[#This Row],[Year Well Was Constructed or Replaced]])," ") -> 18 | U15: =IF(tblAssets_Results[[#This Row],[Presence Of Pump?]]=stdYes,stdLife_Pump-(tblAssets_Results[[#This Row],[Year Data Was Collected]]-tblAssets_Results[[#This Row],[Year Pump Was Installed or Replaced]])," ") -> 3 | V15: =IF(tblAssets_Results[[#This Row],[Presence Of An concrete works?]]=stdYes,stdLife_Apron-(tblAssets_Results[[#This Row],[Year Data Was Collected]]-tblAssets_Results[[#This Row],[Year concrete work was Constructed or Replaced]])," ") ->  | W15: =IFERROR(VLOOKUP(tblAssets_Results[[#This Row],[Material of the Pipes]],tblPipeMaterials[],2,FALSE)-(tblAssets_Results[[#This Row],[Year Data Was Collected]]-tblAssets_Results[[#This Row],[Year Of Construction]]),"") -> 17 | X15: =IFERROR(VLOOKUP(tblAssets_Results[[#This Row],[Asset Analysis ID]],tblAssets_Raw[],$X$4,FALSE),"") -> Good | Y15: =VLOOKUP(tblAssets_Results[[#This Row],[Asset Analysis ID]],tblAssets_Raw[],$Y$4,FALSE) -> 3 | Z15: =VLOOKUP(tblAssets_Results[[#This Row],[Asset Analysis ID]],tblAssets_Raw[],$Z$4,FALSE) -> Poor | AA15: =VLOOKUP(tblAssets_Results[[#This Row],[Asset Analysis ID]],tblAssets_Raw[],$AA$4,FALSE) -> Very Poor | AB15: =VLOOKUP(tblAssets_Results[[#This Row],[Asset Analysis ID]],tblAssets_Raw[],$AB$4,FALSE) -> Excellent | AC15: =IFERROR(VLOOKUP(VLOOKUP(tblAssets_Results[[#This Row],[Asset Analysis ID]],tblAssets_Raw[],$AC$4,FALSE),tblFunctionalStatus[],2,FALSE),"") -> Fair | AD15: =WorstCondition(tblAssets_Results[[#This Row],[Condition of Spring Protection]:[Condition Of The Water Point/System Overall]]) -> Very Poor | AE15: =VLOOKUP(tblAssets_Results[[#This Row],[Asset Analysis ID]:[Asset Analysis ID]],tblAssets_Raw[],AE$4,FALSE) -> No | AF15: =VLOOKUP(tblAssets_Results[[#This Row],[Asset Analysis ID]:[Asset Analysis ID]],tblAssets_Raw[],AF$4,FALSE) -> No | AG15: =VLOOKUP(tblAssets_Results[[#This Row],[Asset Analysis ID]:[Asset Analysis ID]],tblAssets_Raw[],AG$4,FALSE) -> Yes | AH15: =IF(OR(tblAssets_Results[[#This Row],[Condition Of The Water Point/System Overall]]=stdCondition_Excellent,tblAssets_Results[[#This Row],[Condition Of The Water Point/System Overall]]=stdCondition_Good),stdYes,stdNo) -> No | AI15: =VLOOKUP(tblAssets_Results[[#This Row],[Asset Analysis ID]],tblAssets_Raw[],$AI$4,FALSE) -> No | AJ15: =VLOOKUP(tblAssets_Results[[#This Row],[Asset Analysis ID]],tblAssets_Raw[],$AJ$4,FALSE) -> 2019 | AK15: =VLOOKUP(tblAssets_Results[[#This Row],[Asset Analysis ID]],tblAssets_Raw[],$AK$4,FALSE) -> No | AL15: =VLOOKUP(tblAssets_Results[[#This Row],[Asset Analysis ID]],tblAssets_Raw[],$AL$4,FALSE) -> 3 | AM15: =VLOOKUP(tblAssets_Results[[#This Row],[Asset Analysis ID]],tblAssets_Raw[],$AM$4,FALSE) -> 2020 | AN15: =VLOOKUP(tblAssets_Results[[#This Row],[Asset Analysis ID]],tblAssets_Raw[],$AN$4,FALSE) -> Yes | AO15: =VLOOKUP(tblAssets_Results[[#This Row],[Asset Analysis ID]],tblAssets_Raw[],$AO$4,FALSE) -> 2020 | AP15: =VLOOKUP(tblAssets_Results[[#This Row],[Asset Analysis ID]],tblAssets_Raw[],$AP$4,FALSE) -> Yes | AQ15: =VLOOKUP(tblAssets_Results[[#This Row],[Asset Analysis ID]],tblAssets_Raw[],$AQ$4,FALSE) -> 10 | AR15: =VLOOKUP(tblAssets_Results[[#This Row],[Asset Analysis ID]],tblAssets_Raw[],$AR$4,FALSE) -> Galvanised Iron Pipe | AS15: =VLOOKUP(tblAssets_Results[[#This Row],[Asset Analysis ID]],tblAssets_Raw[],$AS$4,FALSE) -> 2020 | AT15: =VLOOKUP(tblAssets_Results[[#This Row],[Asset Analysis ID]],tblAssets_Raw[],$AT$4,FALSE) -> No | AU15: =VLOOKUP(tblAssets_Results[[#This Row],[Asset Analysis ID]],tblAssets_Raw[],$AU$4,FALSE) -> 2021 | AV15: =VLOOKUP(tblAssets_Results[[#This Row],[Asset Analysis ID]],tblAssets_Raw[],$AV$4,FALSE) -> 1 | AW15: =IF(tblAssets_Results[[#This Row],[Remaining Lifespan of Spring Protection]]<YearsRemainingThreshold,VLOOKUP(CONCATENATE($AW$6,"|",tblAssets_Results[[#This Row],[Alert]]),tblInterventions[[Index]:[Cost Type]],2,FALSE),"") ->  | AX15: =IF(tblAssets_Results[[#This Row],[Remaining Lifespan of taps/Spouts]]<YearsRemainingThreshold,VLOOKUP(CONCATENATE(Assumptions!$E$10,"|",tblAssets_Results[[#This Row],[Alert]]),tblInterventions[[Index]:[Cost Type]],2,FALSE)*tblAssets_Results[[#This Row],[Number of Spouts]],"") ->  | AY15: =IF(tblAssets_Results[[#This Row],[Remaining Lifespan of Borehole]]<YearsRemainingThreshold,VLOOKUP(CONCATENATE(tblAssetTypes[[#This Row],[Asset component]],"|",tblAssets_Results[[#This Row],[Alert]]),tblInterventions[[Index]:[Cost Type]],2,FALSE),"") ->  | AZ15: =IF(tblAssets_Results[[#This Row],[Remaining Lifespan of Pump]]<YearsRemainingThreshold,VLOOKUP(CONCATENATE(Assumptions!$E$7,"|",tblAssets_Results[[#This Row],[Alert]]),tblInterventions[[Index]:[Cost Type]],2,FALSE),"") ->  | BA15: =IF(tblAssets_Results[[#This Row],[Remaining Lifespan of Concrete works]]<YearsRemainingThreshold,VLOOKUP(CONCATENATE(Assumptions!$E$8,"|",tblAssets_Results[[#This Row],[Alert]]),tblInterventions[[Index]:[Cost Type]]*tblAssets_Results[[#This Row],[Estimated amount of m3 concrete works]],2,FALSE),"") ->  | BB15: =IFERROR(IF(tblAssets_Results[[#This Row],[Remaining LifeSpan of Pipes]]<YearsRemainingThreshold,VLOOKUP(CONCATENATE($BB$6,"|",tblAssets_Results[[#This Row],[Alert]]),tblInterventions[[Index]:[Cost Type]],2,FALSE)*tblAssets_Results[[#This Row],[Number of Pipes (m)]],""),"") ->  | BC15: =IF(ISNUMBER(SEARCH(BC$6,tblAssets_Results[[#This Row],[Component(s)]:[Component(s)]])),VLOOKUP(CONCATENATE($BC$6,"|",tblAssets_Results[[#This Row],[Alert]]),tblInterventions[[Index]:[Cost Type]],2,FALSE),"") ->  | BD15: =IF(ISNUMBER(SEARCH(BD$6,tblAssets_Results[[#This Row],[Component(s)]:[Component(s)]])),VLOOKUP(CONCATENATE($BD$6,"|",tblAssets_Results[[#This Row],[Alert]]),tblInterventions[[Index]:[Cost Type]],2,FALSE)*tblAssets_Results[[#This Row],[Number of Spouts]],"") ->  | BE15: =IF(ISNUMBER(SEARCH(BE$6,tblAssets_Results[[#This Row],[Component(s)]:[Component(s)]])),VLOOKUP(CONCATENATE($BE$6,"|",tblAssets_Results[[#This Row],[Alert]]),tblInterventions[[Index]:[Cost Type]],2,FALSE),"") ->  | BF15: =IF(ISNUMBER(SEARCH(BF$6,tblAssets_Results[[#This Row],[Component(s)]:[Component(s)]])),VLOOKUP(CONCATENATE($BF$6,"|",tblAssets_Results[[#This Row],[Alert]]),tblInterventions[[Index]:[Cost Type]],2,FALSE),"") ->  | BG15: =IF(ISNUMBER(SEARCH(BG$6,tblAssets_Results[[#This Row],[Component(s)]:[Component(s)]])),VLOOKUP(CONCATENATE($BG$6,"|",tblAssets_Results[[#This Row],[Alert]]),tblInterventions[[Index]:[Cost Type]],2,FALSE)*tblAssets_Results[[#This Row],[Estimated amount of m3 concrete works]],"") ->  | BH15: =IF(ISNUMBER(SEARCH(BH$6,tblAssets_Results[[#This Row],[Component(s)]:[Component(s)]])),VLOOKUP(CONCATENATE($BH$6,"|",tblAssets_Results[[#This Row],[Alert]]),tblInterventions[[Index]:[Cost Type]],2,FALSE)*tblAssets_Results[[#This Row],[Number of Pipes (m)]],"") ->  | BI15: =IF(OR(tblAssets_Results[[#This Row],[Alert]]=stdAlert_MajorRepairs,tblAssets_Results[[#This Row],[Alert]]=stdAlert_NewConstruction),VLOOKUP(CONCATENATE(BI$6,"|",tblAssets_Results[[#This Row],[Alert]]),tblInterventions[[Index]:[Cost Type]],2,FALSE),"") -> 2000 | BJ15: =IF(OR(tblAssets_Results[[#This Row],[Alert]]=stdAlert_MajorRepairs,tblAssets_Results[[#This Row],[Alert]]=stdAlert_NewConstruction),VLOOKUP(CONCATENATE(BJ$6,"|",tblAssets_Results[[#This Row],[Alert]]),tblInterventions[[Index]:[Cost Type]],2,FALSE)*tblAssets_Results[[#This Row],[Number of Spouts]],"") -> 30 | BK15: =IF(OR(tblAssets_Results[[#This Row],[Alert]]=stdAlert_MajorRepairs,tblAssets_Results[[#This Row],[Alert]]=stdAlert_NewConstruction),VLOOKUP(CONCATENATE(BK$6,"|",tblAssets_Results[[#This Row],[Alert]]),tblInterventions[[Index]:[Cost Type]],2,FALSE),"") -> 5000 | BL15: =IF(OR(tblAssets_Results[[#This Row],[Alert]]=stdAlert_MajorRepairs,tblAssets_Results[[#This Row],[Alert]]=stdAlert_NewConstruction),VLOOKUP(CONCATENATE(BL$6,"|",tblAssets_Results[[#This Row],[Alert]]),tblInterventions[[Index]:[Cost Type]],2,FALSE),"") -> 1000 | BM15: =IF(OR(tblAssets_Results[[#This Row],[Alert]]=stdAlert_MajorRepairs,tblAssets_Results[[#This Row],[Alert]]=stdAlert_NewConstruction),VLOOKUP(CONCATENATE(BM$6,"|",tblAssets_Results[[#This Row],[Alert]]),tblInterventions[[Index]:[Cost Type]],2,FALSE)*tblAssets_Results[[#This Row],[Estimated amount of m3 concrete works]],"") -> 500 | BN15: =IF(OR(tblAssets_Results[[#This Row],[Alert]]=stdAlert_MajorRepairs,tblAssets_Results[[#This Row],[Alert]]=stdAlert_NewConstruction),VLOOKUP(CONCATENATE(BN$6,"|",tblAssets_Results[[#This Row],[Alert]]),tblInterventions[[Index]:[Cost Type]],2,FALSE)*tblAssets_Results[[#This Row],[Number of Pipes (m)]],"") -> 150 | BO15: =SUM(tblAssets_Results[[#This Row],[Capmanex component 1]:[Capex Cost component 6]]) -> 8680 | BP15: =VLOOKUP(CONCATENATE(BP$6,"|",stdAlert_NewConstruction),tblInterventions[[Index]:[Cost Type]],2,FALSE) -> 2000 | BQ15: =VLOOKUP(CONCATENATE(BQ$6,"|",stdAlert_NewConstruction),tblInterventions[[Index]:[Cost Type]],2,FALSE)*tblAssets_Results[[#This Row],[Number of Spouts]] -> 30 | BR15: =VLOOKUP(CONCATENATE(BR$6,"|",stdAlert_NewConstruction),tblInterventions[[Index]:[Cost Type]],2,FALSE) -> 5000 | BS15: =VLOOKUP(CONCATENATE(BS$6,"|",stdAlert_NewConstruction),tblInterventions[[Index]:[Cost Type]],2,FALSE) -> 1000 | BT15: =VLOOKUP(CONCATENATE(BT$6,"|",stdAlert_NewConstruction),tblInterventions[[Index]:[Cost Type]],2,FALSE)*tblAssets_Results[[#This Row],[Estimated amount of m3 concrete works]] -> 500 | BU15: =VLOOKUP(CONCATENATE(BU$6,"|",stdAlert_NewConstruction),tblInterventions[[Index]:[Cost Type]],2,FALSE)*tblAssets_Results[[#This Row],[Number of Pipes (m)]] -> 150 | BV15: =SUM(tblAssets_Results[[#This Row],[Full Capex Cost component 1]:[Capex Cost component 62]]) -> 8680
B16: 9 | C16: =VLOOKUP(tblAssets_Results[[#This Row],[Asset Analysis ID]:[Asset Analysis ID]],tblAssets_Raw[],C$4,FALSE) -> Suiyen BH | D16: =VLOOKUP(tblAssets_Results[[#This Row],[Asset Analysis ID]:[Asset Analysis ID]],tblAssets_Raw[],D$4,FALSE) -> Borehole with handpump | E16: =VLOOKUP(tblAssets_Results[[#This Row],[Asset Analysis ID]:[Asset Analysis ID]],tblAssets_Raw[],E$4,FALSE) -> 2020 | F16: =VLOOKUP(tblAssets_Results[[#This Row],[Asset Analysis ID]:[Asset Analysis ID]],tblAssets_Raw[],F$6,FALSE) -> Kenya | G16: =VLOOKUP(tblAssets_Results[[#This Row],[Asset Analysis ID]:[Asset Analysis ID]],tblAssets_Raw[],G$6,FALSE) -> Rift Valley | H16: =VLOOKUP(tblAssets_Results[[#This Row],[Asset Analysis ID]:[Asset Analysis ID]],tblAssets_Raw[],H$6,FALSE) -> Samburu | I16: =VLOOKUP(tblAssets_Results[[#This Row],[Asset Analysis ID]:[Asset Analysis ID]],tblAssets_Raw[],I$6,FALSE) -> Samburu South | J16: =VLOOKUP(tblAssets_Results[[#This Row],[Asset Analysis ID]:[Asset Analysis ID]],tblAssets_Raw[],J$6,FALSE) -> Samburu | K16: =VLOOKUP(tblAssets_Results[[#This Row],[Asset Analysis ID]:[Asset Analysis ID]],tblAssets_Raw[],K$6,FALSE) -> 2022 | L16: =IFERROR(IF(tblAssets_Results[[#This Row],[Water Point/System Improved]]=stdNo,stdRisk_NoImprovedWPS,CHOOSE(COUNTIF(tblAssets_Results[[#This Row],[Remaining Lifespan of Spring Protection]:[Remaining LifeSpan of Pipes]],"<=" & YearsRemainingThreshold)+1,stdRisk_Low,stdRisk_Medium,stdRisk_High,stdRisk_High,stdRisk_High,stdRisk_High,stdRisk_High)),"") -> Low Risk | M16: =IFERROR(IF(tblAssets_Results[[#This Row],[Water Point/System Improved]]=stdNo,stdRisk_NoImprovedWPS,Conditions2Risk(tblAssets_Results[[#This Row],[Condition of Spring Protection]:[Condition Of The Water Point/System Overall]])),"") -> High Risk | N16: =IFERROR(VLOOKUP(CONCATENATE(tblAssets_Results[[#This Row],[Risk Based On Age]],"|",tblAssets_Results[[#This Row],[Risk Based On Current Condition]]),tblRiskToPriority[[Index]:[Level of Priority]],2,FALSE),"") -> High Priority | O16: =IFERROR(IF(tblAssets_Results[[#This Row],[Level Of Priority To Replace/Repair]]=stdPriority_NewConstruction,stdAlert_NewConstruction,IF(OR(tblAssets_Results[[#This Row],[Level Of Priority To Replace/Repair]]=stdPriority_High,tblAssets_Results[[#This Row],[Condition Of The Water Point/System Overall]]=stdCondition_VeryPoor),stdAlert_MajorRepairs,IF(OR(tblAssets_Results[[#This Row],[Risk Based On Age]]=stdRisk_High,tblAssets_Results[[#This Row],[Risk Based On Age]]=stdRisk_Medium),stdAlert_ConsiderReplacement,IF(OR(tblAssets_Results[[#This Row],[Worst Condition]]=stdCondition_Poor,tblAssets_Results[[#This Row],[Worst Condition]]=stdCondition_VeryPoor),stdAlert_RepairReplace,stdAlert_RoutineMaintenance)))),"") -> Major Repairs or Replace System | P16: =IF(tblAssets_Results[[#This Row],[Alert]]=stdAlert_ConsiderReplacement,shortlifetime_components(tblAssets_Results[[#This Row],[Remaining Lifespan of Spring Protection]:[Remaining LifeSpan of Pipes]],YearsRemainingThreshold),IF(tblAssets_Results[[#This Row],[Alert]]=stdAlert_RepairReplace,PoorCondition_Components(tblAssets_Results[[#This Row],[Condition of Spring Protection]:[Condition Of The Water Point/System Overall]]),"")) ->  | Q16: =IF(tblAssets_Results[[#This Row],[Alert]]=stdPriority_NewConstruction,stdRecommend_InvestmentPlan,IF(tblAssets_Results[[#This Row],[Alert]]=stdAlert_MajorRepairs,stdRecommend_FurtherDiagnostics,IF(tblAssets_Results[[#This Row],[Alert]]=stdAlert_ConsiderReplacement,stdRecommend_FurtherDiagnostics,IF(tblAssets_Results[[#This Row],[Alert]]=stdAlert_RepairReplace,stdRecommend_PlanRepairReplace,IF(tblAssets_Results[[#This Row],[Alert]]=stdAlert_RoutineMaintenance,stdRecommend_MaintainOM,""))))) -> Further Technical Diagnostic Needed | R16: =IF(tblAssets_Results[[#This Row],[Presence Of Spring Protection?]]=stdYes,stdLife_SpringProtection-(tblAssets_Results[[#This Row],[Year Data Was Collected]]-tblAssets_Results[[#This Row],[Year Source Protection Was Constructed or Replaced]])," ") -> 13 | S16: =IF(tblAssets_Results[[#This Row],[Presence Of Tap(s)?]]=stdYes,stdLife_Taps-(tblAssets_Results[[#This Row],[Year Data Was Collected]]-tblAssets_Results[[#This Row],[Year Taps were Constructed or Replaced]])," ") -> 3 | T16: =IF(tblAssets_Results[[#This Row],[Presence Of Well?]]=stdYes,stdLife_Well-(tblAssets_Results[[#This Row],[Year Data Was Collected]]-tblAssets_Results[[#This Row],[Year Well Was Constructed or Replaced]])," ") -> 18 | U16: =IF(tblAssets_Results[[#This Row],[Presence Of Pump?]]=stdYes,stdLife_Pump-(tblAssets_Results[[#This Row],[Year Data Was Collected]]-tblAssets_Results[[#This Row],[Year Pump Was Installed or Replaced]])," ") -> 3 | V16: =IF(tblAssets_Results[[#This Row],[Presence Of An concrete works?]]=stdYes,stdLife_Apron-(tblAssets_Results[[#This Row],[Year Data Was Collected]]-tblAssets_Results[[#This Row],[Year concrete work was Constructed or Replaced]])," ") -> 25 | W16: =IFERROR(VLOOKUP(tblAssets_Results[[#This Row],[Material of the Pipes]],tblPipeMaterials[],2,FALSE)-(tblAssets_Results[[#This Row],[Year Data Was Collected]]-tblAssets_Results[[#This Row],[Year Of Construction]]),"") -> 18 | X16: =IFERROR(VLOOKUP(tblAssets_Results[[#This Row],[Asset Analysis ID]],tblAssets_Raw[],$X$4,FALSE),"") -> Fair | Y16: =VLOOKUP(tblAssets_Results[[#This Row],[Asset Analysis ID]],tblAssets_Raw[],$Y$4,FALSE) -> 1 | Z16: =VLOOKUP(tblAssets_Results[[#This Row],[Asset Analysis ID]],tblAssets_Raw[],$Z$4,FALSE) -> Very Poor | AA16: =VLOOKUP(tblAssets_Results[[#This Row],[Asset Analysis ID]],tblAssets_Raw[],$AA$4,FALSE) -> Excellent | AB16: =VLOOKUP(tblAssets_Results[[#This Row],[Asset Analysis ID]],tblAssets_Raw[],$AB$4,FALSE) -> Good | AC16: =IFERROR(VLOOKUP(VLOOKUP(tblAssets_Results[[#This Row],[Asset Analysis ID]],tblAssets_Raw[],$AC$4,FALSE),tblFunctionalStatus[],2,FALSE),"") -> Very Poor | AD16: =WorstCondition(tblAssets_Results[[#This Row],[Condition of Spring Protection]:[Condition Of The Water Point/System Overall]]) -> Very Poor | AE16: =VLOOKUP(tblAssets_Results[[#This Row],[Asset Analysis ID]:[Asset Analysis ID]],tblAssets_Raw[],AE$4,FALSE) -> Yes | AF16: =VLOOKUP(tblAssets_Results[[#This Row],[Asset Analysis ID]:[Asset Analysis ID]],tblAssets_Raw[],AF$4,FALSE) -> No | AG16: =VLOOKUP(tblAssets_Results[[#This Row],[Asset Analysis ID]:[Asset Analysis ID]],tblAssets_Raw[],AG$4,FALSE) -> Yes | AH16: =IF(OR(tblAssets_Results[[#This Row],[Condition Of The Water Point/System Overall]]=stdCondition_Excellent,tblAssets_Results[[#This Row],[Condition Of The Water Point/System Overall]]=stdCondition_Good),stdYes,stdNo) -> No | AI16: =VLOOKUP(tblAssets_Results[[#This Row],[Asset Analysis ID]],tblAssets_Raw[],$AI$4,FALSE) -> Yes | AJ16: =VLOOKUP(tblAssets_Results[[#This Row],[Asset Analysis ID]],tblAssets_Raw[],$AJ$4,FALSE) -> 2020 | AK16: =VLOOKUP(tblAssets_Results[[#This Row],[Asset Analysis ID]],tblAssets_Raw[],$AK$4,FALSE) -> Yes | AL16: =VLOOKUP(tblAssets_Results[[#This Row],[Asset Analysis ID]],tblAssets_Raw[],$AL$4,FALSE) -> 1 | AM16: =VLOOKUP(tblAssets_Results[[#This Row],[Asset Analysis ID]],tblAssets_Raw[],$AM$4,FALSE) -> 2020 | AN16: =VLOOKUP(tblAssets_Results[[#This Row],[Asset Analysis ID]],tblAssets_Raw[],$AN$4,FALSE) -> Yes | AO16: =VLOOKUP(tblAssets_Results[[#This Row],[Asset Analysis ID]],tblAssets_Raw[],$AO$4,FALSE) -> 2020 | AP16: =VLOOKUP(tblAssets_Results[[#This Row],[Asset Analysis ID]],tblAssets_Raw[],$AP$4,FALSE) -> Yes | AQ16: =VLOOKUP(tblAssets_Results[[#This Row],[Asset Analysis ID]],tblAssets_Raw[],$AQ$4,FALSE) -> 10 | AR16: =VLOOKUP(tblAssets_Results[[#This Row],[Asset Analysis ID]],tblAssets_Raw[],$AR$4,FALSE) -> Galvanised Iron Pipe | AS16: =VLOOKUP(tblAssets_Results[[#This Row],[Asset Analysis ID]],tblAssets_Raw[],$AS$4,FALSE) -> 2020 | AT16: =VLOOKUP(tblAssets_Results[[#This Row],[Asset Analysis ID]],tblAssets_Raw[],$AT$4,FALSE) -> Yes | AU16: =VLOOKUP(tblAssets_Results[[#This Row],[Asset Analysis ID]],tblAssets_Raw[],$AU$4,FALSE) -> 2022 | AV16: =VLOOKUP(tblAssets_Results[[#This Row],[Asset Analysis ID]],tblAssets_Raw[],$AV$4,FALSE) -> 1 | AW16: =IF(tblAssets_Results[[#This Row],[Remaining Lifespan of Spring Protection]]<YearsRemainingThreshold,VLOOKUP(CONCATENATE($AW$6,"|",tblAssets_Results[[#This Row],[Alert]]),tblInterventions[[Index]:[Cost Type]],2,FALSE),"") ->  | AX16: =IF(tblAssets_Results[[#This Row],[Remaining Lifespan of taps/Spouts]]<YearsRemainingThreshold,VLOOKUP(CONCATENATE(Assumptions!$E$10,"|",tblAssets_Results[[#This Row],[Alert]]),tblInterventions[[Index]:[Cost Type]],2,FALSE)*tblAssets_Results[[#This Row],[Number of Spouts]],"") ->  | AY16: =IF(tblAssets_Results[[#This Row],[Remaining Lifespan of Borehole]]<YearsRemainingThreshold,VLOOKUP(CONCATENATE(tblAssetTypes[[#This Row],[Asset component]],"|",tblAssets_Results[[#This Row],[Alert]]),tblInterventions[[Index]:[Cost Type]],2,FALSE),"") ->  | AZ16: =IF(tblAssets_Results[[#This Row],[Remaining Lifespan of Pump]]<YearsRemainingThreshold,VLOOKUP(CONCATENATE(Assumptions!$E$7,"|",tblAssets_Results[[#This Row],[Alert]]),tblInterventions[[Index]:[Cost Type]],2,FALSE),"") ->  | BA16: =IF(tblAssets_Results[[#This Row],[Remaining Lifespan of Concrete works]]<YearsRemainingThreshold,VLOOKUP(CONCATENATE(Assumptions!$E$8,"|",tblAssets_Results[[#This Row],[Alert]]),tblInterventions[[Index]:[Cost Type]]*tblAssets_Results[[#This Row],[Estimated amount of m3 concrete works]],2,FALSE),"") ->  | BB16: =IFERROR(IF(tblAssets_Results[[#This Row],[Remaining LifeSpan of Pipes]]<YearsRemainingThreshold,VLOOKUP(CONCATENATE($BB$6,"|",tblAssets_Results[[#This Row],[Alert]]),tblInterventions[[Index]:[Cost Type]],2,FALSE)*tblAssets_Results[[#This Row],[Number of Pipes (m)]],""),"") ->  | BC16: =IF(ISNUMBER(SEARCH(BC$6,tblAssets_Results[[#This Row],[Component(s)]:[Component(s)]])),VLOOKUP(CONCATENATE($BC$6,"|",tblAssets_Results[[#This Row],[Alert]]),tblInterventions[[Index]:[Cost Type]],2,FALSE),"") ->  | BD16: =IF(ISNUMBER(SEARCH(BD$6,tblAssets_Results[[#This Row],[Component(s)]:[Component(s)]])),VLOOKUP(CONCATENATE($BD$6,"|",tblAssets_Results[[#This Row],[Alert]]),tblInterventions[[Index]:[Cost Type]],2,FALSE)*tblAssets_Results[[#This Row],[Number of Spouts]],"") ->  | BE16: =IF(ISNUMBER(SEARCH(BE$6,tblAssets_Results[[#This Row],[Component(s)]:[Component(s)]])),VLOOKUP(CONCATENATE($BE$6,"|",tblAssets_Results[[#This Row],[Alert]]),tblInterventions[[Index]:[Cost Type]],2,FALSE),"") ->  | BF16: =IF(ISNUMBER(SEARCH(BF$6,tblAssets_Results[[#This Row],[Component(s)]:[Component(s)]])),VLOOKUP(CONCATENATE($BF$6,"|",tblAssets_Results[[#This Row],[Alert]]),tblInterventions[[Index]:[Cost Type]],2,FALSE),"") ->  | BG16: =IF(ISNUMBER(SEARCH(BG$6,tblAssets_Results[[#This Row],[Component(s)]:[Component(s)]])),VLOOKUP(CONCATENATE($BG$6,"|",tblAssets_Results[[#This Row],[Alert]]),tblInterventions[[Index]:[Cost Type]],2,FALSE)*tblAssets_Results[[#This Row],[Estimated amount of m3 concrete works]],"") ->  | BH16: =IF(ISNUMBER(SEARCH(BH$6,tblAssets_Results[[#This Row],[Component(s)]:[Component(s)]])),VLOOKUP(CONCATENATE($BH$6,"|",tblAssets_Results[[#This Row],[Alert]]),tblInterventions[[Index]:[Cost Type]],2,FALSE)*tblAssets_Results[[#This Row],[Number of Pipes (m)]],"") ->  | BI16: =IF(OR(tblAssets_Results[[#This Row],[Alert]]=stdAlert_MajorRepairs,tblAssets_Results[[#This Row],[Alert]]=stdAlert_NewConstruction),VLOOKUP(CONCATENATE(BI$6,"|",tblAssets_Results[[#This Row],[Alert]]),tblInterventions[[Index]:[Cost Type]],2,FALSE),"") -> 1000 | BJ16: =IF(OR(tblAssets_Results[[#This Row],[Alert]]=stdAlert_MajorRepairs,tblAssets_Results[[#This Row],[Alert]]=stdAlert_NewConstruction),VLOOKUP(CONCATENATE(BJ$6,"|",tblAssets_Results[[#This Row],[Alert]]),tblInterventions[[Index]:[Cost Type]],2,FALSE)*tblAssets_Results[[#This Row],[Number of Spouts]],"") -> 5 | BK16: =IF(OR(tblAssets_Results[[#This Row],[Alert]]=stdAlert_MajorRepairs,tblAssets_Results[[#This Row],[Alert]]=stdAlert_NewConstruction),VLOOKUP(CONCATENATE(BK$6,"|",tblAssets_Results[[#This Row],[Alert]]),tblInterventions[[Index]:[Cost Type]],2,FALSE),"") -> 2000 | BL16: =IF(OR(tblAssets_Results[[#This Row],[Alert]]=stdAlert_MajorRepairs,tblAssets_Results[[#This Row],[Alert]]=stdAlert_NewConstruction),VLOOKUP(CONCATENATE(BL$6,"|",tblAssets_Results[[#This Row],[Alert]]),tblInterventions[[Index]:[Cost Type]],2,FALSE),"") -> 500 | BM16: =IF(OR(tblAssets_Results[[#This Row],[Alert]]=stdAlert_MajorRepairs,tblAssets_Results[[#This Row],[Alert]]=stdAlert_NewConstruction),VLOOKUP(CONCATENATE(BM$6,"|",tblAssets_Results[[#This Row],[Alert]]),tblInterventions[[Index]:[Cost Type]],2,FALSE)*tblAssets_Results[[#This Row],[Estimated amount of m3 concrete works]],"") -> 200 | BN16: =IF(OR(tblAssets_Results[[#This Row],[Alert]]=stdAlert_MajorRepairs,tblAssets_Results[[#This Row],[Alert]]=stdAlert_NewConstruction),VLOOKUP(CONCATENATE(BN$6,"|",tblAssets_Results[[#This Row],[Alert]]),tblInterventions[[Index]:[Cost Type]],2,FALSE)*tblAssets_Results[[#This Row],[Number of Pipes (m)]],"") -> 100 | BO16: =SUM(tblAssets_Results[[#This Row],[Capmanex component 1]:[Capex Cost component 6]]) -> 3805 | BP16: =VLOOKUP(CONCATENATE(BP$6,"|",stdAlert_NewConstruction),tblInterventions[[Index]:[Cost Type]],2,FALSE) -> 2000 | BQ16: =VLOOKUP(CONCATENATE(BQ$6,"|",stdAlert_NewConstruction),tblInterventions[[Index]:[Cost Type]],2,FALSE)*tblAssets_Results[[#This Row],[Number of Spouts]] -> 10 | BR16: =VLOOKUP(CONCATENATE(BR$6,"|",stdAlert_NewConstruction),tblInterventions[[Index]:[Cost Type]],2,FALSE) -> 5000 | BS16: =VLOOKUP(CONCATENATE(BS$6,"|",stdAlert_NewConstruction),tblInterventions[[Index]:[Cost Type]],2,FALSE) -> 1000 | BT16: =VLOOKUP(CONCATENATE(BT$6,"|",stdAlert_NewConstruction),tblInterventions[[Index]:[Cost Type]],2,FALSE)*tblAssets_Results[[#This Row],[Estimated amount of m3 concrete works]] -> 500 | BU16: =VLOOKUP(CONCATENATE(BU$6,"|",stdAlert_NewConstruction),tblInterventions[[Index]:[Cost Type]],2,FALSE)*tblAssets_Results[[#This Row],[Number of Pipes (m)]] -> 150 | BV16: =SUM(tblAssets_Results[[#This Row],[Full Capex Cost component 1]:[Capex Cost component 62]]) -> 8660
B17: 10 | C17: =VLOOKUP(tblAssets_Results[[#This Row],[Asset Analysis ID]:[Asset Analysis ID]],tblAssets_Raw[],C$4,FALSE) -> Piped water system | D17: =VLOOKUP(tblAssets_Results[[#This Row],[Asset Analysis ID]:[Asset Analysis ID]],tblAssets_Raw[],D$4,FALSE) -> Borehole with handpump | E17: =VLOOKUP(tblAssets_Results[[#This Row],[Asset Analysis ID]:[Asset Analysis ID]],tblAssets_Raw[],E$4,FALSE) -> 2021 | F17: =VLOOKUP(tblAssets_Results[[#This Row],[Asset Analysis ID]:[Asset Analysis ID]],tblAssets_Raw[],F$6,FALSE) -> Kenya | G17: =VLOOKUP(tblAssets_Results[[#This Row],[Asset Analysis ID]:[Asset Analysis ID]],tblAssets_Raw[],G$6,FALSE) -> Rift Valley | H17: =VLOOKUP(tblAssets_Results[[#This Row],[Asset Analysis ID]:[Asset Analysis ID]],tblAssets_Raw[],H$6,FALSE) -> Samburu | I17: =VLOOKUP(tblAssets_Results[[#This Row],[Asset Analysis ID]:[Asset Analysis ID]],tblAssets_Raw[],I$6,FALSE) -> Samburu West | J17: =VLOOKUP(tblAssets_Results[[#This Row],[Asset Analysis ID]:[Asset Analysis ID]],tblAssets_Raw[],J$6,FALSE) -> Samburu | K17: =VLOOKUP(tblAssets_Results[[#This Row],[Asset Analysis ID]:[Asset Analysis ID]],tblAssets_Raw[],K$6,FALSE) -> 2022 | L17: =IFERROR(IF(tblAssets_Results[[#This Row],[Water Point/System Improved]]=stdNo,stdRisk_NoImprovedWPS,CHOOSE(COUNTIF(tblAssets_Results[[#This Row],[Remaining Lifespan of Spring Protection]:[Remaining LifeSpan of Pipes]],"<=" & YearsRemainingThreshold)+1,stdRisk_Low,stdRisk_Medium,stdRisk_High,stdRisk_High,stdRisk_High,stdRisk_High,stdRisk_High)),"") -> No Improved Water Point/System | M17: =IFERROR(IF(tblAssets_Results[[#This Row],[Water Point/System Improved]]=stdNo,stdRisk_NoImprovedWPS,Conditions2Risk(tblAssets_Results[[#This Row],[Condition of Spring Protection]:[Condition Of The Water Point/System Overall]])),"") -> No Improved Water Point/System | N17: =IFERROR(VLOOKUP(CONCATENATE(tblAssets_Results[[#This Row],[Risk Based On Age]],"|",tblAssets_Results[[#This Row],[Risk Based On Current Condition]]),tblRiskToPriority[[Index]:[Level of Priority]],2,FALSE),"") -> New Construction Needed | O17: =IFERROR(IF(tblAssets_Results[[#This Row],[Level Of Priority To Replace/Repair]]=stdPriority_NewConstruction,stdAlert_NewConstruction,IF(OR(tblAssets_Results[[#This Row],[Level Of Priority To Replace/Repair]]=stdPriority_High,tblAssets_Results[[#This Row],[Condition Of The Water Point/System Overall]]=stdCondition_VeryPoor),stdAlert_MajorRepairs,IF(OR(tblAssets_Results[[#This Row],[Risk Based On Age]]=stdRisk_High,tblAssets_Results[[#This Row],[Risk Based On Age]]=stdRisk_Medium),stdAlert_ConsiderReplacement,IF(OR(tblAssets_Results[[#This Row],[Worst Condition]]=stdCondition_Poor,tblAssets_Results[[#This Row],[Worst Condition]]=stdCondition_VeryPoor),stdAlert_RepairReplace,stdAlert_RoutineMaintenance)))),"") -> New Construction Needed | P17: =IF(tblAssets_Results[[#This Row],[Alert]]=stdAlert_ConsiderReplacement,shortlifetime_components(tblAssets_Results[[#This Row],[Remaining Lifespan of Spring Protection]:[Remaining LifeSpan of Pipes]],YearsRemainingThreshold),IF(tblAssets_Results[[#This Row],[Alert]]=stdAlert_RepairReplace,PoorCondition_Components(tblAssets_Results[[#This Row],[Condition of Spring Protection]:[Condition Of The Water Point/System Overall]]),"")) ->  | Q17: =IF(tblAssets_Results[[#This Row],[Alert]]=stdPriority_NewConstruction,stdRecommend_InvestmentPlan,IF(tblAssets_Results[[#This Row],[Alert]]=stdAlert_MajorRepairs,stdRecommend_FurtherDiagnostics,IF(tblAssets_Results[[#This Row],[Alert]]=stdAlert_ConsiderReplacement,stdRecommend_FurtherDiagnostics,IF(tblAssets_Results[[#This Row],[Alert]]=stdAlert_RepairReplace,stdRecommend_PlanRepairReplace,IF(tblAssets_Results[[#This Row],[Alert]]=stdAlert_RoutineMaintenance,stdRecommend_MaintainOM,""))))) -> Plan For Investment and Construction | R17: =IF(tblAssets_Results[[#This Row],[Presence Of Spring Protection?]]=stdYes,stdLife_SpringProtection-(tblAssets_Results[[#This Row],[Year Data Was Collected]]-tblAssets_Results[[#This Row],[Year Source Protection Was Constructed or Replaced]])," ") ->  | S17: =IF(tblAssets_Results[[#This Row],[Presence Of Tap(s)?]]=stdYes,stdLife_Taps-(tblAssets_Results[[#This Row],[Year Data Was Collected]]-tblAssets_Results[[#This Row],[Year Taps were Constructed or Replaced]])," ") -> 4 | T17: =IF(tblAssets_Results[[#This Row],[Presence Of Well?]]=stdYes,stdLife_Well-(tblAssets_Results[[#This Row],[Year Data Was Collected]]-tblAssets_Results[[#This Row],[Year Well Was Constructed or Replaced]])," ") ->  | U17: =IF(tblAssets_Results[[#This Row],[Presence Of Pump?]]=stdYes,stdLife_Pump-(tblAssets_Results[[#This Row],[Year Data Was Collected]]-tblAssets_Results[[#This Row],[Year Pump Was Installed or Replaced]])," ") -> 4 | V17: =IF(tblAssets_Results[[#This Row],[Presence Of An concrete works?]]=stdYes,stdLife_Apron-(tblAssets_Results[[#This Row],[Year Data Was Collected]]-tblAssets_Results[[#This Row],[Year concrete work was Constructed or Replaced]])," ") ->  | W17: =IFERROR(VLOOKUP(tblAssets_Results[[#This Row],[Material of the Pipes]],tblPipeMaterials[],2,FALSE)-(tblAssets_Results[[#This Row],[Year Data Was Collected]]-tblAssets_Results[[#This Row],[Year Of Construction]]),"") -> 19 | X17: =IFERROR(VLOOKUP(tblAssets_Results[[#This Row],[Asset Analysis ID]],tblAssets_Raw[],$X$4,FALSE),"") -> Good | Y17: =VLOOKUP(tblAssets_Results[[#This Row],[Asset Analysis ID]],tblAssets_Raw[],$Y$4,FALSE) -> 2 | Z17: =VLOOKUP(tblAssets_Results[[#This Row],[Asset Analysis ID]],tblAssets_Raw[],$Z$4,FALSE) -> Excellent | AA17: =VLOOKUP(tblAssets_Results[[#This Row],[Asset Analysis ID]],tblAssets_Raw[],$AA$4,FALSE) -> Good | AB17: =VLOOKUP(tblAssets_Results[[#This Row],[Asset Analysis ID]],tblAssets_Raw[],$AB$4,FALSE) -> Fair | AC17: =IFERROR(VLOOKUP(VLOOKUP(tblAssets_Results[[#This Row],[Asset Analysis ID]],tblAssets_Raw[],$AC$4,FALSE),tblFunctionalStatus[],2,FALSE),"") -> Very Poor | AD17: =WorstCondition(tblAssets_Results[[#This Row],[Condition of Spring Protection]:[Condition Of The Water Point/System Overall]]) -> Very Poor | AE17: =VLOOKUP(tblAssets_Results[[#This Row],[Asset Analysis ID]:[Asset Analysis ID]],tblAssets_Raw[],AE$4,FALSE) -> No | AF17: =VLOOKUP(tblAssets_Results[[#This Row],[Asset Analysis ID]:[Asset Analysis ID]],tblAssets_Raw[],AF$4,FALSE) -> No | AG17: =VLOOKUP(tblAssets_Results[[#This Row],[Asset Analysis ID]:[Asset Analysis ID]],tblAssets_Raw[],AG$4,FALSE) -> No | AH17: =IF(OR(tblAssets_Results[[#This Row],[Condition Of The Water Point/System Overall]]=stdCondition_Excellent,tblAssets_Results[[#This Row],[Condition Of The Water Point/System Overall]]=stdCondition_Good),stdYes,stdNo) -> No | AI17: =VLOOKUP(tblAssets_Results[[#This Row],[Asset Analysis ID]],tblAssets_Raw[],$AI$4,FALSE) -> No | AJ17: =VLOOKUP(tblAssets_Results[[#This Row],[Asset Analysis ID]],tblAssets_Raw[],$AJ$4,FALSE) -> 2021 | AK17: =VLOOKUP(tblAssets_Results[[#This Row],[Asset Analysis ID]],tblAssets_Raw[],$AK$4,FALSE) -> Yes | AL17: =VLOOKUP(tblAssets_Results[[#This Row],[Asset Analysis ID]],tblAssets_Raw[],$AL$4,FALSE) -> 2 | AM17: =VLOOKUP(tblAssets_Results[[#This Row],[Asset Analysis ID]],tblAssets_Raw[],$AM$4,FALSE) -> 2021 | AN17: =VLOOKUP(tblAssets_Results[[#This Row],[Asset Analysis ID]],tblAssets_Raw[],$AN$4,FALSE) -> No | AO17: =VLOOKUP(tblAssets_Results[[#This Row],[Asset Analysis ID]],tblAssets_Raw[],$AO$4,FALSE) -> 2021 | AP17: =VLOOKUP(tblAssets_Results[[#This Row],[Asset Analysis ID]],tblAssets_Raw[],$AP$4,FALSE) -> Yes | AQ17: =VLOOKUP(tblAssets_Results[[#This Row],[Asset Analysis ID]],tblAssets_Raw[],$AQ$4,FALSE) -> 10 | AR17: =VLOOKUP(tblAssets_Results[[#This Row],[Asset Analysis ID]],tblAssets_Raw[],$AR$4,FALSE) -> Galvanised Iron Pipe | AS17: =VLOOKUP(tblAssets_Results[[#This Row],[Asset Analysis ID]],tblAssets_Raw[],$AS$4,FALSE) -> 2021 | AT17: =VLOOKUP(tblAssets_Results[[#This Row],[Asset Analysis ID]],tblAssets_Raw[],$AT$4,FALSE) -> No | AU17: =VLOOKUP(tblAssets_Results[[#This Row],[Asset Analysis ID]],tblAssets_Raw[],$AU$4,FALSE) -> 2021 | AV17: =VLOOKUP(tblAssets_Results[[#This Row],[Asset Analysis ID]],tblAssets_Raw[],$AV$4,FALSE) -> 1 | AW17: =IF(tblAssets_Results[[#This Row],[Remaining Lifespan of Spring Protection]]<YearsRemainingThreshold,VLOOKUP(CONCATENATE($AW$6,"|",tblAssets_Results[[#This Row],[Alert]]),tblInterventions[[Index]:[Cost Type]],2,FALSE),"") ->  | AX17: =IF(tblAssets_Results[[#This Row],[Remaining Lifespan of taps/Spouts]]<YearsRemainingThreshold,VLOOKUP(CONCATENATE(Assumptions!$E$10,"|",tblAssets_Results[[#This Row],[Alert]]),tblInterventions[[Index]:[Cost Type]],2,FALSE)*tblAssets_Results[[#This Row],[Number of Spouts]],"") ->  | AY17: =IF(tblAssets_Results[[#This Row],[Remaining Lifespan of Borehole]]<YearsRemainingThreshold,VLOOKUP(CONCATENATE(tblAssetTypes[[#This Row],[Asset component]],"|",tblAssets_Results[[#This Row],[Alert]]),tblInterventions[[Index]:[Cost Type]],2,FALSE),"") ->  | AZ17: =IF(tblAssets_Results[[#This Row],[Remaining Lifespan of Pump]]<YearsRemainingThreshold,VLOOKUP(CONCATENATE(Assumptions!$E$7,"|",tblAssets_Results[[#This Row],[Alert]]),tblInterventions[[Index]:[Cost Type]],2,FALSE),"") ->  | BA17: =IF(tblAssets_Results[[#This Row],[Remaining Lifespan of Concrete works]]<YearsRemainingThreshold,VLOOKUP(CONCATENATE(Assumptions!$E$8,"|",tblAssets_Results[[#This Row],[Alert]]),tblInterventions[[Index]:[Cost Type]]*tblAssets_Results[[#This Row],[Estimated amount of m3 concrete works]],2,FALSE),"") ->  | BB17: =IFERROR(IF(tblAssets_Results[[#This Row],[Remaining LifeSpan of Pipes]]<YearsRemainingThreshold,VLOOKUP(CONCATENATE($BB$6,"|",tblAssets_Results[[#This Row],[Alert]]),tblInterventions[[Index]:[Cost Type]],2,FALSE)*tblAssets_Results[[#This Row],[Number of Pipes (m)]],""),"") ->  | BC17: =IF(ISNUMBER(SEARCH(BC$6,tblAssets_Results[[#This Row],[Component(s)]:[Component(s)]])),VLOOKUP(CONCATENATE($BC$6,"|",tblAssets_Results[[#This Row],[Alert]]),tblInterventions[[Index]:[Cost Type]],2,FALSE),"") ->  | BD17: =IF(ISNUMBER(SEARCH(BD$6,tblAssets_Results[[#This Row],[Component(s)]:[Component(s)]])),VLOOKUP(CONCATENATE($BD$6,"|",tblAssets_Results[[#This Row],[Alert]]),tblInterventions[[Index]:[Cost Type]],2,FALSE)*tblAssets_Results[[#This Row],[Number of Spouts]],"") ->  | BE17: =IF(ISNUMBER(SEARCH(BE$6,tblAssets_Results[[#This Row],[Component(s)]:[Component(s)]])),VLOOKUP(CONCATENATE($BE$6,"|",tblAssets_Results[[#This Row],[Alert]]),tblInterventions[[Index]:[Cost Type]],2,FALSE),"") ->  | BF17: =IF(ISNUMBER(SEARCH(BF$6,tblAssets_Results[[#This Row],[Component(s)]:[Component(s)]])),VLOOKUP(CONCATENATE($BF$6,"|",tblAssets_Results[[#This Row],[Alert]]),tblInterventions[[Index]:[Cost Type]],2,FALSE),"") ->  | BG17: =IF(ISNUMBER(SEARCH(BG$6,tblAssets_Results[[#This Row],[Component(s)]:[Component(s)]])),VLOOKUP(CONCATENATE($BG$6,"|",tblAssets_Results[[#This Row],[Alert]]),tblInterventions[[Index]:[Cost Type]],2,FALSE)*tblAssets_Results[[#This Row],[Estimated amount of m3 concrete works]],"") ->  | BH17: =IF(ISNUMBER(SEARCH(BH$6,tblAssets_Results[[#This Row],[Component(s)]:[Component(s)]])),VLOOKUP(CONCATENATE($BH$6,"|",tblAssets_Results[[#This Row],[Alert]]),tblInterventions[[Index]:[Cost Type]],2,FALSE)*tblAssets_Results[[#This Row],[Number of Pipes (m)]],"") ->  | BI17: =IF(OR(tblAssets_Results[[#This Row],[Alert]]=stdAlert_MajorRepairs,tblAssets_Results[[#This Row],[Alert]]=stdAlert_NewConstruction),VLOOKUP(CONCATENATE(BI$6,"|",tblAssets_Results[[#This Row],[Alert]]),tblInterventions[[Index]:[Cost Type]],2,FALSE),"") -> 2000 | BJ17: =IF(OR(tblAssets_Results[[#This Row],[Alert]]=stdAlert_MajorRepairs,tblAssets_Results[[#This Row],[Alert]]=stdAlert_NewConstruction),VLOOKUP(CONCATENATE(BJ$6,"|",tblAssets_Results[[#This Row],[Alert]]),tblInterventions[[Index]:[Cost Type]],2,FALSE)*tblAssets_Results[[#This Row],[Number of Spouts]],"") -> 20 | BK17: =IF(OR(tblAssets_Results[[#This Row],[Alert]]=stdAlert_MajorRepairs,tblAssets_Results[[#This Row],[Alert]]=stdAlert_NewConstruction),VLOOKUP(CONCATENATE(BK$6,"|",tblAssets_Results[[#This Row],[Alert]]),tblInterventions[[Index]:[Cost Type]],2,FALSE),"") -> 5000 | BL17: =IF(OR(tblAssets_Results[[#This Row],[Alert]]=stdAlert_MajorRepairs,tblAssets_Results[[#This Row],[Alert]]=stdAlert_NewConstruction),VLOOKUP(CONCATENATE(BL$6,"|",tblAssets_Results[[#This Row],[Alert]]),tblInterventions[[Index]:[Cost Type]],2,FALSE),"") -> 1000 | BM17: =IF(OR(tblAssets_Results[[#This Row],[Alert]]=stdAlert_MajorRepairs,tblAssets_Results[[#This Row],[Alert]]=stdAlert_NewConstruction),VLOOKUP(CONCATENATE(BM$6,"|",tblAssets_Results[[#This Row],[Alert]]),tblInterventions[[Index]:[Cost Type]],2,FALSE)*tblAssets_Results[[#This Row],[Estimated amount of m3 concrete works]],"") -> 500 | BN17: =IF(OR(tblAssets_Results[[#This Row],[Alert]]=stdAlert_MajorRepairs,tblAssets_Results[[#This Row],[Alert]]=stdAlert_NewConstruction),VLOOKUP(CONCATENATE(BN$6,"|",tblAssets_Results[[#This Row],[Alert]]),tblInterventions[[Index]:[Cost Type]],2,FALSE)*tblAssets_Results[[#This Row],[Number of Pipes (m)]],"") -> 150 | BO17: =SUM(tblAssets_Results[[#This Row],[Capmanex component 1]:[Capex Cost component 6]]) -> 8670 | BP17: =VLOOKUP(CONCATENATE(BP$6,"|",stdAlert_NewConstruction),tblInterventions[[Index]:[Cost Type]],2,FALSE) -> 2000 | BQ17: =VLOOKUP(CONCATENATE(BQ$6,"|",stdAlert_NewConstruction),tblInterventions[[Index]:[Cost Type]],2,FALSE)*tblAssets_Results[[#This Row],[Number of Spouts]] -> 20 | BR17: =VLOOKUP(CONCATENATE(BR$6,"|",stdAlert_NewConstruction),tblInterventions[[Index]:[Cost Type]],2,FALSE) -> 5000 | BS17: =VLOOKUP(CONCATENATE(BS$6,"|",stdAlert_NewConstruction),tblInterventions[[Index]:[Cost Type]],2,FALSE) -> 1000 | BT17: =VLOOKUP(CONCATENATE(BT$6,"|",stdAlert_NewConstruction),tblInterventions[[Index]:[Cost Type]],2,FALSE)*tblAssets_Results[[#This Row],[Estimated amount of m3 concrete works]] -> 500 | BU17: =VLOOKUP(CONCATENATE(BU$6,"|",stdAlert_NewConstruction),tblInterventions[[Index]:[Cost Type]],2,FALSE)*tblAssets_Results[[#This Row],[Number of Pipes (m)]] -> 150 | BV17: =SUM(tblAssets_Results[[#This Row],[Full Capex Cost component 1]:[Capex Cost component 62]]) -> 8670
B18: 11 | C18: =VLOOKUP(tblAssets_Results[[#This Row],[Asset Analysis ID]:[Asset Analysis ID]],tblAssets_Raw[],C$4,FALSE) -> Piped water system | D18: =VLOOKUP(tblAssets_Results[[#This Row],[Asset Analysis ID]:[Asset Analysis ID]],tblAssets_Raw[],D$4,FALSE) -> Borehole with handpump | E18: =VLOOKUP(tblAssets_Results[[#This Row],[Asset Analysis ID]:[Asset Analysis ID]],tblAssets_Raw[],E$4,FALSE) -> 2022 | F18: =VLOOKUP(tblAssets_Results[[#This Row],[Asset Analysis ID]:[Asset Analysis ID]],tblAssets_Raw[],F$6,FALSE) -> Kenya | G18: =VLOOKUP(tblAssets_Results[[#This Row],[Asset Analysis ID]:[Asset Analysis ID]],tblAssets_Raw[],G$6,FALSE) -> Rift Valley | H18: =VLOOKUP(tblAssets_Results[[#This Row],[Asset Analysis ID]:[Asset Analysis ID]],tblAssets_Raw[],H$6,FALSE) -> Samburu | I18: =VLOOKUP(tblAssets_Results[[#This Row],[Asset Analysis ID]:[Asset Analysis ID]],tblAssets_Raw[],I$6,FALSE) -> Samburu Central | J18: =VLOOKUP(tblAssets_Results[[#This Row],[Asset Analysis ID]:[Asset Analysis ID]],tblAssets_Raw[],J$6,FALSE) -> Samburu | K18: =VLOOKUP(tblAssets_Results[[#This Row],[Asset Analysis ID]:[Asset Analysis ID]],tblAssets_Raw[],K$6,FALSE) -> 2022 | L18: =IFERROR(IF(tblAssets_Results[[#This Row],[Water Point/System Improved]]=stdNo,stdRisk_NoImprovedWPS,CHOOSE(COUNTIF(tblAssets_Results[[#This Row],[Remaining Lifespan of Spring Protection]:[Remaining LifeSpan of Pipes]],"<=" & YearsRemainingThreshold)+1,stdRisk_Low,stdRisk_Medium,stdRisk_High,stdRisk_High,stdRisk_High,stdRisk_High,stdRisk_High)),"") -> Low Risk | M18: =IFERROR(IF(tblAssets_Results[[#This Row],[Water Point/System Improved]]=stdNo,stdRisk_NoImprovedWPS,Conditions2Risk(tblAssets_Results[[#This Row],[Condition of Spring Protection]:[Condition Of The Water Point/System Overall]])),"") -> Medium Risk | N18: =IFERROR(VLOOKUP(CONCATENATE(tblAssets_Results[[#This Row],[Risk Based On Age]],"|",tblAssets_Results[[#This Row],[Risk Based On Current Condition]]),tblRiskToPriority[[Index]:[Level of Priority]],2,FALSE),"") -> Low Priority | O18: =IFERROR(IF(tblAssets_Results[[#This Row],[Level Of Priority To Replace/Repair]]=stdPriority_NewConstruction,stdAlert_NewConstruction,IF(OR(tblAssets_Results[[#This Row],[Level Of Priority To Replace/Repair]]=stdPriority_High,tblAssets_Results[[#This Row],[Condition Of The Water Point/System Overall]]=stdCondition_VeryPoor),stdAlert_MajorRepairs,IF(OR(tblAssets_Results[[#This Row],[Risk Based On Age]]=stdRisk_High,tblAssets_Results[[#This Row],[Risk Based On Age]]=stdRisk_Medium),stdAlert_ConsiderReplacement,IF(OR(tblAssets_Results[[#This Row],[Worst Condition]]=stdCondition_Poor,tblAssets_Results[[#This Row],[Worst Condition]]=stdCondition_VeryPoor),stdAlert_RepairReplace,stdAlert_RoutineMaintenance)))),"") -> Repair or Replace Components | P18: =IF(tblAssets_Results[[#This Row],[Alert]]=stdAlert_ConsiderReplacement,shortlifetime_components(tblAssets_Results[[#This Row],[Remaining Lifespan of Spring Protection]:[Remaining LifeSpan of Pipes]],YearsRemainingThreshold),IF(tblAssets_Results[[#This Row],[Alert]]=stdAlert_RepairReplace,PoorCondition_Components(tblAssets_Results[[#This Row],[Condition of Spring Protection]:[Condition Of The Water Point/System Overall]]),"")) -> Spring Protection, Concrete works | Q18: =IF(tblAssets_Results[[#This Row],[Alert]]=stdPriority_NewConstruction,stdRecommend_InvestmentPlan,IF(tblAssets_Results[[#This Row],[Alert]]=stdAlert_MajorRepairs,stdRecommend_FurtherDiagnostics,IF(tblAssets_Results[[#This Row],[Alert]]=stdAlert_ConsiderReplacement,stdRecommend_FurtherDiagnostics,IF(tblAssets_Results[[#This Row],[Alert]]=stdAlert_RepairReplace,stdRecommend_PlanRepairReplace,IF(tblAssets_Results[[#This Row],[Alert]]=stdAlert_RoutineMaintenance,stdRecommend_MaintainOM,""))))) -> Create Plan To Repair or Replace Components | R18: =IF(tblAssets_Results[[#This Row],[Presence Of Spring Protection?]]=stdYes,stdLife_SpringProtection-(tblAssets_Results[[#This Row],[Year Data Was Collected]]-tblAssets_Results[[#This Row],[Year Source Protection Was Constructed or Replaced]])," ") ->  | S18: =IF(tblAssets_Results[[#This Row],[Presence Of Tap(s)?]]=stdYes,stdLife_Taps-(tblAssets_Results[[#This Row],[Year Data Was Collected]]-tblAssets_Results[[#This Row],[Year Taps were Constructed or Replaced]])," ") -> 5 | T18: =IF(tblAssets_Results[[#This Row],[Presence Of Well?]]=stdYes,stdLife_Well-(tblAssets_Results[[#This Row],[Year Data Was Collected]]-tblAssets_Results[[#This Row],[Year Well Was Constructed or Replaced]])," ") -> 20 | U18: =IF(tblAssets_Results[[#This Row],[Presence Of Pump?]]=stdYes,stdLife_Pump-(tblAssets_Results[[#This Row],[Year Data Was Collected]]-tblAssets_Results[[#This Row],[Year Pump Was Installed or Replaced]])," ") -> 5 | V18: =IF(tblAssets_Results[[#This Row],[Presence Of An concrete works?]]=stdYes,stdLife_Apron-(tblAssets_Results[[#This Row],[Year Data Was Collected]]-tblAssets_Results[[#This Row],[Year concrete work was Constructed or Replaced]])," ") -> 25 | W18: =IFERROR(VLOOKUP(tblAssets_Results[[#This Row],[Material of the Pipes]],tblPipeMaterials[],2,FALSE)-(tblAssets_Results[[#This Row],[Year Data Was Collected]]-tblAssets_Results[[#This Row],[Year Of Construction]]),"") -> 20 | X18: =IFERROR(VLOOKUP(tblAssets_Results[[#This Row],[Asset Analysis ID]],tblAssets_Raw[],$X$4,FALSE),"") -> Very Poor | Y18: =VLOOKUP(tblAssets_Results[[#This Row],[Asset Analysis ID]],tblAssets_Raw[],$Y$4,FALSE) -> 3 | Z18: =VLOOKUP(tblAssets_Results[[#This Row],[Asset Analysis ID]],tblAssets_Raw[],$Z$4,FALSE) -> Good | AA18: =VLOOKUP(tblAssets_Results[[#This Row],[Asset Analysis ID]],tblAssets_Raw[],$AA$4,FALSE) -> Fair | AB18: =VLOOKUP(tblAssets_Results[[#This Row],[Asset Analysis ID]],tblAssets_Raw[],$AB$4,FALSE) -> Poor | AC18: =IFERROR(VLOOKUP(VLOOKUP(tblAssets_Results[[#This Row],[Asset Analysis ID]],tblAssets_Raw[],$AC$4,FALSE),tblFunctionalStatus[],2,FALSE),"") -> Excellent | AD18: =WorstCondition(tblAssets_Results[[#This Row],[Condition of Spring Protection]:[Condition Of The Water Point/System Overall]]) -> Very Poor | AE18: =VLOOKUP(tblAssets_Results[[#This Row],[Asset Analysis ID]:[Asset Analysis ID]],tblAssets_Raw[],AE$4,FALSE) -> Yes | AF18: =VLOOKUP(tblAssets_Results[[#This Row],[Asset Analysis ID]:[Asset Analysis ID]],tblAssets_Raw[],AF$4,FALSE) -> No | AG18: =VLOOKUP(tblAssets_Results[[#This Row],[Asset Analysis ID]:[Asset Analysis ID]],tblAssets_Raw[],AG$4,FALSE) -> No | AH18: =IF(OR(tblAssets_Results[[#This Row],[Condition Of The Water Point/System Overall]]=stdCondition_Excellent,tblAssets_Results[[#This Row],[Condition Of The Water Point/System Overall]]=stdCondition_Good),stdYes,stdNo) -> Yes | AI18: =VLOOKUP(tblAssets_Results[[#This Row],[Asset Analysis ID]],tblAssets_Raw[],$AI$4,FALSE) -> No | AJ18: =VLOOKUP(tblAssets_Results[[#This Row],[Asset Analysis ID]],tblAssets_Raw[],$AJ$4,FALSE) -> 2022 | AK18: =VLOOKUP(tblAssets_Results[[#This Row],[Asset Analysis ID]],tblAssets_Raw[],$AK$4,FALSE) -> Yes | AL18: =VLOOKUP(tblAssets_Results[[#This Row],[Asset Analysis ID]],tblAssets_Raw[],$AL$4,FALSE) -> 3 | AM18: =VLOOKUP(tblAssets_Results[[#This Row],[Asset Analysis ID]],tblAssets_Raw[],$AM$4,FALSE) -> 2022 | AN18: =VLOOKUP(tblAssets_Results[[#This Row],[Asset Analysis ID]],tblAssets_Raw[],$AN$4,FALSE) -> Yes | AO18: =VLOOKUP(tblAssets_Results[[#This Row],[Asset Analysis ID]],tblAssets_Raw[],$AO$4,FALSE) -> 2022 | AP18: =VLOOKUP(tblAssets_Results[[#This Row],[Asset Analysis ID]],tblAssets_Raw[],$AP$4,FALSE) -> Yes | AQ18: =VLOOKUP(tblAssets_Results[[#This Row],[Asset Analysis ID]],tblAssets_Raw[],$AQ$4,FALSE) -> 10 | AR18: =VLOOKUP(tblAssets_Results[[#This Row],[Asset Analysis ID]],tblAssets_Raw[],$AR$4,FALSE) -> Galvanised Iron Pipe | AS18: =VLOOKUP(tblAssets_Results[[#This Row],[Asset Analysis ID]],tblAssets_Raw[],$AS$4,FALSE) -> 2022 | AT18: =VLOOKUP(tblAssets_Results[[#This Row],[Asset Analysis ID]],tblAssets_Raw[],$AT$4,FALSE) -> Yes | AU18: =VLOOKUP(tblAssets_Results[[#This Row],[Asset Analysis ID]],tblAssets_Raw[],$AU$4,FALSE) -> 2022 | AV18: =VLOOKUP(tblAssets_Results[[#This Row],[Asset Analysis ID]],tblAssets_Raw[],$AV$4,FALSE) -> 1 | AW18: =IF(tblAssets_Results[[#This Row],[Remaining Lifespan of Spring Protection]]<YearsRemainingThreshold,VLOOKUP(CONCATENATE($AW$6,"|",tblAssets_Results[[#This Row],[Alert]]),tblInterventions[[Index]:[Cost Type]],2,FALSE),"") ->  | AX18: =IF(tblAssets_Results[[#This Row],[Remaining Lifespan of taps/Spouts]]<YearsRemainingThreshold,VLOOKUP(CONCATENATE(Assumptions!$E$10,"|",tblAssets_Results[[#This Row],[Alert]]),tblInterventions[[Index]:[Cost Type]],2,FALSE)*tblAssets_Results[[#This Row],[Number of Spouts]],"") ->  | AY18: =IF(tblAssets_Results[[#This Row],[Remaining Lifespan of Borehole]]<YearsRemainingThreshold,VLOOKUP(CONCATENATE(tblAssetTypes[[#This Row],[Asset component]],"|",tblAssets_Results[[#This Row],[Alert]]),tblInterventions[[Index]:[Cost Type]],2,FALSE),"") ->  | AZ18: =IF(tblAssets_Results[[#This Row],[Remaining Lifespan of Pump]]<YearsRemainingThreshold,VLOOKUP(CONCATENATE(Assumptions!$E$7,"|",tblAssets_Results[[#This Row],[Alert]]),tblInterventions[[Index]:[Cost Type]],2,FALSE),"") ->  | BA18: =IF(tblAssets_Results[[#This Row],[Remaining Lifespan of Concrete works]]<YearsRemainingThreshold,VLOOKUP(CONCATENATE(Assumptions!$E$8,"|",tblAssets_Results[[#This Row],[Alert]]),tblInterventions[[Index]:[Cost Type]]*tblAssets_Results[[#This Row],[Estimated amount of m3 concrete works]],2,FALSE),"") ->  | BB18: =IFERROR(IF(tblAssets_Results[[#This Row],[Remaining LifeSpan of Pipes]]<YearsRemainingThreshold,VLOOKUP(CONCATENATE($BB$6,"|",tblAssets_Results[[#This Row],[Alert]]),tblInterventions[[Index]:[Cost Type]],2,FALSE)*tblAssets_Results[[#This Row],[Number of Pipes (m)]],""),"") ->  | BC18: =IF(ISNUMBER(SEARCH(BC$6,tblAssets_Results[[#This Row],[Component(s)]:[Component(s)]])),VLOOKUP(CONCATENATE($BC$6,"|",tblAssets_Results[[#This Row],[Alert]]),tblInterventions[[Index]:[Cost Type]],2,FALSE),"") -> 40 | BD18: =IF(ISNUMBER(SEARCH(BD$6,tblAssets_Results[[#This Row],[Component(s)]:[Component(s)]])),VLOOKUP(CONCATENATE($BD$6,"|",tblAssets_Results[[#This Row],[Alert]]),tblInterventions[[Index]:[Cost Type]],2,FALSE)*tblAssets_Results[[#This Row],[Number of Spouts]],"") ->  | BE18: =IF(ISNUMBER(SEARCH(BE$6,tblAssets_Results[[#This Row],[Component(s)]:[Component(s)]])),VLOOKUP(CONCATENATE($BE$6,"|",tblAssets_Results[[#This Row],[Alert]]),tblInterventions[[Index]:[Cost Type]],2,FALSE),"") ->  | BF18: =IF(ISNUMBER(SEARCH(BF$6,tblAssets_Results[[#This Row],[Component(s)]:[Component(s)]])),VLOOKUP(CONCATENATE($BF$6,"|",tblAssets_Results[[#This Row],[Alert]]),tblInterventions[[Index]:[Cost Type]],2,FALSE),"") ->  | BG18: =IF(ISNUMBER(SEARCH(BG$6,tblAssets_Results[[#This Row],[Component(s)]:[Component(s)]])),VLOOKUP(CONCATENATE($BG$6,"|",tblAssets_Results[[#This Row],[Alert]]),tblInterventions[[Index]:[Cost Type]],2,FALSE)*tblAssets_Results[[#This Row],[Estimated amount of m3 concrete works]],"") -> 10 | BH18: =IF(ISNUMBER(SEARCH(BH$6,tblAssets_Results[[#This Row],[Component(s)]:[Component(s)]])),VLOOKUP(CONCATENATE($BH$6,"|",tblAssets_Results[[#This Row],[Alert]]),tblInterventions[[Index]:[Cost Type]],2,FALSE)*tblAssets_Results[[#This Row],[Number of Pipes (m)]],"") ->  | BI18: =IF(OR(tblAssets_Results[[#This Row],[Alert]]=stdAlert_MajorRepairs,tblAssets_Results[[#This Row],[Alert]]=stdAlert_NewConstruction),VLOOKUP(CONCATENATE(BI$6,"|",tblAssets_Results[[#This Row],[Alert]]),tblInterventions[[Index]:[Cost Type]],2,FALSE),"") ->  | BJ18: =IF(OR(tblAssets_Results[[#This Row],[Alert]]=stdAlert_MajorRepairs,tblAssets_Results[[#This Row],[Alert]]=stdAlert_NewConstruction),VLOOKUP(CONCATENATE(BJ$6,"|",tblAssets_Results[[#This Row],[Alert]]),tblInterventions[[Index]:[Cost Type]],2,FALSE)*tblAssets_Results[[#This Row],[Number of Spouts]],"") ->  | BK18: =IF(OR(tblAssets_Results[[#This Row],[Alert]]=stdAlert_MajorRepairs,tblAssets_Results[[#This Row],[Alert]]=stdAlert_NewConstruction),VLOOKUP(CONCATENATE(BK$6,"|",tblAssets_Results[[#This Row],[Alert]]),tblInterventions[[Index]:[Cost Type]],2,FALSE),"") ->  | BL18: =IF(OR(tblAssets_Results[[#This Row],[Alert]]=stdAlert_MajorRepairs,tblAssets_Results[[#This Row],[Alert]]=stdAlert_NewConstruction),VLOOKUP(CONCATENATE(BL$6,"|",tblAssets_Results[[#This Row],[Alert]]),tblInterventions[[Index]:[Cost Type]],2,FALSE),"") ->  | BM18: =IF(OR(tblAssets_Results[[#This Row],[Alert]]=stdAlert_MajorRepairs,tblAssets_Results[[#This Row],[Alert]]=stdAlert_NewConstruction),VLOOKUP(CONCATENATE(BM$6,"|",tblAssets_Results[[#This Row],[Alert]]),tblInterventions[[Index]:[Cost Type]],2,FALSE)*tblAssets_Results[[#This Row],[Estimated amount of m3 concrete works]],"") ->  | BN18: =IF(OR(tblAssets_Results[[#This Row],[Alert]]=stdAlert_MajorRepairs,tblAssets_Results[[#This Row],[Alert]]=stdAlert_NewConstruction),VLOOKUP(CONCATENATE(BN$6,"|",tblAssets_Results[[#This Row],[Alert]]),tblInterventions[[Index]:[Cost Type]],2,FALSE)*tblAssets_Results[[#This Row],[Number of Pipes (m)]],"") ->  | BO18: =SUM(tblAssets_Results[[#This Row],[Capmanex component 1]:[Capex Cost component 6]]) -> 50 | BP18: =VLOOKUP(CONCATENATE(BP$6,"|",stdAlert_NewConstruction),tblInterventions[[Index]:[Cost Type]],2,FALSE) -> 2000 | BQ18: =VLOOKUP(CONCATENATE(BQ$6,"|",stdAlert_NewConstruction),tblInterventions[[Index]:[Cost Type]],2,FALSE)*tblAssets_Results[[#This Row],[Number of Spouts]] -> 30 | BR18: =VLOOKUP(CONCATENATE(BR$6,"|",stdAlert_NewConstruction),tblInterventions[[Index]:[Cost Type]],2,FALSE) -> 5000 | BS18: =VLOOKUP(CONCATENATE(BS$6,"|",stdAlert_NewConstruction),tblInterventions[[Index]:[Cost Type]],2,FALSE) -> 1000 | BT18: =VLOOKUP(CONCATENATE(BT$6,"|",stdAlert_NewConstruction),tblInterventions[[Index]:[Cost Type]],2,FALSE)*tblAssets_Results[[#This Row],[Estimated amount of m3 concrete works]] -> 500 | BU18: =VLOOKUP(CONCATENATE(BU$6,"|",stdAlert_NewConstruction),tblInterventions[[Index]:[Cost Type]],2,FALSE)*tblAssets_Results[[#This Row],[Number of Pipes (m)]] -> 150 | BV18: =SUM(tblAssets_Results[[#This Row],[Full Capex Cost component 1]:[Capex Cost component 62]]) -> 8680

Sheet Inf Required Instructions
B1: Infrastructure required Overview
B3: Purpose: The purpose of this tool is to develop cost estimates for installing new and rehabilitating infrastructure. This output provides information about WHEN and at WHAT Cost maintenance needs to be done. The Infrastructure Costing Tool will only provide results once the Asset Analysis Tool has been completed. Instructions for populating the "Infrastructure Required" tab 1) Review the cost information in the "assumptions" tab in the yellow cells and include the actual cost for infrastructure in your context. 2) Review the data found in Infrastructure results. Note that this has been automatically populated based on the completed Asset Analysis data. DO NOT edit columns A through N. 3) After the data from the Asset Analysis automatically populated, column K should have auto populated with the estimated cost for this work. This is based on a logic formula, with average costs for these broad categories of work. Column L contains estimated value of the infastructure (based on the value of the sub components). If the value can be edited manually if it is very incorrect. Column M shows how much needs to be invested compared to the estamated value of the water system. 4) This will give you a snapshot of the work required and the overall estimated cost to cover CapEx (new infrastructure) and CapManEx (rehabs) 5) Complete column N with the year you estimate that the required work will be completed. This year is essential for completing the life cycle costing analysis. It is okay if you don't know the exact year, or if your estimate changes over time. This is just to give a general idea.
B4: At the top an overview is provided. The graph shows the rehabilation costs (CapManEx) and investment costs (CapEx) as indicated in the table below it. Also an overview is provided about the number of systems in the various priority. For example, you will be able to see what amount of funds are needed to address the high priority ones, and see what the estimated value is of those systems. Row 5 reads then as following:
B5: ='Infrastructure Results'!I5&" systems are high priority and need a total investment of "&TEXT('Infrastructure Results'!K5,"#,##,0")& " to keep systems running with estimated value " &TEXT('Infrastructure Results'!L5,"#,##,0")&". This is "& ROUND('Infrastructure Results'!M5,2)*100& "% of their infrastructure value." -> 2 systems are high priority and need a total investment of 7,610 to keep systems running with estimated value 17,320. This is 44% of their infrastructure value.

Sheet Infrastructure Results
B1: Infrastructure Results
B3: lookupline | C3: 5 | D3: 6 | E3: 2 | F3: 3 | G3: 11 | H3: 12
B4: ='Inf Required Instructions'!B5 -> 2 systems are high priority and need a total investment of 7,610 to keep systems running with estimated value 17,320. This is 44% of their infrastructure value. | I4: Total number of systems categorised as | K4: Total estimated cost interventions | L4: Estimated value of assets at risk | M4: % intervention cost/value
I5: =COUNTIF(tblInfrastructureRequired[Level Of Priority To Replace/Repair],stdPriority_High) -> 2 | J5: =stdPriority_High -> High Priority | K5: =SUMIF(tblInfrastructureRequired[Level Of Priority To Replace/Repair],stdPriority_High,tblInfrastructureRequired[Estimated Cost]) -> 7610 | L5: =SUMIF(tblInfrastructureRequired[Level Of Priority To Replace/Repair],stdPriority_High,tblInfrastructureRequired[Estimated Value]) -> 17320 | M5: =IF(L5>0,K5/L5,"") -> 0.4393764434
I6: =COUNTIF(tblInfrastructureRequired[Level Of Priority To Replace/Repair],stdPriority_Medium) -> 3 | J6: =stdPriority_Medium -> Medium Priority | K6: =SUMIF(tblInfrastructureRequired[Level Of Priority To Replace/Repair],stdPriority_Medium,tblInfrastructureRequired[Estimated Cost]) -> 915 | L6: =SUMIF(tblInfrastructureRequired[Level Of Priority To Replace/Repair],stdPriority_Medium,tblInfrastructureRequired[Estimated Value]) -> 27870 | M6: =IF(L6>0,K6/L6,"") -> 0.03283100108
I7: =COUNTIF(tblInfrastructureRequired[Level Of Priority To Replace/Repair],stdPriority_Low) -> 3 | J7: =stdPriority_Low -> Low Priority | K7: =SUMIF(tblInfrastructureRequired[Level Of Priority To Replace/Repair],stdPriority_Low,tblInfrastructureRequired[Estimated Cost]) -> 1565 | L7: =SUMIF(tblInfrastructureRequired[Level Of Priority To Replace/Repair],stdPriority_Low,tblInfrastructureRequired[Estimated Value]) -> 29140 | M7: 0.05370624571
I8: =COUNTIF(tblInfrastructureRequired[Level Of Priority To Replace/Repair],stdPriority_NewConstruction) -> 3 | J8: =stdPriority_NewConstruction -> New Construction Needed | K8: =SUMIF(tblInfrastructureRequired[Level Of Priority To Replace/Repair],stdPriority_NewConstruction,tblInfrastructureRequired[Estimated Cost]) -> 27020 | L8: =SUMIF(tblInfrastructureRequired[Alert],stdPriority_NewConstruction,tblInfrastructureRequired[Estimated Value]) -> 27020 | M8: 1
I9: =SUM(I5:I8) -> 11 | K9: =SUM(tblInfrastructureRequired[Estimated Cost]) -> 37110 | L9: =SUM(tblInfrastructureRequired[Estimated Value]) -> 101350 | M9: 0.3661568821
F14: Please fill column O with your planned intervention year. And check column L with estimated values
F15: ="Planned infrastructure CapManEx total is "& TEXT(tblEstimatedCosts[[#Totals],[CapManEx]],"#,##0") & " and CapEx "&TEXT(tblEstimatedCosts[[#Totals],[CapEx]],"#,##0") -> Planned infrastructure CapManEx total is 9,840 and CapEx 27,020
F16: Planned expenses over time
E25: Line used for vlookup formulas--> | I25: 13 | J25: 14 | K25: 66 | L25: 73
B26: Asset Analysis ID | C26: Geo Level 3 | D26: Geo Level 4 | E26: Name of water system | F26: Type of Water Point/System | G26: Risk Based On Age | H26: Risk Based On Current Condition | I26: Level Of Priority To Replace/Repair | J26: Alert | K26: Estimated Cost | L26: Estimated Value | M26: % intervention cost/value | N26: Cost Type | O26: Planned Year of Investment
B27: 1 | C27: =IF(VLOOKUP(tblInfrastructureRequired[[#This Row],[Asset Analysis ID]],tblAssets_Results[],C$3,FALSE)=0,"",VLOOKUP(tblInfrastructureRequired[[#This Row],[Asset Analysis ID]],tblAssets_Results[],C$3,FALSE)) -> Kenya | D27: =IF(VLOOKUP(tblInfrastructureRequired[[#This Row],[Asset Analysis ID]],tblAssets_Results[],D$3,FALSE)=0,"",VLOOKUP(tblInfrastructureRequired[[#This Row],[Asset Analysis ID]],tblAssets_Results[],D$3,FALSE)) -> Rift Valley | E27: =IF(VLOOKUP(tblInfrastructureRequired[[#This Row],[Asset Analysis ID]],tblAssets_Results[],E$3,FALSE)=0,"",VLOOKUP(tblInfrastructureRequired[[#This Row],[Asset Analysis ID]],tblAssets_Results[],E$3,FALSE)) -> Pura Village BH | F27: =IF(VLOOKUP(tblInfrastructureRequired[[#This Row],[Asset Analysis ID]],tblAssets_Results[],F$3,FALSE)=0,"",VLOOKUP(tblInfrastructureRequired[[#This Row],[Asset Analysis ID]],tblAssets_Results[],F$3,FALSE)) -> Borehole with handpump | G27: =IF(VLOOKUP(tblInfrastructureRequired[[#This Row],[Asset Analysis ID]],tblAssets_Results[],G$3,FALSE)=0,"",VLOOKUP(tblInfrastructureRequired[[#This Row],[Asset Analysis ID]],tblAssets_Results[],G$3,FALSE)) -> Medium Risk | H27: =IF(VLOOKUP(tblInfrastructureRequired[[#This Row],[Asset Analysis ID]],tblAssets_Results[],H$3,FALSE)=0,"",VLOOKUP(tblInfrastructureRequired[[#This Row],[Asset Analysis ID]],tblAssets_Results[],H$3,FALSE)) -> Medium Risk | I27: =IF(VLOOKUP(tblInfrastructureRequired[[#This Row],[Asset Analysis ID]],tblAssets_Results[],I$25,FALSE)=0,"",VLOOKUP(tblInfrastructureRequired[[#This Row],[Asset Analysis ID]],tblAssets_Results[],I$25,FALSE)) -> Medium Priority | J27: =IF(VLOOKUP(tblInfrastructureRequired[[#This Row],[Asset Analysis ID]],tblAssets_Results[],J$25,FALSE)=0,"",VLOOKUP(tblInfrastructureRequired[[#This Row],[Asset Analysis ID]],tblAssets_Results[],J$25,FALSE)) -> Consider Replacing Aging Components | K27: =VLOOKUP(tblInfrastructureRequired[[#This Row],[Asset Analysis ID]]:tblInfrastructureRequired[[#This Row],[Asset Analysis ID]],tblAssets_Results[#All],'Infrastructure Results'!K$25,0) -> 200 | L27: =VLOOKUP(tblInfrastructureRequired[[#This Row],[Asset Analysis ID]]:tblInfrastructureRequired[[#This Row],[Asset Analysis ID]],tblAssets_Results[#All],'Infrastructure Results'!L$25,0) -> 10020 | M27: =tblInfrastructureRequired[[#This Row],[Estimated Cost]]/tblInfrastructureRequired[[#This Row],[Estimated Value]] -> 0.01996007984 | N27: =VLOOKUP(tblInfrastructureRequired[[#This Row],[Alert]],tblAlert[#All],2,0) -> CapManEx
B28: 2 | C28: =IF(VLOOKUP(tblInfrastructureRequired[[#This Row],[Asset Analysis ID]],tblAssets_Results[],C$3,FALSE)=0,"",VLOOKUP(tblInfrastructureRequired[[#This Row],[Asset Analysis ID]],tblAssets_Results[],C$3,FALSE)) -> Kenya | D28: =IF(VLOOKUP(tblInfrastructureRequired[[#This Row],[Asset Analysis ID]],tblAssets_Results[],D$3,FALSE)=0,"",VLOOKUP(tblInfrastructureRequired[[#This Row],[Asset Analysis ID]],tblAssets_Results[],D$3,FALSE)) -> Rift Valley | E28: =IF(VLOOKUP(tblInfrastructureRequired[[#This Row],[Asset Analysis ID]],tblAssets_Results[],E$3,FALSE)=0,"",VLOOKUP(tblInfrastructureRequired[[#This Row],[Asset Analysis ID]],tblAssets_Results[],E$3,FALSE)) -> Barsaloi BH | F28: =IF(VLOOKUP(tblInfrastructureRequired[[#This Row],[Asset Analysis ID]],tblAssets_Results[],F$3,FALSE)=0,"",VLOOKUP(tblInfrastructureRequired[[#This Row],[Asset Analysis ID]],tblAssets_Results[],F$3,FALSE)) -> Borehole with motorised pump | G28: =IF(VLOOKUP(tblInfrastructureRequired[[#This Row],[Asset Analysis ID]],tblAssets_Results[],G$3,FALSE)=0,"",VLOOKUP(tblInfrastructureRequired[[#This Row],[Asset Analysis ID]],tblAssets_Results[],G$3,FALSE)) -> High Risk | H28: =IF(VLOOKUP(tblInfrastructureRequired[[#This Row],[Asset Analysis ID]],tblAssets_Results[],H$3,FALSE)=0,"",VLOOKUP(tblInfrastructureRequired[[#This Row],[Asset Analysis ID]],tblAssets_Results[],H$3,FALSE)) -> Low Risk | I28: =IF(VLOOKUP(tblInfrastructureRequired[[#This Row],[Asset Analysis ID]],tblAssets_Results[],I$25,FALSE)=0,"",VLOOKUP(tblInfrastructureRequired[[#This Row],[Asset Analysis ID]],tblAssets_Results[],I$25,FALSE)) -> Medium Priority | J28: =IF(VLOOKUP(tblInfrastructureRequired[[#This Row],[Asset Analysis ID]],tblAssets_Results[],J$25,FALSE)=0,"",VLOOKUP(tblInfrastructureRequired[[#This Row],[Asset Analysis ID]],tblAssets_Results[],J$25,FALSE)) -> Consider Replacing Aging Components | K28: =VLOOKUP(tblInfrastructureRequired[[#This Row],[Asset Analysis ID]]:tblInfrastructureRequired[[#This Row],[Asset Analysis ID]],tblAssets_Results[#All],'Infrastructure Results'!K$25,0) -> 515 | L28: =VLOOKUP(tblInfrastructureRequired[[#This Row],[Asset Analysis ID]]:tblInfrastructureRequired[[#This Row],[Asset Analysis ID]],tblAssets_Results[#All],'Infrastructure Results'!L$25,0) -> 9180 | M28: =tblInfrastructureRequired[[#This Row],[Estimated Cost]]/tblInfrastructureRequired[[#This Row],[Estimated Value]] -> 0.05610021786 | N28: =VLOOKUP(tblInfrastructureRequired[[#This Row],[Alert]],tblAlert[#All],2,0) -> CapManEx | O28: 2022
B29: 3 | C29: =IF(VLOOKUP(tblInfrastructureRequired[[#This Row],[Asset Analysis ID]],tblAssets_Results[],C$3,FALSE)=0,"",VLOOKUP(tblInfrastructureRequired[[#This Row],[Asset Analysis ID]],tblAssets_Results[],C$3,FALSE)) -> Kenya | D29: =IF(VLOOKUP(tblInfrastructureRequired[[#This Row],[Asset Analysis ID]],tblAssets_Results[],D$3,FALSE)=0,"",VLOOKUP(tblInfrastructureRequired[[#This Row],[Asset Analysis ID]],tblAssets_Results[],D$3,FALSE)) -> Rift Valley | E29: =IF(VLOOKUP(tblInfrastructureRequired[[#This Row],[Asset Analysis ID]],tblAssets_Results[],E$3,FALSE)=0,"",VLOOKUP(tblInfrastructureRequired[[#This Row],[Asset Analysis ID]],tblAssets_Results[],E$3,FALSE)) -> Suiyen BH | F29: =IF(VLOOKUP(tblInfrastructureRequired[[#This Row],[Asset Analysis ID]],tblAssets_Results[],F$3,FALSE)=0,"",VLOOKUP(tblInfrastructureRequired[[#This Row],[Asset Analysis ID]],tblAssets_Results[],F$3,FALSE)) -> Spring protection | G29: =IF(VLOOKUP(tblInfrastructureRequired[[#This Row],[Asset Analysis ID]],tblAssets_Results[],G$3,FALSE)=0,"",VLOOKUP(tblInfrastructureRequired[[#This Row],[Asset Analysis ID]],tblAssets_Results[],G$3,FALSE)) -> Low Risk | H29: =IF(VLOOKUP(tblInfrastructureRequired[[#This Row],[Asset Analysis ID]],tblAssets_Results[],H$3,FALSE)=0,"",VLOOKUP(tblInfrastructureRequired[[#This Row],[Asset Analysis ID]],tblAssets_Results[],H$3,FALSE)) -> High Risk | I29: =IF(VLOOKUP(tblInfrastructureRequired[[#This Row],[Asset Analysis ID]],tblAssets_Results[],I$25,FALSE)=0,"",VLOOKUP(tblInfrastructureRequired[[#This Row],[Asset Analysis ID]],tblAssets_Results[],I$25,FALSE)) -> High Priority | J29: =IF(VLOOKUP(tblInfrastructureRequired[[#This Row],[Asset Analysis ID]],tblAssets_Results[],J$25,FALSE)=0,"",VLOOKUP(tblInfrastructureRequired[[#This Row],[Asset Analysis ID]],tblAssets_Results[],J$25,FALSE)) -> Major Repairs or Replace System | K29: =VLOOKUP(tblInfrastructureRequired[[#This Row],[Asset Analysis ID]]:tblInfrastructureRequired[[#This Row],[Asset Analysis ID]],tblAssets_Results[#All],'Infrastructure Results'!K$25,0) -> 3805 | L29: =VLOOKUP(tblInfrastructureRequired[[#This Row],[Asset Analysis ID]]:tblInfrastructureRequired[[#This Row],[Asset Analysis ID]],tblAssets_Results[#All],'Infrastructure Results'!L$25,0) -> 8660 | M29: =tblInfrastructureRequired[[#This Row],[Estimated Cost]]/tblInfrastructureRequired[[#This Row],[Estimated Value]] -> 0.4393764434 | N29: =VLOOKUP(tblInfrastructureRequired[[#This Row],[Alert]],tblAlert[#All],2,0) -> CapManEx | O29: 2022
B30: 4 | C30: =IF(VLOOKUP(tblInfrastructureRequired[[#This Row],[Asset Analysis ID]],tblAssets_Results[],C$3,FALSE)=0,"",VLOOKUP(tblInfrastructureRequired[[#This Row],[Asset Analysis ID]],tblAssets_Results[],C$3,FALSE)) -> Kenya | D30: =IF(VLOOKUP(tblInfrastructureRequired[[#This Row],[Asset Analysis ID]],tblAssets_Results[],D$3,FALSE)=0,"",VLOOKUP(tblInfrastructureRequired[[#This Row],[Asset Analysis ID]],tblAssets_Results[],D$3,FALSE)) -> Rift Valley | E30: =IF(VLOOKUP(tblInfrastructureRequired[[#This Row],[Asset Analysis ID]],tblAssets_Results[],E$3,FALSE)=0,"",VLOOKUP(tblInfrastructureRequired[[#This Row],[Asset Analysis ID]],tblAssets_Results[],E$3,FALSE)) -> Piped water system | F30: =IF(VLOOKUP(tblInfrastructureRequired[[#This Row],[Asset Analysis ID]],tblAssets_Results[],F$3,FALSE)=0,"",VLOOKUP(tblInfrastructureRequired[[#This Row],[Asset Analysis ID]],tblAssets_Results[],F$3,FALSE)) -> Gravity fed piped scheme | G30: =IF(VLOOKUP(tblInfrastructureRequired[[#This Row],[Asset Analysis ID]],tblAssets_Results[],G$3,FALSE)=0,"",VLOOKUP(tblInfrastructureRequired[[#This Row],[Asset Analysis ID]],tblAssets_Results[],G$3,FALSE)) -> No Improved Water Point/System | H30: =IF(VLOOKUP(tblInfrastructureRequired[[#This Row],[Asset Analysis ID]],tblAssets_Results[],H$3,FALSE)=0,"",VLOOKUP(tblInfrastructureRequired[[#This Row],[Asset Analysis ID]],tblAssets_Results[],H$3,FALSE)) -> No Improved Water Point/System | I30: =IF(VLOOKUP(tblInfrastructureRequired[[#This Row],[Asset Analysis ID]],tblAssets_Results[],I$25,FALSE)=0,"",VLOOKUP(tblInfrastructureRequired[[#This Row],[Asset Analysis ID]],tblAssets_Results[],I$25,FALSE)) -> New Construction Needed | J30: =IF(VLOOKUP(tblInfrastructureRequired[[#This Row],[Asset Analysis ID]],tblAssets_Results[],J$25,FALSE)=0,"",VLOOKUP(tblInfrastructureRequired[[#This Row],[Asset Analysis ID]],tblAssets_Results[],J$25,FALSE)) -> New Construction Needed | K30: =VLOOKUP(tblInfrastructureRequired[[#This Row],[Asset Analysis ID]]:tblInfrastructureRequired[[#This Row],[Asset Analysis ID]],tblAssets_Results[#All],'Infrastructure Results'!K$25,0) -> 9670 | L30: =VLOOKUP(tblInfrastructureRequired[[#This Row],[Asset Analysis ID]]:tblInfrastructureRequired[[#This Row],[Asset Analysis ID]],tblAssets_Results[#All],'Infrastructure Results'!L$25,0) -> 9670 | M30: =tblInfrastructureRequired[[#This Row],[Estimated Cost]]/tblInfrastructureRequired[[#This Row],[Estimated Value]] -> 1 | N30: =VLOOKUP(tblInfrastructureRequired[[#This Row],[Alert]],tblAlert[#All],2,0) -> CapEx | O30: 2025
B31: 5 | C31: =IF(VLOOKUP(tblInfrastructureRequired[[#This Row],[Asset Analysis ID]],tblAssets_Results[],C$3,FALSE)=0,"",VLOOKUP(tblInfrastructureRequired[[#This Row],[Asset Analysis ID]],tblAssets_Results[],C$3,FALSE)) -> Kenya | D31: =IF(VLOOKUP(tblInfrastructureRequired[[#This Row],[Asset Analysis ID]],tblAssets_Results[],D$3,FALSE)=0,"",VLOOKUP(tblInfrastructureRequired[[#This Row],[Asset Analysis ID]],tblAssets_Results[],D$3,FALSE)) -> Rift Valley | E31: =IF(VLOOKUP(tblInfrastructureRequired[[#This Row],[Asset Analysis ID]],tblAssets_Results[],E$3,FALSE)=0,"",VLOOKUP(tblInfrastructureRequired[[#This Row],[Asset Analysis ID]],tblAssets_Results[],E$3,FALSE)) -> Piped water system | F31: =IF(VLOOKUP(tblInfrastructureRequired[[#This Row],[Asset Analysis ID]],tblAssets_Results[],F$3,FALSE)=0,"",VLOOKUP(tblInfrastructureRequired[[#This Row],[Asset Analysis ID]],tblAssets_Results[],F$3,FALSE)) -> Gravity fed piped scheme | G31: =IF(VLOOKUP(tblInfrastructureRequired[[#This Row],[Asset Analysis ID]],tblAssets_Results[],G$3,FALSE)=0,"",VLOOKUP(tblInfrastructureRequired[[#This Row],[Asset Analysis ID]],tblAssets_Results[],G$3,FALSE)) -> Medium Risk | H31: =IF(VLOOKUP(tblInfrastructureRequired[[#This Row],[Asset Analysis ID]],tblAssets_Results[],H$3,FALSE)=0,"",VLOOKUP(tblInfrastructureRequired[[#This Row],[Asset Analysis ID]],tblAssets_Results[],H$3,FALSE)) -> Low Risk | I31: =IF(VLOOKUP(tblInfrastructureRequired[[#This Row],[Asset Analysis ID]],tblAssets_Results[],I$25,FALSE)=0,"",VLOOKUP(tblInfrastructureRequired[[#This Row],[Asset Analysis ID]],tblAssets_Results[],I$25,FALSE)) -> Low Priority | J31: =IF(VLOOKUP(tblInfrastructureRequired[[#This Row],[Asset Analysis ID]],tblAssets_Results[],J$25,FALSE)=0,"",VLOOKUP(tblInfrastructureRequired[[#This Row],[Asset Analysis ID]],tblAssets_Results[],J$25,FALSE)) -> Consider Replacing Aging Components | K31: =VLOOKUP(tblInfrastructureRequired[[#This Row],[Asset Analysis ID]]:tblInfrastructureRequired[[#This Row],[Asset Analysis ID]],tblAssets_Results[#All],'Infrastructure Results'!K$25,0) -> 1500 | L31: =VLOOKUP(tblInfrastructureRequired[[#This Row],[Asset Analysis ID]]:tblInfrastructureRequired[[#This Row],[Asset Analysis ID]],tblAssets_Results[#All],'Infrastructure Results'!L$25,0) -> 11780 | M31: =tblInfrastructureRequired[[#This Row],[Estimated Cost]]/tblInfrastructureRequired[[#This Row],[Estimated Value]] -> 0.1273344652 | N31: =VLOOKUP(tblInfrastructureRequired[[#This Row],[Alert]],tblAlert[#All],2,0) -> CapManEx | O31: 2023
B32: 6 | C32: =IF(VLOOKUP(tblInfrastructureRequired[[#This Row],[Asset Analysis ID]],tblAssets_Results[],C$3,FALSE)=0,"",VLOOKUP(tblInfrastructureRequired[[#This Row],[Asset Analysis ID]],tblAssets_Results[],C$3,FALSE)) -> Kenya | D32: =IF(VLOOKUP(tblInfrastructureRequired[[#This Row],[Asset Analysis ID]],tblAssets_Results[],D$3,FALSE)=0,"",VLOOKUP(tblInfrastructureRequired[[#This Row],[Asset Analysis ID]],tblAssets_Results[],D$3,FALSE)) -> Rift Valley | E32: =IF(VLOOKUP(tblInfrastructureRequired[[#This Row],[Asset Analysis ID]],tblAssets_Results[],E$3,FALSE)=0,"",VLOOKUP(tblInfrastructureRequired[[#This Row],[Asset Analysis ID]],tblAssets_Results[],E$3,FALSE)) -> Piped water system | F32: =IF(VLOOKUP(tblInfrastructureRequired[[#This Row],[Asset Analysis ID]],tblAssets_Results[],F$3,FALSE)=0,"",VLOOKUP(tblInfrastructureRequired[[#This Row],[Asset Analysis ID]],tblAssets_Results[],F$3,FALSE)) -> Borehole piped scheme | G32: =IF(VLOOKUP(tblInfrastructureRequired[[#This Row],[Asset Analysis ID]],tblAssets_Results[],G$3,FALSE)=0,"",VLOOKUP(tblInfrastructureRequired[[#This Row],[Asset Analysis ID]],tblAssets_Results[],G$3,FALSE)) -> Medium Risk | H32: =IF(VLOOKUP(tblInfrastructureRequired[[#This Row],[Asset Analysis ID]],tblAssets_Results[],H$3,FALSE)=0,"",VLOOKUP(tblInfrastructureRequired[[#This Row],[Asset Analysis ID]],tblAssets_Results[],H$3,FALSE)) -> Low Risk | I32: =IF(VLOOKUP(tblInfrastructureRequired[[#This Row],[Asset Analysis ID]],tblAssets_Results[],I$25,FALSE)=0,"",VLOOKUP(tblInfrastructureRequired[[#This Row],[Asset Analysis ID]],tblAssets_Results[],I$25,FALSE)) -> Low Priority | J32: =IF(VLOOKUP(tblInfrastructureRequired[[#This Row],[Asset Analysis ID]],tblAssets_Results[],J$25,FALSE)=0,"",VLOOKUP(tblInfrastructureRequired[[#This Row],[Asset Analysis ID]],tblAssets_Results[],J$25,FALSE)) -> Consider Replacing Aging Components | K32: =VLOOKUP(tblInfrastructureRequired[[#This Row],[Asset Analysis ID]]:tblInfrastructureRequired[[#This Row],[Asset Analysis ID]],tblAssets_Results[#All],'Infrastructure Results'!K$25,0) -> 15 | L32: =VLOOKUP(tblInfrastructureRequired[[#This Row],[Asset Analysis ID]]:tblInfrastructureRequired[[#This Row],[Asset Analysis ID]],tblAssets_Results[#All],'Infrastructure Results'!L$25,0) -> 8680 | M32: =tblInfrastructureRequired[[#This Row],[Estimated Cost]]/tblInfrastructureRequired[[#This Row],[Estimated Value]] -> 0.001728110599 | N32: =VLOOKUP(tblInfrastructureRequired[[#This Row],[Alert]],tblAlert[#All],2,0) -> CapManEx | O32: 2022
B33: 7 | C33: =IF(VLOOKUP(tblInfrastructureRequired[[#This Row],[Asset Analysis ID]],tblAssets_Results[],C$3,FALSE)=0,"",VLOOKUP(tblInfrastructureRequired[[#This Row],[Asset Analysis ID]],tblAssets_Results[],C$3,FALSE)) -> Kenya | D33: =IF(VLOOKUP(tblInfrastructureRequired[[#This Row],[Asset Analysis ID]],tblAssets_Results[],D$3,FALSE)=0,"",VLOOKUP(tblInfrastructureRequired[[#This Row],[Asset Analysis ID]],tblAssets_Results[],D$3,FALSE)) -> Rift Valley | E33: =IF(VLOOKUP(tblInfrastructureRequired[[#This Row],[Asset Analysis ID]],tblAssets_Results[],E$3,FALSE)=0,"",VLOOKUP(tblInfrastructureRequired[[#This Row],[Asset Analysis ID]],tblAssets_Results[],E$3,FALSE)) -> Pura Village BH | F33: =IF(VLOOKUP(tblInfrastructureRequired[[#This Row],[Asset Analysis ID]],tblAssets_Results[],F$3,FALSE)=0,"",VLOOKUP(tblInfrastructureRequired[[#This Row],[Asset Analysis ID]],tblAssets_Results[],F$3,FALSE)) -> Borehole with handpump | G33: =IF(VLOOKUP(tblInfrastructureRequired[[#This Row],[Asset Analysis ID]],tblAssets_Results[],G$3,FALSE)=0,"",VLOOKUP(tblInfrastructureRequired[[#This Row],[Asset Analysis ID]],tblAssets_Results[],G$3,FALSE)) -> Medium Risk | H33: =IF(VLOOKUP(tblInfrastructureRequired[[#This Row],[Asset Analysis ID]],tblAssets_Results[],H$3,FALSE)=0,"",VLOOKUP(tblInfrastructureRequired[[#This Row],[Asset Analysis ID]],tblAssets_Results[],H$3,FALSE)) -> Medium Risk | I33: =IF(VLOOKUP(tblInfrastructureRequired[[#This Row],[Asset Analysis ID]],tblAssets_Results[],I$25,FALSE)=0,"",VLOOKUP(tblInfrastructureRequired[[#This Row],[Asset Analysis ID]],tblAssets_Results[],I$25,FALSE)) -> Medium Priority | J33: =IF(VLOOKUP(tblInfrastructureRequired[[#This Row],[Asset Analysis ID]],tblAssets_Results[],J$25,FALSE)=0,"",VLOOKUP(tblInfrastructureRequired[[#This Row],[Asset Analysis ID]],tblAssets_Results[],J$25,FALSE)) -> Consider Replacing Aging Components | K33: =VLOOKUP(tblInfrastructureRequired[[#This Row],[Asset Analysis ID]]:tblInfrastructureRequired[[#This Row],[Asset Analysis ID]],tblAssets_Results[#All],'Infrastructure Results'!K$25,0) -> 200 | L33: =VLOOKUP(tblInfrastructureRequired[[#This Row],[Asset Analysis ID]]:tblInfrastructureRequired[[#This Row],[Asset Analysis ID]],tblAssets_Results[#All],'Infrastructure Results'!L$25,0) -> 8670 | M33: =tblInfrastructureRequired[[#This Row],[Estimated Cost]]/tblInfrastructureRequired[[#This Row],[Estimated Value]] -> 0.02306805075 | N33: =VLOOKUP(tblInfrastructureRequired[[#This Row],[Alert]],tblAlert[#All],2,0) -> CapManEx | O33: 2023
B34: 8 | C34: =IF(VLOOKUP(tblInfrastructureRequired[[#This Row],[Asset Analysis ID]],tblAssets_Results[],C$3,FALSE)=0,"",VLOOKUP(tblInfrastructureRequired[[#This Row],[Asset Analysis ID]],tblAssets_Results[],C$3,FALSE)) -> Kenya | D34: =IF(VLOOKUP(tblInfrastructureRequired[[#This Row],[Asset Analysis ID]],tblAssets_Results[],D$3,FALSE)=0,"",VLOOKUP(tblInfrastructureRequired[[#This Row],[Asset Analysis ID]],tblAssets_Results[],D$3,FALSE)) -> Rift Valley | E34: =IF(VLOOKUP(tblInfrastructureRequired[[#This Row],[Asset Analysis ID]],tblAssets_Results[],E$3,FALSE)=0,"",VLOOKUP(tblInfrastructureRequired[[#This Row],[Asset Analysis ID]],tblAssets_Results[],E$3,FALSE)) -> Barsaloi BH | F34: =IF(VLOOKUP(tblInfrastructureRequired[[#This Row],[Asset Analysis ID]],tblAssets_Results[],F$3,FALSE)=0,"",VLOOKUP(tblInfrastructureRequired[[#This Row],[Asset Analysis ID]],tblAssets_Results[],F$3,FALSE)) -> Borehole with handpump | G34: =IF(VLOOKUP(tblInfrastructureRequired[[#This Row],[Asset Analysis ID]],tblAssets_Results[],G$3,FALSE)=0,"",VLOOKUP(tblInfrastructureRequired[[#This Row],[Asset Analysis ID]],tblAssets_Results[],G$3,FALSE)) -> No Improved Water Point/System | H34: =IF(VLOOKUP(tblInfrastructureRequired[[#This Row],[Asset Analysis ID]],tblAssets_Results[],H$3,FALSE)=0,"",VLOOKUP(tblInfrastructureRequired[[#This Row],[Asset Analysis ID]],tblAssets_Results[],H$3,FALSE)) -> No Improved Water Point/System | I34: =IF(VLOOKUP(tblInfrastructureRequired[[#This Row],[Asset Analysis ID]],tblAssets_Results[],I$25,FALSE)=0,"",VLOOKUP(tblInfrastructureRequired[[#This Row],[Asset Analysis ID]],tblAssets_Results[],I$25,FALSE)) -> New Construction Needed | J34: =IF(VLOOKUP(tblInfrastructureRequired[[#This Row],[Asset Analysis ID]],tblAssets_Results[],J$25,FALSE)=0,"",VLOOKUP(tblInfrastructureRequired[[#This Row],[Asset Analysis ID]],tblAssets_Results[],J$25,FALSE)) -> New Construction Needed | K34: =VLOOKUP(tblInfrastructureRequired[[#This Row],[Asset Analysis ID]]:tblInfrastructureRequired[[#This Row],[Asset Analysis ID]],tblAssets_Results[#All],'Infrastructure Results'!K$25,0) -> 8680 | L34: =VLOOKUP(tblInfrastructureRequired[[#This Row],[Asset Analysis ID]]:tblInfrastructureRequired[[#This Row],[Asset Analysis ID]],tblAssets_Results[#All],'Infrastructure Results'!L$25,0) -> 8680 | M34: =tblInfrastructureRequired[[#This Row],[Estimated Cost]]/tblInfrastructureRequired[[#This Row],[Estimated Value]] -> 1 | N34: =VLOOKUP(tblInfrastructureRequired[[#This Row],[Alert]],tblAlert[#All],2,0) -> CapEx | O34: 2024
B35: 9 | C35: =IF(VLOOKUP(tblInfrastructureRequired[[#This Row],[Asset Analysis ID]],tblAssets_Results[],C$3,FALSE)=0,"",VLOOKUP(tblInfrastructureRequired[[#This Row],[Asset Analysis ID]],tblAssets_Results[],C$3,FALSE)) -> Kenya | D35: =IF(VLOOKUP(tblInfrastructureRequired[[#This Row],[Asset Analysis ID]],tblAssets_Results[],D$3,FALSE)=0,"",VLOOKUP(tblInfrastructureRequired[[#This Row],[Asset Analysis ID]],tblAssets_Results[],D$3,FALSE)) -> Rift Valley | E35: =IF(VLOOKUP(tblInfrastructureRequired[[#This Row],[Asset Analysis ID]],tblAssets_Results[],E$3,FALSE)=0,"",VLOOKUP(tblInfrastructureRequired[[#This Row],[Asset Analysis ID]],tblAssets_Results[],E$3,FALSE)) -> Suiyen BH | F35: =IF(VLOOKUP(tblInfrastructureRequired[[#This Row],[Asset Analysis ID]],tblAssets_Results[],F$3,FALSE)=0,"",VLOOKUP(tblInfrastructureRequired[[#This Row],[Asset Analysis ID]],tblAssets_Results[],F$3,FALSE)) -> Borehole with handpump | G35: =IF(VLOOKUP(tblInfrastructureRequired[[#This Row],[Asset Analysis ID]],tblAssets_Results[],G$3,FALSE)=0,"",VLOOKUP(tblInfrastructureRequired[[#This Row],[Asset Analysis ID]],tblAssets_Results[],G$3,FALSE)) -> Low Risk | H35: =IF(VLOOKUP(tblInfrastructureRequired[[#This Row],[Asset Analysis ID]],tblAssets_Results[],H$3,FALSE)=0,"",VLOOKUP(tblInfrastructureRequired[[#This Row],[Asset Analysis ID]],tblAssets_Results[],H$3,FALSE)) -> High Risk | I35: =IF(VLOOKUP(tblInfrastructureRequired[[#This Row],[Asset Analysis ID]],tblAssets_Results[],I$25,FALSE)=0,"",VLOOKUP(tblInfrastructureRequired[[#This Row],[Asset Analysis ID]],tblAssets_Results[],I$25,FALSE)) -> High Priority | J35: =IF(VLOOKUP(tblInfrastructureRequired[[#This Row],[Asset Analysis ID]],tblAssets_Results[],J$25,FALSE)=0,"",VLOOKUP(tblInfrastructureRequired[[#This Row],[Asset Analysis ID]],tblAssets_Results[],J$25,FALSE)) -> Major Repairs or Replace System | K35: =VLOOKUP(tblInfrastructureRequired[[#This Row],[Asset Analysis ID]]:tblInfrastructureRequired[[#This Row],[Asset Analysis ID]],tblAssets_Results[#All],'Infrastructure Results'!K$25,0) -> 3805 | L35: =VLOOKUP(tblInfrastructureRequired[[#This Row],[Asset Analysis ID]]:tblInfrastructureRequired[[#This Row],[Asset Analysis ID]],tblAssets_Results[#All],'Infrastructure Results'!L$25,0) -> 8660 | M35: =tblInfrastructureRequired[[#This Row],[Estimated Cost]]/tblInfrastructureRequired[[#This Row],[Estimated Value]] -> 0.4393764434 | N35: =VLOOKUP(tblInfrastructureRequired[[#This Row],[Alert]],tblAlert[#All],2,0) -> CapManEx | O35: 2025
B36: 10 | C36: =IF(VLOOKUP(tblInfrastructureRequired[[#This Row],[Asset Analysis ID]],tblAssets_Results[],C$3,FALSE)=0,"",VLOOKUP(tblInfrastructureRequired[[#This Row],[Asset Analysis ID]],tblAssets_Results[],C$3,FALSE)) -> Kenya | D36: =IF(VLOOKUP(tblInfrastructureRequired[[#This Row],[Asset Analysis ID]],tblAssets_Results[],D$3,FALSE)=0,"",VLOOKUP(tblInfrastructureRequired[[#This Row],[Asset Analysis ID]],tblAssets_Results[],D$3,FALSE)) -> Rift Valley | E36: =IF(VLOOKUP(tblInfrastructureRequired[[#This Row],[Asset Analysis ID]],tblAssets_Results[],E$3,FALSE)=0,"",VLOOKUP(tblInfrastructureRequired[[#This Row],[Asset Analysis ID]],tblAssets_Results[],E$3,FALSE)) -> Piped water system | F36: =IF(VLOOKUP(tblInfrastructureRequired[[#This Row],[Asset Analysis ID]],tblAssets_Results[],F$3,FALSE)=0,"",VLOOKUP(tblInfrastructureRequired[[#This Row],[Asset Analysis ID]],tblAssets_Results[],F$3,FALSE)) -> Borehole with handpump | G36: =IF(VLOOKUP(tblInfrastructureRequired[[#This Row],[Asset Analysis ID]],tblAssets_Results[],G$3,FALSE)=0,"",VLOOKUP(tblInfrastructureRequired[[#This Row],[Asset Analysis ID]],tblAssets_Results[],G$3,FALSE)) -> No Improved Water Point/System | H36: =IF(VLOOKUP(tblInfrastructureRequired[[#This Row],[Asset Analysis ID]],tblAssets_Results[],H$3,FALSE)=0,"",VLOOKUP(tblInfrastructureRequired[[#This Row],[Asset Analysis ID]],tblAssets_Results[],H$3,FALSE)) -> No Improved Water Point/System | I36: =IF(VLOOKUP(tblInfrastructureRequired[[#This Row],[Asset Analysis ID]],tblAssets_Results[],I$25,FALSE)=0,"",VLOOKUP(tblInfrastructureRequired[[#This Row],[Asset Analysis ID]],tblAssets_Results[],I$25,FALSE)) -> New Construction Needed | J36: =IF(VLOOKUP(tblInfrastructureRequired[[#This Row],[Asset Analysis ID]],tblAssets_Results[],J$25,FALSE)=0,"",VLOOKUP(tblInfrastructureRequired[[#This Row],[Asset Analysis ID]],tblAssets_Results[],J$25,FALSE)) -> New Construction Needed | K36: =VLOOKUP(tblInfrastructureRequired[[#This Row],[Asset Analysis ID]]:tblInfrastructureRequired[[#This Row],[Asset Analysis ID]],tblAssets_Results[#All],'Infrastructure Results'!K$25,0) -> 8670 | L36: =VLOOKUP(tblInfrastructureRequired[[#This Row],[Asset Analysis ID]]:tblInfrastructureRequired[[#This Row],[Asset Analysis ID]],tblAssets_Results[#All],'Infrastructure Results'!L$25,0) -> 8670 | M36: =tblInfrastructureRequired[[#This Row],[Estimated Cost]]/tblInfrastructureRequired[[#This Row],[Estimated Value]] -> 1 | N36: =VLOOKUP(tblInfrastructureRequired[[#This Row],[Alert]],tblAlert[#All],2,0) -> CapEx | O36: 2025
B37: 11 | C37: =IF(VLOOKUP(tblInfrastructureRequired[[#This Row],[Asset Analysis ID]],tblAssets_Results[],C$3,FALSE)=0,"",VLOOKUP(tblInfrastructureRequired[[#This Row],[Asset Analysis ID]],tblAssets_Results[],C$3,FALSE)) -> Kenya | D37: =IF(VLOOKUP(tblInfrastructureRequired[[#This Row],[Asset Analysis ID]],tblAssets_Results[],D$3,FALSE)=0,"",VLOOKUP(tblInfrastructureRequired[[#This Row],[Asset Analysis ID]],tblAssets_Results[],D$3,FALSE)) -> Rift Valley | E37: =IF(VLOOKUP(tblInfrastructureRequired[[#This Row],[Asset Analysis ID]],tblAssets_Results[],E$3,FALSE)=0,"",VLOOKUP(tblInfrastructureRequired[[#This Row],[Asset Analysis ID]],tblAssets_Results[],E$3,FALSE)) -> Piped water system | F37: =IF(VLOOKUP(tblInfrastructureRequired[[#This Row],[Asset Analysis ID]],tblAssets_Results[],F$3,FALSE)=0,"",VLOOKUP(tblInfrastructureRequired[[#This Row],[Asset Analysis ID]],tblAssets_Results[],F$3,FALSE)) -> Borehole with handpump | G37: =IF(VLOOKUP(tblInfrastructureRequired[[#This Row],[Asset Analysis ID]],tblAssets_Results[],G$3,FALSE)=0,"",VLOOKUP(tblInfrastructureRequired[[#This Row],[Asset Analysis ID]],tblAssets_Results[],G$3,FALSE)) -> Low Risk | H37: =IF(VLOOKUP(tblInfrastructureRequired[[#This Row],[Asset Analysis ID]],tblAssets_Results[],H$3,FALSE)=0,"",VLOOKUP(tblInfrastructureRequired[[#This Row],[Asset Analysis ID]],tblAssets_Results[],H$3,FALSE)) -> Medium Risk | I37: =IF(VLOOKUP(tblInfrastructureRequired[[#This Row],[Asset Analysis ID]],tblAssets_Results[],I$25,FALSE)=0,"",VLOOKUP(tblInfrastructureRequired[[#This Row],[Asset Analysis ID]],tblAssets_Results[],I$25,FALSE)) -> Low Priority | J37: =IF(VLOOKUP(tblInfrastructureRequired[[#This Row],[Asset Analysis ID]],tblAssets_Results[],J$25,FALSE)=0,"",VLOOKUP(tblInfrastructureRequired[[#This Row],[Asset Analysis ID]],tblAssets_Results[],J$25,FALSE)) -> Repair or Replace Components | K37: =VLOOKUP(tblInfrastructureRequired[[#This Row],[Asset Analysis ID]]:tblInfrastructureRequired[[#This Row],[Asset Analysis ID]],tblAssets_Results[#All],'Infrastructure Results'!K$25,0) -> 50 | L37: =VLOOKUP(tblInfrastructureRequired[[#This Row],[Asset Analysis ID]]:tblInfrastructureRequired[[#This Row],[Asset Analysis ID]],tblAssets_Results[#All],'Infrastructure Results'!L$25,0) -> 8680 | M37: =tblInfrastructureRequired[[#This Row],[Estimated Cost]]/tblInfrastructureRequired[[#This Row],[Estimated Value]] -> 0.005760368664 | N37: =VLOOKUP(tblInfrastructureRequired[[#This Row],[Alert]],tblAlert[#All],2,0) -> CapManEx

Sheet Direct Support Instructions
B1: Direct Support Overview
B2: Purpose: The Direct Support Cost Tool helps calculating the actual supporting costs related to water activities completed by government and NGOs, and what would be the cost to perform all required functions in the ideal way. It identifies the gap between what is actually financed and what should be financed. The output provides information about WHO supports maintenance and HOW much is needed to do that properly.
B4: Structure:
B5: The tool has, apart from this sheet, 2 other sheets:
B6: - Direct Support Data Entry: this sheet has three boxes to quantify actual costs related to WASH activities completed by the government, and the cost required to perform all required functions in the ideal situation. The sheet also has various boxes to help with calculations. Keep in mind that for the calculations for the direct support costs graphs and the gap analysis only use is made of the cells with overall totals.
B7: Direct Support Results: this presents summaries and comparisons of actual costs (expenditures) and ideal costs.
B9: Instructions for populating the "Direct Support" tab
B10: 1) Change the currency to reflect the currency used in your country program.
B11: 2) Only modify cells in yellow. The remaining cells will be filled automatically.
B12: 3) Complete Box 1, basic information on the district.
B13: 4) Complete box 2, with both actual and ideal situation data/estimates about staff working on WASH including:
B14: - The roles that exist related to WASH at the district level (FULL TIME). Feel free to change those mentioned in column B
B16: For each role, indicate how many man-months is allocated (column C). If, for example, two people are full-time, it would be 2. If only one person spends one month, it would be 0.8.
B18: For each of please fill in estimated annual salary (column D). It can of course be estimation and check if the resulting value in column E makes sense. This is the amount that the district incurs, and so it should include benefits paid, taxes, etc.
B20: Repeat this for the ideal situation – note that the salary is by default taken to be the same. Focus more on level of effort (man months).
B22: Finally indicate who is making the expense. The default choice is government or NGO, but list can be adapted in the configuration tab
B24: 5) Complete Boxes 3 in similar fashion, but only fill in column E and and H.
B25: 6) Complete Box 5:
B26: -Using data from the previous year as a basis for making decisions, complete the number of people (working FULL TIME) that should be working in the district.
B27: - Estimate the ideal number of months staff should spend on each key function listed in Box 5. To complete this calculation, consider the necessary work identified in the Infrastructure Required Tool, to develop an estimate of time required per position to supervise projects.
B29: Results Tab:
B30: When the sheet Direct Support Data Entry has been completed, analyze the differences between ideal situation and actual expenditures with the help of sheet Direct Support Results

Sheet Direct Support Data Entry
B1: Direct Support - Data Entry
B3: Box 1: General Information
B4: Box 1: General Information | C4: Value
B5: District
B6: Number of systems in the district | D6: =NumverEntered&" Systems currently in the asset and infrastructure tool" -> 11 Systems currently in the asset and infrastructure tool
B7: Number of communities in the district
B8: Total district population | C8: 1400
B11: Box 2: Actual Spend - and ideal of staff
C12: Actual | F12: Ideal / required
B13: Role | C13: Actual Time spend (Man Months) | D13: Actual salary | E13: Actual Cost | F13: Ideal Time spend (Man Months) | G13: Ideal Annual Salary | H13: Ideal Cost | I13: Government or NGO | J13: Comment | K13: Gap
B14: Project Supervision | C14: 6 | D14: 2000 | E14: =tblDsStaff[[#This Row],[Actual Time spend (Man Months)]]*tblDsStaff[[#This Row],[Actual salary]]/12 -> 1000 | F14: 12 | G14: =tblDsStaff[[#This Row],[Actual salary]] -> 2000 | H14: =tblDsStaff[[#This Row],[Ideal Time spend (Man Months)]]*tblDsStaff[[#This Row],[Ideal Annual Salary]]/12 -> 2000 | I14: Government | K14: =tblDsStaff[[#This Row],[Ideal Cost]]-tblDsStaff[[#This Row],[Actual Cost]] -> 1000
B15: Material procurement and tendering | D15: 2000 | E15: =tblDsStaff[[#This Row],[Actual Time spend (Man Months)]]*tblDsStaff[[#This Row],[Actual salary]]/12 -> 0 | G15: =tblDsStaff[[#This Row],[Actual salary]] -> 2000 | H15: =tblDsStaff[[#This Row],[Ideal Time spend (Man Months)]]*tblDsStaff[[#This Row],[Ideal Annual Salary]]/12 -> 0 | I15: Government | K15: =tblDsStaff[[#This Row],[Ideal Cost]]-tblDsStaff[[#This Row],[Actual Cost]] -> 0
B16: Coordination/Tech assistance | D16: 2000 | E16: =tblDsStaff[[#This Row],[Actual Time spend (Man Months)]]*tblDsStaff[[#This Row],[Actual salary]]/12 -> 0 | G16: =tblDsStaff[[#This Row],[Actual salary]] -> 2000 | H16: =tblDsStaff[[#This Row],[Ideal Time spend (Man Months)]]*tblDsStaff[[#This Row],[Ideal Annual Salary]]/12 -> 0 | I16: Government | K16: =tblDsStaff[[#This Row],[Ideal Cost]]-tblDsStaff[[#This Row],[Actual Cost]] -> 0
B17: Annual monitoring | C17: 2 | D17: 2000 | E17: =tblDsStaff[[#This Row],[Actual Time spend (Man Months)]]*tblDsStaff[[#This Row],[Actual salary]]/12 -> 333.3333333 | F17: 12 | G17: =tblDsStaff[[#This Row],[Actual salary]] -> 2000 | H17: =tblDsStaff[[#This Row],[Ideal Time spend (Man Months)]]*tblDsStaff[[#This Row],[Ideal Annual Salary]]/12 -> 2000 | I17: Government | K17: =tblDsStaff[[#This Row],[Ideal Cost]]-tblDsStaff[[#This Row],[Actual Cost]] -> 1666.666667
B18: Quality, Operation, Administration and Monitoring | D18: 2000 | E18: =tblDsStaff[[#This Row],[Actual Time spend (Man Months)]]*tblDsStaff[[#This Row],[Actual salary]]/12 -> 0 | F18: 2 | G18: =tblDsStaff[[#This Row],[Actual salary]] -> 2000 | H18: =tblDsStaff[[#This Row],[Ideal Time spend (Man Months)]]*tblDsStaff[[#This Row],[Ideal Annual Salary]]/12 -> 333.3333333 | I18: Government | K18: =tblDsStaff[[#This Row],[Ideal Cost]]-tblDsStaff[[#This Row],[Actual Cost]] -> 333.3333333
B19: Bank account review | C19: 2 | D19: 2000 | E19: =tblDsStaff[[#This Row],[Actual Time spend (Man Months)]]*tblDsStaff[[#This Row],[Actual salary]]/12 -> 333.3333333 | F19: 4 | G19: =tblDsStaff[[#This Row],[Actual salary]] -> 2000 | H19: =tblDsStaff[[#This Row],[Ideal Time spend (Man Months)]]*tblDsStaff[[#This Row],[Ideal Annual Salary]]/12 -> 666.6666667 | I19: Government | K19: =tblDsStaff[[#This Row],[Ideal Cost]]-tblDsStaff[[#This Row],[Actual Cost]] -> 333.3333333
B20: Water Quality Monitoring | D20: 2000 | E20: =tblDsStaff[[#This Row],[Actual Time spend (Man Months)]]*tblDsStaff[[#This Row],[Actual salary]]/12 -> 0 | G20: =tblDsStaff[[#This Row],[Actual salary]] -> 2000 | H20: =tblDsStaff[[#This Row],[Ideal Time spend (Man Months)]]*tblDsStaff[[#This Row],[Ideal Annual Salary]]/12 -> 0 | I20: Government | K20: =tblDsStaff[[#This Row],[Ideal Cost]]-tblDsStaff[[#This Row],[Actual Cost]] -> 0
B21: Auditing of WASHCo financial transaction, record keeping (revenue and expenses) | D21: 2000 | E21: =tblDsStaff[[#This Row],[Actual Time spend (Man Months)]]*tblDsStaff[[#This Row],[Actual salary]]/12 -> 0 | G21: =tblDsStaff[[#This Row],[Actual salary]] -> 2000 | H21: =tblDsStaff[[#This Row],[Ideal Time spend (Man Months)]]*tblDsStaff[[#This Row],[Ideal Annual Salary]]/12 -> 0 | I21: Government | K21: =tblDsStaff[[#This Row],[Ideal Cost]]-tblDsStaff[[#This Row],[Actual Cost]] -> 0
B22: Water Quality | C22: 3 | D22: 2000 | E22: =tblDsStaff[[#This Row],[Actual Time spend (Man Months)]]*tblDsStaff[[#This Row],[Actual salary]]/12 -> 500 | F22: 3 | G22: =tblDsStaff[[#This Row],[Actual salary]] -> 2000 | H22: =tblDsStaff[[#This Row],[Ideal Time spend (Man Months)]]*tblDsStaff[[#This Row],[Ideal Annual Salary]]/12 -> 500 | I22: Government | K22: =tblDsStaff[[#This Row],[Ideal Cost]]-tblDsStaff[[#This Row],[Actual Cost]] -> 0
B23: Planning and Design | D23: 2000 | E23: =tblDsStaff[[#This Row],[Actual Time spend (Man Months)]]*tblDsStaff[[#This Row],[Actual salary]]/12 -> 0 | G23: =tblDsStaff[[#This Row],[Actual salary]] -> 2000 | H23: =tblDsStaff[[#This Row],[Ideal Time spend (Man Months)]]*tblDsStaff[[#This Row],[Ideal Annual Salary]]/12 -> 0 | K23: =tblDsStaff[[#This Row],[Ideal Cost]]-tblDsStaff[[#This Row],[Actual Cost]] -> 0
B24: Tariff setting | D24: 2000 | E24: =tblDsStaff[[#This Row],[Actual Time spend (Man Months)]]*tblDsStaff[[#This Row],[Actual salary]]/12 -> 0 | G24: =tblDsStaff[[#This Row],[Actual salary]] -> 2000 | H24: =tblDsStaff[[#This Row],[Ideal Time spend (Man Months)]]*tblDsStaff[[#This Row],[Ideal Annual Salary]]/12 -> 0 | K24: =tblDsStaff[[#This Row],[Ideal Cost]]-tblDsStaff[[#This Row],[Actual Cost]] -> 0
B25: Administration | C25: 1 | D25: 1000 | E25: =tblDsStaff[[#This Row],[Actual Time spend (Man Months)]]*tblDsStaff[[#This Row],[Actual salary]]/12 -> 83.33333333 | F25: 1 | G25: =tblDsStaff[[#This Row],[Actual salary]] -> 1000 | H25: =tblDsStaff[[#This Row],[Ideal Time spend (Man Months)]]*tblDsStaff[[#This Row],[Ideal Annual Salary]]/12 -> 83.33333333 | I25: NGO | K25: =tblDsStaff[[#This Row],[Ideal Cost]]-tblDsStaff[[#This Row],[Actual Cost]] -> 0
B26: Operation and Maintenance | D26: 1000 | E26: =tblDsStaff[[#This Row],[Actual Time spend (Man Months)]]*tblDsStaff[[#This Row],[Actual salary]]/12 -> 0 | G26: =tblDsStaff[[#This Row],[Actual salary]] -> 1000 | H26: =tblDsStaff[[#This Row],[Ideal Time spend (Man Months)]]*tblDsStaff[[#This Row],[Ideal Annual Salary]]/12 -> 0 | I26: NGO | K26: =tblDsStaff[[#This Row],[Ideal Cost]]-tblDsStaff[[#This Row],[Actual Cost]] -> 0
B27: Water source protection | C27: 0 | D27: 5000 | E27: =tblDsStaff[[#This Row],[Actual Time spend (Man Months)]]*tblDsStaff[[#This Row],[Actual salary]]/12 -> 0 | F27: 2 | G27: =tblDsStaff[[#This Row],[Actual salary]] -> 5000 | H27: =tblDsStaff[[#This Row],[Ideal Time spend (Man Months)]]*tblDsStaff[[#This Row],[Ideal Annual Salary]]/12 -> 833.3333333 | I27: NGO | K27: =tblDsStaff[[#This Row],[Ideal Cost]]-tblDsStaff[[#This Row],[Actual Cost]] -> 833.3333333
B28: Watershed management/protection | D28: 1000 | E28: =tblDsStaff[[#This Row],[Actual Time spend (Man Months)]]*tblDsStaff[[#This Row],[Actual salary]]/12 -> 0 | G28: =tblDsStaff[[#This Row],[Actual salary]] -> 1000 | H28: =tblDsStaff[[#This Row],[Ideal Time spend (Man Months)]]*tblDsStaff[[#This Row],[Ideal Annual Salary]]/12 -> 0 | I28: NGO | K28: =tblDsStaff[[#This Row],[Ideal Cost]]-tblDsStaff[[#This Row],[Actual Cost]] -> 0
B29: Meetings and workshops | C29: 3 | D29: 5000 | E29: =tblDsStaff[[#This Row],[Actual Time spend (Man Months)]]*tblDsStaff[[#This Row],[Actual salary]]/12 -> 1250 | F29: 3 | G29: =tblDsStaff[[#This Row],[Actual salary]] -> 5000 | H29: =tblDsStaff[[#This Row],[Ideal Time spend (Man Months)]]*tblDsStaff[[#This Row],[Ideal Annual Salary]]/12 -> 1250 | I29: NGO | K29: =tblDsStaff[[#This Row],[Ideal Cost]]-tblDsStaff[[#This Row],[Actual Cost]] -> 0
E30: =tblDsStaff[[#This Row],[Actual Time spend (Man Months)]]*tblDsStaff[[#This Row],[Actual salary]]/12 -> 0 | H30: =tblDsStaff[[#This Row],[Ideal Time spend (Man Months)]]*tblDsStaff[[#This Row],[Ideal Annual Salary]]/12 -> 0 | K30: =tblDsStaff[[#This Row],[Ideal Cost]]-tblDsStaff[[#This Row],[Actual Cost]] -> 0
E31: =tblDsStaff[[#This Row],[Actual Time spend (Man Months)]]*tblDsStaff[[#This Row],[Actual salary]]/12 -> 0 | H31: =tblDsStaff[[#This Row],[Ideal Time spend (Man Months)]]*tblDsStaff[[#This Row],[Ideal Annual Salary]]/12 -> 0 | K31: =tblDsStaff[[#This Row],[Ideal Cost]]-tblDsStaff[[#This Row],[Actual Cost]] -> 0
B32: Sub-total staff | E32: =SUBTOTAL(109,tblDsStaff[Actual Cost]) -> 3500 | H32: =SUBTOTAL(109,tblDsStaff[Ideal Cost]) -> 7666.666667 | K32: =SUBTOTAL(109,tblDsStaff[Gap]) -> 4166.666667
B34: Box 3: Actual Spend- actual-other expenses
B35: Other Expenses | C35: Column2 | D35: Column1 | E35: Actual Annual Expenditure | F35: Column4 | G35: Column3 | H35: Ideal Annual Expenditure | I35: Government or NGO | J35: Comment | K35: Gap
B36: Per diem for technical staff | E36: 1000 | H36: 5000 | I36: Government | K36: =tblDsOther[[#This Row],[Ideal Annual Expenditure]]-tblDsOther[[#This Row],[Actual Annual Expenditure]] -> 4000
B37: Transportation costs for the water office (fuel, vehicle maintenance, depreciation) | K37: =tblDsOther[[#This Row],[Ideal Annual Expenditure]]-tblDsOther[[#This Row],[Actual Annual Expenditure]] -> 0
B38: Meeting and training costs (rooms, food, per diems for participants, etc) | K38: =tblDsOther[[#This Row],[Ideal Annual Expenditure]]-tblDsOther[[#This Row],[Actual Annual Expenditure]] -> 0
B39: Other costs | E39: 400 | H39: 10000 | I39: NGO | K39: =tblDsOther[[#This Row],[Ideal Annual Expenditure]]-tblDsOther[[#This Row],[Actual Annual Expenditure]] -> 9600
K40: =tblDsOther[[#This Row],[Ideal Annual Expenditure]]-tblDsOther[[#This Row],[Actual Annual Expenditure]] -> 0
B41: Sub-total other costs | E41: =SUBTOTAL(109,tblDsOther[Actual Annual Expenditure]) -> 1400 | H41: =SUBTOTAL(109,tblDsOther[Ideal Annual Expenditure]) -> 15000 | K41: =SUBTOTAL(109,tblDsOther[Gap]) -> 13600
E43: Actual annual costs | H43: Ideal Annual costs | K43: Gap
B44: Total costs | E44: =tblDsStaff[[#Totals],[Actual Cost]]+tblDsOther[[#Totals],[Actual Annual Expenditure]] -> 4900 | H44: =tblDsStaff[[#Totals],[Ideal Cost]]+tblDsOther[[#Totals],[Ideal Annual Expenditure]] -> 22666.66667 | K44: =H44-ValueDirectTotal -> 17766.66667
B45: Cost per Capita | E45: =E44/TotalPopulation -> 3.5 | H45: =H44/TotalPopulation -> 16.19047619 | K45: =K44/TotalPopulation -> 12.69047619

Sheet Direct Support- Results
B1: Direct Support - Results
B4: ="The direct support totals to "&TEXT(ValueDsTotalActual,"#,##0")&". In ideal circumstances, a total of "&TEXT(ValueDsTotalIdeal,"#,##0")&" is made available. This is "& TEXT(H10,"#.#")&" times more than currently disbursed" -> The direct support totals to 4,900. In ideal circumstances, a total of 22,667 is made available. This is 4.6 times more than currently disbursed
F6: Actual | G6: Ideal | H6: Gap
E7: Staff | F7: =ValueDsStaffActual -> 3500 | G7: =ValueDsStaffIdeal -> 7666.666667 | H7: =ValueDsGapStaff -> 4166.666667
E8: Other | F8: =ValueDsOtherActual -> 1400 | G8: =ValueDsIdealOther -> 15000 | H8: =ValueDsGapOther -> 13600
E9: Total | F9: =ValueDsTotalActual -> 4900 | G9: =ValueDsTotalIdeal -> 22666.66667 | H9: =ValueDsGapTotal -> 17766.66667 | N9: ="The highest current expense on staffing is "&'For graphics-do not edit'!B9 -> The highest current expense on staffing is Meetings and workshops
H10: =G9/F9 -> 4.62585034 | I10: Factor
W12: note, if graph fails to update, please close and open the file, or refresh pivottable manually
D13: ="Gap between between actual costs and required direct costs is factor "&TEXT(H10,"#,##0.#") -> Gap between between actual costs and required direct costs is factor 4.6
D30: =IF(H7>H8,"Biggest gap is in staffing","Biggest gap is in other expenses") -> Biggest gap is in other expenses

Sheet Gap Analysis Instructions
B1: Gap Analysis - Overview
B2: Purpose: The purpose of this tool is to compile costs and sources of finance from several different tools previously completed in this document. It will provide an understanding of the financial gap in delivering sustainable water services.
B3: Structure:
B4: This document has a total of four sheets, including this Gap Analysis Instructions sheet.
B5: The second sheet is the Gap Analysis data entry sheet and compiles the expected finance for the future. Do your projections for at least 5 years and preferable for a period of 10 years.
B6: Identify all known financial resources (tariffs, taxes, and transfers) that are currently available for water services in consultation with government staff and development partners. Once you have the different sources of finance identified, you estimate how much money of each source will be allocated for each cost category (OpEx, CapEx, CapManEx, Direct Support) for 5 to 10 years in the future. The projections for tariffs, taxes, and transfers will be made using assumptions. Some ideas for doing the projections are:
B8: - For tariffs, the amount generated will depend on the tariff rate, the number of users, and the tariff collection rate. This should be paired with the number of expected users each year, depending on planned infrastructure. You can try what a gradual increase of tariffs means for the funding.
B9: - For transfers, the amount will vary based on existing and planned projects in the district from donors and/or other actors (private sector, philanthropy, remittances).
B10: - For taxes, the amount is the sum of the flow from national budget to the district and local taxes. The latter of course depends on the district’s ability to generate taxes. This can be estimated based on historical tax generation. For the flow from the national budget, make sure that you don’t double count the money from the donors that channel through national government.
B12: The third sheet is the Gap Analysis Results sheet. This sheet brings together the cost estimates developed in Infrastructure Results sheet and the Direct Support Data Entry sheet and the expected funding, collected in the “sources of funding” sheet. This sheet populates automatically and should not be edited.
B14: The fourth sheet Gap Analysis Calculations provides an overview of all costs for OpEx, CapEx, CapManEx and Direct Support for the different years from the different sheets of the costing tool. This is all automated and needs no editing.

Sheet Gap analysis Data entry
B1: Gap Analysis - Data entry
B3: Please fill in finance sources. Note - often a cost category only goes to one expense. For example Tarrifs only go for Opex. Therefore, it is fine to have empty columns.
B4: 1 | C4: 2 | D4: 3 | E4: 4 | F4: 5 | G4: 6 | H4: 7 | I4: 8 | J4: 9 | K4: 10 | L4: 11 | M4: 12 | N4: 13 | O4: 14 | P4: 15 | Q4: 16 | R4: 17 | S4: 18 | T4: 19 | U4: 20 | V4: 21
C5: Tariffs | G5: Transfers | K5: Taxes | O5: Totals | S5: Totals 3T
B6: Year | C6: OpEx Tariffs | D6: CapEx Tariffs | E6: CapManEx Tariffs | F6: Direct Support Tariffs | G6: OpEx Transfers | H6: CapEx Transfers | I6: CapManEx Transfers | J6: Direct Support Transfers | K6: OpEx Taxes | L6: CapEx Taxes | M6: CapManEx Taxes | N6: Direct Support Taxes | O6: Opex Total | P6: CapEx Total | Q6: CapManEx Total | R6: Direct Support Total | S6: Total Tariffs | T6: Total Transfers | U6: Total Taxes | V6: Total
B7: ='Gap Analysis Calculations'!B8 -> 2022 | C7: 1200 | H7: 2000 | L7: 200 | N7: 500 | O7: =tblSourcesOfFunding[[#This Row],[OpEx Tariffs]]+tblSourcesOfFunding[[#This Row],[OpEx Transfers]]+tblSourcesOfFunding[[#This Row],[OpEx Taxes]] -> 1200 | P7: =tblSourcesOfFunding[[#This Row],[CapEx Tariffs]]+tblSourcesOfFunding[[#This Row],[CapEx Transfers]]+tblSourcesOfFunding[[#This Row],[CapEx Taxes]] -> 2200 | Q7: =tblSourcesOfFunding[[#This Row],[CapManEx Tariffs]]+tblSourcesOfFunding[[#This Row],[CapManEx Transfers]]+tblSourcesOfFunding[[#This Row],[CapManEx Taxes]] -> 0 | R7: =tblSourcesOfFunding[[#This Row],[Direct Support Tariffs]]+tblSourcesOfFunding[[#This Row],[Direct Support Transfers]]+tblSourcesOfFunding[[#This Row],[Direct Support Taxes]] -> 500 | S7: =SUM(tblSourcesOfFunding[[#This Row],[OpEx Tariffs]:[Direct Support Tariffs]]) -> 1200 | T7: =SUM(tblSourcesOfFunding[[#This Row],[OpEx Transfers]:[Direct Support Transfers]]) -> 2000 | U7: =SUM(tblSourcesOfFunding[[#This Row],[OpEx Taxes]:[Direct Support Taxes]]) -> 700 | V7: =SUM(tblSourcesOfFunding[[#This Row],[Total Tariffs]:[Total Taxes]]) -> 3900
B8: ='Gap Analysis Calculations'!B9 -> 2023 | C8: 1200 | L8: 200 | N8: 500 | O8: =tblSourcesOfFunding[[#This Row],[OpEx Tariffs]]+tblSourcesOfFunding[[#This Row],[OpEx Transfers]]+tblSourcesOfFunding[[#This Row],[OpEx Taxes]] -> 1200 | P8: =tblSourcesOfFunding[[#This Row],[CapEx Tariffs]]+tblSourcesOfFunding[[#This Row],[CapEx Transfers]]+tblSourcesOfFunding[[#This Row],[CapEx Taxes]] -> 200 | Q8: =tblSourcesOfFunding[[#This Row],[CapManEx Tariffs]]+tblSourcesOfFunding[[#This Row],[CapManEx Transfers]]+tblSourcesOfFunding[[#This Row],[CapManEx Taxes]] -> 0 | R8: =tblSourcesOfFunding[[#This Row],[Direct Support Tariffs]]+tblSourcesOfFunding[[#This Row],[Direct Support Transfers]]+tblSourcesOfFunding[[#This Row],[Direct Support Taxes]] -> 500 | S8: =SUM(tblSourcesOfFunding[[#This Row],[OpEx Tariffs]:[Direct Support Tariffs]]) -> 1200 | T8: =SUM(tblSourcesOfFunding[[#This Row],[OpEx Transfers]:[Direct Support Transfers]]) -> 0 | U8: =SUM(tblSourcesOfFunding[[#This Row],[OpEx Taxes]:[Direct Support Taxes]]) -> 700 | V8: =SUM(tblSourcesOfFunding[[#This Row],[Total Tariffs]:[Total Taxes]]) -> 1900
B9: ='Gap Analysis Calculations'!B10 -> 2024 | C9: 1200 | I9: 5000 | L9: 200 | M9: 1000 | N9: 500 | O9: =tblSourcesOfFunding[[#This Row],[OpEx Tariffs]]+tblSourcesOfFunding[[#This Row],[OpEx Transfers]]+tblSourcesOfFunding[[#This Row],[OpEx Taxes]] -> 1200 | P9: =tblSourcesOfFunding[[#This Row],[CapEx Tariffs]]+tblSourcesOfFunding[[#This Row],[CapEx Transfers]]+tblSourcesOfFunding[[#This Row],[CapEx Taxes]] -> 200 | Q9: =tblSourcesOfFunding[[#This Row],[CapManEx Tariffs]]+tblSourcesOfFunding[[#This Row],[CapManEx Transfers]]+tblSourcesOfFunding[[#This Row],[CapManEx Taxes]] -> 6000 | R9: =tblSourcesOfFunding[[#This Row],[Direct Support Tariffs]]+tblSourcesOfFunding[[#This Row],[Direct Support Transfers]]+tblSourcesOfFunding[[#This Row],[Direct Support Taxes]] -> 500 | S9: =SUM(tblSourcesOfFunding[[#This Row],[OpEx Tariffs]:[Direct Support Tariffs]]) -> 1200 | T9: =SUM(tblSourcesOfFunding[[#This Row],[OpEx Transfers]:[Direct Support Transfers]]) -> 5000 | U9: =SUM(tblSourcesOfFunding[[#This Row],[OpEx Taxes]:[Direct Support Taxes]]) -> 1700 | V9: =SUM(tblSourcesOfFunding[[#This Row],[Total Tariffs]:[Total Taxes]]) -> 7900
B10: ='Gap Analysis Calculations'!B11 -> 2025 | C10: 1200 | H10: 4000 | I10: 1000 | L10: 200 | M10: 1000 | N10: 500 | O10: =tblSourcesOfFunding[[#This Row],[OpEx Tariffs]]+tblSourcesOfFunding[[#This Row],[OpEx Transfers]]+tblSourcesOfFunding[[#This Row],[OpEx Taxes]] -> 1200 | P10: =tblSourcesOfFunding[[#This Row],[CapEx Tariffs]]+tblSourcesOfFunding[[#This Row],[CapEx Transfers]]+tblSourcesOfFunding[[#This Row],[CapEx Taxes]] -> 4200 | Q10: =tblSourcesOfFunding[[#This Row],[CapManEx Tariffs]]+tblSourcesOfFunding[[#This Row],[CapManEx Transfers]]+tblSourcesOfFunding[[#This Row],[CapManEx Taxes]] -> 2000 | R10: =tblSourcesOfFunding[[#This Row],[Direct Support Tariffs]]+tblSourcesOfFunding[[#This Row],[Direct Support Transfers]]+tblSourcesOfFunding[[#This Row],[Direct Support Taxes]] -> 500 | S10: =SUM(tblSourcesOfFunding[[#This Row],[OpEx Tariffs]:[Direct Support Tariffs]]) -> 1200 | T10: =SUM(tblSourcesOfFunding[[#This Row],[OpEx Transfers]:[Direct Support Transfers]]) -> 5000 | U10: =SUM(tblSourcesOfFunding[[#This Row],[OpEx Taxes]:[Direct Support Taxes]]) -> 1700 | V10: =SUM(tblSourcesOfFunding[[#This Row],[Total Tariffs]:[Total Taxes]]) -> 7900
B11: ='Gap Analysis Calculations'!B12 -> 2026 | C11: 1200 | L11: 200 | M11: 1000 | N11: 500 | O11: =tblSourcesOfFunding[[#This Row],[OpEx Tariffs]]+tblSourcesOfFunding[[#This Row],[OpEx Transfers]]+tblSourcesOfFunding[[#This Row],[OpEx Taxes]] -> 1200 | P11: =tblSourcesOfFunding[[#This Row],[CapEx Tariffs]]+tblSourcesOfFunding[[#This Row],[CapEx Transfers]]+tblSourcesOfFunding[[#This Row],[CapEx Taxes]] -> 200 | Q11: =tblSourcesOfFunding[[#This Row],[CapManEx Tariffs]]+tblSourcesOfFunding[[#This Row],[CapManEx Transfers]]+tblSourcesOfFunding[[#This Row],[CapManEx Taxes]] -> 1000 | R11: =tblSourcesOfFunding[[#This Row],[Direct Support Tariffs]]+tblSourcesOfFunding[[#This Row],[Direct Support Transfers]]+tblSourcesOfFunding[[#This Row],[Direct Support Taxes]] -> 500 | S11: =SUM(tblSourcesOfFunding[[#This Row],[OpEx Tariffs]:[Direct Support Tariffs]]) -> 1200 | T11: =SUM(tblSourcesOfFunding[[#This Row],[OpEx Transfers]:[Direct Support Transfers]]) -> 0 | U11: =SUM(tblSourcesOfFunding[[#This Row],[OpEx Taxes]:[Direct Support Taxes]]) -> 1700 | V11: =SUM(tblSourcesOfFunding[[#This Row],[Total Tariffs]:[Total Taxes]]) -> 2900
B12: ='Gap Analysis Calculations'!B13 -> 2027 | C12: 1200 | L12: 200 | M12: 1000 | N12: 500 | O12: =tblSourcesOfFunding[[#This Row],[OpEx Tariffs]]+tblSourcesOfFunding[[#This Row],[OpEx Transfers]]+tblSourcesOfFunding[[#This Row],[OpEx Taxes]] -> 1200 | P12: =tblSourcesOfFunding[[#This Row],[CapEx Tariffs]]+tblSourcesOfFunding[[#This Row],[CapEx Transfers]]+tblSourcesOfFunding[[#This Row],[CapEx Taxes]] -> 200 | Q12: =tblSourcesOfFunding[[#This Row],[CapManEx Tariffs]]+tblSourcesOfFunding[[#This Row],[CapManEx Transfers]]+tblSourcesOfFunding[[#This Row],[CapManEx Taxes]] -> 1000 | R12: =tblSourcesOfFunding[[#This Row],[Direct Support Tariffs]]+tblSourcesOfFunding[[#This Row],[Direct Support Transfers]]+tblSourcesOfFunding[[#This Row],[Direct Support Taxes]] -> 500 | S12: =SUM(tblSourcesOfFunding[[#This Row],[OpEx Tariffs]:[Direct Support Tariffs]]) -> 1200 | T12: =SUM(tblSourcesOfFunding[[#This Row],[OpEx Transfers]:[Direct Support Transfers]]) -> 0 | U12: =SUM(tblSourcesOfFunding[[#This Row],[OpEx Taxes]:[Direct Support Taxes]]) -> 1700 | V12: =SUM(tblSourcesOfFunding[[#This Row],[Total Tariffs]:[Total Taxes]]) -> 2900
B13: ='Gap Analysis Calculations'!B14 -> 2028 | C13: 1200 | L13: 300 | M13: 1000 | N13: 500 | O13: =tblSourcesOfFunding[[#This Row],[OpEx Tariffs]]+tblSourcesOfFunding[[#This Row],[OpEx Transfers]]+tblSourcesOfFunding[[#This Row],[OpEx Taxes]] -> 1200 | P13: =tblSourcesOfFunding[[#This Row],[CapEx Tariffs]]+tblSourcesOfFunding[[#This Row],[CapEx Transfers]]+tblSourcesOfFunding[[#This Row],[CapEx Taxes]] -> 300 | Q13: =tblSourcesOfFunding[[#This Row],[CapManEx Tariffs]]+tblSourcesOfFunding[[#This Row],[CapManEx Transfers]]+tblSourcesOfFunding[[#This Row],[CapManEx Taxes]] -> 1000 | R13: =tblSourcesOfFunding[[#This Row],[Direct Support Tariffs]]+tblSourcesOfFunding[[#This Row],[Direct Support Transfers]]+tblSourcesOfFunding[[#This Row],[Direct Support Taxes]] -> 500 | S13: =SUM(tblSourcesOfFunding[[#This Row],[OpEx Tariffs]:[Direct Support Tariffs]]) -> 1200 | T13: =SUM(tblSourcesOfFunding[[#This Row],[OpEx Transfers]:[Direct Support Transfers]]) -> 0 | U13: =SUM(tblSourcesOfFunding[[#This Row],[OpEx Taxes]:[Direct Support Taxes]]) -> 1800 | V13: =SUM(tblSourcesOfFunding[[#This Row],[Total Tariffs]:[Total Taxes]]) -> 3000
B14: ='Gap Analysis Calculations'!B15 -> 2029 | C14: 1200 | L14: 300 | M14: 2000 | N14: 500 | O14: =tblSourcesOfFunding[[#This Row],[OpEx Tariffs]]+tblSourcesOfFunding[[#This Row],[OpEx Transfers]]+tblSourcesOfFunding[[#This Row],[OpEx Taxes]] -> 1200 | P14: =tblSourcesOfFunding[[#This Row],[CapEx Tariffs]]+tblSourcesOfFunding[[#This Row],[CapEx Transfers]]+tblSourcesOfFunding[[#This Row],[CapEx Taxes]] -> 300 | Q14: =tblSourcesOfFunding[[#This Row],[CapManEx Tariffs]]+tblSourcesOfFunding[[#This Row],[CapManEx Transfers]]+tblSourcesOfFunding[[#This Row],[CapManEx Taxes]] -> 2000 | R14: =tblSourcesOfFunding[[#This Row],[Direct Support Tariffs]]+tblSourcesOfFunding[[#This Row],[Direct Support Transfers]]+tblSourcesOfFunding[[#This Row],[Direct Support Taxes]] -> 500 | S14: =SUM(tblSourcesOfFunding[[#This Row],[OpEx Tariffs]:[Direct Support Tariffs]]) -> 1200 | T14: =SUM(tblSourcesOfFunding[[#This Row],[OpEx Transfers]:[Direct Support Transfers]]) -> 0 | U14: =SUM(tblSourcesOfFunding[[#This Row],[OpEx Taxes]:[Direct Support Taxes]]) -> 2800 | V14: =SUM(tblSourcesOfFunding[[#This Row],[Total Tariffs]:[Total Taxes]]) -> 4000
B15: ='Gap Analysis Calculations'!B16 -> 2030 | C15: 1200 | L15: 300 | M15: 5000 | N15: 500 | O15: =tblSourcesOfFunding[[#This Row],[OpEx Tariffs]]+tblSourcesOfFunding[[#This Row],[OpEx Transfers]]+tblSourcesOfFunding[[#This Row],[OpEx Taxes]] -> 1200 | P15: =tblSourcesOfFunding[[#This Row],[CapEx Tariffs]]+tblSourcesOfFunding[[#This Row],[CapEx Transfers]]+tblSourcesOfFunding[[#This Row],[CapEx Taxes]] -> 300 | Q15: =tblSourcesOfFunding[[#This Row],[CapManEx Tariffs]]+tblSourcesOfFunding[[#This Row],[CapManEx Transfers]]+tblSourcesOfFunding[[#This Row],[CapManEx Taxes]] -> 5000 | R15: =tblSourcesOfFunding[[#This Row],[Direct Support Tariffs]]+tblSourcesOfFunding[[#This Row],[Direct Support Transfers]]+tblSourcesOfFunding[[#This Row],[Direct Support Taxes]] -> 500 | S15: =SUM(tblSourcesOfFunding[[#This Row],[OpEx Tariffs]:[Direct Support Tariffs]]) -> 1200 | T15: =SUM(tblSourcesOfFunding[[#This Row],[OpEx Transfers]:[Direct Support Transfers]]) -> 0 | U15: =SUM(tblSourcesOfFunding[[#This Row],[OpEx Taxes]:[Direct Support Taxes]]) -> 5800 | V15: =SUM(tblSourcesOfFunding[[#This Row],[Total Tariffs]:[Total Taxes]]) -> 7000
B16: Total | C16: =SUBTOTAL(109,tblSourcesOfFunding[OpEx Tariffs]) -> 10800 | D16: =SUBTOTAL(109,tblSourcesOfFunding[CapEx Tariffs]) -> 0 | E16: =SUBTOTAL(109,tblSourcesOfFunding[CapManEx Tariffs]) -> 0 | F16: =SUBTOTAL(109,tblSourcesOfFunding[Direct Support Tariffs]) -> 0 | G16: =SUBTOTAL(109,tblSourcesOfFunding[OpEx Transfers]) -> 0 | H16: =SUBTOTAL(109,tblSourcesOfFunding[CapEx Transfers]) -> 6000 | I16: =SUBTOTAL(109,tblSourcesOfFunding[CapManEx Transfers]) -> 6000 | J16: =SUBTOTAL(109,tblSourcesOfFunding[Direct Support Transfers]) -> 0 | K16: =SUBTOTAL(109,tblSourcesOfFunding[OpEx Taxes]) -> 0 | L16: =SUBTOTAL(109,tblSourcesOfFunding[CapEx Taxes]) -> 2100 | M16: =SUBTOTAL(109,tblSourcesOfFunding[CapManEx Taxes]) -> 12000 | N16: =SUBTOTAL(109,tblSourcesOfFunding[Direct Support Taxes]) -> 4500 | O16: =SUBTOTAL(109,tblSourcesOfFunding[Opex Total]) -> 10800 | P16: =SUBTOTAL(109,tblSourcesOfFunding[CapEx Total]) -> 8100 | Q16: =SUBTOTAL(109,tblSourcesOfFunding[CapEx Transfers]) -> 6000 | R16: =SUBTOTAL(109,tblSourcesOfFunding[CapManEx Transfers]) -> 6000 | S16: =SUBTOTAL(109,tblSourcesOfFunding[Total Tariffs]) -> 10800 | T16: =SUBTOTAL(109,tblSourcesOfFunding[Total Transfers]) -> 12000 | U16: =SUBTOTAL(109,tblSourcesOfFunding[Total Taxes]) -> 18600 | V16: =SUBTOTAL(109,tblSourcesOfFunding[Total]) -> 41400

Sheet Gap Analysis Calculations
B1: Gap Analysis - Calculations
B3: Start Year | C3: No data entry is needed here. This is a calculation sheet bringing data from the other sheets together
B4: =YearNow -> 2022 | C4: It calculates the expenses over the years
C6: This value comes from assumptions tab | D6: These value come from Infrastructure required sheet | F6: This comes from Direct support sheet
B7: Year | C7: OpEx | D7: CapEx | E7: CapManEx | F7: Direct Support | G7: Total | H7: CapEx,Manex
B8: =StartYear+ROW()-ROW(tblEstimatedCosts[#Headers])-1 -> 2022 | C8: =ValueCapexTotal*OpExAnnualPC -> 2702.666667 | D8: =SUMIFS(tblInfrastructureRequired[Estimated Cost],tblInfrastructureRequired[Cost Type],stdCostType_CapEx,tblInfrastructureRequired[Planned Year of Investment],tblEstimatedCosts[[#This Row],[Year]]) -> 0 | E8: =SUMIFS(tblInfrastructureRequired[Estimated Cost],tblInfrastructureRequired[Cost Type],stdCostType_CapManEx,tblInfrastructureRequired[Planned Year of Investment],tblEstimatedCosts[[#This Row],[Year]]) -> 4335 | F8: =ValueDirectTotal -> 4900 | G8: =SUM(tblEstimatedCosts[[#This Row],[OpEx]:[Direct Support]]) -> 11937.66667 | H8: =tblEstimatedCosts[[#This Row],[CapEx]]+tblEstimatedCosts[[#This Row],[CapManEx]] -> 4335
B9: =StartYear+ROW()-ROW(tblEstimatedCosts[#Headers])-1 -> 2023 | C9: =ValueCapexTotal*OpExAnnualPC -> 2702.666667 | D9: =SUMIFS(tblInfrastructureRequired[Estimated Cost],tblInfrastructureRequired[Cost Type],stdCostType_CapEx,tblInfrastructureRequired[Planned Year of Investment],tblEstimatedCosts[[#This Row],[Year]]) -> 0 | E9: =SUMIFS(tblInfrastructureRequired[Estimated Cost],tblInfrastructureRequired[Cost Type],stdCostType_CapManEx,tblInfrastructureRequired[Planned Year of Investment],tblEstimatedCosts[[#This Row],[Year]]) -> 1700 | F9: 4900 | G9: =SUM(tblEstimatedCosts[[#This Row],[OpEx]:[Direct Support]]) -> 9302.666667 | H9: =tblEstimatedCosts[[#This Row],[CapEx]]+tblEstimatedCosts[[#This Row],[CapManEx]] -> 1700
B10: =StartYear+ROW()-ROW(tblEstimatedCosts[#Headers])-1 -> 2024 | C10: =ValueCapexTotal*OpExAnnualPC -> 2702.666667 | D10: =SUMIFS(tblInfrastructureRequired[Estimated Cost],tblInfrastructureRequired[Cost Type],stdCostType_CapEx,tblInfrastructureRequired[Planned Year of Investment],tblEstimatedCosts[[#This Row],[Year]]) -> 8680 | E10: =SUMIFS(tblInfrastructureRequired[Estimated Cost],tblInfrastructureRequired[Cost Type],stdCostType_CapManEx,tblInfrastructureRequired[Planned Year of Investment],tblEstimatedCosts[[#This Row],[Year]]) -> 0 | F10: 4900 | G10: =SUM(tblEstimatedCosts[[#This Row],[OpEx]:[Direct Support]]) -> 16282.66667 | H10: =tblEstimatedCosts[[#This Row],[CapEx]]+tblEstimatedCosts[[#This Row],[CapManEx]] -> 8680
B11: =StartYear+ROW()-ROW(tblEstimatedCosts[#Headers])-1 -> 2025 | C11: =ValueCapexTotal*OpExAnnualPC -> 2702.666667 | D11: =SUMIFS(tblInfrastructureRequired[Estimated Cost],tblInfrastructureRequired[Cost Type],stdCostType_CapEx,tblInfrastructureRequired[Planned Year of Investment],tblEstimatedCosts[[#This Row],[Year]]) -> 18340 | E11: =SUMIFS(tblInfrastructureRequired[Estimated Cost],tblInfrastructureRequired[Cost Type],stdCostType_CapManEx,tblInfrastructureRequired[Planned Year of Investment],tblEstimatedCosts[[#This Row],[Year]]) -> 3805 | F11: 4900 | G11: =SUM(tblEstimatedCosts[[#This Row],[OpEx]:[Direct Support]]) -> 29747.66667 | H11: =tblEstimatedCosts[[#This Row],[CapEx]]+tblEstimatedCosts[[#This Row],[CapManEx]] -> 22145
B12: =StartYear+ROW()-ROW(tblEstimatedCosts[#Headers])-1 -> 2026 | C12: =ValueCapexTotal*OpExAnnualPC -> 2702.666667 | D12: =SUMIFS(tblInfrastructureRequired[Estimated Cost],tblInfrastructureRequired[Cost Type],stdCostType_CapEx,tblInfrastructureRequired[Planned Year of Investment],tblEstimatedCosts[[#This Row],[Year]]) -> 0 | E12: =SUMIFS(tblInfrastructureRequired[Estimated Cost],tblInfrastructureRequired[Cost Type],stdCostType_CapManEx,tblInfrastructureRequired[Planned Year of Investment],tblEstimatedCosts[[#This Row],[Year]]) -> 0 | F12: 4900 | G12: =SUM(tblEstimatedCosts[[#This Row],[OpEx]:[Direct Support]]) -> 7602.666667 | H12: =tblEstimatedCosts[[#This Row],[CapEx]]+tblEstimatedCosts[[#This Row],[CapManEx]] -> 0
B13: =StartYear+ROW()-ROW(tblEstimatedCosts[#Headers])-1 -> 2027 | C13: =ValueCapexTotal*OpExAnnualPC -> 2702.666667 | D13: =SUMIFS(tblInfrastructureRequired[Estimated Cost],tblInfrastructureRequired[Cost Type],stdCostType_CapEx,tblInfrastructureRequired[Planned Year of Investment],tblEstimatedCosts[[#This Row],[Year]]) -> 0 | E13: =SUMIFS(tblInfrastructureRequired[Estimated Cost],tblInfrastructureRequired[Cost Type],stdCostType_CapManEx,tblInfrastructureRequired[Planned Year of Investment],tblEstimatedCosts[[#This Row],[Year]]) -> 0 | F13: 4900 | G13: =SUM(tblEstimatedCosts[[#This Row],[OpEx]:[Direct Support]]) -> 7602.666667 | H13: =tblEstimatedCosts[[#This Row],[CapEx]]+tblEstimatedCosts[[#This Row],[CapManEx]] -> 0
B14: =StartYear+ROW()-ROW(tblEstimatedCosts[#Headers])-1 -> 2028 | C14: =ValueCapexTotal*OpExAnnualPC -> 2702.666667 | D14: =SUMIFS(tblInfrastructureRequired[Estimated Cost],tblInfrastructureRequired[Cost Type],stdCostType_CapEx,tblInfrastructureRequired[Planned Year of Investment],tblEstimatedCosts[[#This Row],[Year]]) -> 0 | E14: =SUMIFS(tblInfrastructureRequired[Estimated Cost],tblInfrastructureRequired[Cost Type],stdCostType_CapManEx,tblInfrastructureRequired[Planned Year of Investment],tblEstimatedCosts[[#This Row],[Year]]) -> 0 | F14: 4900 | G14: =SUM(tblEstimatedCosts[[#This Row],[OpEx]:[Direct Support]]) -> 7602.666667 | H14: =tblEstimatedCosts[[#This Row],[CapEx]]+tblEstimatedCosts[[#This Row],[CapManEx]] -> 0
B15: =StartYear+ROW()-ROW(tblEstimatedCosts[#Headers])-1 -> 2029 | C15: =ValueCapexTotal*OpExAnnualPC -> 2702.666667 | D15: =SUMIFS(tblInfrastructureRequired[Estimated Cost],tblInfrastructureRequired[Cost Type],stdCostType_CapEx,tblInfrastructureRequired[Planned Year of Investment],tblEstimatedCosts[[#This Row],[Year]]) -> 0 | E15: =SUMIFS(tblInfrastructureRequired[Estimated Cost],tblInfrastructureRequired[Cost Type],stdCostType_CapManEx,tblInfrastructureRequired[Planned Year of Investment],tblEstimatedCosts[[#This Row],[Year]]) -> 0 | F15: 4900 | G15: =SUM(tblEstimatedCosts[[#This Row],[OpEx]:[Direct Support]]) -> 7602.666667 | H15: =tblEstimatedCosts[[#This Row],[CapEx]]+tblEstimatedCosts[[#This Row],[CapManEx]] -> 0
B16: =StartYear+ROW()-ROW(tblEstimatedCosts[#Headers])-1 -> 2030 | C16: =ValueCapexTotal*OpExAnnualPC -> 2702.666667 | D16: =SUMIFS(tblInfrastructureRequired[Estimated Cost],tblInfrastructureRequired[Cost Type],stdCostType_CapEx,tblInfrastructureRequired[Planned Year of Investment],tblEstimatedCosts[[#This Row],[Year]]) -> 0 | E16: =SUMIFS(tblInfrastructureRequired[Estimated Cost],tblInfrastructureRequired[Cost Type],stdCostType_CapManEx,tblInfrastructureRequired[Planned Year of Investment],tblEstimatedCosts[[#This Row],[Year]]) -> 0 | F16: 4900 | G16: =SUM(tblEstimatedCosts[[#This Row],[OpEx]:[Direct Support]]) -> 7602.666667 | H16: =tblEstimatedCosts[[#This Row],[CapEx]]+tblEstimatedCosts[[#This Row],[CapManEx]] -> 0
B17: Total | C17: =SUBTOTAL(109,tblEstimatedCosts[OpEx]) -> 24324 | D17: =SUBTOTAL(109,tblEstimatedCosts[CapEx]) -> 27020 | E17: =SUBTOTAL(109,tblEstimatedCosts[CapManEx]) -> 9840 | F17: =SUBTOTAL(109,tblEstimatedCosts[Direct Support]) -> 44100 | G17: =SUBTOTAL(109,tblEstimatedCosts[Total]) -> 105284
C19: These values come from Gap analysis data entry
F20: Estimated Costs | J20: Expected Finance | N20: Expected Gaps
B21: Year | C21: Estimated Total Costs | D21: Expected finance Total | E21: Gap Total | F21: OpEx Estimate | G21: CapEx Estimate | H21: CapManEx Estimate | I21: Direct Support | J21: OpEx expected | K21: CapEx expected | L21: CapManEx expected | M21: Direct Support expected | N21: Opex Gaps | O21: CapEx Gaps | P21: CapManEx Gaps | Q21: Direct Support Gaps | R21: Gap cummmulative
B22: ='Gap Analysis Calculations'!B8 -> 2022 | C22: =SUM(tblGapCalc[[#This Row],[OpEx Estimate]:[Direct Support]]) -> 11937.66667 | D22: =SUM(tblGapCalc[[#This Row],[OpEx expected]:[Direct Support expected]]) -> 3900 | E22: =SUM(tblGapCalc[[#This Row],[Opex Gaps]:[Direct Support Gaps]]) -> 8037.666667 | F22: =VLOOKUP(tblGapCalc[[#This Row],[Year]],tblEstimatedCosts[],2,FALSE) -> 2702.666667 | G22: =VLOOKUP(tblGapCalc[[#This Row],[Year]],tblEstimatedCosts[],3,FALSE) -> 0 | H22: =VLOOKUP(tblGapCalc[[#This Row],[Year]],tblEstimatedCosts[],4,FALSE) -> 4335 | I22: =VLOOKUP(tblGapCalc[[#This Row],[Year]],tblEstimatedCosts[],5,FALSE) -> 4900 | J22: =VLOOKUP(tblGapCalc[[#This Row],[Year]],tblSourcesOfFunding[],14,FALSE) -> 1200 | K22: =VLOOKUP(tblGapCalc[[#This Row],[Year]],tblSourcesOfFunding[],15,FALSE) -> 2200 | L22: =VLOOKUP(tblGapCalc[[#This Row],[Year]],tblSourcesOfFunding[],16,FALSE) -> 0 | M22: =VLOOKUP(tblGapCalc[[#This Row],[Year]],tblSourcesOfFunding[],17,FALSE) -> 500 | N22: =tblGapCalc[[#This Row],[OpEx Estimate]]-tblGapCalc[[#This Row],[OpEx expected]] -> 1502.666667 | O22: =tblGapCalc[[#This Row],[CapEx Estimate]]-tblGapCalc[[#This Row],[CapEx expected]] -> -2200 | P22: =tblGapCalc[[#This Row],[CapManEx Estimate]]-tblGapCalc[[#This Row],[CapManEx expected]] -> 4335 | Q22: =tblGapCalc[[#This Row],[Direct Support]]-tblGapCalc[[#This Row],[Direct Support expected]] -> 4400 | R22: =SUM(tblGapCalc[[#This Row],[Gap Total]],R21) -> 8037.666667
B23: =B22+1 -> 2023 | C23: =SUM(tblGapCalc[[#This Row],[OpEx Estimate]:[Direct Support]]) -> 9302.666667 | D23: =SUM(tblGapCalc[[#This Row],[OpEx expected]:[Direct Support expected]]) -> 1900 | E23: =SUM(tblGapCalc[[#This Row],[Opex Gaps]:[Direct Support Gaps]]) -> 7402.666667 | F23: =VLOOKUP(tblGapCalc[[#This Row],[Year]],tblEstimatedCosts[],2,FALSE) -> 2702.666667 | G23: =VLOOKUP(tblGapCalc[[#This Row],[Year]],tblEstimatedCosts[],3,FALSE) -> 0 | H23: =VLOOKUP(tblGapCalc[[#This Row],[Year]],tblEstimatedCosts[],4,FALSE) -> 1700 | I23: =VLOOKUP(tblGapCalc[[#This Row],[Year]],tblEstimatedCosts[],5,FALSE) -> 4900 | J23: =VLOOKUP(tblGapCalc[[#This Row],[Year]],tblSourcesOfFunding[],14,FALSE) -> 1200 | K23: =VLOOKUP(tblGapCalc[[#This Row],[Year]],tblSourcesOfFunding[],15,FALSE) -> 200 | L23: =VLOOKUP(tblGapCalc[[#This Row],[Year]],tblSourcesOfFunding[],16,FALSE) -> 0 | M23: =VLOOKUP(tblGapCalc[[#This Row],[Year]],tblSourcesOfFunding[],17,FALSE) -> 500 | N23: =tblGapCalc[[#This Row],[OpEx Estimate]]-tblGapCalc[[#This Row],[OpEx expected]] -> 1502.666667 | O23: =tblGapCalc[[#This Row],[CapEx Estimate]]-tblGapCalc[[#This Row],[CapEx expected]] -> -200 | P23: =tblGapCalc[[#This Row],[CapManEx Estimate]]-tblGapCalc[[#This Row],[CapManEx expected]] -> 1700 | Q23: =tblGapCalc[[#This Row],[Direct Support]]-tblGapCalc[[#This Row],[Direct Support expected]] -> 4400 | R23: =SUM(tblGapCalc[[#This Row],[Gap Total]],R22) -> 15440.33333
B24: 2024 | C24: =SUM(tblGapCalc[[#This Row],[OpEx Estimate]:[Direct Support]]) -> 16282.66667 | D24: =SUM(tblGapCalc[[#This Row],[OpEx expected]:[Direct Support expected]]) -> 7900 | E24: =SUM(tblGapCalc[[#This Row],[Opex Gaps]:[Direct Support Gaps]]) -> 8382.666667 | F24: =VLOOKUP(tblGapCalc[[#This Row],[Year]],tblEstimatedCosts[],2,FALSE) -> 2702.666667 | G24: =VLOOKUP(tblGapCalc[[#This Row],[Year]],tblEstimatedCosts[],3,FALSE) -> 8680 | H24: =VLOOKUP(tblGapCalc[[#This Row],[Year]],tblEstimatedCosts[],4,FALSE) -> 0 | I24: =VLOOKUP(tblGapCalc[[#This Row],[Year]],tblEstimatedCosts[],5,FALSE) -> 4900 | J24: =VLOOKUP(tblGapCalc[[#This Row],[Year]],tblSourcesOfFunding[],14,FALSE) -> 1200 | K24: =VLOOKUP(tblGapCalc[[#This Row],[Year]],tblSourcesOfFunding[],15,FALSE) -> 200 | L24: =VLOOKUP(tblGapCalc[[#This Row],[Year]],tblSourcesOfFunding[],16,FALSE) -> 6000 | M24: =VLOOKUP(tblGapCalc[[#This Row],[Year]],tblSourcesOfFunding[],17,FALSE) -> 500 | N24: =tblGapCalc[[#This Row],[OpEx Estimate]]-tblGapCalc[[#This Row],[OpEx expected]] -> 1502.666667 | O24: =tblGapCalc[[#This Row],[CapEx Estimate]]-tblGapCalc[[#This Row],[CapEx expected]] -> 8480 | P24: =tblGapCalc[[#This Row],[CapManEx Estimate]]-tblGapCalc[[#This Row],[CapManEx expected]] -> -6000 | Q24: =tblGapCalc[[#This Row],[Direct Support]]-tblGapCalc[[#This Row],[Direct Support expected]] -> 4400 | R24: =SUM(tblGapCalc[[#This Row],[Gap Total]],R23) -> 23823
B25: 2025 | C25: =SUM(tblGapCalc[[#This Row],[OpEx Estimate]:[Direct Support]]) -> 29747.66667 | D25: =SUM(tblGapCalc[[#This Row],[OpEx expected]:[Direct Support expected]]) -> 7900 | E25: =SUM(tblGapCalc[[#This Row],[Opex Gaps]:[Direct Support Gaps]]) -> 21847.66667 | F25: =VLOOKUP(tblGapCalc[[#This Row],[Year]],tblEstimatedCosts[],2,FALSE) -> 2702.666667 | G25: =VLOOKUP(tblGapCalc[[#This Row],[Year]],tblEstimatedCosts[],3,FALSE) -> 18340 | H25: =VLOOKUP(tblGapCalc[[#This Row],[Year]],tblEstimatedCosts[],4,FALSE) -> 3805 | I25: =VLOOKUP(tblGapCalc[[#This Row],[Year]],tblEstimatedCosts[],5,FALSE) -> 4900 | J25: =VLOOKUP(tblGapCalc[[#This Row],[Year]],tblSourcesOfFunding[],14,FALSE) -> 1200 | K25: =VLOOKUP(tblGapCalc[[#This Row],[Year]],tblSourcesOfFunding[],15,FALSE) -> 4200 | L25: =VLOOKUP(tblGapCalc[[#This Row],[Year]],tblSourcesOfFunding[],16,FALSE) -> 2000 | M25: =VLOOKUP(tblGapCalc[[#This Row],[Year]],tblSourcesOfFunding[],17,FALSE) -> 500 | N25: =tblGapCalc[[#This Row],[OpEx Estimate]]-tblGapCalc[[#This Row],[OpEx expected]] -> 1502.666667 | O25: =tblGapCalc[[#This Row],[CapEx Estimate]]-tblGapCalc[[#This Row],[CapEx expected]] -> 14140 | P25: =tblGapCalc[[#This Row],[CapManEx Estimate]]-tblGapCalc[[#This Row],[CapManEx expected]] -> 1805 | Q25: =tblGapCalc[[#This Row],[Direct Support]]-tblGapCalc[[#This Row],[Direct Support expected]] -> 4400 | R25: =SUM(tblGapCalc[[#This Row],[Gap Total]],R24) -> 45670.66667
B26: 2026 | C26: =SUM(tblGapCalc[[#This Row],[OpEx Estimate]:[Direct Support]]) -> 7602.666667 | D26: =SUM(tblGapCalc[[#This Row],[OpEx expected]:[Direct Support expected]]) -> 2900 | E26: =SUM(tblGapCalc[[#This Row],[Opex Gaps]:[Direct Support Gaps]]) -> 4702.666667 | F26: =VLOOKUP(tblGapCalc[[#This Row],[Year]],tblEstimatedCosts[],2,FALSE) -> 2702.666667 | G26: =VLOOKUP(tblGapCalc[[#This Row],[Year]],tblEstimatedCosts[],3,FALSE) -> 0 | H26: =VLOOKUP(tblGapCalc[[#This Row],[Year]],tblEstimatedCosts[],4,FALSE) -> 0 | I26: =VLOOKUP(tblGapCalc[[#This Row],[Year]],tblEstimatedCosts[],5,FALSE) -> 4900 | J26: =VLOOKUP(tblGapCalc[[#This Row],[Year]],tblSourcesOfFunding[],14,FALSE) -> 1200 | K26: =VLOOKUP(tblGapCalc[[#This Row],[Year]],tblSourcesOfFunding[],15,FALSE) -> 200 | L26: =VLOOKUP(tblGapCalc[[#This Row],[Year]],tblSourcesOfFunding[],16,FALSE) -> 1000 | M26: =VLOOKUP(tblGapCalc[[#This Row],[Year]],tblSourcesOfFunding[],17,FALSE) -> 500 | N26: =tblGapCalc[[#This Row],[OpEx Estimate]]-tblGapCalc[[#This Row],[OpEx expected]] -> 1502.666667 | O26: =tblGapCalc[[#This Row],[CapEx Estimate]]-tblGapCalc[[#This Row],[CapEx expected]] -> -200 | P26: =tblGapCalc[[#This Row],[CapManEx Estimate]]-tblGapCalc[[#This Row],[CapManEx expected]] -> -1000 | Q26: =tblGapCalc[[#This Row],[Direct Support]]-tblGapCalc[[#This Row],[Direct Support expected]] -> 4400 | R26: =SUM(tblGapCalc[[#This Row],[Gap Total]],R25) -> 50373.33333
B27: 2027 | C27: =SUM(tblGapCalc[[#This Row],[OpEx Estimate]:[Direct Support]]) -> 7602.666667 | D27: =SUM(tblGapCalc[[#This Row],[OpEx expected]:[Direct Support expected]]) -> 2900 | E27: =SUM(tblGapCalc[[#This Row],[Opex Gaps]:[Direct Support Gaps]]) -> 4702.666667 | F27: =VLOOKUP(tblGapCalc[[#This Row],[Year]],tblEstimatedCosts[],2,FALSE) -> 2702.666667 | G27: =VLOOKUP(tblGapCalc[[#This Row],[Year]],tblEstimatedCosts[],3,FALSE) -> 0 | H27: =VLOOKUP(tblGapCalc[[#This Row],[Year]],tblEstimatedCosts[],4,FALSE) -> 0 | I27: =VLOOKUP(tblGapCalc[[#This Row],[Year]],tblEstimatedCosts[],5,FALSE) -> 4900 | J27: =VLOOKUP(tblGapCalc[[#This Row],[Year]],tblSourcesOfFunding[],14,FALSE) -> 1200 | K27: =VLOOKUP(tblGapCalc[[#This Row],[Year]],tblSourcesOfFunding[],15,FALSE) -> 200 | L27: =VLOOKUP(tblGapCalc[[#This Row],[Year]],tblSourcesOfFunding[],16,FALSE) -> 1000 | M27: =VLOOKUP(tblGapCalc[[#This Row],[Year]],tblSourcesOfFunding[],17,FALSE) -> 500 | N27: =tblGapCalc[[#This Row],[OpEx Estimate]]-tblGapCalc[[#This Row],[OpEx expected]] -> 1502.666667 | O27: =tblGapCalc[[#This Row],[CapEx Estimate]]-tblGapCalc[[#This Row],[CapEx expected]] -> -200 | P27: =tblGapCalc[[#This Row],[CapManEx Estimate]]-tblGapCalc[[#This Row],[CapManEx expected]] -> -1000 | Q27: =tblGapCalc[[#This Row],[Direct Support]]-tblGapCalc[[#This Row],[Direct Support expected]] -> 4400 | R27: =SUM(tblGapCalc[[#This Row],[Gap Total]],R26) -> 55076
B28: 2028 | C28: =SUM(tblGapCalc[[#This Row],[OpEx Estimate]:[Direct Support]]) -> 7602.666667 | D28: =SUM(tblGapCalc[[#This Row],[OpEx expected]:[Direct Support expected]]) -> 3000 | E28: =SUM(tblGapCalc[[#This Row],[Opex Gaps]:[Direct Support Gaps]]) -> 4602.666667 | F28: =VLOOKUP(tblGapCalc[[#This Row],[Year]],tblEstimatedCosts[],2,FALSE) -> 2702.666667 | G28: =VLOOKUP(tblGapCalc[[#This Row],[Year]],tblEstimatedCosts[],3,FALSE) -> 0 | H28: =VLOOKUP(tblGapCalc[[#This Row],[Year]],tblEstimatedCosts[],4,FALSE) -> 0 | I28: =VLOOKUP(tblGapCalc[[#This Row],[Year]],tblEstimatedCosts[],5,FALSE) -> 4900 | J28: =VLOOKUP(tblGapCalc[[#This Row],[Year]],tblSourcesOfFunding[],14,FALSE) -> 1200 | K28: =VLOOKUP(tblGapCalc[[#This Row],[Year]],tblSourcesOfFunding[],15,FALSE) -> 300 | L28: =VLOOKUP(tblGapCalc[[#This Row],[Year]],tblSourcesOfFunding[],16,FALSE) -> 1000 | M28: =VLOOKUP(tblGapCalc[[#This Row],[Year]],tblSourcesOfFunding[],17,FALSE) -> 500 | N28: =tblGapCalc[[#This Row],[OpEx Estimate]]-tblGapCalc[[#This Row],[OpEx expected]] -> 1502.666667 | O28: =tblGapCalc[[#This Row],[CapEx Estimate]]-tblGapCalc[[#This Row],[CapEx expected]] -> -300 | P28: =tblGapCalc[[#This Row],[CapManEx Estimate]]-tblGapCalc[[#This Row],[CapManEx expected]] -> -1000 | Q28: =tblGapCalc[[#This Row],[Direct Support]]-tblGapCalc[[#This Row],[Direct Support expected]] -> 4400 | R28: =SUM(tblGapCalc[[#This Row],[Gap Total]],R27) -> 59678.66667
B29: 2029 | C29: =SUM(tblGapCalc[[#This Row],[OpEx Estimate]:[Direct Support]]) -> 7602.666667 | D29: =SUM(tblGapCalc[[#This Row],[OpEx expected]:[Direct Support expected]]) -> 4000 | E29: =SUM(tblGapCalc[[#This Row],[Opex Gaps]:[Direct Support Gaps]]) -> 3602.666667 | F29: =VLOOKUP(tblGapCalc[[#This Row],[Year]],tblEstimatedCosts[],2,FALSE) -> 2702.666667 | G29: =VLOOKUP(tblGapCalc[[#This Row],[Year]],tblEstimatedCosts[],3,FALSE) -> 0 | H29: =VLOOKUP(tblGapCalc[[#This Row],[Year]],tblEstimatedCosts[],4,FALSE) -> 0 | I29: =VLOOKUP(tblGapCalc[[#This Row],[Year]],tblEstimatedCosts[],5,FALSE) -> 4900 | J29: =VLOOKUP(tblGapCalc[[#This Row],[Year]],tblSourcesOfFunding[],14,FALSE) -> 1200 | K29: =VLOOKUP(tblGapCalc[[#This Row],[Year]],tblSourcesOfFunding[],15,FALSE) -> 300 | L29: =VLOOKUP(tblGapCalc[[#This Row],[Year]],tblSourcesOfFunding[],16,FALSE) -> 2000 | M29: =VLOOKUP(tblGapCalc[[#This Row],[Year]],tblSourcesOfFunding[],17,FALSE) -> 500 | N29: =tblGapCalc[[#This Row],[OpEx Estimate]]-tblGapCalc[[#This Row],[OpEx expected]] -> 1502.666667 | O29: =tblGapCalc[[#This Row],[CapEx Estimate]]-tblGapCalc[[#This Row],[CapEx expected]] -> -300 | P29: =tblGapCalc[[#This Row],[CapManEx Estimate]]-tblGapCalc[[#This Row],[CapManEx expected]] -> -2000 | Q29: =tblGapCalc[[#This Row],[Direct Support]]-tblGapCalc[[#This Row],[Direct Support expected]] -> 4400 | R29: =SUM(tblGapCalc[[#This Row],[Gap Total]],R28) -> 63281.33333
B30: 2030 | C30: =SUM(tblGapCalc[[#This Row],[OpEx Estimate]:[Direct Support]]) -> 7602.666667 | D30: =SUM(tblGapCalc[[#This Row],[OpEx expected]:[Direct Support expected]]) -> 7000 | E30: =SUM(tblGapCalc[[#This Row],[Opex Gaps]:[Direct Support Gaps]]) -> 602.6666667 | F30: =VLOOKUP(tblGapCalc[[#This Row],[Year]],tblEstimatedCosts[],2,FALSE) -> 2702.666667 | G30: =VLOOKUP(tblGapCalc[[#This Row],[Year]],tblEstimatedCosts[],3,FALSE) -> 0 | H30: =VLOOKUP(tblGapCalc[[#This Row],[Year]],tblEstimatedCosts[],4,FALSE) -> 0 | I30: =VLOOKUP(tblGapCalc[[#This Row],[Year]],tblEstimatedCosts[],5,FALSE) -> 4900 | J30: =VLOOKUP(tblGapCalc[[#This Row],[Year]],tblSourcesOfFunding[],14,FALSE) -> 1200 | K30: =VLOOKUP(tblGapCalc[[#This Row],[Year]],tblSourcesOfFunding[],15,FALSE) -> 300 | L30: =VLOOKUP(tblGapCalc[[#This Row],[Year]],tblSourcesOfFunding[],16,FALSE) -> 5000 | M30: =VLOOKUP(tblGapCalc[[#This Row],[Year]],tblSourcesOfFunding[],17,FALSE) -> 500 | N30: =tblGapCalc[[#This Row],[OpEx Estimate]]-tblGapCalc[[#This Row],[OpEx expected]] -> 1502.666667 | O30: =tblGapCalc[[#This Row],[CapEx Estimate]]-tblGapCalc[[#This Row],[CapEx expected]] -> -300 | P30: =tblGapCalc[[#This Row],[CapManEx Estimate]]-tblGapCalc[[#This Row],[CapManEx expected]] -> -5000 | Q30: =tblGapCalc[[#This Row],[Direct Support]]-tblGapCalc[[#This Row],[Direct Support expected]] -> 4400 | R30: =SUM(tblGapCalc[[#This Row],[Gap Total]],R29) -> 63884
B31: Total | C31: =SUBTOTAL(109,tblGapCalc[Estimated Total Costs]) -> 105284 | D31: =SUBTOTAL(109,tblGapCalc[Expected finance Total]) -> 41400 | E31: =SUBTOTAL(109,tblGapCalc[Gap Total]) -> 63884 | F31: =SUBTOTAL(109,tblGapCalc[OpEx Estimate]) -> 24324 | G31: =SUBTOTAL(109,tblGapCalc[CapEx Estimate]) -> 27020 | H31: =SUBTOTAL(109,tblGapCalc[CapManEx Estimate]) -> 9840 | I31: =SUBTOTAL(109,tblGapCalc[Direct Support]) -> 44100 | J31: =SUBTOTAL(109,tblGapCalc[OpEx expected]) -> 10800 | K31: =SUBTOTAL(109,tblGapCalc[CapEx expected]) -> 8100 | L31: =SUBTOTAL(109,tblGapCalc[CapManEx Estimate]) -> 9840 | M31: =SUBTOTAL(109,tblGapCalc[Direct Support]) -> 44100 | N31: =SUBTOTAL(109,tblGapCalc[OpEx expected]) -> 10800 | O31: =SUBTOTAL(109,tblGapCalc[CapEx expected]) -> 8100 | P31: =SUBTOTAL(109,tblGapCalc[CapManEx expected]) -> 18000 | Q31: =SUBTOTAL(109,tblGapCalc[Direct Support expected]) -> 4500

Sheet Gap Analysis Results
B1: Gap Analysis - Results
B4: ="This year, an extimated "&TEXT(C8,"#,##0")&" is needed, with "& TEXT(D8,"#,##0")&" of finance expected. This leaves a gap of "&TEXT(F8,"0%") -> This year, an extimated 11,938 is needed, with 3,900 of finance expected. This leaves a gap of 67%
B5: ="Overall, an extimated "&TEXT(tblGap[[#Totals],[Required Costs]],"#,##0")&" is needed, with "& TEXT(tblGap[[#Totals],[Expected finance]],"#,##0")&" of finance expected. This leaves a gap of "&TEXT(tblGap[[#Totals],[% gap]],"0%") -> Overall, an extimated 105,284 is needed, with 41,400 of finance expected. This leaves a gap of 61%
B7: Year | C7: Required Costs | D7: Expected finance | E7: Gap Total | F7: % gap
B8: ='Gap Analysis Calculations'!B22 -> 2022 | C8: =VLOOKUP(tblGap[[#This Row],[Year]]:tblGap[[#This Row],[Year]],tblGapCalc[[#Data],[#Totals]],2,0) -> 11937.66667 | D8: =VLOOKUP(tblGap[[#This Row],[Year]]:tblGap[[#This Row],[Year]],tblGapCalc[[#Data],[#Totals]],3,0) -> 3900 | E8: =VLOOKUP(tblGap[[#This Row],[Year]]:tblGap[[#This Row],[Year]],tblGapCalc[[#Data],[#Totals]],4,0) -> 8037.666667 | F8: =tblGap[[#This Row],[Gap Total]]/tblGap[[#This Row],[Required Costs]] -> 0.6733029905 | U8: ="Costs versus finance over time, with total gap "&TEXT(tblGap[[#Totals],[% gap]],"0%") -> Costs versus finance over time, with total gap 61%
B9: =B8+1 -> 2023 | C9: =VLOOKUP(tblGap[[#This Row],[Year]]:tblGap[[#This Row],[Year]],tblGapCalc[[#Data],[#Totals]],2,0) -> 9302.666667 | D9: =VLOOKUP(tblGap[[#This Row],[Year]]:tblGap[[#This Row],[Year]],tblGapCalc[[#Data],[#Totals]],3,0) -> 1900 | E9: =VLOOKUP(tblGap[[#This Row],[Year]]:tblGap[[#This Row],[Year]],tblGapCalc[[#Data],[#Totals]],4,0) -> 7402.666667 | F9: =tblGap[[#This Row],[Gap Total]]/tblGap[[#This Row],[Required Costs]] -> 0.7957574889 | U9: ="Increase of Gap over time to a total of "&TEXT(tblGap[[#Totals],[Gap Total]],"#,##0") -> Increase of Gap over time to a total of 63,884
B10: 2024 | C10: =VLOOKUP(tblGap[[#This Row],[Year]]:tblGap[[#This Row],[Year]],tblGapCalc[[#Data],[#Totals]],2,0) -> 16282.66667 | D10: =VLOOKUP(tblGap[[#This Row],[Year]]:tblGap[[#This Row],[Year]],tblGapCalc[[#Data],[#Totals]],3,0) -> 7900 | E10: =VLOOKUP(tblGap[[#This Row],[Year]]:tblGap[[#This Row],[Year]],tblGapCalc[[#Data],[#Totals]],4,0) -> 8382.666667 | F10: =tblGap[[#This Row],[Gap Total]]/tblGap[[#This Row],[Required Costs]] -> 0.5148214871 | U10: Taxes , tariffs and transfers
B11: 2025 | C11: =VLOOKUP(tblGap[[#This Row],[Year]]:tblGap[[#This Row],[Year]],tblGapCalc[[#Data],[#Totals]],2,0) -> 29747.66667 | D11: =VLOOKUP(tblGap[[#This Row],[Year]]:tblGap[[#This Row],[Year]],tblGapCalc[[#Data],[#Totals]],3,0) -> 7900 | E11: =VLOOKUP(tblGap[[#This Row],[Year]]:tblGap[[#This Row],[Year]],tblGapCalc[[#Data],[#Totals]],4,0) -> 21847.66667 | F11: =tblGap[[#This Row],[Gap Total]]/tblGap[[#This Row],[Required Costs]] -> 0.7344329527 | U11: =U10&" over time" -> Taxes , tariffs and transfers over time
B12: 2026 | C12: =VLOOKUP(tblGap[[#This Row],[Year]]:tblGap[[#This Row],[Year]],tblGapCalc[[#Data],[#Totals]],2,0) -> 7602.666667 | D12: =VLOOKUP(tblGap[[#This Row],[Year]]:tblGap[[#This Row],[Year]],tblGapCalc[[#Data],[#Totals]],3,0) -> 2900 | E12: =VLOOKUP(tblGap[[#This Row],[Year]]:tblGap[[#This Row],[Year]],tblGapCalc[[#Data],[#Totals]],4,0) -> 4702.666667 | F12: =tblGap[[#This Row],[Gap Total]]/tblGap[[#This Row],[Required Costs]] -> 0.618554893
B13: 2027 | C13: =VLOOKUP(tblGap[[#This Row],[Year]]:tblGap[[#This Row],[Year]],tblGapCalc[[#Data],[#Totals]],2,0) -> 7602.666667 | D13: =VLOOKUP(tblGap[[#This Row],[Year]]:tblGap[[#This Row],[Year]],tblGapCalc[[#Data],[#Totals]],3,0) -> 2900 | E13: =VLOOKUP(tblGap[[#This Row],[Year]]:tblGap[[#This Row],[Year]],tblGapCalc[[#Data],[#Totals]],4,0) -> 4702.666667 | F13: =tblGap[[#This Row],[Gap Total]]/tblGap[[#This Row],[Required Costs]] -> 0.618554893
B14: 2028 | C14: =VLOOKUP(tblGap[[#This Row],[Year]]:tblGap[[#This Row],[Year]],tblGapCalc[[#Data],[#Totals]],2,0) -> 7602.666667 | D14: =VLOOKUP(tblGap[[#This Row],[Year]]:tblGap[[#This Row],[Year]],tblGapCalc[[#Data],[#Totals]],3,0) -> 3000 | E14: =VLOOKUP(tblGap[[#This Row],[Year]]:tblGap[[#This Row],[Year]],tblGapCalc[[#Data],[#Totals]],4,0) -> 4602.666667 | F14: =tblGap[[#This Row],[Gap Total]]/tblGap[[#This Row],[Required Costs]] -> 0.6054016135
B15: 2029 | C15: =VLOOKUP(tblGap[[#This Row],[Year]]:tblGap[[#This Row],[Year]],tblGapCalc[[#Data],[#Totals]],2,0) -> 7602.666667 | D15: =VLOOKUP(tblGap[[#This Row],[Year]]:tblGap[[#This Row],[Year]],tblGapCalc[[#Data],[#Totals]],3,0) -> 4000 | E15: =VLOOKUP(tblGap[[#This Row],[Year]]:tblGap[[#This Row],[Year]],tblGapCalc[[#Data],[#Totals]],4,0) -> 3602.666667 | F15: =tblGap[[#This Row],[Gap Total]]/tblGap[[#This Row],[Required Costs]] -> 0.473868818
B16: 2030 | C16: =VLOOKUP(tblGap[[#This Row],[Year]]:tblGap[[#This Row],[Year]],tblGapCalc[[#Data],[#Totals]],2,0) -> 7602.666667 | D16: =VLOOKUP(tblGap[[#This Row],[Year]]:tblGap[[#This Row],[Year]],tblGapCalc[[#Data],[#Totals]],3,0) -> 7000 | E16: =VLOOKUP(tblGap[[#This Row],[Year]]:tblGap[[#This Row],[Year]],tblGapCalc[[#Data],[#Totals]],4,0) -> 602.6666667 | F16: =tblGap[[#This Row],[Gap Total]]/tblGap[[#This Row],[Required Costs]] -> 0.07927043143
B17: Total | C17: =SUBTOTAL(109,tblGap[Required Costs]) -> 105284 | D17: =SUBTOTAL(109,tblGap[Expected finance]) -> 41400 | E17: =SUBTOTAL(109,tblGap[Gap Total]) -> 63884 | F17: =tblGap[[#Totals],[Gap Total]]/tblGap[[#Totals],[Required Costs]] -> 0.606777858
B20: ="This year, an extimated "&TEXT(C24,"#,##0")&" taxes is expected, "& TEXT(D24,"#,##0")&" on tariffs and on transfers "&TEXT(E24,"#,##0") -> This year, an extimated 700 taxes is expected, 1,200 on tariffs and on transfers 2,000
B21: ="Overall, an extimated "&TEXT(C33,"#,##0")&" taxes is expected, "& TEXT(D33,"#,##0")&" on tariffs and on transfers "&TEXT(E33,"#,##0") -> Overall, an extimated 18,600 taxes is expected, 10,800 on tariffs and on transfers 12,000
B23: Year | C23: Total Taxes | D23: Total Tariffs | E23: Total Transfers
B24: =B8 -> 2022 | C24: =VLOOKUP(tbl3T[[#This Row],[Year]],tblSourcesOfFunding[#All],20,0) -> 700 | D24: =VLOOKUP(tbl3T[[#This Row],[Year]],tblSourcesOfFunding[#All],18,0) -> 1200 | E24: =VLOOKUP(tbl3T[[#This Row],[Year]],tblSourcesOfFunding[#All],19,0) -> 2000
B25: =B24+1 -> 2023 | C25: =VLOOKUP(tbl3T[[#This Row],[Year]],tblSourcesOfFunding[#All],20,0) -> 700 | D25: =VLOOKUP(tbl3T[[#This Row],[Year]],tblSourcesOfFunding[#All],18,0) -> 1200 | E25: =VLOOKUP(tbl3T[[#This Row],[Year]],tblSourcesOfFunding[#All],19,0) -> 0
B26: 2024 | C26: =VLOOKUP(tbl3T[[#This Row],[Year]],tblSourcesOfFunding[#All],20,0) -> 1700 | D26: =VLOOKUP(tbl3T[[#This Row],[Year]],tblSourcesOfFunding[#All],18,0) -> 1200 | E26: =VLOOKUP(tbl3T[[#This Row],[Year]],tblSourcesOfFunding[#All],19,0) -> 5000
B27: 2025 | C27: =VLOOKUP(tbl3T[[#This Row],[Year]],tblSourcesOfFunding[#All],20,0) -> 1700 | D27: =VLOOKUP(tbl3T[[#This Row],[Year]],tblSourcesOfFunding[#All],18,0) -> 1200 | E27: =VLOOKUP(tbl3T[[#This Row],[Year]],tblSourcesOfFunding[#All],19,0) -> 5000
B28: 2026 | C28: =VLOOKUP(tbl3T[[#This Row],[Year]],tblSourcesOfFunding[#All],20,0) -> 1700 | D28: =VLOOKUP(tbl3T[[#This Row],[Year]],tblSourcesOfFunding[#All],18,0) -> 1200 | E28: =VLOOKUP(tbl3T[[#This Row],[Year]],tblSourcesOfFunding[#All],19,0) -> 0
B29: 2027 | C29: =VLOOKUP(tbl3T[[#This Row],[Year]],tblSourcesOfFunding[#All],20,0) -> 1700 | D29: =VLOOKUP(tbl3T[[#This Row],[Year]],tblSourcesOfFunding[#All],18,0) -> 1200 | E29: =VLOOKUP(tbl3T[[#This Row],[Year]],tblSourcesOfFunding[#All],19,0) -> 0
B30: 2028 | C30: =VLOOKUP(tbl3T[[#This Row],[Year]],tblSourcesOfFunding[#All],20,0) -> 1800 | D30: =VLOOKUP(tbl3T[[#This Row],[Year]],tblSourcesOfFunding[#All],18,0) -> 1200 | E30: =VLOOKUP(tbl3T[[#This Row],[Year]],tblSourcesOfFunding[#All],19,0) -> 0
B31: 2029 | C31: =VLOOKUP(tbl3T[[#This Row],[Year]],tblSourcesOfFunding[#All],20,0) -> 2800 | D31: =VLOOKUP(tbl3T[[#This Row],[Year]],tblSourcesOfFunding[#All],18,0) -> 1200 | E31: =VLOOKUP(tbl3T[[#This Row],[Year]],tblSourcesOfFunding[#All],19,0) -> 0
B32: 2030 | C32: =VLOOKUP(tbl3T[[#This Row],[Year]],tblSourcesOfFunding[#All],20,0) -> 5800 | D32: =VLOOKUP(tbl3T[[#This Row],[Year]],tblSourcesOfFunding[#All],18,0) -> 1200 | E32: =VLOOKUP(tbl3T[[#This Row],[Year]],tblSourcesOfFunding[#All],19,0) -> 0
B33: Total | C33: =SUBTOTAL(109,tbl3T[Total Taxes]) -> 18600 | D33: =SUBTOTAL(109,tbl3T[Total Tariffs]) -> 10800 | E33: =SUBTOTAL(109,tbl3T[Total Transfers]) -> 12000
C34: =tbl3T[[#Totals],[Total Tariffs]]/tblGap[[#Totals],[Expected finance]] -> 0.2608695652 | D34: =tbl3T[[#Totals],[Total Transfers]]/tblGap[[#Totals],[Expected finance]] -> 0.2898550725 | E34: =tbl3T[[#Totals],[Total Taxes]]/tblGap[[#Totals],[Expected finance]] -> 0.4492753623
B36: OpEx | G36: CapEx | J36: CapManEx | O36: Direct support
B56: Year | C56: OpEx required | D56: OpEx expected | E56: Opex Gaps | F56: CapEx required | G56: CapEx expected | H56: CapEx Gaps | I56: CapManEx required | J56: CapManEx expected | K56: CapManEx Gaps | L56: Direct Support | M56: Direct Support expected | N56: Direct Support Gaps
B57: =B24 -> 2022 | C57: =VLOOKUP(tblGapCalc28[[#This Row],[Year]],tblEstimatedCosts[],2,FALSE) -> 2702.666667 | D57: =VLOOKUP(tblGapCalc28[[#This Row],[Year]],tblSourcesOfFunding[],14,FALSE) -> 1200 | E57: =tblGapCalc28[[#This Row],[OpEx required]]-tblGapCalc28[[#This Row],[OpEx expected]] -> 1502.666667 | F57: =VLOOKUP(tblGapCalc28[[#This Row],[Year]],tblEstimatedCosts[],3,FALSE) -> 0 | G57: =VLOOKUP(tblGapCalc28[[#This Row],[Year]],tblSourcesOfFunding[],15,FALSE) -> 2200 | H57: =tblGapCalc28[[#This Row],[CapEx required]]-tblGapCalc28[[#This Row],[CapEx expected]] -> -2200 | I57: =VLOOKUP(tblGapCalc28[[#This Row],[Year]],tblEstimatedCosts[],4,FALSE) -> 4335 | J57: =VLOOKUP(tblGapCalc28[[#This Row],[Year]],tblSourcesOfFunding[],16,FALSE) -> 0 | K57: =tblGapCalc28[[#This Row],[CapManEx required]]-tblGapCalc28[[#This Row],[CapManEx expected]] -> 4335 | L57: =VLOOKUP(tblGapCalc28[[#This Row],[Year]],tblEstimatedCosts[],5,FALSE) -> 4900 | M57: =VLOOKUP(tblGapCalc28[[#This Row],[Year]],tblSourcesOfFunding[],17,FALSE) -> 500 | N57: =tblGapCalc28[[#This Row],[Direct Support]]-tblGapCalc28[[#This Row],[Direct Support expected]] -> 4400
B58: =B57+1 -> 2023 | C58: =VLOOKUP(tblGapCalc28[[#This Row],[Year]],tblEstimatedCosts[],2,FALSE) -> 2702.666667 | D58: =VLOOKUP(tblGapCalc28[[#This Row],[Year]],tblSourcesOfFunding[],14,FALSE) -> 1200 | E58: =tblGapCalc28[[#This Row],[OpEx required]]-tblGapCalc28[[#This Row],[OpEx expected]] -> 1502.666667 | F58: =VLOOKUP(tblGapCalc28[[#This Row],[Year]],tblEstimatedCosts[],3,FALSE) -> 0 | G58: =VLOOKUP(tblGapCalc28[[#This Row],[Year]],tblSourcesOfFunding[],15,FALSE) -> 200 | H58: =tblGapCalc28[[#This Row],[CapEx required]]-tblGapCalc28[[#This Row],[CapEx expected]] -> -200 | I58: =VLOOKUP(tblGapCalc28[[#This Row],[Year]],tblEstimatedCosts[],4,FALSE) -> 1700 | J58: =VLOOKUP(tblGapCalc28[[#This Row],[Year]],tblSourcesOfFunding[],16,FALSE) -> 0 | K58: =tblGapCalc28[[#This Row],[CapManEx required]]-tblGapCalc28[[#This Row],[CapManEx expected]] -> 1700 | L58: =VLOOKUP(tblGapCalc28[[#This Row],[Year]],tblEstimatedCosts[],5,FALSE) -> 4900 | M58: =VLOOKUP(tblGapCalc28[[#This Row],[Year]],tblSourcesOfFunding[],17,FALSE) -> 500 | N58: =tblGapCalc28[[#This Row],[Direct Support]]-tblGapCalc28[[#This Row],[Direct Support expected]] -> 4400
B59: 2024 | C59: =VLOOKUP(tblGapCalc28[[#This Row],[Year]],tblEstimatedCosts[],2,FALSE) -> 2702.666667 | D59: =VLOOKUP(tblGapCalc28[[#This Row],[Year]],tblSourcesOfFunding[],14,FALSE) -> 1200 | E59: =tblGapCalc28[[#This Row],[OpEx required]]-tblGapCalc28[[#This Row],[OpEx expected]] -> 1502.666667 | F59: =VLOOKUP(tblGapCalc28[[#This Row],[Year]],tblEstimatedCosts[],3,FALSE) -> 8680 | G59: =VLOOKUP(tblGapCalc28[[#This Row],[Year]],tblSourcesOfFunding[],15,FALSE) -> 200 | H59: =tblGapCalc28[[#This Row],[CapEx required]]-tblGapCalc28[[#This Row],[CapEx expected]] -> 8480 | I59: =VLOOKUP(tblGapCalc28[[#This Row],[Year]],tblEstimatedCosts[],4,FALSE) -> 0 | J59: =VLOOKUP(tblGapCalc28[[#This Row],[Year]],tblSourcesOfFunding[],16,FALSE) -> 6000 | K59: =tblGapCalc28[[#This Row],[CapManEx required]]-tblGapCalc28[[#This Row],[CapManEx expected]] -> -6000 | L59: =VLOOKUP(tblGapCalc28[[#This Row],[Year]],tblEstimatedCosts[],5,FALSE) -> 4900 | M59: =VLOOKUP(tblGapCalc28[[#This Row],[Year]],tblSourcesOfFunding[],17,FALSE) -> 500 | N59: =tblGapCalc28[[#This Row],[Direct Support]]-tblGapCalc28[[#This Row],[Direct Support expected]] -> 4400
B60: 2025 | C60: =VLOOKUP(tblGapCalc28[[#This Row],[Year]],tblEstimatedCosts[],2,FALSE) -> 2702.666667 | D60: =VLOOKUP(tblGapCalc28[[#This Row],[Year]],tblSourcesOfFunding[],14,FALSE) -> 1200 | E60: =tblGapCalc28[[#This Row],[OpEx required]]-tblGapCalc28[[#This Row],[OpEx expected]] -> 1502.666667 | F60: =VLOOKUP(tblGapCalc28[[#This Row],[Year]],tblEstimatedCosts[],3,FALSE) -> 18340 | G60: =VLOOKUP(tblGapCalc28[[#This Row],[Year]],tblSourcesOfFunding[],15,FALSE) -> 4200 | H60: =tblGapCalc28[[#This Row],[CapEx required]]-tblGapCalc28[[#This Row],[CapEx expected]] -> 14140 | I60: =VLOOKUP(tblGapCalc28[[#This Row],[Year]],tblEstimatedCosts[],4,FALSE) -> 3805 | J60: =VLOOKUP(tblGapCalc28[[#This Row],[Year]],tblSourcesOfFunding[],16,FALSE) -> 2000 | K60: =tblGapCalc28[[#This Row],[CapManEx required]]-tblGapCalc28[[#This Row],[CapManEx expected]] -> 1805 | L60: =VLOOKUP(tblGapCalc28[[#This Row],[Year]],tblEstimatedCosts[],5,FALSE) -> 4900 | M60: =VLOOKUP(tblGapCalc28[[#This Row],[Year]],tblSourcesOfFunding[],17,FALSE) -> 500 | N60: =tblGapCalc28[[#This Row],[Direct Support]]-tblGapCalc28[[#This Row],[Direct Support expected]] -> 4400
B61: 2026 | C61: =VLOOKUP(tblGapCalc28[[#This Row],[Year]],tblEstimatedCosts[],2,FALSE) -> 2702.666667 | D61: =VLOOKUP(tblGapCalc28[[#This Row],[Year]],tblSourcesOfFunding[],14,FALSE) -> 1200 | E61: =tblGapCalc28[[#This Row],[OpEx required]]-tblGapCalc28[[#This Row],[OpEx expected]] -> 1502.666667 | F61: =VLOOKUP(tblGapCalc28[[#This Row],[Year]],tblEstimatedCosts[],3,FALSE) -> 0 | G61: =VLOOKUP(tblGapCalc28[[#This Row],[Year]],tblSourcesOfFunding[],15,FALSE) -> 200 | H61: =tblGapCalc28[[#This Row],[CapEx required]]-tblGapCalc28[[#This Row],[CapEx expected]] -> -200 | I61: =VLOOKUP(tblGapCalc28[[#This Row],[Year]],tblEstimatedCosts[],4,FALSE) -> 0 | J61: =VLOOKUP(tblGapCalc28[[#This Row],[Year]],tblSourcesOfFunding[],16,FALSE) -> 1000 | K61: =tblGapCalc28[[#This Row],[CapManEx required]]-tblGapCalc28[[#This Row],[CapManEx expected]] -> -1000 | L61: =VLOOKUP(tblGapCalc28[[#This Row],[Year]],tblEstimatedCosts[],5,FALSE) -> 4900 | M61: =VLOOKUP(tblGapCalc28[[#This Row],[Year]],tblSourcesOfFunding[],17,FALSE) -> 500 | N61: =tblGapCalc28[[#This Row],[Direct Support]]-tblGapCalc28[[#This Row],[Direct Support expected]] -> 4400
B62: 2027 | C62: =VLOOKUP(tblGapCalc28[[#This Row],[Year]],tblEstimatedCosts[],2,FALSE) -> 2702.666667 | D62: =VLOOKUP(tblGapCalc28[[#This Row],[Year]],tblSourcesOfFunding[],14,FALSE) -> 1200 | E62: =tblGapCalc28[[#This Row],[OpEx required]]-tblGapCalc28[[#This Row],[OpEx expected]] -> 1502.666667 | F62: =VLOOKUP(tblGapCalc28[[#This Row],[Year]],tblEstimatedCosts[],3,FALSE) -> 0 | G62: =VLOOKUP(tblGapCalc28[[#This Row],[Year]],tblSourcesOfFunding[],15,FALSE) -> 200 | H62: =tblGapCalc28[[#This Row],[CapEx required]]-tblGapCalc28[[#This Row],[CapEx expected]] -> -200 | I62: =VLOOKUP(tblGapCalc28[[#This Row],[Year]],tblEstimatedCosts[],4,FALSE) -> 0 | J62: =VLOOKUP(tblGapCalc28[[#This Row],[Year]],tblSourcesOfFunding[],16,FALSE) -> 1000 | K62: =tblGapCalc28[[#This Row],[CapManEx required]]-tblGapCalc28[[#This Row],[CapManEx expected]] -> -1000 | L62: =VLOOKUP(tblGapCalc28[[#This Row],[Year]],tblEstimatedCosts[],5,FALSE) -> 4900 | M62: =VLOOKUP(tblGapCalc28[[#This Row],[Year]],tblSourcesOfFunding[],17,FALSE) -> 500 | N62: =tblGapCalc28[[#This Row],[Direct Support]]-tblGapCalc28[[#This Row],[Direct Support expected]] -> 4400
B63: 2028 | C63: =VLOOKUP(tblGapCalc28[[#This Row],[Year]],tblEstimatedCosts[],2,FALSE) -> 2702.666667 | D63: =VLOOKUP(tblGapCalc28[[#This Row],[Year]],tblSourcesOfFunding[],14,FALSE) -> 1200 | E63: =tblGapCalc28[[#This Row],[OpEx required]]-tblGapCalc28[[#This Row],[OpEx expected]] -> 1502.666667 | F63: =VLOOKUP(tblGapCalc28[[#This Row],[Year]],tblEstimatedCosts[],3,FALSE) -> 0 | G63: =VLOOKUP(tblGapCalc28[[#This Row],[Year]],tblSourcesOfFunding[],15,FALSE) -> 300 | H63: =tblGapCalc28[[#This Row],[CapEx required]]-tblGapCalc28[[#This Row],[CapEx expected]] -> -300 | I63: =VLOOKUP(tblGapCalc28[[#This Row],[Year]],tblEstimatedCosts[],4,FALSE) -> 0 | J63: =VLOOKUP(tblGapCalc28[[#This Row],[Year]],tblSourcesOfFunding[],16,FALSE) -> 1000 | K63: =tblGapCalc28[[#This Row],[CapManEx required]]-tblGapCalc28[[#This Row],[CapManEx expected]] -> -1000 | L63: =VLOOKUP(tblGapCalc28[[#This Row],[Year]],tblEstimatedCosts[],5,FALSE) -> 4900 | M63: =VLOOKUP(tblGapCalc28[[#This Row],[Year]],tblSourcesOfFunding[],17,FALSE) -> 500 | N63: =tblGapCalc28[[#This Row],[Direct Support]]-tblGapCalc28[[#This Row],[Direct Support expected]] -> 4400
B64: 2029 | C64: =VLOOKUP(tblGapCalc28[[#This Row],[Year]],tblEstimatedCosts[],2,FALSE) -> 2702.666667 | D64: =VLOOKUP(tblGapCalc28[[#This Row],[Year]],tblSourcesOfFunding[],14,FALSE) -> 1200 | E64: =tblGapCalc28[[#This Row],[OpEx required]]-tblGapCalc28[[#This Row],[OpEx expected]] -> 1502.666667 | F64: =VLOOKUP(tblGapCalc28[[#This Row],[Year]],tblEstimatedCosts[],3,FALSE) -> 0 | G64: =VLOOKUP(tblGapCalc28[[#This Row],[Year]],tblSourcesOfFunding[],15,FALSE) -> 300 | H64: =tblGapCalc28[[#This Row],[CapEx required]]-tblGapCalc28[[#This Row],[CapEx expected]] -> -300 | I64: =VLOOKUP(tblGapCalc28[[#This Row],[Year]],tblEstimatedCosts[],4,FALSE) -> 0 | J64: =VLOOKUP(tblGapCalc28[[#This Row],[Year]],tblSourcesOfFunding[],16,FALSE) -> 2000 | K64: =tblGapCalc28[[#This Row],[CapManEx required]]-tblGapCalc28[[#This Row],[CapManEx expected]] -> -2000 | L64: =VLOOKUP(tblGapCalc28[[#This Row],[Year]],tblEstimatedCosts[],5,FALSE) -> 4900 | M64: =VLOOKUP(tblGapCalc28[[#This Row],[Year]],tblSourcesOfFunding[],17,FALSE) -> 500 | N64: =tblGapCalc28[[#This Row],[Direct Support]]-tblGapCalc28[[#This Row],[Direct Support expected]] -> 4400
B65: 2030 | C65: =VLOOKUP(tblGapCalc28[[#This Row],[Year]],tblEstimatedCosts[],2,FALSE) -> 2702.666667 | D65: =VLOOKUP(tblGapCalc28[[#This Row],[Year]],tblSourcesOfFunding[],14,FALSE) -> 1200 | E65: =tblGapCalc28[[#This Row],[OpEx required]]-tblGapCalc28[[#This Row],[OpEx expected]] -> 1502.666667 | F65: =VLOOKUP(tblGapCalc28[[#This Row],[Year]],tblEstimatedCosts[],3,FALSE) -> 0 | G65: =VLOOKUP(tblGapCalc28[[#This Row],[Year]],tblSourcesOfFunding[],15,FALSE) -> 300 | H65: =tblGapCalc28[[#This Row],[CapEx required]]-tblGapCalc28[[#This Row],[CapEx expected]] -> -300 | I65: =VLOOKUP(tblGapCalc28[[#This Row],[Year]],tblEstimatedCosts[],4,FALSE) -> 0 | J65: =VLOOKUP(tblGapCalc28[[#This Row],[Year]],tblSourcesOfFunding[],16,FALSE) -> 5000 | K65: =tblGapCalc28[[#This Row],[CapManEx required]]-tblGapCalc28[[#This Row],[CapManEx expected]] -> -5000 | L65: =VLOOKUP(tblGapCalc28[[#This Row],[Year]],tblEstimatedCosts[],5,FALSE) -> 4900 | M65: =VLOOKUP(tblGapCalc28[[#This Row],[Year]],tblSourcesOfFunding[],17,FALSE) -> 500 | N65: =tblGapCalc28[[#This Row],[Direct Support]]-tblGapCalc28[[#This Row],[Direct Support expected]] -> 4400
B66: Total | C66: =SUBTOTAL(109,tblGapCalc28[OpEx required]) -> 24324 | D66: =SUBTOTAL(109,tblGapCalc28[OpEx expected]) -> 10800 | E66: =SUBTOTAL(109,tblGapCalc28[OpEx expected]) -> 10800 | F66: =SUBTOTAL(109,tblGapCalc28[CapEx required]) -> 27020 | G66: =SUBTOTAL(109,tblGapCalc28[CapEx expected]) -> 8100 | H66: =SUBTOTAL(109,tblGapCalc28[CapEx expected]) -> 8100 | I66: =SUBTOTAL(109,tblGapCalc28[CapManEx required]) -> 9840 | J66: =SUBTOTAL(109,tblGapCalc28[CapManEx required]) -> 9840 | K66: =SUBTOTAL(109,tblGapCalc28[CapManEx expected]) -> 18000 | L66: =SUBTOTAL(109,tblGapCalc28[Direct Support]) -> 44100 | M66: =SUBTOTAL(109,tblGapCalc28[Direct Support]) -> 44100 | N66: =SUBTOTAL(109,tblGapCalc28[Direct Support expected]) -> 4500

Sheet Extra sheet
B2: This is a spare sheet that is currently not in use

Sheet For graphics-do not edit
A1: This is a hidden calculation sheet for pivot tables.
G3: Staff expenses and the gap sorted by actual
B6: Ideal Cost | C6: (Multiple Items)
B8: Row Labels | C8: Actual | D8: Gap
B9: Meetings and workshops | C9: 1250 | D9: 0
B10: Project Supervision | C10: 1000 | D10: 1000
B11: Water Quality | C11: 500 | D11: 0
B12: Bank account review | C12: 333.3333333 | D12: 333.3333333
B13: Annual monitoring | C13: 333.3333333 | D13: 1666.666667
B14: Administration | C14: 83.33333333 | D14: 0
B15: Water source protection | C15: 0 | D15: 833.3333333
B16: Quality, Operation, Administration and Monitoring | C16: 0 | D16: 333.3333333
B17: Grand Total | C17: 3500 | D17: 4166.666667
